Workbook

Sheet 00 Alimenta (hidden)
A2: PRG | B2: 4
A4: SP | B4: Conto | C4: Descrizione conto | D4: Esercizio 2017 | E4: Incrementi 2018 | F4: Decrementi 2018 | G4: Esercizio 2018 | H4: Incrementi 2019 | I4: Decrementi 2019
A5: AAA140 | B5: 0101010602 | C5: Licenze d'uso software | D5: 2188144.58 | E5: 131197.56 | F5: 11461.65 | G5: 2307880.49 | H5: 65627.89 | I5: 0
A6: AAA300 | B6: 0101020102 | C6: Terreni indisponibili | D6: 942655.12 | E6: 0 | F6: 0 | G6: 942655.12 | H6: 0 | I6: 0
A7: AAA360 | B7: 0101020301 | C7: Fabbricati strumentali (indisponibili) | D7: 169096559.2 | E7: 2087230 | F7: 0 | G7: 171183789.2 | H7: 0 | I7: 0
A8: AAA390 | B8: 0101020404 | C8: Macchinari generici | D8: 6166777.53 | E8: 653192.51 | F8: 17647.73 | G8: 6802322.31 | H8: 456581.73 | I8: 56990.8
A9: AAA420 | B9: 0101020502 | C9: Attrezzature generiche | D9: 84717848.54 | E9: 4303427.61 | F9: 5885338.17 | G9: 83135937.98 | H9: 2217999.93 | I9: 996227.99
A10: AAA450 | B10: 0101020601 | C10: Mobili e arredi | D10: 10597975.65 | E10: 339281.25 | F10: 91861.65 | G10: 10845395.25 | H10: 233981.82 | I10: 30493.53
A11: AAA480 | B11: 0101020702 | C11: Ambulanze | D11: 0 | E11: 73346.4 | F11: 0 | G11: 73346.4 | H11: 429708.9 | I11: 0
A12: AAA480 | B12: 0101020703 | C12: Altri mezzi di trasporto | D12: 1962988.77 | E12: 19850.57 | F12: 149825.11 | G12: 1833014.23 | H12: 63027.09 | I12: 0
A13: AAA520 | B13: 0101020903 | C13: Computer e macchinari elettronici | D13: 5490053.41 | E13: 253573.24 | F13: 327240.58 | G13: 5416386.07 | H13: 355649.06 | I13: 616.61
A14: AAA520 | B14: 0101020904 | C14: Altri beni materiali | D14: 427941.57 | E14: 14224.53 | F14: 3249.6 | G14: 438916.5 | H14: 8647.6 | I14: 651
A15: AAA540 | B15: 0101021001 | C15: Fabbricati in costruzione | D15: 9470852.14 | E15: 1449834.4 | F15: 2396699.18 | G15: 8523987.36 | H15: 2001338.47 | I15: 31550.43
A16: AAA540 | B16: 0101021005 | C16: Acconti su future acquisizioni di immobilizzazioni materiali | D16: 1527100.43 | E16: 66213.3 | F16: 1527100.33 | G16: 66213.4 | H16: 103224.2 | I16: 66591.5
A17: AAA690 | B17: 0101030404 | C17: Depositi cauzionali | D17: 14036.45 | E17: 0 | F17: 0 | G17: 14036.45 | H17: 0 | I17: 0
A18: ABA020 | B18: 0102010101 | C18: Medicinali con AIC | D18: 4388956 | E18: 9637765.4 | F18: 4388956 | G18: 9637765.4 | H18: 8982739.93 | I18: 9637765.4
A19: ABA020 | B19: 0102010102 | C19: Soluzioni infusionali con AIC | D19: 1398.76 | E19: 4720.81 | F19: 1398.76 | G19: 4720.81 | H19: 299.85 | I19: 4720.81
A20: ABA020 | B20: 0102010103 | C20: Ossigeno con AIC | D20: 1633.04 | E20: 1919.27 | F20: 1633.04 | G20: 1919.27 | H20: 0 | I20: 1919.27
A21: ABA020 | B21: 0102010104 | C21: Altri gas medicali con AIC | D21: 9993.46 | E21: 18281.7 | F21: 9993.46 | G21: 18281.7 | H21: 0 | I21: 18281.7
A22: ABA020 | B22: 0102010105 | C22: Emoderivati con AIC | D22: 415087.34 | E22: 299372.47 | F22: 415087.34 | G22: 299372.47 | H22: 305511.96 | I22: 299372.47
A23: ABA020 | B23: 0102010106 | C23: Medicinali senza AIC | D23: 220505.73 | E23: 153849.16 | F23: 220505.73 | G23: 153849.16 | H23: 198124.1 | I23: 153849.16
A24: ABA020 | B24: 0102010108 | C24: Farmaci innovativi | D24: 796557.79 | E24: 425624.06 | F24: 796557.79 | G24: 425624.06 | H24: 713717.44 | I24: 425624.06
A25: ABA040 | B25: 0102010301 | C25: Strumentazione per bioimmagini e radioterapia | D25: 22325.73 | E25: 57070.16 | F25: 22325.73 | G25: 57070.16 | H25: 34041.11 | I25: 57070.16
A26: ABA040 | B26: 0102010302 | C26: Materiale per sterilizzazione | D26: 44744.42 | E26: 8572.01 | F26: 44744.42 | G26: 8572.01 | H26: 26034.46 | I26: 8572.01
A27: ABA040 | B27: 0102010303 | C27: Dispositivi per chirurgia mini-invasiva ed elettrochirurgia | D27: 191192.48 | E27: 237459.44 | F27: 191192.48 | G27: 237459.44 | H27: 231885.55 | I27: 237459.44
A28: ABA040 | B28: 0102010304 | C28: Protesi ortopediche e mezzi per osteosintesi e sintesi tendineo-legamentosa | D28: 156988.5 | E28: 125902.79 | F28: 156988.5 | G28: 125902.79 | H28: 125694.46 | I28: 125902.79
A29: ABA040 | B29: 0102010305 | C29: Protesi oculistiche | D29: 21294.52 | E29: 28295.8 | F29: 21294.52 | G29: 28295.8 | H29: 106241.44 | I29: 28295.8
A30: ABA040 | B30: 0102010306 | C30: Protesi vascolari e cardiache | D30: 7516.08 | E30: 4904.64 | F30: 7516.08 | G30: 4904.64 | H30: 3595.95 | I30: 4904.64
A31: ABA040 | B31: 0102010307 | C31: Altri dispositivi protesici impiantabili e prodotti per osteosintesi | D31: 15680.73 | E31: 8142.05 | F31: 15680.73 | G31: 8142.05 | H31: 26339.17 | I31: 8142.05
A32: ABA040 | B32: 0102010308 | C32: Supporti e ausili tecnici per persone disabili | D32: 32718.44 | E32: 15277.66 | F32: 32718.44 | G32: 15277.66 | H32: 7705.5 | I32: 15277.66
A33: ABA040 | B33: 0102010309 | C33: Dispositivi per emotrasfusione ed ematologia | D33: 58519.51 | E33: 43182.99 | F33: 58519.51 | G33: 43182.99 | H33: 42793.34 | I33: 43182.99
A34: ABA040 | B34: 0102010310 | C34: Dispositivi per dialisi | D34: 78184.86 | E34: 349609.43 | F34: 78184.86 | G34: 349609.43 | H34: 414188.42 | I34: 349609.43
A35: ABA040 | B35: 0102010311 | C35: Dispositivi medico-diagnostici in vitro (D.Lgs. 332/2000) | D35: 1482372.12 | E35: 1412543.58 | F35: 1482372.12 | G35: 1412543.58 | H35: 1378264.31 | I35: 1412543.58
A36: ABA040 | B36: 0102010312 | C36: Strumentazione per esplorazioni funzionali ed interventi terapeutici | D36: 270520.31 | E36: 349679.38 | F36: 270520.31 | G36: 349679.38 | H36: 395454.2 | I36: 349679.38
A37: ABA040 | B37: 0102010313 | C37: Strumentazione per radiologia diagnostica ed interventistica | D37: 712.51 | E37: 971.05 | F37: 712.51 | G37: 971.05 | H37: 888.71 | I37: 971.05
A38: ABA040 | B38: 0102010314 | C38: Strumentario chirurgico pluriuso o riusabile | D38: 92097.5 | E38: 59941.67 | F38: 92097.5 | G38: 59941.67 | H38: 43416.82 | I38: 59941.67
A39: ABA040 | B39: 0102010315 | C39: Dispositivi protesici impiantabili - vari | D39: 80004.3 | E39: 36165.23 | F39: 80004.3 | G39: 36165.23 | H39: 20957.82 | I39: 36165.23
A40: ABA040 | B40: 0102010316 | C40: Dispositivi per sistema artero-venoso | D40: 196661.87 | E40: 341902.99 | F40: 196661.87 | G40: 341902.99 | H40: 263899.12 | I40: 341902.99
A41: ABA040 | B41: 0102010317 | C41: Guide per apparato cardiocircolatorio | D41: 16525.53 | E41: 51496.86 | F41: 16525.53 | G41: 51496.86 | H41: 54115.43 | I41: 51496.86
A42: ABA040 | B42: 0102010318 | C42: Altri dispositivi per apparato cardiocircolatorio | D42: 123103.54 | E42: 192131.49 | F42: 123103.54 | G42: 192131.49 | H42: 209610.57 | I42: 192131.49
A43: ABA040 | B43: 0102010319 | C43: Disinfettanti, antisettici e proteolitici (D.Lgs. 46/97) | D43: 22348.48 | E43: 23214.09 | F43: 22348.48 | G43: 23214.09 | H43: 20593.43 | I43: 23214.09
A44: ABA040 | B44: 0102010320 | C44: Dispositivi per apparato gastrointestinale | D44: 83693.42 | E44: 108873.9 | F44: 83693.42 | G44: 108873.9 | H44: 108756.84 | I44: 108873.9
A45: ABA040 | B45: 0102010321 | C45: Dispositivi da sutura | D45: 349748.67 | E45: 199430.7 | F45: 349748.67 | G45: 199430.7 | H45: 159097.78 | I45: 199430.7
A46: ABA040 | B46: 0102010322 | C46: Dispositivi per sistema nervoso e midollare | D46: 28260.43 | E46: 24648.4 | F46: 28260.43 | G46: 24648.4 | H46: 14507.51 | I46: 24648.4
A47: ABA040 | B47: 0102010323 | C47: Dispositivi per odontoiatria, oftalmologoa e otorinolaringoiatria | D47: 71817.28 | E47: 77787.69 | F47: 71817.28 | G47: 77787.69 | H47: 74179.94 | I47: 77787.69
A48: ABA040 | B48: 0102010324 | C48: Dispositivi per apparato respiratorio e anestesia | D48: 182238.66 | E48: 226521.29 | F48: 182238.66 | G48: 226521.29 | H48: 204390.15 | I48: 226521.29
A49: ABA040 | B49: 0102010325 | C49: Dispositivi di protezione e ausili per incontinenza (D.Lgs. 46/97) | D49: 196921.3 | E49: 188552.61 | F49: 196921.3 | G49: 188552.61 | H49: 194247.26 | I49: 188552.61
A50: ABA040 | B50: 0102010326 | C50: Dispositivi per apparato urogenitale | D50: 51126.59 | E50: 58158.49 | F50: 51126.59 | G50: 58158.49 | H50: 87545.74 | I50: 58158.49
A51: ABA040 | B51: 0102010327 | C51: Dispositivi vari | D51: 304842.72 | E51: 302955.27 | F51: 304842.72 | G51: 302955.27 | H51: 226897.32 | I51: 302955.27
A52: ABA040 | B52: 0102010328 | C52: Dispositivi da somministrazione, prelievo e raccolta | D52: 569117.95 | E52: 632496.82 | F52: 569117.95 | G52: 632496.82 | H52: 633711.89 | I52: 632496.82
A53: ABA040 | B53: 0102010329 | C53: Dispositivi per medicazioni generali e specialistiche | D53: 357449.92 | E53: 347297.22 | F53: 357449.92 | G53: 347297.22 | H53: 345477.22 | I53: 347297.22
A54: ABA040 | B54: 0102010330 | C54: Dispositivi impiantabili attivi | D54: 30319.56 | E54: 31197.03 | F54: 30319.56 | G54: 31197.03 | H54: 34540.9 | I54: 31197.03
A55: ABA050 | B55: 0102010401 | C55: Prodotti dietetici | D55: 5615.65 | E55: 5237.29 | F55: 5615.65 | G55: 5237.29 | H55: 10440.25 | I55: 5237.29
A56: ABA050 | B56: 0102010402 | C56: Alimenti per nutrizione artificiale senza AIC | D56: 58004.47 | E56: 66412.52 | F56: 58004.47 | G56: 66412.52 | H56: 65062.74 | I56: 66412.52
A57: ABA060 | B57: 0102010503 | C57: Altri Vaccini | D57: 1112.76 | E57: 2856.7 | F57: 1112.76 | G57: 2856.7 | H57: 0 | I57: 2856.7
A58: ABA090 | B58: 0102010801 | C58: Vetrerie e materiale plastico per laboratorio | D58: 42717.86 | E58: 22568.66 | F58: 42717.86 | G58: 22568.66 | H58: 11204.53 | I58: 22568.66
A59: ABA090 | B59: 0102010802 | C59: Materiali di consumo non specifici per strumentazione diagnostica | D59: 125485.73 | E59: 93627.14 | F59: 125485.73 | G59: 93627.14 | H59: 68710.77 | I59: 93627.14
A60: ABA090 | B60: 0102010803 | C60: Altri beni e prodotti sanitari | D60: 127988.56 | E60: 180987.44 | F60: 127988.56 | G60: 180987.44 | H60: 248147.84 | I60: 180987.44
A61: ABA130 | B61: 0102011101 | C61: Materiali di guardaroba, di pulizia, e di convivenza in genere | D61: 29727.94 | E61: 29504.9 | F61: 29727.94 | G61: 29504.9 | H61: 30345.25 | I61: 29504.9
A62: ABA150 | B62: 0102011301 | C62: Supporti informatici | D62: 192555.39 | E62: 102147.29 | F62: 192555.39 | G62: 102147.29 | H62: 108077.25 | I62: 102147.29
A63: ABA150 | B63: 0102011302 | C63: Cancelleria e stampati | D63: 169734.96 | E63: 107409.14 | F63: 169734.96 | G63: 107409.14 | H63: 117179.4 | I63: 107409.14
A64: ABA160 | B64: 0102011401 | C64: Materiale per la manutenzione di immobili e loro pertinenze | D64: 85875.45 | E64: 139324.97 | F64: 85875.45 | G64: 139324.97 | H64: 6398.26 | I64: 139324.97
A65: ABA160 | B65: 0102011403 | C65: Materiale per la manutenzione di attrezzature tecnico scientifiche sanitarie | D65: 26463.29 | E65: 15166.69 | F65: 26463.29 | G65: 15166.69 | H65: 10429.76 | I65: 15166.69
A66: ABA160 | B66: 0102011405 | C66: Materiale per la manutenzione di altro | D66: 5031.4 | E66: 4064.04 | F66: 5031.4 | G66: 4064.04 | H66: 4708.03 | I66: 4064.04
A67: ABA170 | B67: 0102011501 | C67: Altri beni e prodotti non sanitari | D67: 1229.74 | E67: 502.43 | F67: 1229.74 | G67: 502.43 | H67: 1157.96 | I67: 502.43
A68: ABA201 | B68: 0102020101 | C68: Crediti v/Stato per spesa corrente - FSN indistinto | D68: 0 | E68: 50822.1 | F68: 48520.58 | G68: 2301.52 | H68: 98325.05 | I68: 93639.37
A69: ABA310 | B69: 0102020902 | C69: Crediti v/Stato per ricerca finalizzata - Ministero della Salute | D69: 4620 | E69: 10300 | F69: 10300 | G69: 4620 | H69: 1122 | I69: 0
A70: ABA340 | B70: 0102021001 | C70: Crediti v/prefetture | D70: 93462.74 | E70: 93462.74 | F70: 186925.48 | G70: 0 | H70: 0 | I70: 0
A71: ABA390 | B71: 0102021103 | C71: Crediti v/Regione o Provincia Autonoma per quota FSR | D71: 118927566.1 | E71: 699144829.1 | F71: 673828882.2 | G71: 144243512.9 | H71: 743631926.5 | I71: 761266852.4
A72: ABA400 | B72: 0102021104 | C72: Crediti v/Regione o Provincia Autonoma per mobilità attiva intraregionale | D72: 1256839.39 | E72: 99510381.01 | F72: 99510381 | G72: 1256839.4 | H72: 102476232.3 | I72: 102476232.3
A73: ABA410 | B73: 0102021107 | C73: Crediti v/Regione o Provincia Autonoma per mobilità attiva extraregionale | D73: 19005500.29 | E73: 23288119.72 | F73: 23288119.72 | G73: 19005500.29 | H73: 26206460.13 | I73: 26206460.13
A74: ABA420 | B74: 0102021109 | C74: Crediti v/Regione o Provincia Autonoma per acconto quota FSR | D74: 0 | E74: 581529568.5 | F74: 581529568.5 | G74: 0 | H74: 597506235 | I74: 597506235
A75: ABA430 | B75: 0102021111 | C75: Crediti v/Regione o Provincia Autonoma per finanziamento sanitario aggiuntivo corrente LEA | D75: 10384091.02 | E75: 2899011.66 | F75: 3904796.15 | G75: 9378306.53 | H75: 9459338.46 | I75: 8933757.09
A76: ABA400 | B76: 0102021115 | C76: Netting mobilità intraregionale ante 2007 | D76: 15592903.99 | E76: 0 | F76: 0 | G76: 15592903.99 | H76: 0 | I76: 0
A77: ABA420 | B77: 0102021117 | C77: Crediti v/Regione o provincia Autonoma per acconto quota FSR per DPC | D77: 0 | E77: 21620901.28 | F77: 21620901.28 | G77: 0 | H77: 47981977.05 | I77: 47981977.05
A78: ABA451 | B78: 0102021118 | C78: Crediti v/Regione o Provincia Autonoma per spesa corrente - STP (ex D.lgs. 286/98) | D78: 0 | E78: 0 | F78: 0 | G78: 0 | H78: 216918.16 | I78: 0
A79: ABA461 | B79: 0102021119 | C79: Crediti v/Regione o Provincia Autonoma per mobilità attiva internazionale | D79: 0 | E79: 0 | F79: 0 | G79: 0 | H79: 393536.14 | I79: 393536.14
A80: ABA480 | B80: 0102021201 | C80: Crediti v/Regione o Provincia Autonoma per finanziamenti per investimenti | D80: 38255 | E80: 0 | F80: 0 | G80: 38255 | H80: 682626.67 | I80: 682626.67
A81: ABA500 | B81: 0102021203 | C81: Crediti v/Regione o Provincia Autonoma per ripiano perdite | D81: 14264710 | E81: 13609624 | F81: 0 | G81: 27874334 | H81: 0 | I81: 353804.19
A82: ABA530 | B82: 0102021301 | C82: Crediti v/Comuni | D82: 163358.58 | E82: 111857.28 | F82: 91803.89 | G82: 183411.97 | H82: 99651.91 | I82: 89123.65
A83: ABA530 | B83: 0102021302 | C83: Fatture da emettere v/Comuni | D83: 58770.9 | E83: 53342.51 | F83: 58770.9 | G83: 53342.51 | H83: 20214.71 | I83: 53342.51
A84: ABA580 | B84: 0102021418 | C84: Crediti v/ASL Avezzano Sulmona L'Aquila per altre prestazioni | D84: 486039.96 | E84: 214056.28 | F84: 210042.87 | G84: 490053.37 | H84: 91354.52 | I84: 34529.48
A85: ABA580 | B85: 0102021419 | C85: Fatture da emettere v/ASL Avezzano Sulmona L'Aquila per altre prestazioni | D85: 8143.77 | E85: 37721.2 | F85: 8143.77 | G85: 37721.2 | H85: 2141.44 | I85: 37721.2
A86: ABA580 | B86: 0102021420 | C86: Crediti v/ASL Lanciano Vasto Chieti per altre prestazioni | D86: 233845.47 | E86: 110654.79 | F86: 99868.92 | G86: 244631.34 | H86: 150854.48 | I86: 107562.38
A87: ABA580 | B87: 0102021421 | C87: Fatture da emettere v/ASL Lanciano Vasto Chieti per altre prestazioni | D87: 1282.71 | E87: 25919.58 | F87: 1282.71 | G87: 25919.58 | H87: 21559.36 | I87: 25919.58
A88: ABA580 | B88: 0102021424 | C88: Crediti v/ASL Teramo per altre prestazioni | D88: 3855447.31 | E88: 11975.84 | F88: 29003.38 | G88: 3838419.77 | H88: 284732.87 | I88: 281616.85
A89: ABA580 | B89: 0102021425 | C89: Fatture da emettere v/ASL Teramo per altre prestazioni | D89: 5559.81 | E89: 4159.83 | F89: 5559.81 | G89: 4159.83 | H89: 4464.7 | I89: 4159.83
A90: ABA600 | B90: 0102021601 | C90: Crediti v/Aziende sanitarie pubbliche Extraregione | D90: 128586.02 | E90: 238832 | F90: 210160.77 | G90: 157257.25 | H90: 98823.23 | I90: 127250.19
A91: ABA600 | B91: 0102021602 | C91: Fatture da emettere v/Aziende Sanitarie Pubbliche Extraregione | D91: 85649.52 | E91: 44097.25 | F91: 85649.52 | G91: 44097.25 | H91: 29023.79 | I91: 44522.61
A92: ABA620 | B92: 0102021701 | C92: Crediti v/ARTA | D92: 5931.31 | E92: 0 | F92: 0 | G92: 5931.31 | H92: 0 | I92: 0
A93: ABA650 | B93: 0102022001 | C93: Erario c/Ires | D93: 0 | E93: 81792 | F93: 81792 | G93: 0 | H93: 0 | I93: 0
A94: ABA650 | B94: 0102022002 | C94: Erario c/Ires per acconti versati | D94: 0 | E94: 408274 | F94: 408274 | G94: 0 | H94: 408988 | I94: 408988
A95: ABA650 | B95: 0102022003 | C95: Erario c/ritenute | D95: 0 | E95: 80.5 | F95: 0 | G95: 80.5 | H95: 38.97 | I95: 0
A96: ABA650 | B96: 0102022005 | C96: Erario c/Iva per acconti versati | D96: 6914 | E96: 15421 | F96: 6806 | G96: 15529 | H96: 13871 | I96: 15421
A97: ABA650 | B97: 0102022006 | C97: Erario c/Iva chiesta a rimborso | D97: 1295.04 | E97: 0 | F97: 0 | G97: 1295.04 | H97: 0 | I97: 0
A98: ABA670 | B98: 0102022101 | C98: Crediti v/clienti privati | D98: 4591562.39 | E98: 9715318.34 | F98: 9771870.08 | G98: 4535010.65 | H98: 21132945.95 | I98: 20182702.73
A99: ABA670 | B99: 0102022102 | C99: Fatture da emettere v/clienti privati | D99: 190888.78 | E99: 608342.13 | F99: 190888.78 | G99: 608342.13 | H99: 272781.97 | I99: 608342.13
A100: ABA670 | B100: 0102022103 | C100: Crediti v/utenza per proventi da ticket | D100: 38021.18 | E100: 8500208.7 | F100: 8524029.65 | G100: 14200.23 | H100: 8858209.3 | I100: 8852587.76
A101: ABA670 | B101: 0102022109 | C101: Crediti v/dipendenti | D101: 77984.42 | E101: 103264.73 | F101: 179303.71 | G101: 1945.44 | H101: 6134.4 | I101: 6457.39
A102: ABA670 | B102: 0102022111 | C102: Acconti verso altri fornitori | D102: 0 | E102: 432985.28 | F102: 432985.28 | G102: 0 | H102: 207813.83 | I102: 207813.83
A103: ABA690 | B103: 0102022301 | C103: Crediti v/altri soggetti pubblici | D103: 393950.55 | E103: 288535.49 | F103: 464939.33 | G103: 217546.71 | H103: 155400.41 | I103: 137662.29
A104: ABA690 | B104: 0102022302 | C104: Fatture da emettere v/altri soggetti pubblici | D104: 585.44 | E104: 0 | F104: 585.44 | G104: 0 | H104: 0 | I104: 0
A105: ABA711 | B105: 0102022501 | C105: Altri Crediti diversi | D105: 1185854.96 | E105: 739010.91 | F105: 1059463.17 | G105: 865402.7 | H105: 1010408.89 | I105: 11935.63
A106: PDA210 | B106: 0102022623 | C106: Note credito da ricevere v/ASL Lanciano Vasto Chieti per altre prestazioni | D106: 0 | E106: 57.75 | F106: 0 | G106: 57.75 | H106: 23908.5 | I106: 57.75
A107: PDA210 | B107: 0102022625 | C107: Note credito da ricevere v/ASL Teramo per altre prestazioni | D107: 0 | E107: 0 | F107: 0 | G107: 0 | H107: 46.78 | I107: 0
A108: PDA292 | B108: 0102022634 | C108: Note di credito v/IRCCS privati e Policlinici | D108: 0 | E108: 0 | F108: 0 | G108: 0 | H108: 7956.18 | I108: 0
A109: PDA292 | B109: 0102022636 | C109: Note credito da ricevere v/Case di Cura | D109: 1930071.03 | E109: 4610.61 | F109: 1930071.03 | G109: 4610.61 | H109: 126.36 | I109: 4610.61
A110: PDA292 | B110: 0102022637 | C110: Note credito da ricevere v/altri erogatori di prestazioni sanitarie - intraregione | D110: 27334117.52 | E110: 2829706.77 | F110: 4272293.94 | G110: 25891530.35 | H110: 1929388.19 | I110: 2833454.09
A111: PDA302 | B111: 0102022638 | C111: Note credito da ricevere verso altri fornitori nazionali | D111: 1123439.08 | E111: 1282410.64 | F111: 1123439.08 | G111: 1282410.64 | H111: 738479.34 | I111: 1282410.64
A112: PDA302 | B112: 0102022639 | C112: Note credito da ricevere verso altri fornitori esteri | D112: 6362 | E112: 0 | F112: 6362 | G112: 0 | H112: 0 | I112: 0
A113: PDA380 | B113: 0102022641 | C113: Note credito da ricevere per altri debiti diversi | D113: 5013.58 | E113: 2286.01 | F113: 5013.58 | G113: 2286.01 | H113: 6757.61 | I113: 2286.01
A114: ABA760 | B114: 0102040101 | C114: Cassa ticket | D114: 20000 | E114: 0 | F114: 0 | G114: 20000 | H114: 0 | I114: 0
A115: ABA760 | B115: 0102040102 | C115: Cassa economale | D115: 0 | E115: 52671.15 | F115: 52671.15 | G115: 0 | H115: 49747.05 | I115: 49747.05
A116: ABA770 | B116: 0102040201 | C116: Istituto Tesoriere | D116: 69558966.35 | E116: 625609944.8 | F116: 648972836.8 | G116: 46196074.32 | H116: 690539043.5 | I116: 662428963.2
A117: ABA790 | B117: 0102040401 | C117: Conto corrente postale | D117: 3227616.17 | E117: 1458253.24 | F117: 3393835 | G117: 1292034.41 | H117: 1221581.4 | I117: 1514988.6
A118: ACA040 | B118: 0103020101 | C118: Risconti attivi | D118: 8698.51 | E118: 10533.97 | F118: 8698.51 | G118: 10533.97 | H118: 8697.97 | I118: 10533.97
A119: PAA020 | B119: 0201020101 | C119: Finanziamenti per beni di prima dotazione | D119: 63708881.74 | E119: 0 | F119: 3577467.93 | G119: 60131413.81 | H119: 0 | I119: 3577467.93
A120: PAA070 | B120: 0201020501 | C120: Finanziamenti da Regione per investimenti | D120: 37556665.46 | E120: 2138846.64 | F120: 1674245.68 | G120: 38021266.42 | H120: 13499505.02 | I120: 15486369.17
A121: PAA090 | B121: 0201020701 | C121: Finanziamenti per investimenti da rettifica contributi in conto esercizio | D121: 17897222.85 | E121: 4347846.81 | F121: 5185207.28 | G121: 17059862.38 | H121: 3379701.26 | I121: 5079640.42
A122: PAA100 | B122: 0201030101 | C122: Riserve da donazioni e lasciti vincolati ad investimenti | D122: 201195.25 | E122: 114032.88 | F122: 54754.03 | G122: 260474.1 | H122: 308827.12 | I122: 86964.13
A123: PAA160 | B123: 0201040501 | C123: Riserve diverse | D123: 2730000 | E123: 0 | F123: 0 | G123: 2730000 | H123: 0 | I123: 0
A124: PAA200 | B124: 0201050301 | C124: Altro - contributi per ripiano perdite | D124: 14264710 | E124: 13609624 | F124: 0 | G124: 27874334 | H124: 0 | I124: 0
A125: PAA210 | B125: 0201060101 | C125: UTILI PORTATI A NUOVO | D125: 0 | E125: 0 | F125: 0 | G125: 0 | H125: 1677.34 | I125: 0
A126: PAA210 | B126: 0201060102 | C126: PERDITE PORTATI A NUOVO | D126: -14264709.56 | E126: 0 | F126: 13609624.26 | G126: -27874333.82 | H126: 0 | I126: 0
A127: PAA220 | B127: 0201070101 | C127: UTILE D'ESERCIZIO | D127: 0 | E127: 1677.34 | F127: 0 | G127: 1677.34 | H127: 0 | I127: 1677.34
A128: PAA220 | B128: 0201070102 | C128: PERDITA D'ESERCIZIO | D128: -13609624.26 | E128: 13609624.26 | F128: 0 | G128: 0 | H128: 0 | I128: 10236853
A129: AAA150 | B129: 0202010601 | C129: F.do Amm.to licenze d'uso software | D129: -1695177.54 | E129: -160938.81 | F129: -11461.65 | G129: -1844654.7 | H129: -155437.62 | I129: 0
A130: AAA370 | B130: 0202020301 | C130: F.do Amm.to Fabbricati strumentali (indisponibili) | D130: -90881774.34 | E130: -4970458.61 | F130: 0 | G130: -95852232.95 | H130: -5032903.95 | I130: 0
A131: AAA400 | B131: 0202020701 | C131: F.do ammortamento macchinari generici | D131: -5151096.58 | E131: -243006.53 | F131: -244.8 | G131: -5393858.31 | H131: -319573.24 | I131: -32590.8
A132: AAA430 | B132: 0202021001 | C132: F.do Amm.to Attrezzature generiche | D132: -70497398.36 | E132: -4807326.23 | F132: -5868448.49 | G132: -69436276.1 | H132: -4807029.55 | I132: -879884.2
A133: AAA460 | B133: 0202021201 | C133: F.do Amm.to mobili e arredi | D133: -9083783.96 | E133: -354383.59 | F133: -89444.45 | G133: -9348723.1 | H133: -361509.62 | I133: -21894.7
A134: AAA490 | B134: 0202021601 | C134: F.do Amm.to Ambulanze | D134: 0 | E134: -601.44 | F134: 0 | G134: -601.44 | H134: -47981.85 | I134: 0
A135: AAA490 | B135: 0202021701 | C135: F.do Amm.to Altri mezzi di trasporto | D135: -1728549.97 | E135: -92937.66 | F135: -149825.11 | G135: -1671662.52 | H135: -85729.9 | I135: 0
A136: AAA530 | B136: 0202022001 | C136: F.do Amm.to computer e macchinari elettronici | D136: -4859556.02 | E136: -237629.17 | F136: -308936.13 | G136: -4788249.06 | H136: -250059.58 | I136: -616.61
A137: AAA530 | B137: 0202022101 | C137: F.do Amm.to altri beni materiali | D137: -396136.9 | E137: -14155.8 | F137: -3249.6 | G137: -407043.1 | H137: -11964.03 | I137: -651
A138: ABA580 | B138: 0202030518 | C138: F.do svalutazione Crediti v/Aziende sanitarie pubbliche della Regione | D138: -3259926.7 | E138: 0 | F138: 0 | G138: -3259926.7 | H138: 0 | I138: 0
A139: ABA670 | B139: 0202030524 | C139: F.do svalutazione crediti verso clienti privati | D139: -2874726.99 | E139: 0 | F139: 0 | G139: -2874726.99 | H139: 0 | I139: 0
A140: ABA711 | B140: 0202030528 | C140: F.do svalutazione altri crediti diversi | D140: -300000 | E140: 0 | F140: 0 | G140: -300000 | H140: 0 | I140: 0
A141: ABA390 | B141: 0202030529 | C141: F.do svalutazione crediti v/Regione o Provincia Autonoma per quota FSR | D141: -3047520.97 | E141: 0 | F141: 0 | G141: -3047520.97 | H141: 0 | I141: 0
A142: PBA020 | B142: 0203020101 | C142: Fondo rischi per cause civili ed oneri processuali | D142: -16265222 | E142: -1357811.38 | F142: -6579085.16 | G142: -11043948.22 | H142: -6378882.71 | I142: -2138381.25
A143: PBA030 | B143: 0203020201 | C143: Fondo rischi per contenzioso personale dipendente | D143: -1250000 | E143: 0 | F143: -254237.67 | G143: -995762.33 | H143: -811978.17 | I143: -252340.5
A144: PBA040 | B144: 0203020301 | C144: Fondo rischi connessi all'acquisto di prestazioni sanitarie da privato | D144: -23324836.51 | E144: -272176.8 | F144: -1311382.44 | G144: -22285630.87 | H144: -1823614 | I144: -275924.12
A145: PBA050 | B145: 0203020401 | C145: Fondo rischi per copertura diretta dei rischi (autoassicurazione) | D145: -5500000 | E145: -2297725.78 | F145: -2297725.68 | G145: -5500000.1 | H145: 0 | I145: -5500000.1
A146: PBA051 | B146: 0203020402 | C146: B.II.5) Fondo rischi per franchigia assicurativa | D146: 0 | E146: 0 | F146: 0 | G146: 0 | H146: -4900000 | I146: 0
A147: PBA160 | B147: 0203040113 | C147: Quote inutilizzate contributi da Regione per Progetti di PSN L 662/96 | D147: -32509804.77 | E147: -7216729.63 | F147: -6978711.73 | G147: -32747822.67 | H147: -23473893.68 | I147: -34572661.67
A148: PBA160 | B148: 0203040118 | C148: Quote inutilizzate contributi da Regione per quota gioco d'azzardo patologico (GAP) Legge n. 190/2014 e ss.mm.ii. | D148: -220805 | E148: 0 | F148: -220805 | G148: 0 | H148: 0 | I148: 0
A149: PBA170 | B149: 0203040201 | C149: Quote inutilizzate contributi vincolati da soggetti pubblici (extra fondo) | D149: -138455.9 | E149: -53105.86 | F149: 0 | G149: -191561.76 | H149: 0 | I149: -191561.76
A150: PBA210 | B150: 0203050101 | C150: Fondi integrativi pensione | D150: 0 | E150: 0 | F150: 0 | G150: 0 | H150: 0 | I150: 0
A151: PBA230 | B151: 0203050201 | C151: Fondo rinnovi contrattuali personale dipendente | D151: -2516697 | E151: -2658672 | F151: -1421530.85 | G151: -3753838.15 | H151: -820311.55 | I151: -686937
A152: PBA240 | B152: 0203050301 | C152: Fondo rinnovi convenzioni MMG/PLS/MCA | D152: -3807702.15 | E152: -1507157 | F152: -1600163.84 | G152: -3714695.31 | H152: -1990220 | I152: 0
A153: PBA250 | B153: 0203050401 | C153: Fondo rinnovi convenzioni medici Sumai | D153: -219050 | E153: -309790.5 | F153: -327842.5 | G153: -200998 | H153: -261948 | I153: 0
A154: PBA260 | B154: 0203050501 | C154: Altri fondi per oneri e spese | D154: 0 | E154: -2400000 | F154: 0 | G154: -2400000 | H154: 0 | I154: 0
A155: PCA000 | B155: 0204010101 | C155: Fondo per premi operosità medici SUMAI | D155: -2201092.41 | E155: -264664.11 | F155: -197944.41 | G155: -2267812.11 | H155: -277851.92 | I155: -441070.23
A156: PDA090 | B156: 0205030201 | C156: Debiti v/Regione o Provincia Autonoma per mobilità passiva intraregionale | D156: -20765655.58 | E156: -49387581.23 | F156: -49387581.23 | G156: -20765655.58 | H156: -52055370.39 | I156: -52055370.39
A157: PDA100 | B157: 0205030301 | C157: Debiti v/Regione o Provincia Autonoma per mobilità passiva extraregionale | D157: -9530548.09 | E157: -33463665.77 | F157: -33463665.77 | G157: -9530548.09 | H157: -36714312.75 | I157: -36714312.75
A158: PDA110 | B158: 0205030401 | C158: Acconto quota FSR da Regione o Provincia Autonoma | D158: 0 | E158: -565644818.5 | F158: -565644818.5 | G158: 0 | H158: -549671037 | I158: -549671037
A159: PDA110 | B159: 0205030402 | C159: Acconto quota FSR per DPC da Regione o Provincia Autonoma | D159: 0 | E159: -15884750 | F159: -15884750 | G159: 0 | H159: -47835198 | I159: -47835198
A160: PDA120 | B160: 0205030501 | C160: Altri debiti v/Regione o Provincia Autonoma - GSA | D160: 0 | E160: 0 | F160: 0 | G160: 0 | H160: -5596298.94 | I160: 0
A161: PDA101 | B161: 0205030601 | C161: Debiti v/Regione o Provincia Autonoma per mobilità passiva internazionale | D161: 0 | E161: 0 | F161: 0 | G161: 0 | H161: -2330052.78 | I161: -2330052.78
A162: PDA130 | B162: 0205040101 | C162: Debiti v/Comuni | D162: -150000 | E162: 0 | F162: 0 | G162: -150000 | H162: 0 | I162: 0
A163: PDA210 | B163: 0205050601 | C163: Debiti v/ASL Avezzano Sulmona L'Aquila per altre prestazioni | D163: -265404.46 | E163: -197162.76 | F163: -203272.68 | G163: -259294.54 | H163: -471189.87 | I163: -453404.2
A164: PDA210 | B164: 0205050602 | C164: Fatture da ricevere v/ASL Avezzano Sulmona L'Aquila per altre prestazioni | D164: -84346.32 | E164: -236845.56 | F164: -84346.32 | G164: -236845.56 | H164: -239701.34 | I164: -236845.56
A165: PDA210 | B165: 0205050603 | C165: Debiti v/ASL Lanciano Vasto Chieti per altre prestazioni | D165: -59271.31 | E165: -56200.12 | F165: -50633.11 | G165: -64838.32 | H165: -44284.06 | I165: -20577.33
A166: PDA210 | B166: 0205050604 | C166: Fatture da ricevere v/ASL Lanciano Vasto Chieti per altre prestazioni | D166: -23505.12 | E166: -9926 | F166: -23505.12 | G166: -9926 | H166: -23166 | I166: -9926
A167: PDA210 | B167: 0205050607 | C167: Debiti v/ASL Teramo per altre prestazioni | D167: -1927448.87 | E167: -152571.81 | F167: -11954.4 | G167: -2068066.28 | H167: -108568.18 | I167: -58733.56
A168: PDA210 | B168: 0205050608 | C168: Fatture da ricevere v/ASL Teramo per altre prestazioni | D168: -29786 | E168: -26706 | F168: -29786 | G168: -26706 | H168: -60702.32 | I168: -26706
A169: PDA220 | B169: 0205050701 | C169: Debiti v/Aziende sanitarie pubbliche Extraregione | D169: -94699.36 | E169: -170921.16 | F169: -190667.38 | G169: -74953.14 | H169: -217057.08 | I169: -193771
A170: PDA220 | B170: 0205050702 | C170: Fatture da ricevere v/Aziende sanitarie pubbliche Extraregione | D170: -15263.65 | E170: -45840.65 | F170: -15263.65 | G170: -45840.65 | H170: -27646.99 | I170: -45840.65
A171: PDA220 | B171: 0205050703 | C171: Debiti v/Aziende Ospedaliere, IRCCS, Policlinici, Fondazioni Extraregione | D171: -57236.47 | E171: -56381.91 | F171: -57423.86 | G171: -56194.52 | H171: -43581.24 | I171: -48819.7
A172: PDA220 | B172: 0205050704 | C172: Fatture da ricevere v/Aziende Ospedaliere, IRCCS, Policlinici, Fondazioni Extraregione | D172: -33826.42 | E172: -22127.28 | F172: -33826.42 | G172: -22127.28 | H172: -38667.86 | I172: -22127.28
A173: PDA291 | B173: 0205070101 | C173: Debiti v/medici di base | D173: -1748805.75 | E173: -26794195.95 | F173: -26629894.27 | G173: -1913107.43 | H173: -21583694.33 | I173: -21588784.18
A174: PDA291 | B174: 0205070102 | C174: Debiti v/farmacie | D174: -3005722.2 | E174: -50001509.33 | F174: -46696588.42 | G174: -6310643.11 | H174: -48380833.85 | I174: -48355734.82
A175: PDA291 | B175: 0205070103 | C175: Debiti v/medici SUMAI | D175: -0.01 | E175: -2821622.54 | F175: -2819880.2 | G175: -1742.35 | H175: -2541601.69 | I175: -2439224.05
A176: PDA291 | B176: 0205070107 | C176: Fatture da ricevere v/Ospedali Classificati | D176: -9382.08 | E176: 0 | F176: -9382.08 | G176: 0 | H176: 0 | I176: 0
A177: PDA291 | B177: 0205070108 | C177: Debiti v/Case di Cura | D177: -29184263.9 | E177: -90451579.67 | F177: -90508054.3 | G177: -29127789.27 | H177: -93951082.88 | I177: -94476710.07
A178: PDA291 | B178: 0205070109 | C178: Fatture da ricevere v/Case di Cura | D178: -7390453.02 | E178: -6431798.53 | F178: -7390453.02 | G178: -6431798.53 | H178: -7357378.4 | I178: -6431798.53
A179: PDA291 | B179: 0205070110 | C179: Debiti v/altri erogatori di prestazioni sanitarie - intraregione | D179: -59640323.57 | E179: -30157319.18 | F179: -30753773.26 | G179: -59043869.49 | H179: -30296181.67 | I179: -31934248.87
A180: PDA291 | B180: 0205070111 | C180: Fatture da ricevere v/altri erogatori di prestazioni sanitarie - intraregione | D180: -2195879.32 | E180: -2404175.02 | F180: -2195879.32 | G180: -2404175.02 | H180: -2178297.57 | I180: -2404175.02
A181: PDA301 | B181: 0205070201 | C181: Debiti verso altri fornitori nazionali | D181: -38139127.18 | E181: -315905697.3 | F181: -319150938.9 | G181: -34893885.54 | H181: -344711688 | I181: -343558289.2
A182: PDA301 | B182: 0205070202 | C182: Fatture da ricevere verso altri fornitori nazionali | D182: -14638757.89 | E182: -14320195.09 | F182: -14638757.89 | G182: -14320195.09 | H182: -14256020.42 | I182: -14320195.09
A183: PDA301 | B183: 0205070203 | C183: Debiti verso altri fornitori esteri | D183: -54626.54 | E183: -1069392.08 | F183: -1039446.08 | G183: -84572.54 | H183: -1106132.3 | I183: -1141305.02
A184: PDA301 | B184: 0205070204 | C184: Fatture da ricevere verso altri fornitori esteri | D184: -51772.21 | E184: -49807.02 | F184: -51772.21 | G184: -49807.02 | H184: -110137.87 | I184: -49807.02
A185: PDA301 | B185: 0205070205 | C185: Debiti verso professionisti e collaboratori (ad esclusione degli organi diretti) | D185: -79899.83 | E185: -345039.97 | F185: -340717.73 | G185: -84222.07 | H185: -345071.98 | I185: -352578.38
A186: PDA310 | B186: 0205080101 | C186: Debiti v/istituto tesoriere | D186: 0 | E186: 0 | F186: 0 | G186: 0 | H186: 0 | I186: 0
A187: PDA320 | B187: 0205090101 | C187: Erario c/Ires | D187: 0 | E187: -408341.33 | F187: -408341.33 | G187: 0 | H187: -409702 | I187: -409702
A188: PDA320 | B188: 0205090102 | C188: Erario c/ritenute su lavoro autonomo | D188: -472194.17 | E188: -7403740.42 | F188: -7409718.55 | G188: -466216.04 | H188: -5743923.54 | I188: -5302657.11
A189: PDA320 | B189: 0205090103 | C189: Erario c/ritenute su lavoro dipendente | D189: -790626.05 | E189: -33744103.08 | F189: -33740612.57 | G189: -794116.56 | H189: -33122070.07 | I189: -28214710.69
A190: PDA320 | B190: 0205090104 | C190: Erario c/I.V.A. | D190: -1582214.68 | E190: -7936966.37 | F190: -9504287.13 | G190: -14893.92 | H190: -877759.98 | I190: -813657.37
A191: PDA320 | B191: 0205090105 | C191: Erario c/Irap | D191: -229987.37 | E191: -12420854.32 | F191: -12429626.13 | G191: -221215.56 | H191: -12358546.83 | I191: -10565136.44
A192: PDA320 | B192: 0205090106 | C192: Altre imposte e tasse | D192: 0 | E192: -785.13 | F192: -785.13 | G192: 0 | H192: 0 | I192: 0
A193: PDA320 | B193: 0205090107 | C193: Erario c/IVA ¿ split payment | D193: 0 | E193: -19856036.09 | F193: -17216476.27 | G193: -2639559.82 | H193: -29572329.05 | I193: -29104619
A194: PDA330 | B194: 0205100101 | C194: Debiti verso INPDAP | D194: -840312.26 | E194: -49146093.64 | F194: -49241289.7 | G194: -745116.2 | H194: -49057188.1 | I194: -41789733.43
A195: PDA330 | B195: 0205100102 | C195: Debiti verso INPS lavoratori dipendenti | D195: -625.53 | E195: -258155.4 | F195: -257642.79 | G195: -1138.14 | H195: -222774.72 | I195: -202300.79
A196: PDA330 | B196: 0205100104 | C196: Debiti verso INAIL | D196: 0 | E196: -1681196.55 | F196: -1675236.8 | G196: -5959.75 | H196: -1233643.9 | I196: -1239603.65
A197: PDA330 | B197: 0205100105 | C197: Debiti verso ENPAM | D197: -548923.12 | E197: -10041013.43 | F197: -9994193.96 | G197: -595742.59 | H197: -9075924.5 | I197: -8876185.89
A198: PDA330 | B198: 0205100106 | C198: Debiti verso ONAOSI | D198: -54015.29 | E198: -110977.37 | F198: -110312.56 | G198: -54680.1 | H198: -117900.55 | I198: -111931.95
A199: PDA330 | B199: 0205100107 | C199: Debiti verso altri Istituti Previdenziali | D199: -74654.41 | E199: -643937.53 | F199: -600773.68 | G199: -117818.26 | H199: -614603.81 | I199: -603039.37
A200: PDA360 | B200: 0205110203 | C200: Debiti verso personale retribuzioni esercizi precedenti | D200: -586981.76 | E200: -407111.65 | F200: -274168.63 | G200: -719924.78 | H200: -1124701.55 | I200: -291546.86
A201: PDA360 | B201: 0205110204 | C201: Debiti verso il personale dipendente per fondi aziendali esercizi precedenti | D201: -10961585.66 | E201: -9300106.04 | F201: -7619278.9 | G201: -12642412.8 | H201: -9676865.35 | I201: -6928381.2
A202: PDA360 | B202: 0205110206 | C202: Altri debiti verso il personale per ferie maturate e non godute | D202: -75182.12 | E202: -97736.77 | F202: -22303.13 | G202: -150615.76 | H202: -47307.44 | I202: -29946.41
... 12 more rows

Sheet 00 PDC SP
C2: ANNO | F2: 2019
A4: Aggr | C4: Cod SP 2012 | D4: RF | E4: TIPO | F4: Conto | G4: Descrizione Conto | H4: =IF($F$2="","Saldo SP T-2","Esercizio "&F2-2) -> Esercizio 2017 | I4: =IF($F$2="","Incrementi T-1","Incrementi "&$F$2-1) -> Incrementi 2018 | J4: =IF($F$2="","Decrementi T-1","Decrementi "&$F$2-1) -> Decrementi 2018 | K4: =IF($F$2="","Saldo SP T-1","Esercizio "&$F$2-1) -> Esercizio 2018 | L4: =IF($F$2="","Incrementi T","Incrementi "&$F$2) -> Incrementi 2019 | M4: =IF($F$2="","Decrementi T","Decrementi "&$F$2) -> Decrementi 2019 | N4: =IF($F$2="","Saldo SP T","Esercizio "&$F$2) -> Esercizio 2019
A5: =IF(E5="",C5,C5&E5) -> AAA020 | B5: =IF(C5="PAA220","UT",LEFT(C5,2)) -> AA | C5: AAA020 | D5: 34 | F5: 0101010101 | G5: Costi di impianto e di ampliamento | H5: =SUMIF('00 Alimenta'!$B:$B,'00 PDC SP'!$F5,'00 Alimenta'!D:D) -> 0 | I5: =SUMIF('00 Alimenta'!$B:$B,'00 PDC SP'!$F5,'00 Alimenta'!E:E) -> 0 | J5: =SUMIF('00 Alimenta'!$B:$B,'00 PDC SP'!$F5,'00 Alimenta'!F:F) -> 0 | K5: =SUMIF('00 Alimenta'!$B:$B,'00 PDC SP'!$F5,'00 Alimenta'!G:G) -> 0 | L5: =SUMIF('00 Alimenta'!$B:$B,'00 PDC SP'!$F5,'00 Alimenta'!H:H) -> 0 | M5: =SUMIF('00 Alimenta'!$B:$B,'00 PDC SP'!$F5,'00 Alimenta'!I:I) -> 0 | N5: =K5+L5-M5 -> 0
A6: =IF(E6="",C6,C6&E6) -> AAA050 | B6: =IF(C6="PAA220","UT",LEFT(C6,2)) -> AA | C6: AAA050 | D6: 35 | F6: 0101010201 | G6: Costi di ricerca e sviluppo | H6: =SUMIF('00 Alimenta'!$B:$B,'00 PDC SP'!$F6,'00 Alimenta'!D:D) -> 0 | I6: =SUMIF('00 Alimenta'!$B:$B,'00 PDC SP'!$F6,'00 Alimenta'!E:E) -> 0 | J6: =SUMIF('00 Alimenta'!$B:$B,'00 PDC SP'!$F6,'00 Alimenta'!F:F) -> 0 | K6: =SUMIF('00 Alimenta'!$B:$B,'00 PDC SP'!$F6,'00 Alimenta'!G:G) -> 0 | L6: =SUMIF('00 Alimenta'!$B:$B,'00 PDC SP'!$F6,'00 Alimenta'!H:H) -> 0 | M6: =SUMIF('00 Alimenta'!$B:$B,'00 PDC SP'!$F6,'00 Alimenta'!I:I) -> 0 | N6: =K6+L6-M6 -> 0
A7: AAA080 | B7: AA | C7: AAA080 | D7: 36 | F7: 0101010301 | G7: Diritti di brevetto e diritti di utilizzazione delle opere d'ingegno - derivanti dall'attività di ricerca | H7: =SUMIF('00 Alimenta'!$B:$B,'00 PDC SP'!$F7,'00 Alimenta'!D:D) -> 0 | I7: =SUMIF('00 Alimenta'!$B:$B,'00 PDC SP'!$F7,'00 Alimenta'!E:E) -> 0 | J7: =SUMIF('00 Alimenta'!$B:$B,'00 PDC SP'!$F7,'00 Alimenta'!F:F) -> 0 | K7: =SUMIF('00 Alimenta'!$B:$B,'00 PDC SP'!$F7,'00 Alimenta'!G:G) -> 0 | L7: =SUMIF('00 Alimenta'!$B:$B,'00 PDC SP'!$F7,'00 Alimenta'!H:H) -> 0 | M7: =SUMIF('00 Alimenta'!$B:$B,'00 PDC SP'!$F7,'00 Alimenta'!I:I) -> 0 | N7: 0
A8: AAA100 | B8: AA | C8: AAA100 | D8: 36 | F8: 0101010401 | G8: Diritti di brevetto e diritti di utilizzazione delle opere d'ingegno - altri | H8: =SUMIF('00 Alimenta'!$B:$B,'00 PDC SP'!$F8,'00 Alimenta'!D:D) -> 0 | I8: =SUMIF('00 Alimenta'!$B:$B,'00 PDC SP'!$F8,'00 Alimenta'!E:E) -> 0 | J8: =SUMIF('00 Alimenta'!$B:$B,'00 PDC SP'!$F8,'00 Alimenta'!F:F) -> 0 | K8: =SUMIF('00 Alimenta'!$B:$B,'00 PDC SP'!$F8,'00 Alimenta'!G:G) -> 0 | L8: =SUMIF('00 Alimenta'!$B:$B,'00 PDC SP'!$F8,'00 Alimenta'!H:H) -> 0 | M8: =SUMIF('00 Alimenta'!$B:$B,'00 PDC SP'!$F8,'00 Alimenta'!I:I) -> 0 | N8: 0
A9: AAA120 | B9: AA | C9: AAA120 | D9: 37 | F9: 0101010501 | G9: Immobilizzazioni immateriali in corso | H9: =SUMIF('00 Alimenta'!$B:$B,'00 PDC SP'!$F9,'00 Alimenta'!D:D) -> 0 | I9: =SUMIF('00 Alimenta'!$B:$B,'00 PDC SP'!$F9,'00 Alimenta'!E:E) -> 0 | J9: =SUMIF('00 Alimenta'!$B:$B,'00 PDC SP'!$F9,'00 Alimenta'!F:F) -> 0 | K9: =SUMIF('00 Alimenta'!$B:$B,'00 PDC SP'!$F9,'00 Alimenta'!G:G) -> 0 | L9: =SUMIF('00 Alimenta'!$B:$B,'00 PDC SP'!$F9,'00 Alimenta'!H:H) -> 0 | M9: =SUMIF('00 Alimenta'!$B:$B,'00 PDC SP'!$F9,'00 Alimenta'!I:I) -> 0 | N9: 0
A10: AAA120 | B10: AA | C10: AAA120 | D10: 37 | F10: 0101010502 | G10: Acconti su future acquisizioni immobilizzazioni immateriali | H10: =SUMIF('00 Alimenta'!$B:$B,'00 PDC SP'!$F10,'00 Alimenta'!D:D) -> 0 | I10: =SUMIF('00 Alimenta'!$B:$B,'00 PDC SP'!$F10,'00 Alimenta'!E:E) -> 0 | J10: =SUMIF('00 Alimenta'!$B:$B,'00 PDC SP'!$F10,'00 Alimenta'!F:F) -> 0 | K10: =SUMIF('00 Alimenta'!$B:$B,'00 PDC SP'!$F10,'00 Alimenta'!G:G) -> 0 | L10: =SUMIF('00 Alimenta'!$B:$B,'00 PDC SP'!$F10,'00 Alimenta'!H:H) -> 0 | M10: =SUMIF('00 Alimenta'!$B:$B,'00 PDC SP'!$F10,'00 Alimenta'!I:I) -> 0 | N10: 0
A11: AAA140 | B11: AA | C11: AAA140 | D11: 38 | F11: 0101010601 | G11: Concessioni pluriennali | H11: =SUMIF('00 Alimenta'!$B:$B,'00 PDC SP'!$F11,'00 Alimenta'!D:D) -> 0 | I11: =SUMIF('00 Alimenta'!$B:$B,'00 PDC SP'!$F11,'00 Alimenta'!E:E) -> 0 | J11: =SUMIF('00 Alimenta'!$B:$B,'00 PDC SP'!$F11,'00 Alimenta'!F:F) -> 0 | K11: =SUMIF('00 Alimenta'!$B:$B,'00 PDC SP'!$F11,'00 Alimenta'!G:G) -> 0 | L11: =SUMIF('00 Alimenta'!$B:$B,'00 PDC SP'!$F11,'00 Alimenta'!H:H) -> 0 | M11: =SUMIF('00 Alimenta'!$B:$B,'00 PDC SP'!$F11,'00 Alimenta'!I:I) -> 0 | N11: 0
A12: AAA140 | B12: AA | C12: AAA140 | D12: 38 | F12: 0101010602 | G12: Licenze d'uso software | H12: =SUMIF('00 Alimenta'!$B:$B,'00 PDC SP'!$F12,'00 Alimenta'!D:D) -> 2188144.58 | I12: =SUMIF('00 Alimenta'!$B:$B,'00 PDC SP'!$F12,'00 Alimenta'!E:E) -> 131197.56 | J12: =SUMIF('00 Alimenta'!$B:$B,'00 PDC SP'!$F12,'00 Alimenta'!F:F) -> 11461.65 | K12: =SUMIF('00 Alimenta'!$B:$B,'00 PDC SP'!$F12,'00 Alimenta'!G:G) -> 2307880.49 | L12: =SUMIF('00 Alimenta'!$B:$B,'00 PDC SP'!$F12,'00 Alimenta'!H:H) -> 65627.89 | M12: =SUMIF('00 Alimenta'!$B:$B,'00 PDC SP'!$F12,'00 Alimenta'!I:I) -> 0 | N12: 2373508.38
A13: AAA140 | B13: AA | C13: AAA140 | D13: 38 | F13: 0101010603 | G13: Marchi e diritti simili | H13: =SUMIF('00 Alimenta'!$B:$B,'00 PDC SP'!$F13,'00 Alimenta'!D:D) -> 0 | I13: =SUMIF('00 Alimenta'!$B:$B,'00 PDC SP'!$F13,'00 Alimenta'!E:E) -> 0 | J13: =SUMIF('00 Alimenta'!$B:$B,'00 PDC SP'!$F13,'00 Alimenta'!F:F) -> 0 | K13: =SUMIF('00 Alimenta'!$B:$B,'00 PDC SP'!$F13,'00 Alimenta'!G:G) -> 0 | L13: =SUMIF('00 Alimenta'!$B:$B,'00 PDC SP'!$F13,'00 Alimenta'!H:H) -> 0 | M13: =SUMIF('00 Alimenta'!$B:$B,'00 PDC SP'!$F13,'00 Alimenta'!I:I) -> 0 | N13: 0
A14: AAA160 | B14: AA | C14: AAA160 | D14: 38 | F14: 0101010701 | G14: Migliorie su beni di terzi | H14: =SUMIF('00 Alimenta'!$B:$B,'00 PDC SP'!$F14,'00 Alimenta'!D:D) -> 0 | I14: =SUMIF('00 Alimenta'!$B:$B,'00 PDC SP'!$F14,'00 Alimenta'!E:E) -> 0 | J14: =SUMIF('00 Alimenta'!$B:$B,'00 PDC SP'!$F14,'00 Alimenta'!F:F) -> 0 | K14: =SUMIF('00 Alimenta'!$B:$B,'00 PDC SP'!$F14,'00 Alimenta'!G:G) -> 0 | L14: =SUMIF('00 Alimenta'!$B:$B,'00 PDC SP'!$F14,'00 Alimenta'!H:H) -> 0 | M14: =SUMIF('00 Alimenta'!$B:$B,'00 PDC SP'!$F14,'00 Alimenta'!I:I) -> 0 | N14: 0
A15: AAA180 | B15: AA | C15: AAA180 | D15: 38 | F15: 0101010801 | G15: Pubblicità | H15: =SUMIF('00 Alimenta'!$B:$B,'00 PDC SP'!$F15,'00 Alimenta'!D:D) -> 0 | I15: =SUMIF('00 Alimenta'!$B:$B,'00 PDC SP'!$F15,'00 Alimenta'!E:E) -> 0 | J15: =SUMIF('00 Alimenta'!$B:$B,'00 PDC SP'!$F15,'00 Alimenta'!F:F) -> 0 | K15: =SUMIF('00 Alimenta'!$B:$B,'00 PDC SP'!$F15,'00 Alimenta'!G:G) -> 0 | L15: =SUMIF('00 Alimenta'!$B:$B,'00 PDC SP'!$F15,'00 Alimenta'!H:H) -> 0 | M15: =SUMIF('00 Alimenta'!$B:$B,'00 PDC SP'!$F15,'00 Alimenta'!I:I) -> 0 | N15: 0
A16: AAA200 | B16: AA | C16: AAA200 | D16: 38 | F16: 0101010901 | G16: Altre immobilizzazioni immateriali | H16: =SUMIF('00 Alimenta'!$B:$B,'00 PDC SP'!$F16,'00 Alimenta'!D:D) -> 0 | I16: =SUMIF('00 Alimenta'!$B:$B,'00 PDC SP'!$F16,'00 Alimenta'!E:E) -> 0 | J16: =SUMIF('00 Alimenta'!$B:$B,'00 PDC SP'!$F16,'00 Alimenta'!F:F) -> 0 | K16: =SUMIF('00 Alimenta'!$B:$B,'00 PDC SP'!$F16,'00 Alimenta'!G:G) -> 0 | L16: =SUMIF('00 Alimenta'!$B:$B,'00 PDC SP'!$F16,'00 Alimenta'!H:H) -> 0 | M16: =SUMIF('00 Alimenta'!$B:$B,'00 PDC SP'!$F16,'00 Alimenta'!I:I) -> 0 | N16: 0
A17: AAA290 | B17: AA | C17: AAA290 | D17: 39 | F17: 0101020101 | G17: Terreni disponibili | H17: =SUMIF('00 Alimenta'!$B:$B,'00 PDC SP'!$F17,'00 Alimenta'!D:D) -> 0 | I17: =SUMIF('00 Alimenta'!$B:$B,'00 PDC SP'!$F17,'00 Alimenta'!E:E) -> 0 | J17: =SUMIF('00 Alimenta'!$B:$B,'00 PDC SP'!$F17,'00 Alimenta'!F:F) -> 0 | K17: =SUMIF('00 Alimenta'!$B:$B,'00 PDC SP'!$F17,'00 Alimenta'!G:G) -> 0 | L17: =SUMIF('00 Alimenta'!$B:$B,'00 PDC SP'!$F17,'00 Alimenta'!H:H) -> 0 | M17: =SUMIF('00 Alimenta'!$B:$B,'00 PDC SP'!$F17,'00 Alimenta'!I:I) -> 0 | N17: 0
A18: AAA300 | B18: AA | C18: AAA300 | D18: 39 | F18: 0101020102 | G18: Terreni indisponibili | H18: =SUMIF('00 Alimenta'!$B:$B,'00 PDC SP'!$F18,'00 Alimenta'!D:D) -> 942655.12 | I18: =SUMIF('00 Alimenta'!$B:$B,'00 PDC SP'!$F18,'00 Alimenta'!E:E) -> 0 | J18: =SUMIF('00 Alimenta'!$B:$B,'00 PDC SP'!$F18,'00 Alimenta'!F:F) -> 0 | K18: =SUMIF('00 Alimenta'!$B:$B,'00 PDC SP'!$F18,'00 Alimenta'!G:G) -> 942655.12 | L18: =SUMIF('00 Alimenta'!$B:$B,'00 PDC SP'!$F18,'00 Alimenta'!H:H) -> 0 | M18: =SUMIF('00 Alimenta'!$B:$B,'00 PDC SP'!$F18,'00 Alimenta'!I:I) -> 0 | N18: 942655.12
A19: AAA330 | B19: AA | C19: AAA330 | D19: 40 | F19: 0101020201 | G19: Fabbricati non strumentali (disponibili) | H19: =SUMIF('00 Alimenta'!$B:$B,'00 PDC SP'!$F19,'00 Alimenta'!D:D) -> 0 | I19: =SUMIF('00 Alimenta'!$B:$B,'00 PDC SP'!$F19,'00 Alimenta'!E:E) -> 0 | J19: =SUMIF('00 Alimenta'!$B:$B,'00 PDC SP'!$F19,'00 Alimenta'!F:F) -> 0 | K19: =SUMIF('00 Alimenta'!$B:$B,'00 PDC SP'!$F19,'00 Alimenta'!G:G) -> 0 | L19: =SUMIF('00 Alimenta'!$B:$B,'00 PDC SP'!$F19,'00 Alimenta'!H:H) -> 0 | M19: =SUMIF('00 Alimenta'!$B:$B,'00 PDC SP'!$F19,'00 Alimenta'!I:I) -> 0 | N19: 0
A20: AAA330 | B20: AA | C20: AAA330 | D20: 40 | F20: 0101020202 | G20: Costruzioni leggere | H20: =SUMIF('00 Alimenta'!$B:$B,'00 PDC SP'!$F20,'00 Alimenta'!D:D) -> 0 | I20: =SUMIF('00 Alimenta'!$B:$B,'00 PDC SP'!$F20,'00 Alimenta'!E:E) -> 0 | J20: =SUMIF('00 Alimenta'!$B:$B,'00 PDC SP'!$F20,'00 Alimenta'!F:F) -> 0 | K20: =SUMIF('00 Alimenta'!$B:$B,'00 PDC SP'!$F20,'00 Alimenta'!G:G) -> 0 | L20: =SUMIF('00 Alimenta'!$B:$B,'00 PDC SP'!$F20,'00 Alimenta'!H:H) -> 0 | M20: =SUMIF('00 Alimenta'!$B:$B,'00 PDC SP'!$F20,'00 Alimenta'!I:I) -> 0 | N20: 0
A21: AAA330 | B21: AA | C21: AAA330 | D21: 40 | F21: 0101020203 | G21: Manutenzioni e riparazioni straordinarie capitalizzabili fabbricati disponibili | H21: =SUMIF('00 Alimenta'!$B:$B,'00 PDC SP'!$F21,'00 Alimenta'!D:D) -> 0 | I21: =SUMIF('00 Alimenta'!$B:$B,'00 PDC SP'!$F21,'00 Alimenta'!E:E) -> 0 | J21: =SUMIF('00 Alimenta'!$B:$B,'00 PDC SP'!$F21,'00 Alimenta'!F:F) -> 0 | K21: =SUMIF('00 Alimenta'!$B:$B,'00 PDC SP'!$F21,'00 Alimenta'!G:G) -> 0 | L21: =SUMIF('00 Alimenta'!$B:$B,'00 PDC SP'!$F21,'00 Alimenta'!H:H) -> 0 | M21: =SUMIF('00 Alimenta'!$B:$B,'00 PDC SP'!$F21,'00 Alimenta'!I:I) -> 0 | N21: 0
A22: AAA360 | B22: AA | C22: AAA360 | D22: 40 | F22: 0101020301 | G22: Fabbricati strumentali (indisponibili) | H22: =SUMIF('00 Alimenta'!$B:$B,'00 PDC SP'!$F22,'00 Alimenta'!D:D) -> 169096559.2 | I22: =SUMIF('00 Alimenta'!$B:$B,'00 PDC SP'!$F22,'00 Alimenta'!E:E) -> 2087230 | J22: =SUMIF('00 Alimenta'!$B:$B,'00 PDC SP'!$F22,'00 Alimenta'!F:F) -> 0 | K22: =SUMIF('00 Alimenta'!$B:$B,'00 PDC SP'!$F22,'00 Alimenta'!G:G) -> 171183789.2 | L22: =SUMIF('00 Alimenta'!$B:$B,'00 PDC SP'!$F22,'00 Alimenta'!H:H) -> 0 | M22: =SUMIF('00 Alimenta'!$B:$B,'00 PDC SP'!$F22,'00 Alimenta'!I:I) -> 0 | N22: 171183789.2
A23: AAA360 | B23: AA | C23: AAA360 | D23: 40 | F23: 0101020302 | G23: Manutenzioni e riparazioni straordinarie capitalizzabili fabbricati indisponibili | H23: =SUMIF('00 Alimenta'!$B:$B,'00 PDC SP'!$F23,'00 Alimenta'!D:D) -> 0 | I23: =SUMIF('00 Alimenta'!$B:$B,'00 PDC SP'!$F23,'00 Alimenta'!E:E) -> 0 | J23: =SUMIF('00 Alimenta'!$B:$B,'00 PDC SP'!$F23,'00 Alimenta'!F:F) -> 0 | K23: =SUMIF('00 Alimenta'!$B:$B,'00 PDC SP'!$F23,'00 Alimenta'!G:G) -> 0 | L23: =SUMIF('00 Alimenta'!$B:$B,'00 PDC SP'!$F23,'00 Alimenta'!H:H) -> 0 | M23: =SUMIF('00 Alimenta'!$B:$B,'00 PDC SP'!$F23,'00 Alimenta'!I:I) -> 0 | N23: 0
A24: AAA390 | B24: AA | C24: AAA390 | D24: 41 | F24: 0101020401 | G24: Impianti sanitari | H24: =SUMIF('00 Alimenta'!$B:$B,'00 PDC SP'!$F24,'00 Alimenta'!D:D) -> 0 | I24: =SUMIF('00 Alimenta'!$B:$B,'00 PDC SP'!$F24,'00 Alimenta'!E:E) -> 0 | J24: =SUMIF('00 Alimenta'!$B:$B,'00 PDC SP'!$F24,'00 Alimenta'!F:F) -> 0 | K24: =SUMIF('00 Alimenta'!$B:$B,'00 PDC SP'!$F24,'00 Alimenta'!G:G) -> 0 | L24: =SUMIF('00 Alimenta'!$B:$B,'00 PDC SP'!$F24,'00 Alimenta'!H:H) -> 0 | M24: =SUMIF('00 Alimenta'!$B:$B,'00 PDC SP'!$F24,'00 Alimenta'!I:I) -> 0 | N24: 0
A25: AAA390 | B25: AA | C25: AAA390 | D25: 41 | F25: 0101020402 | G25: Impianti generici | H25: =SUMIF('00 Alimenta'!$B:$B,'00 PDC SP'!$F25,'00 Alimenta'!D:D) -> 0 | I25: =SUMIF('00 Alimenta'!$B:$B,'00 PDC SP'!$F25,'00 Alimenta'!E:E) -> 0 | J25: =SUMIF('00 Alimenta'!$B:$B,'00 PDC SP'!$F25,'00 Alimenta'!F:F) -> 0 | K25: =SUMIF('00 Alimenta'!$B:$B,'00 PDC SP'!$F25,'00 Alimenta'!G:G) -> 0 | L25: =SUMIF('00 Alimenta'!$B:$B,'00 PDC SP'!$F25,'00 Alimenta'!H:H) -> 0 | M25: =SUMIF('00 Alimenta'!$B:$B,'00 PDC SP'!$F25,'00 Alimenta'!I:I) -> 0 | N25: 0
A26: AAA390 | B26: AA | C26: AAA390 | D26: 41 | F26: 0101020403 | G26: Macchinari sanitari | H26: =SUMIF('00 Alimenta'!$B:$B,'00 PDC SP'!$F26,'00 Alimenta'!D:D) -> 0 | I26: =SUMIF('00 Alimenta'!$B:$B,'00 PDC SP'!$F26,'00 Alimenta'!E:E) -> 0 | J26: =SUMIF('00 Alimenta'!$B:$B,'00 PDC SP'!$F26,'00 Alimenta'!F:F) -> 0 | K26: =SUMIF('00 Alimenta'!$B:$B,'00 PDC SP'!$F26,'00 Alimenta'!G:G) -> 0 | L26: =SUMIF('00 Alimenta'!$B:$B,'00 PDC SP'!$F26,'00 Alimenta'!H:H) -> 0 | M26: =SUMIF('00 Alimenta'!$B:$B,'00 PDC SP'!$F26,'00 Alimenta'!I:I) -> 0 | N26: 0
A27: AAA390 | B27: AA | C27: AAA390 | D27: 41 | F27: 0101020404 | G27: Macchinari generici | H27: =SUMIF('00 Alimenta'!$B:$B,'00 PDC SP'!$F27,'00 Alimenta'!D:D) -> 6166777.53 | I27: =SUMIF('00 Alimenta'!$B:$B,'00 PDC SP'!$F27,'00 Alimenta'!E:E) -> 653192.51 | J27: =SUMIF('00 Alimenta'!$B:$B,'00 PDC SP'!$F27,'00 Alimenta'!F:F) -> 17647.73 | K27: =SUMIF('00 Alimenta'!$B:$B,'00 PDC SP'!$F27,'00 Alimenta'!G:G) -> 6802322.31 | L27: =SUMIF('00 Alimenta'!$B:$B,'00 PDC SP'!$F27,'00 Alimenta'!H:H) -> 456581.73 | M27: =SUMIF('00 Alimenta'!$B:$B,'00 PDC SP'!$F27,'00 Alimenta'!I:I) -> 56990.8 | N27: 7201913.24
A28: AAA390 | B28: AA | C28: AAA390 | D28: 41 | F28: 0101020405 | G28: Impianti e macchinari < 516 euro | H28: =SUMIF('00 Alimenta'!$B:$B,'00 PDC SP'!$F28,'00 Alimenta'!D:D) -> 0 | I28: =SUMIF('00 Alimenta'!$B:$B,'00 PDC SP'!$F28,'00 Alimenta'!E:E) -> 0 | J28: =SUMIF('00 Alimenta'!$B:$B,'00 PDC SP'!$F28,'00 Alimenta'!F:F) -> 0 | K28: =SUMIF('00 Alimenta'!$B:$B,'00 PDC SP'!$F28,'00 Alimenta'!G:G) -> 0 | L28: =SUMIF('00 Alimenta'!$B:$B,'00 PDC SP'!$F28,'00 Alimenta'!H:H) -> 0 | M28: =SUMIF('00 Alimenta'!$B:$B,'00 PDC SP'!$F28,'00 Alimenta'!I:I) -> 0 | N28: 0
A29: AAA420 | B29: AA | C29: AAA420 | D29: 42 | F29: 0101020501 | G29: Attrezzature sanitarie e scientifiche | H29: =SUMIF('00 Alimenta'!$B:$B,'00 PDC SP'!$F29,'00 Alimenta'!D:D) -> 0 | I29: =SUMIF('00 Alimenta'!$B:$B,'00 PDC SP'!$F29,'00 Alimenta'!E:E) -> 0 | J29: =SUMIF('00 Alimenta'!$B:$B,'00 PDC SP'!$F29,'00 Alimenta'!F:F) -> 0 | K29: =SUMIF('00 Alimenta'!$B:$B,'00 PDC SP'!$F29,'00 Alimenta'!G:G) -> 0 | L29: =SUMIF('00 Alimenta'!$B:$B,'00 PDC SP'!$F29,'00 Alimenta'!H:H) -> 0 | M29: =SUMIF('00 Alimenta'!$B:$B,'00 PDC SP'!$F29,'00 Alimenta'!I:I) -> 0 | N29: 0
A30: AAA420 | B30: AA | C30: AAA420 | D30: 42 | F30: 0101020502 | G30: Attrezzature generiche | H30: =SUMIF('00 Alimenta'!$B:$B,'00 PDC SP'!$F30,'00 Alimenta'!D:D) -> 84717848.54 | I30: =SUMIF('00 Alimenta'!$B:$B,'00 PDC SP'!$F30,'00 Alimenta'!E:E) -> 4303427.61 | J30: =SUMIF('00 Alimenta'!$B:$B,'00 PDC SP'!$F30,'00 Alimenta'!F:F) -> 5885338.17 | K30: =SUMIF('00 Alimenta'!$B:$B,'00 PDC SP'!$F30,'00 Alimenta'!G:G) -> 83135937.98 | L30: =SUMIF('00 Alimenta'!$B:$B,'00 PDC SP'!$F30,'00 Alimenta'!H:H) -> 2217999.93 | M30: =SUMIF('00 Alimenta'!$B:$B,'00 PDC SP'!$F30,'00 Alimenta'!I:I) -> 996227.99 | N30: 84357709.92
A31: AAA420 | B31: AA | C31: AAA420 | D31: 42 | F31: 0101020503 | G31: Attrezzature sanitarie e scientifiche < 516 euro | H31: =SUMIF('00 Alimenta'!$B:$B,'00 PDC SP'!$F31,'00 Alimenta'!D:D) -> 0 | I31: =SUMIF('00 Alimenta'!$B:$B,'00 PDC SP'!$F31,'00 Alimenta'!E:E) -> 0 | J31: =SUMIF('00 Alimenta'!$B:$B,'00 PDC SP'!$F31,'00 Alimenta'!F:F) -> 0 | K31: =SUMIF('00 Alimenta'!$B:$B,'00 PDC SP'!$F31,'00 Alimenta'!G:G) -> 0 | L31: =SUMIF('00 Alimenta'!$B:$B,'00 PDC SP'!$F31,'00 Alimenta'!H:H) -> 0 | M31: =SUMIF('00 Alimenta'!$B:$B,'00 PDC SP'!$F31,'00 Alimenta'!I:I) -> 0 | N31: 0
A32: AAA450 | B32: AA | C32: AAA450 | D32: 43 | F32: 0101020601 | G32: Mobili e arredi | H32: =SUMIF('00 Alimenta'!$B:$B,'00 PDC SP'!$F32,'00 Alimenta'!D:D) -> 10597975.65 | I32: =SUMIF('00 Alimenta'!$B:$B,'00 PDC SP'!$F32,'00 Alimenta'!E:E) -> 339281.25 | J32: =SUMIF('00 Alimenta'!$B:$B,'00 PDC SP'!$F32,'00 Alimenta'!F:F) -> 91861.65 | K32: =SUMIF('00 Alimenta'!$B:$B,'00 PDC SP'!$F32,'00 Alimenta'!G:G) -> 10845395.25 | L32: =SUMIF('00 Alimenta'!$B:$B,'00 PDC SP'!$F32,'00 Alimenta'!H:H) -> 233981.82 | M32: =SUMIF('00 Alimenta'!$B:$B,'00 PDC SP'!$F32,'00 Alimenta'!I:I) -> 30493.53 | N32: 11048883.54
A33: AAA450 | B33: AA | C33: AAA450 | D33: 43 | F33: 0101020602 | G33: Mobili d'ufficio | H33: =SUMIF('00 Alimenta'!$B:$B,'00 PDC SP'!$F33,'00 Alimenta'!D:D) -> 0 | I33: =SUMIF('00 Alimenta'!$B:$B,'00 PDC SP'!$F33,'00 Alimenta'!E:E) -> 0 | J33: =SUMIF('00 Alimenta'!$B:$B,'00 PDC SP'!$F33,'00 Alimenta'!F:F) -> 0 | K33: =SUMIF('00 Alimenta'!$B:$B,'00 PDC SP'!$F33,'00 Alimenta'!G:G) -> 0 | L33: =SUMIF('00 Alimenta'!$B:$B,'00 PDC SP'!$F33,'00 Alimenta'!H:H) -> 0 | M33: =SUMIF('00 Alimenta'!$B:$B,'00 PDC SP'!$F33,'00 Alimenta'!I:I) -> 0 | N33: 0
A34: AAA450 | B34: AA | C34: AAA450 | D34: 43 | F34: 0101020603 | G34: Mobili d'ufficio < 516 euro | H34: =SUMIF('00 Alimenta'!$B:$B,'00 PDC SP'!$F34,'00 Alimenta'!D:D) -> 0 | I34: =SUMIF('00 Alimenta'!$B:$B,'00 PDC SP'!$F34,'00 Alimenta'!E:E) -> 0 | J34: =SUMIF('00 Alimenta'!$B:$B,'00 PDC SP'!$F34,'00 Alimenta'!F:F) -> 0 | K34: =SUMIF('00 Alimenta'!$B:$B,'00 PDC SP'!$F34,'00 Alimenta'!G:G) -> 0 | L34: =SUMIF('00 Alimenta'!$B:$B,'00 PDC SP'!$F34,'00 Alimenta'!H:H) -> 0 | M34: =SUMIF('00 Alimenta'!$B:$B,'00 PDC SP'!$F34,'00 Alimenta'!I:I) -> 0 | N34: 0
A35: AAA480 | B35: AA | C35: AAA480 | D35: 44 | F35: 0101020701 | G35: Elicotteri | H35: =SUMIF('00 Alimenta'!$B:$B,'00 PDC SP'!$F35,'00 Alimenta'!D:D) -> 0 | I35: =SUMIF('00 Alimenta'!$B:$B,'00 PDC SP'!$F35,'00 Alimenta'!E:E) -> 0 | J35: =SUMIF('00 Alimenta'!$B:$B,'00 PDC SP'!$F35,'00 Alimenta'!F:F) -> 0 | K35: =SUMIF('00 Alimenta'!$B:$B,'00 PDC SP'!$F35,'00 Alimenta'!G:G) -> 0 | L35: =SUMIF('00 Alimenta'!$B:$B,'00 PDC SP'!$F35,'00 Alimenta'!H:H) -> 0 | M35: =SUMIF('00 Alimenta'!$B:$B,'00 PDC SP'!$F35,'00 Alimenta'!I:I) -> 0 | N35: 0
A36: AAA480 | B36: AA | C36: AAA480 | D36: 44 | F36: 0101020702 | G36: Ambulanze | H36: =SUMIF('00 Alimenta'!$B:$B,'00 PDC SP'!$F36,'00 Alimenta'!D:D) -> 0 | I36: =SUMIF('00 Alimenta'!$B:$B,'00 PDC SP'!$F36,'00 Alimenta'!E:E) -> 73346.4 | J36: =SUMIF('00 Alimenta'!$B:$B,'00 PDC SP'!$F36,'00 Alimenta'!F:F) -> 0 | K36: =SUMIF('00 Alimenta'!$B:$B,'00 PDC SP'!$F36,'00 Alimenta'!G:G) -> 73346.4 | L36: =SUMIF('00 Alimenta'!$B:$B,'00 PDC SP'!$F36,'00 Alimenta'!H:H) -> 429708.9 | M36: =SUMIF('00 Alimenta'!$B:$B,'00 PDC SP'!$F36,'00 Alimenta'!I:I) -> 0 | N36: 503055.3
A37: AAA480 | B37: AA | C37: AAA480 | D37: 44 | F37: 0101020703 | G37: Altri mezzi di trasporto | H37: =SUMIF('00 Alimenta'!$B:$B,'00 PDC SP'!$F37,'00 Alimenta'!D:D) -> 1962988.77 | I37: =SUMIF('00 Alimenta'!$B:$B,'00 PDC SP'!$F37,'00 Alimenta'!E:E) -> 19850.57 | J37: =SUMIF('00 Alimenta'!$B:$B,'00 PDC SP'!$F37,'00 Alimenta'!F:F) -> 149825.11 | K37: =SUMIF('00 Alimenta'!$B:$B,'00 PDC SP'!$F37,'00 Alimenta'!G:G) -> 1833014.23 | L37: =SUMIF('00 Alimenta'!$B:$B,'00 PDC SP'!$F37,'00 Alimenta'!H:H) -> 63027.09 | M37: =SUMIF('00 Alimenta'!$B:$B,'00 PDC SP'!$F37,'00 Alimenta'!I:I) -> 0 | N37: 1896041.32
A38: AAA500 | B38: AA | C38: AAA500 | D38: 45 | F38: 0101020801 | G38: Oggetti d'arte | H38: =SUMIF('00 Alimenta'!$B:$B,'00 PDC SP'!$F38,'00 Alimenta'!D:D) -> 0 | I38: =SUMIF('00 Alimenta'!$B:$B,'00 PDC SP'!$F38,'00 Alimenta'!E:E) -> 0 | J38: =SUMIF('00 Alimenta'!$B:$B,'00 PDC SP'!$F38,'00 Alimenta'!F:F) -> 0 | K38: =SUMIF('00 Alimenta'!$B:$B,'00 PDC SP'!$F38,'00 Alimenta'!G:G) -> 0 | L38: =SUMIF('00 Alimenta'!$B:$B,'00 PDC SP'!$F38,'00 Alimenta'!H:H) -> 0 | M38: =SUMIF('00 Alimenta'!$B:$B,'00 PDC SP'!$F38,'00 Alimenta'!I:I) -> 0 | N38: 0
A39: AAA520 | B39: AA | C39: AAA520 | D39: 45 | F39: 0101020901 | G39: Attrezzature e macchine d'ufficio | H39: =SUMIF('00 Alimenta'!$B:$B,'00 PDC SP'!$F39,'00 Alimenta'!D:D) -> 0 | I39: =SUMIF('00 Alimenta'!$B:$B,'00 PDC SP'!$F39,'00 Alimenta'!E:E) -> 0 | J39: =SUMIF('00 Alimenta'!$B:$B,'00 PDC SP'!$F39,'00 Alimenta'!F:F) -> 0 | K39: =SUMIF('00 Alimenta'!$B:$B,'00 PDC SP'!$F39,'00 Alimenta'!G:G) -> 0 | L39: =SUMIF('00 Alimenta'!$B:$B,'00 PDC SP'!$F39,'00 Alimenta'!H:H) -> 0 | M39: =SUMIF('00 Alimenta'!$B:$B,'00 PDC SP'!$F39,'00 Alimenta'!I:I) -> 0 | N39: 0
A40: AAA520 | B40: AA | C40: AAA520 | D40: 45 | F40: 0101020902 | G40: Attrezzature tecnico - economali | H40: =SUMIF('00 Alimenta'!$B:$B,'00 PDC SP'!$F40,'00 Alimenta'!D:D) -> 0 | I40: =SUMIF('00 Alimenta'!$B:$B,'00 PDC SP'!$F40,'00 Alimenta'!E:E) -> 0 | J40: =SUMIF('00 Alimenta'!$B:$B,'00 PDC SP'!$F40,'00 Alimenta'!F:F) -> 0 | K40: =SUMIF('00 Alimenta'!$B:$B,'00 PDC SP'!$F40,'00 Alimenta'!G:G) -> 0 | L40: =SUMIF('00 Alimenta'!$B:$B,'00 PDC SP'!$F40,'00 Alimenta'!H:H) -> 0 | M40: =SUMIF('00 Alimenta'!$B:$B,'00 PDC SP'!$F40,'00 Alimenta'!I:I) -> 0 | N40: 0
A41: AAA520 | B41: AA | C41: AAA520 | D41: 45 | F41: 0101020903 | G41: Computer e macchinari elettronici | H41: =SUMIF('00 Alimenta'!$B:$B,'00 PDC SP'!$F41,'00 Alimenta'!D:D) -> 5490053.41 | I41: =SUMIF('00 Alimenta'!$B:$B,'00 PDC SP'!$F41,'00 Alimenta'!E:E) -> 253573.24 | J41: =SUMIF('00 Alimenta'!$B:$B,'00 PDC SP'!$F41,'00 Alimenta'!F:F) -> 327240.58 | K41: =SUMIF('00 Alimenta'!$B:$B,'00 PDC SP'!$F41,'00 Alimenta'!G:G) -> 5416386.07 | L41: =SUMIF('00 Alimenta'!$B:$B,'00 PDC SP'!$F41,'00 Alimenta'!H:H) -> 355649.06 | M41: =SUMIF('00 Alimenta'!$B:$B,'00 PDC SP'!$F41,'00 Alimenta'!I:I) -> 616.61 | N41: 5771418.52
A42: AAA520 | B42: AA | C42: AAA520 | D42: 45 | F42: 0101020904 | G42: Altri beni materiali | H42: =SUMIF('00 Alimenta'!$B:$B,'00 PDC SP'!$F42,'00 Alimenta'!D:D) -> 427941.57 | I42: =SUMIF('00 Alimenta'!$B:$B,'00 PDC SP'!$F42,'00 Alimenta'!E:E) -> 14224.53 | J42: =SUMIF('00 Alimenta'!$B:$B,'00 PDC SP'!$F42,'00 Alimenta'!F:F) -> 3249.6 | K42: =SUMIF('00 Alimenta'!$B:$B,'00 PDC SP'!$F42,'00 Alimenta'!G:G) -> 438916.5 | L42: =SUMIF('00 Alimenta'!$B:$B,'00 PDC SP'!$F42,'00 Alimenta'!H:H) -> 8647.6 | M42: =SUMIF('00 Alimenta'!$B:$B,'00 PDC SP'!$F42,'00 Alimenta'!I:I) -> 651 | N42: 446913.1
A43: AAA520 | B43: AA | C43: AAA520 | D43: 45 | F43: 0101020905 | G43: Altri beni < 516 euro | H43: =SUMIF('00 Alimenta'!$B:$B,'00 PDC SP'!$F43,'00 Alimenta'!D:D) -> 0 | I43: =SUMIF('00 Alimenta'!$B:$B,'00 PDC SP'!$F43,'00 Alimenta'!E:E) -> 0 | J43: =SUMIF('00 Alimenta'!$B:$B,'00 PDC SP'!$F43,'00 Alimenta'!F:F) -> 0 | K43: =SUMIF('00 Alimenta'!$B:$B,'00 PDC SP'!$F43,'00 Alimenta'!G:G) -> 0 | L43: =SUMIF('00 Alimenta'!$B:$B,'00 PDC SP'!$F43,'00 Alimenta'!H:H) -> 0 | M43: =SUMIF('00 Alimenta'!$B:$B,'00 PDC SP'!$F43,'00 Alimenta'!I:I) -> 0 | N43: 0
A44: AAA540 | B44: AA | C44: AAA540 | D44: 45 | F44: 0101021001 | G44: Fabbricati in costruzione | H44: =SUMIF('00 Alimenta'!$B:$B,'00 PDC SP'!$F44,'00 Alimenta'!D:D) -> 9470852.14 | I44: =SUMIF('00 Alimenta'!$B:$B,'00 PDC SP'!$F44,'00 Alimenta'!E:E) -> 1449834.4 | J44: =SUMIF('00 Alimenta'!$B:$B,'00 PDC SP'!$F44,'00 Alimenta'!F:F) -> 2396699.18 | K44: =SUMIF('00 Alimenta'!$B:$B,'00 PDC SP'!$F44,'00 Alimenta'!G:G) -> 8523987.36 | L44: =SUMIF('00 Alimenta'!$B:$B,'00 PDC SP'!$F44,'00 Alimenta'!H:H) -> 2001338.47 | M44: =SUMIF('00 Alimenta'!$B:$B,'00 PDC SP'!$F44,'00 Alimenta'!I:I) -> 31550.43 | N44: 10493775.4
A45: AAA540 | B45: AA | C45: AAA540 | D45: 45 | F45: 0101021002 | G45: Impianti e macchinari in costruzione | H45: =SUMIF('00 Alimenta'!$B:$B,'00 PDC SP'!$F45,'00 Alimenta'!D:D) -> 0 | I45: =SUMIF('00 Alimenta'!$B:$B,'00 PDC SP'!$F45,'00 Alimenta'!E:E) -> 0 | J45: =SUMIF('00 Alimenta'!$B:$B,'00 PDC SP'!$F45,'00 Alimenta'!F:F) -> 0 | K45: =SUMIF('00 Alimenta'!$B:$B,'00 PDC SP'!$F45,'00 Alimenta'!G:G) -> 0 | L45: =SUMIF('00 Alimenta'!$B:$B,'00 PDC SP'!$F45,'00 Alimenta'!H:H) -> 0 | M45: =SUMIF('00 Alimenta'!$B:$B,'00 PDC SP'!$F45,'00 Alimenta'!I:I) -> 0 | N45: 0
A46: AAA540 | B46: AA | C46: AAA540 | D46: 45 | F46: 0101021003 | G46: Attrezzature sanitarie e scientifiche in costruzione | H46: =SUMIF('00 Alimenta'!$B:$B,'00 PDC SP'!$F46,'00 Alimenta'!D:D) -> 0 | I46: =SUMIF('00 Alimenta'!$B:$B,'00 PDC SP'!$F46,'00 Alimenta'!E:E) -> 0 | J46: =SUMIF('00 Alimenta'!$B:$B,'00 PDC SP'!$F46,'00 Alimenta'!F:F) -> 0 | K46: =SUMIF('00 Alimenta'!$B:$B,'00 PDC SP'!$F46,'00 Alimenta'!G:G) -> 0 | L46: =SUMIF('00 Alimenta'!$B:$B,'00 PDC SP'!$F46,'00 Alimenta'!H:H) -> 0 | M46: =SUMIF('00 Alimenta'!$B:$B,'00 PDC SP'!$F46,'00 Alimenta'!I:I) -> 0 | N46: 0
A47: AAA540 | B47: AA | C47: AAA540 | D47: 45 | F47: 0101021004 | G47: Altre immobilizzazioni materiali in costruzione | H47: =SUMIF('00 Alimenta'!$B:$B,'00 PDC SP'!$F47,'00 Alimenta'!D:D) -> 0 | I47: =SUMIF('00 Alimenta'!$B:$B,'00 PDC SP'!$F47,'00 Alimenta'!E:E) -> 0 | J47: =SUMIF('00 Alimenta'!$B:$B,'00 PDC SP'!$F47,'00 Alimenta'!F:F) -> 0 | K47: =SUMIF('00 Alimenta'!$B:$B,'00 PDC SP'!$F47,'00 Alimenta'!G:G) -> 0 | L47: =SUMIF('00 Alimenta'!$B:$B,'00 PDC SP'!$F47,'00 Alimenta'!H:H) -> 0 | M47: =SUMIF('00 Alimenta'!$B:$B,'00 PDC SP'!$F47,'00 Alimenta'!I:I) -> 0 | N47: 0
A48: AAA540 | B48: AA | C48: AAA540 | D48: 45 | F48: 0101021005 | G48: Acconti su future acquisizioni di immobilizzazioni materiali | H48: =SUMIF('00 Alimenta'!$B:$B,'00 PDC SP'!$F48,'00 Alimenta'!D:D) -> 1527100.43 | I48: =SUMIF('00 Alimenta'!$B:$B,'00 PDC SP'!$F48,'00 Alimenta'!E:E) -> 66213.3 | J48: =SUMIF('00 Alimenta'!$B:$B,'00 PDC SP'!$F48,'00 Alimenta'!F:F) -> 1527100.33 | K48: =SUMIF('00 Alimenta'!$B:$B,'00 PDC SP'!$F48,'00 Alimenta'!G:G) -> 66213.4 | L48: =SUMIF('00 Alimenta'!$B:$B,'00 PDC SP'!$F48,'00 Alimenta'!H:H) -> 103224.2 | M48: =SUMIF('00 Alimenta'!$B:$B,'00 PDC SP'!$F48,'00 Alimenta'!I:I) -> 66591.5 | N48: 102846.1
A49: AAA660 | B49: AA | C49: AAA660 | D49: 46 | F49: 0101030101 | G49: Crediti finanziari v/Stato | H49: =SUMIF('00 Alimenta'!$B:$B,'00 PDC SP'!$F49,'00 Alimenta'!D:D) -> 0 | I49: =SUMIF('00 Alimenta'!$B:$B,'00 PDC SP'!$F49,'00 Alimenta'!E:E) -> 0 | J49: =SUMIF('00 Alimenta'!$B:$B,'00 PDC SP'!$F49,'00 Alimenta'!F:F) -> 0 | K49: =SUMIF('00 Alimenta'!$B:$B,'00 PDC SP'!$F49,'00 Alimenta'!G:G) -> 0 | L49: =SUMIF('00 Alimenta'!$B:$B,'00 PDC SP'!$F49,'00 Alimenta'!H:H) -> 0 | M49: =SUMIF('00 Alimenta'!$B:$B,'00 PDC SP'!$F49,'00 Alimenta'!I:I) -> 0 | N49: 0
A50: AAA670 | B50: AA | C50: AAA670 | D50: 46 | F50: 0101030201 | G50: Crediti finanziari v/Regione | H50: =SUMIF('00 Alimenta'!$B:$B,'00 PDC SP'!$F50,'00 Alimenta'!D:D) -> 0 | I50: =SUMIF('00 Alimenta'!$B:$B,'00 PDC SP'!$F50,'00 Alimenta'!E:E) -> 0 | J50: =SUMIF('00 Alimenta'!$B:$B,'00 PDC SP'!$F50,'00 Alimenta'!F:F) -> 0 | K50: =SUMIF('00 Alimenta'!$B:$B,'00 PDC SP'!$F50,'00 Alimenta'!G:G) -> 0 | L50: =SUMIF('00 Alimenta'!$B:$B,'00 PDC SP'!$F50,'00 Alimenta'!H:H) -> 0 | M50: =SUMIF('00 Alimenta'!$B:$B,'00 PDC SP'!$F50,'00 Alimenta'!I:I) -> 0 | N50: 0
A51: AAA680 | B51: AA | C51: AAA680 | D51: 46 | F51: 0101030301 | G51: Crediti finanziari v/imprese controllate | H51: =SUMIF('00 Alimenta'!$B:$B,'00 PDC SP'!$F51,'00 Alimenta'!D:D) -> 0 | I51: =SUMIF('00 Alimenta'!$B:$B,'00 PDC SP'!$F51,'00 Alimenta'!E:E) -> 0 | J51: =SUMIF('00 Alimenta'!$B:$B,'00 PDC SP'!$F51,'00 Alimenta'!F:F) -> 0 | K51: =SUMIF('00 Alimenta'!$B:$B,'00 PDC SP'!$F51,'00 Alimenta'!G:G) -> 0 | L51: =SUMIF('00 Alimenta'!$B:$B,'00 PDC SP'!$F51,'00 Alimenta'!H:H) -> 0 | M51: =SUMIF('00 Alimenta'!$B:$B,'00 PDC SP'!$F51,'00 Alimenta'!I:I) -> 0 | N51: 0
A52: AAA680 | B52: AA | C52: AAA680 | D52: 46 | F52: 0101030302 | G52: Crediti finanziari v/imprese collegate | H52: =SUMIF('00 Alimenta'!$B:$B,'00 PDC SP'!$F52,'00 Alimenta'!D:D) -> 0 | I52: =SUMIF('00 Alimenta'!$B:$B,'00 PDC SP'!$F52,'00 Alimenta'!E:E) -> 0 | J52: =SUMIF('00 Alimenta'!$B:$B,'00 PDC SP'!$F52,'00 Alimenta'!F:F) -> 0 | K52: =SUMIF('00 Alimenta'!$B:$B,'00 PDC SP'!$F52,'00 Alimenta'!G:G) -> 0 | L52: =SUMIF('00 Alimenta'!$B:$B,'00 PDC SP'!$F52,'00 Alimenta'!H:H) -> 0 | M52: =SUMIF('00 Alimenta'!$B:$B,'00 PDC SP'!$F52,'00 Alimenta'!I:I) -> 0 | N52: 0
A53: AAA690 | B53: AA | C53: AAA690 | D53: 46 | F53: 0101030401 | G53: Crediti finanziari v/Provincia | H53: =SUMIF('00 Alimenta'!$B:$B,'00 PDC SP'!$F53,'00 Alimenta'!D:D) -> 0 | I53: =SUMIF('00 Alimenta'!$B:$B,'00 PDC SP'!$F53,'00 Alimenta'!E:E) -> 0 | J53: =SUMIF('00 Alimenta'!$B:$B,'00 PDC SP'!$F53,'00 Alimenta'!F:F) -> 0 | K53: =SUMIF('00 Alimenta'!$B:$B,'00 PDC SP'!$F53,'00 Alimenta'!G:G) -> 0 | L53: =SUMIF('00 Alimenta'!$B:$B,'00 PDC SP'!$F53,'00 Alimenta'!H:H) -> 0 | M53: =SUMIF('00 Alimenta'!$B:$B,'00 PDC SP'!$F53,'00 Alimenta'!I:I) -> 0 | N53: 0
A54: AAA690 | B54: AA | C54: AAA690 | D54: 46 | F54: 0101030402 | G54: Crediti finanziari v/Comuni | H54: =SUMIF('00 Alimenta'!$B:$B,'00 PDC SP'!$F54,'00 Alimenta'!D:D) -> 0 | I54: =SUMIF('00 Alimenta'!$B:$B,'00 PDC SP'!$F54,'00 Alimenta'!E:E) -> 0 | J54: =SUMIF('00 Alimenta'!$B:$B,'00 PDC SP'!$F54,'00 Alimenta'!F:F) -> 0 | K54: =SUMIF('00 Alimenta'!$B:$B,'00 PDC SP'!$F54,'00 Alimenta'!G:G) -> 0 | L54: =SUMIF('00 Alimenta'!$B:$B,'00 PDC SP'!$F54,'00 Alimenta'!H:H) -> 0 | M54: =SUMIF('00 Alimenta'!$B:$B,'00 PDC SP'!$F54,'00 Alimenta'!I:I) -> 0 | N54: 0
A55: AAA690 | B55: AA | C55: AAA690 | D55: 46 | F55: 0101030403 | G55: Crediti finanziari v/altri | H55: =SUMIF('00 Alimenta'!$B:$B,'00 PDC SP'!$F55,'00 Alimenta'!D:D) -> 0 | I55: =SUMIF('00 Alimenta'!$B:$B,'00 PDC SP'!$F55,'00 Alimenta'!E:E) -> 0 | J55: =SUMIF('00 Alimenta'!$B:$B,'00 PDC SP'!$F55,'00 Alimenta'!F:F) -> 0 | K55: =SUMIF('00 Alimenta'!$B:$B,'00 PDC SP'!$F55,'00 Alimenta'!G:G) -> 0 | L55: =SUMIF('00 Alimenta'!$B:$B,'00 PDC SP'!$F55,'00 Alimenta'!H:H) -> 0 | M55: =SUMIF('00 Alimenta'!$B:$B,'00 PDC SP'!$F55,'00 Alimenta'!I:I) -> 0 | N55: 0
A56: AAA690 | B56: AA | C56: AAA690 | D56: 46 | F56: 0101030404 | G56: Depositi cauzionali | H56: =SUMIF('00 Alimenta'!$B:$B,'00 PDC SP'!$F56,'00 Alimenta'!D:D) -> 14036.45 | I56: =SUMIF('00 Alimenta'!$B:$B,'00 PDC SP'!$F56,'00 Alimenta'!E:E) -> 0 | J56: =SUMIF('00 Alimenta'!$B:$B,'00 PDC SP'!$F56,'00 Alimenta'!F:F) -> 0 | K56: =SUMIF('00 Alimenta'!$B:$B,'00 PDC SP'!$F56,'00 Alimenta'!G:G) -> 14036.45 | L56: =SUMIF('00 Alimenta'!$B:$B,'00 PDC SP'!$F56,'00 Alimenta'!H:H) -> 0 | M56: =SUMIF('00 Alimenta'!$B:$B,'00 PDC SP'!$F56,'00 Alimenta'!I:I) -> 0 | N56: 14036.45
A57: AAA710CN | B57: AA | C57: AAA710 | D57: 47 | E57: CN | F57: 0101030501 | G57: Partecipazioni in imprese controllate | H57: =SUMIF('00 Alimenta'!$B:$B,'00 PDC SP'!$F57,'00 Alimenta'!D:D) -> 0 | I57: =SUMIF('00 Alimenta'!$B:$B,'00 PDC SP'!$F57,'00 Alimenta'!E:E) -> 0 | J57: =SUMIF('00 Alimenta'!$B:$B,'00 PDC SP'!$F57,'00 Alimenta'!F:F) -> 0 | K57: =SUMIF('00 Alimenta'!$B:$B,'00 PDC SP'!$F57,'00 Alimenta'!G:G) -> 0 | L57: =SUMIF('00 Alimenta'!$B:$B,'00 PDC SP'!$F57,'00 Alimenta'!H:H) -> 0 | M57: =SUMIF('00 Alimenta'!$B:$B,'00 PDC SP'!$F57,'00 Alimenta'!I:I) -> 0 | N57: 0
A58: AAA710CL | B58: AA | C58: AAA710 | D58: 47 | E58: CL | F58: 0101030502 | G58: Partecipazioni in imprese collegate | H58: =SUMIF('00 Alimenta'!$B:$B,'00 PDC SP'!$F58,'00 Alimenta'!D:D) -> 0 | I58: =SUMIF('00 Alimenta'!$B:$B,'00 PDC SP'!$F58,'00 Alimenta'!E:E) -> 0 | J58: =SUMIF('00 Alimenta'!$B:$B,'00 PDC SP'!$F58,'00 Alimenta'!F:F) -> 0 | K58: =SUMIF('00 Alimenta'!$B:$B,'00 PDC SP'!$F58,'00 Alimenta'!G:G) -> 0 | L58: =SUMIF('00 Alimenta'!$B:$B,'00 PDC SP'!$F58,'00 Alimenta'!H:H) -> 0 | M58: =SUMIF('00 Alimenta'!$B:$B,'00 PDC SP'!$F58,'00 Alimenta'!I:I) -> 0 | N58: 0
A59: AAA710AI | B59: AA | C59: AAA710 | D59: 47 | E59: AI | F59: 0101030503 | G59: Partecipazioni in altre imprese | H59: =SUMIF('00 Alimenta'!$B:$B,'00 PDC SP'!$F59,'00 Alimenta'!D:D) -> 0 | I59: =SUMIF('00 Alimenta'!$B:$B,'00 PDC SP'!$F59,'00 Alimenta'!E:E) -> 0 | J59: =SUMIF('00 Alimenta'!$B:$B,'00 PDC SP'!$F59,'00 Alimenta'!F:F) -> 0 | K59: =SUMIF('00 Alimenta'!$B:$B,'00 PDC SP'!$F59,'00 Alimenta'!G:G) -> 0 | L59: =SUMIF('00 Alimenta'!$B:$B,'00 PDC SP'!$F59,'00 Alimenta'!H:H) -> 0 | M59: =SUMIF('00 Alimenta'!$B:$B,'00 PDC SP'!$F59,'00 Alimenta'!I:I) -> 0 | N59: 0
A60: AAA730 | B60: AA | C60: AAA730 | D60: 47 | F60: 0101030601 | G60: Titoli di Stato | H60: =SUMIF('00 Alimenta'!$B:$B,'00 PDC SP'!$F60,'00 Alimenta'!D:D) -> 0 | I60: =SUMIF('00 Alimenta'!$B:$B,'00 PDC SP'!$F60,'00 Alimenta'!E:E) -> 0 | J60: =SUMIF('00 Alimenta'!$B:$B,'00 PDC SP'!$F60,'00 Alimenta'!F:F) -> 0 | K60: =SUMIF('00 Alimenta'!$B:$B,'00 PDC SP'!$F60,'00 Alimenta'!G:G) -> 0 | L60: =SUMIF('00 Alimenta'!$B:$B,'00 PDC SP'!$F60,'00 Alimenta'!H:H) -> 0 | M60: =SUMIF('00 Alimenta'!$B:$B,'00 PDC SP'!$F60,'00 Alimenta'!I:I) -> 0 | N60: 0
A61: AAA740 | B61: AA | C61: AAA740 | D61: 47 | F61: 0101030602 | G61: Altre Obbligazioni | H61: =SUMIF('00 Alimenta'!$B:$B,'00 PDC SP'!$F61,'00 Alimenta'!D:D) -> 0 | I61: =SUMIF('00 Alimenta'!$B:$B,'00 PDC SP'!$F61,'00 Alimenta'!E:E) -> 0 | J61: =SUMIF('00 Alimenta'!$B:$B,'00 PDC SP'!$F61,'00 Alimenta'!F:F) -> 0 | K61: =SUMIF('00 Alimenta'!$B:$B,'00 PDC SP'!$F61,'00 Alimenta'!G:G) -> 0 | L61: =SUMIF('00 Alimenta'!$B:$B,'00 PDC SP'!$F61,'00 Alimenta'!H:H) -> 0 | M61: =SUMIF('00 Alimenta'!$B:$B,'00 PDC SP'!$F61,'00 Alimenta'!I:I) -> 0 | N61: 0
A62: AAA750 | B62: AA | C62: AAA750 | D62: 47 | F62: 0101030603 | G62: Titoli azionari quotati in Borsa | H62: =SUMIF('00 Alimenta'!$B:$B,'00 PDC SP'!$F62,'00 Alimenta'!D:D) -> 0 | I62: =SUMIF('00 Alimenta'!$B:$B,'00 PDC SP'!$F62,'00 Alimenta'!E:E) -> 0 | J62: =SUMIF('00 Alimenta'!$B:$B,'00 PDC SP'!$F62,'00 Alimenta'!F:F) -> 0 | K62: =SUMIF('00 Alimenta'!$B:$B,'00 PDC SP'!$F62,'00 Alimenta'!G:G) -> 0 | L62: =SUMIF('00 Alimenta'!$B:$B,'00 PDC SP'!$F62,'00 Alimenta'!H:H) -> 0 | M62: =SUMIF('00 Alimenta'!$B:$B,'00 PDC SP'!$F62,'00 Alimenta'!I:I) -> 0 | N62: 0
A63: AAA760 | B63: AA | C63: AAA760 | D63: 47 | F63: 0101030604 | G63: Titoli diversi | H63: =SUMIF('00 Alimenta'!$B:$B,'00 PDC SP'!$F63,'00 Alimenta'!D:D) -> 0 | I63: =SUMIF('00 Alimenta'!$B:$B,'00 PDC SP'!$F63,'00 Alimenta'!E:E) -> 0 | J63: =SUMIF('00 Alimenta'!$B:$B,'00 PDC SP'!$F63,'00 Alimenta'!F:F) -> 0 | K63: =SUMIF('00 Alimenta'!$B:$B,'00 PDC SP'!$F63,'00 Alimenta'!G:G) -> 0 | L63: =SUMIF('00 Alimenta'!$B:$B,'00 PDC SP'!$F63,'00 Alimenta'!H:H) -> 0 | M63: =SUMIF('00 Alimenta'!$B:$B,'00 PDC SP'!$F63,'00 Alimenta'!I:I) -> 0 | N63: 0
A64: ABA020 | B64: AB | C64: ABA020 | D64: 31 | F64: 0102010101 | G64: Medicinali con AIC | H64: =SUMIF('00 Alimenta'!$B:$B,'00 PDC SP'!$F64,'00 Alimenta'!D:D) -> 4388956 | I64: =SUMIF('00 Alimenta'!$B:$B,'00 PDC SP'!$F64,'00 Alimenta'!E:E) -> 9637765.4 | J64: =SUMIF('00 Alimenta'!$B:$B,'00 PDC SP'!$F64,'00 Alimenta'!F:F) -> 4388956 | K64: =SUMIF('00 Alimenta'!$B:$B,'00 PDC SP'!$F64,'00 Alimenta'!G:G) -> 9637765.4 | L64: =SUMIF('00 Alimenta'!$B:$B,'00 PDC SP'!$F64,'00 Alimenta'!H:H) -> 8982739.93 | M64: =SUMIF('00 Alimenta'!$B:$B,'00 PDC SP'!$F64,'00 Alimenta'!I:I) -> 9637765.4 | N64: 8982739.93
A65: ABA020 | B65: AB | C65: ABA020 | D65: 31 | F65: 0102010102 | G65: Soluzioni infusionali con AIC | H65: =SUMIF('00 Alimenta'!$B:$B,'00 PDC SP'!$F65,'00 Alimenta'!D:D) -> 1398.76 | I65: =SUMIF('00 Alimenta'!$B:$B,'00 PDC SP'!$F65,'00 Alimenta'!E:E) -> 4720.81 | J65: =SUMIF('00 Alimenta'!$B:$B,'00 PDC SP'!$F65,'00 Alimenta'!F:F) -> 1398.76 | K65: =SUMIF('00 Alimenta'!$B:$B,'00 PDC SP'!$F65,'00 Alimenta'!G:G) -> 4720.81 | L65: =SUMIF('00 Alimenta'!$B:$B,'00 PDC SP'!$F65,'00 Alimenta'!H:H) -> 299.85 | M65: =SUMIF('00 Alimenta'!$B:$B,'00 PDC SP'!$F65,'00 Alimenta'!I:I) -> 4720.81 | N65: 299.85
A66: ABA020 | B66: AB | C66: ABA020 | D66: 31 | F66: 0102010103 | G66: Ossigeno con AIC | H66: =SUMIF('00 Alimenta'!$B:$B,'00 PDC SP'!$F66,'00 Alimenta'!D:D) -> 1633.04 | I66: =SUMIF('00 Alimenta'!$B:$B,'00 PDC SP'!$F66,'00 Alimenta'!E:E) -> 1919.27 | J66: =SUMIF('00 Alimenta'!$B:$B,'00 PDC SP'!$F66,'00 Alimenta'!F:F) -> 1633.04 | K66: =SUMIF('00 Alimenta'!$B:$B,'00 PDC SP'!$F66,'00 Alimenta'!G:G) -> 1919.27 | L66: =SUMIF('00 Alimenta'!$B:$B,'00 PDC SP'!$F66,'00 Alimenta'!H:H) -> 0 | M66: =SUMIF('00 Alimenta'!$B:$B,'00 PDC SP'!$F66,'00 Alimenta'!I:I) -> 1919.27 | N66: 0
A67: ABA020 | B67: AB | C67: ABA020 | D67: 31 | F67: 0102010104 | G67: Altri gas medicali con AIC | H67: =SUMIF('00 Alimenta'!$B:$B,'00 PDC SP'!$F67,'00 Alimenta'!D:D) -> 9993.46 | I67: =SUMIF('00 Alimenta'!$B:$B,'00 PDC SP'!$F67,'00 Alimenta'!E:E) -> 18281.7 | J67: =SUMIF('00 Alimenta'!$B:$B,'00 PDC SP'!$F67,'00 Alimenta'!F:F) -> 9993.46 | K67: =SUMIF('00 Alimenta'!$B:$B,'00 PDC SP'!$F67,'00 Alimenta'!G:G) -> 18281.7 | L67: =SUMIF('00 Alimenta'!$B:$B,'00 PDC SP'!$F67,'00 Alimenta'!H:H) -> 0 | M67: =SUMIF('00 Alimenta'!$B:$B,'00 PDC SP'!$F67,'00 Alimenta'!I:I) -> 18281.7 | N67: 0
A68: ABA020 | B68: AB | C68: ABA020 | D68: 31 | F68: 0102010105 | G68: Emoderivati con AIC | H68: =SUMIF('00 Alimenta'!$B:$B,'00 PDC SP'!$F68,'00 Alimenta'!D:D) -> 415087.34 | I68: =SUMIF('00 Alimenta'!$B:$B,'00 PDC SP'!$F68,'00 Alimenta'!E:E) -> 299372.47 | J68: =SUMIF('00 Alimenta'!$B:$B,'00 PDC SP'!$F68,'00 Alimenta'!F:F) -> 415087.34 | K68: =SUMIF('00 Alimenta'!$B:$B,'00 PDC SP'!$F68,'00 Alimenta'!G:G) -> 299372.47 | L68: =SUMIF('00 Alimenta'!$B:$B,'00 PDC SP'!$F68,'00 Alimenta'!H:H) -> 305511.96 | M68: =SUMIF('00 Alimenta'!$B:$B,'00 PDC SP'!$F68,'00 Alimenta'!I:I) -> 299372.47 | N68: 305511.96
A69: ABA020 | B69: AB | C69: ABA020 | D69: 31 | F69: 0102010106 | G69: Medicinali senza AIC | H69: =SUMIF('00 Alimenta'!$B:$B,'00 PDC SP'!$F69,'00 Alimenta'!D:D) -> 220505.73 | I69: =SUMIF('00 Alimenta'!$B:$B,'00 PDC SP'!$F69,'00 Alimenta'!E:E) -> 153849.16 | J69: =SUMIF('00 Alimenta'!$B:$B,'00 PDC SP'!$F69,'00 Alimenta'!F:F) -> 220505.73 | K69: =SUMIF('00 Alimenta'!$B:$B,'00 PDC SP'!$F69,'00 Alimenta'!G:G) -> 153849.16 | L69: =SUMIF('00 Alimenta'!$B:$B,'00 PDC SP'!$F69,'00 Alimenta'!H:H) -> 198124.1 | M69: =SUMIF('00 Alimenta'!$B:$B,'00 PDC SP'!$F69,'00 Alimenta'!I:I) -> 153849.16 | N69: 198124.1
A70: =IF(E70="",C70,C70&E70) -> ABA020 | B70: =IF(C70="PAA220","UT",LEFT(C70,2)) -> AB | C70: ABA020 | D70: 31 | F70: 0102010107 | G70: Emoderivati di produzione regionale | H70: =SUMIF('00 Alimenta'!$B:$B,'00 PDC SP'!$F70,'00 Alimenta'!D:D) -> 0 | I70: =SUMIF('00 Alimenta'!$B:$B,'00 PDC SP'!$F70,'00 Alimenta'!E:E) -> 0 | J70: =SUMIF('00 Alimenta'!$B:$B,'00 PDC SP'!$F70,'00 Alimenta'!F:F) -> 0 | K70: =SUMIF('00 Alimenta'!$B:$B,'00 PDC SP'!$F70,'00 Alimenta'!G:G) -> 0 | L70: =SUMIF('00 Alimenta'!$B:$B,'00 PDC SP'!$F70,'00 Alimenta'!H:H) -> 0 | M70: =SUMIF('00 Alimenta'!$B:$B,'00 PDC SP'!$F70,'00 Alimenta'!I:I) -> 0 | N70: =K70+L70-M70 -> 0
A71: =IF(E71="",C71,C71&E71) -> ABA020 | B71: AB | C71: ABA020 | D71: 31 | F71: 0102010108 | G71: Farmaci innovativi | H71: =SUMIF('00 Alimenta'!$B:$B,'00 PDC SP'!$F71,'00 Alimenta'!D:D) -> 796557.79 | I71: =SUMIF('00 Alimenta'!$B:$B,'00 PDC SP'!$F71,'00 Alimenta'!E:E) -> 425624.06 | J71: =SUMIF('00 Alimenta'!$B:$B,'00 PDC SP'!$F71,'00 Alimenta'!F:F) -> 796557.79 | K71: =SUMIF('00 Alimenta'!$B:$B,'00 PDC SP'!$F71,'00 Alimenta'!G:G) -> 425624.06 | L71: =SUMIF('00 Alimenta'!$B:$B,'00 PDC SP'!$F71,'00 Alimenta'!H:H) -> 713717.44 | M71: =SUMIF('00 Alimenta'!$B:$B,'00 PDC SP'!$F71,'00 Alimenta'!I:I) -> 425624.06 | N71: =K71+L71-M71 -> 713717.44
A72: ABA030 | B72: AB | C72: ABA030 | D72: 31 | F72: 0102010201 | G72: Sangue ed emocomponenti | H72: =SUMIF('00 Alimenta'!$B:$B,'00 PDC SP'!$F72,'00 Alimenta'!D:D) -> 0 | I72: =SUMIF('00 Alimenta'!$B:$B,'00 PDC SP'!$F72,'00 Alimenta'!E:E) -> 0 | J72: =SUMIF('00 Alimenta'!$B:$B,'00 PDC SP'!$F72,'00 Alimenta'!F:F) -> 0 | K72: =SUMIF('00 Alimenta'!$B:$B,'00 PDC SP'!$F72,'00 Alimenta'!G:G) -> 0 | L72: =SUMIF('00 Alimenta'!$B:$B,'00 PDC SP'!$F72,'00 Alimenta'!H:H) -> 0 | M72: =SUMIF('00 Alimenta'!$B:$B,'00 PDC SP'!$F72,'00 Alimenta'!I:I) -> 0 | N72: 0
A73: ABA040 | B73: AB | C73: ABA040 | D73: 31 | F73: 0102010301 | G73: Strumentazione per bioimmagini e radioterapia | H73: =SUMIF('00 Alimenta'!$B:$B,'00 PDC SP'!$F73,'00 Alimenta'!D:D) -> 22325.73 | I73: =SUMIF('00 Alimenta'!$B:$B,'00 PDC SP'!$F73,'00 Alimenta'!E:E) -> 57070.16 | J73: =SUMIF('00 Alimenta'!$B:$B,'00 PDC SP'!$F73,'00 Alimenta'!F:F) -> 22325.73 | K73: =SUMIF('00 Alimenta'!$B:$B,'00 PDC SP'!$F73,'00 Alimenta'!G:G) -> 57070.16 | L73: =SUMIF('00 Alimenta'!$B:$B,'00 PDC SP'!$F73,'00 Alimenta'!H:H) -> 34041.11 | M73: =SUMIF('00 Alimenta'!$B:$B,'00 PDC SP'!$F73,'00 Alimenta'!I:I) -> 57070.16 | N73: 34041.11
A74: ABA040 | B74: AB | C74: ABA040 | D74: 31 | F74: 0102010302 | G74: Materiale per sterilizzazione | H74: =SUMIF('00 Alimenta'!$B:$B,'00 PDC SP'!$F74,'00 Alimenta'!D:D) -> 44744.42 | I74: =SUMIF('00 Alimenta'!$B:$B,'00 PDC SP'!$F74,'00 Alimenta'!E:E) -> 8572.01 | J74: =SUMIF('00 Alimenta'!$B:$B,'00 PDC SP'!$F74,'00 Alimenta'!F:F) -> 44744.42 | K74: =SUMIF('00 Alimenta'!$B:$B,'00 PDC SP'!$F74,'00 Alimenta'!G:G) -> 8572.01 | L74: =SUMIF('00 Alimenta'!$B:$B,'00 PDC SP'!$F74,'00 Alimenta'!H:H) -> 26034.46 | M74: =SUMIF('00 Alimenta'!$B:$B,'00 PDC SP'!$F74,'00 Alimenta'!I:I) -> 8572.01 | N74: 26034.46
A75: ABA040 | B75: AB | C75: ABA040 | D75: 31 | F75: 0102010303 | G75: Dispositivi per chirurgia mini-invasiva ed elettrochirurgia | H75: =SUMIF('00 Alimenta'!$B:$B,'00 PDC SP'!$F75,'00 Alimenta'!D:D) -> 191192.48 | I75: =SUMIF('00 Alimenta'!$B:$B,'00 PDC SP'!$F75,'00 Alimenta'!E:E) -> 237459.44 | J75: =SUMIF('00 Alimenta'!$B:$B,'00 PDC SP'!$F75,'00 Alimenta'!F:F) -> 191192.48 | K75: =SUMIF('00 Alimenta'!$B:$B,'00 PDC SP'!$F75,'00 Alimenta'!G:G) -> 237459.44 | L75: =SUMIF('00 Alimenta'!$B:$B,'00 PDC SP'!$F75,'00 Alimenta'!H:H) -> 231885.55 | M75: =SUMIF('00 Alimenta'!$B:$B,'00 PDC SP'!$F75,'00 Alimenta'!I:I) -> 237459.44 | N75: 231885.55
A76: ABA040 | B76: AB | C76: ABA040 | D76: 31 | F76: 0102010304 | G76: Protesi ortopediche e mezzi per osteosintesi e sintesi tendineo-legamentosa | H76: =SUMIF('00 Alimenta'!$B:$B,'00 PDC SP'!$F76,'00 Alimenta'!D:D) -> 156988.5 | I76: =SUMIF('00 Alimenta'!$B:$B,'00 PDC SP'!$F76,'00 Alimenta'!E:E) -> 125902.79 | J76: =SUMIF('00 Alimenta'!$B:$B,'00 PDC SP'!$F76,'00 Alimenta'!F:F) -> 156988.5 | K76: =SUMIF('00 Alimenta'!$B:$B,'00 PDC SP'!$F76,'00 Alimenta'!G:G) -> 125902.79 | L76: =SUMIF('00 Alimenta'!$B:$B,'00 PDC SP'!$F76,'00 Alimenta'!H:H) -> 125694.46 | M76: =SUMIF('00 Alimenta'!$B:$B,'00 PDC SP'!$F76,'00 Alimenta'!I:I) -> 125902.79 | N76: 125694.46
A77: ABA040 | B77: AB | C77: ABA040 | D77: 31 | F77: 0102010305 | G77: Protesi oculistiche | H77: =SUMIF('00 Alimenta'!$B:$B,'00 PDC SP'!$F77,'00 Alimenta'!D:D) -> 21294.52 | I77: =SUMIF('00 Alimenta'!$B:$B,'00 PDC SP'!$F77,'00 Alimenta'!E:E) -> 28295.8 | J77: =SUMIF('00 Alimenta'!$B:$B,'00 PDC SP'!$F77,'00 Alimenta'!F:F) -> 21294.52 | K77: =SUMIF('00 Alimenta'!$B:$B,'00 PDC SP'!$F77,'00 Alimenta'!G:G) -> 28295.8 | L77: =SUMIF('00 Alimenta'!$B:$B,'00 PDC SP'!$F77,'00 Alimenta'!H:H) -> 106241.44 | M77: =SUMIF('00 Alimenta'!$B:$B,'00 PDC SP'!$F77,'00 Alimenta'!I:I) -> 28295.8 | N77: 106241.44
A78: ABA040 | B78: AB | C78: ABA040 | D78: 31 | F78: 0102010306 | G78: Protesi vascolari e cardiache | H78: =SUMIF('00 Alimenta'!$B:$B,'00 PDC SP'!$F78,'00 Alimenta'!D:D) -> 7516.08 | I78: =SUMIF('00 Alimenta'!$B:$B,'00 PDC SP'!$F78,'00 Alimenta'!E:E) -> 4904.64 | J78: =SUMIF('00 Alimenta'!$B:$B,'00 PDC SP'!$F78,'00 Alimenta'!F:F) -> 7516.08 | K78: =SUMIF('00 Alimenta'!$B:$B,'00 PDC SP'!$F78,'00 Alimenta'!G:G) -> 4904.64 | L78: =SUMIF('00 Alimenta'!$B:$B,'00 PDC SP'!$F78,'00 Alimenta'!H:H) -> 3595.95 | M78: =SUMIF('00 Alimenta'!$B:$B,'00 PDC SP'!$F78,'00 Alimenta'!I:I) -> 4904.64 | N78: 3595.95
A79: ABA040 | B79: AB | C79: ABA040 | D79: 31 | F79: 0102010307 | G79: Altri dispositivi protesici impiantabili e prodotti per osteosintesi | H79: =SUMIF('00 Alimenta'!$B:$B,'00 PDC SP'!$F79,'00 Alimenta'!D:D) -> 15680.73 | I79: =SUMIF('00 Alimenta'!$B:$B,'00 PDC SP'!$F79,'00 Alimenta'!E:E) -> 8142.05 | J79: =SUMIF('00 Alimenta'!$B:$B,'00 PDC SP'!$F79,'00 Alimenta'!F:F) -> 15680.73 | K79: =SUMIF('00 Alimenta'!$B:$B,'00 PDC SP'!$F79,'00 Alimenta'!G:G) -> 8142.05 | L79: =SUMIF('00 Alimenta'!$B:$B,'00 PDC SP'!$F79,'00 Alimenta'!H:H) -> 26339.17 | M79: =SUMIF('00 Alimenta'!$B:$B,'00 PDC SP'!$F79,'00 Alimenta'!I:I) -> 8142.05 | N79: 26339.17
A80: ABA040 | B80: AB | C80: ABA040 | D80: 31 | F80: 0102010308 | G80: Supporti e ausili tecnici per persone disabili | H80: =SUMIF('00 Alimenta'!$B:$B,'00 PDC SP'!$F80,'00 Alimenta'!D:D) -> 32718.44 | I80: =SUMIF('00 Alimenta'!$B:$B,'00 PDC SP'!$F80,'00 Alimenta'!E:E) -> 15277.66 | J80: =SUMIF('00 Alimenta'!$B:$B,'00 PDC SP'!$F80,'00 Alimenta'!F:F) -> 32718.44 | K80: =SUMIF('00 Alimenta'!$B:$B,'00 PDC SP'!$F80,'00 Alimenta'!G:G) -> 15277.66 | L80: =SUMIF('00 Alimenta'!$B:$B,'00 PDC SP'!$F80,'00 Alimenta'!H:H) -> 7705.5 | M80: =SUMIF('00 Alimenta'!$B:$B,'00 PDC SP'!$F80,'00 Alimenta'!I:I) -> 15277.66 | N80: 7705.5
A81: ABA040 | B81: AB | C81: ABA040 | D81: 31 | F81: 0102010309 | G81: Dispositivi per emotrasfusione ed ematologia | H81: =SUMIF('00 Alimenta'!$B:$B,'00 PDC SP'!$F81,'00 Alimenta'!D:D) -> 58519.51 | I81: =SUMIF('00 Alimenta'!$B:$B,'00 PDC SP'!$F81,'00 Alimenta'!E:E) -> 43182.99 | J81: =SUMIF('00 Alimenta'!$B:$B,'00 PDC SP'!$F81,'00 Alimenta'!F:F) -> 58519.51 | K81: =SUMIF('00 Alimenta'!$B:$B,'00 PDC SP'!$F81,'00 Alimenta'!G:G) -> 43182.99 | L81: =SUMIF('00 Alimenta'!$B:$B,'00 PDC SP'!$F81,'00 Alimenta'!H:H) -> 42793.34 | M81: =SUMIF('00 Alimenta'!$B:$B,'00 PDC SP'!$F81,'00 Alimenta'!I:I) -> 43182.99 | N81: 42793.34
A82: ABA040 | B82: AB | C82: ABA040 | D82: 31 | F82: 0102010310 | G82: Dispositivi per dialisi | H82: =SUMIF('00 Alimenta'!$B:$B,'00 PDC SP'!$F82,'00 Alimenta'!D:D) -> 78184.86 | I82: =SUMIF('00 Alimenta'!$B:$B,'00 PDC SP'!$F82,'00 Alimenta'!E:E) -> 349609.43 | J82: =SUMIF('00 Alimenta'!$B:$B,'00 PDC SP'!$F82,'00 Alimenta'!F:F) -> 78184.86 | K82: =SUMIF('00 Alimenta'!$B:$B,'00 PDC SP'!$F82,'00 Alimenta'!G:G) -> 349609.43 | L82: =SUMIF('00 Alimenta'!$B:$B,'00 PDC SP'!$F82,'00 Alimenta'!H:H) -> 414188.42 | M82: =SUMIF('00 Alimenta'!$B:$B,'00 PDC SP'!$F82,'00 Alimenta'!I:I) -> 349609.43 | N82: 414188.42
A83: ABA040 | B83: AB | C83: ABA040 | D83: 31 | F83: 0102010311 | G83: Dispositivi medico-diagnostici in vitro (D.Lgs. 332/2000) | H83: =SUMIF('00 Alimenta'!$B:$B,'00 PDC SP'!$F83,'00 Alimenta'!D:D) -> 1482372.12 | I83: =SUMIF('00 Alimenta'!$B:$B,'00 PDC SP'!$F83,'00 Alimenta'!E:E) -> 1412543.58 | J83: =SUMIF('00 Alimenta'!$B:$B,'00 PDC SP'!$F83,'00 Alimenta'!F:F) -> 1482372.12 | K83: =SUMIF('00 Alimenta'!$B:$B,'00 PDC SP'!$F83,'00 Alimenta'!G:G) -> 1412543.58 | L83: =SUMIF('00 Alimenta'!$B:$B,'00 PDC SP'!$F83,'00 Alimenta'!H:H) -> 1378264.31 | M83: =SUMIF('00 Alimenta'!$B:$B,'00 PDC SP'!$F83,'00 Alimenta'!I:I) -> 1412543.58 | N83: 1378264.31
A84: ABA040 | B84: AB | C84: ABA040 | D84: 31 | F84: 0102010312 | G84: Strumentazione per esplorazioni funzionali ed interventi terapeutici | H84: =SUMIF('00 Alimenta'!$B:$B,'00 PDC SP'!$F84,'00 Alimenta'!D:D) -> 270520.31 | I84: =SUMIF('00 Alimenta'!$B:$B,'00 PDC SP'!$F84,'00 Alimenta'!E:E) -> 349679.38 | J84: =SUMIF('00 Alimenta'!$B:$B,'00 PDC SP'!$F84,'00 Alimenta'!F:F) -> 270520.31 | K84: =SUMIF('00 Alimenta'!$B:$B,'00 PDC SP'!$F84,'00 Alimenta'!G:G) -> 349679.38 | L84: =SUMIF('00 Alimenta'!$B:$B,'00 PDC SP'!$F84,'00 Alimenta'!H:H) -> 395454.2 | M84: =SUMIF('00 Alimenta'!$B:$B,'00 PDC SP'!$F84,'00 Alimenta'!I:I) -> 349679.38 | N84: 395454.2
A85: ABA040 | B85: AB | C85: ABA040 | D85: 31 | F85: 0102010313 | G85: Strumentazione per radiologia diagnostica ed interventistica | H85: =SUMIF('00 Alimenta'!$B:$B,'00 PDC SP'!$F85,'00 Alimenta'!D:D) -> 712.51 | I85: =SUMIF('00 Alimenta'!$B:$B,'00 PDC SP'!$F85,'00 Alimenta'!E:E) -> 971.05 | J85: =SUMIF('00 Alimenta'!$B:$B,'00 PDC SP'!$F85,'00 Alimenta'!F:F) -> 712.51 | K85: =SUMIF('00 Alimenta'!$B:$B,'00 PDC SP'!$F85,'00 Alimenta'!G:G) -> 971.05 | L85: =SUMIF('00 Alimenta'!$B:$B,'00 PDC SP'!$F85,'00 Alimenta'!H:H) -> 888.71 | M85: =SUMIF('00 Alimenta'!$B:$B,'00 PDC SP'!$F85,'00 Alimenta'!I:I) -> 971.05 | N85: 888.71
A86: ABA040 | B86: AB | C86: ABA040 | D86: 31 | F86: 0102010314 | G86: Strumentario chirurgico pluriuso o riusabile | H86: =SUMIF('00 Alimenta'!$B:$B,'00 PDC SP'!$F86,'00 Alimenta'!D:D) -> 92097.5 | I86: =SUMIF('00 Alimenta'!$B:$B,'00 PDC SP'!$F86,'00 Alimenta'!E:E) -> 59941.67 | J86: =SUMIF('00 Alimenta'!$B:$B,'00 PDC SP'!$F86,'00 Alimenta'!F:F) -> 92097.5 | K86: =SUMIF('00 Alimenta'!$B:$B,'00 PDC SP'!$F86,'00 Alimenta'!G:G) -> 59941.67 | L86: =SUMIF('00 Alimenta'!$B:$B,'00 PDC SP'!$F86,'00 Alimenta'!H:H) -> 43416.82 | M86: =SUMIF('00 Alimenta'!$B:$B,'00 PDC SP'!$F86,'00 Alimenta'!I:I) -> 59941.67 | N86: 43416.82
A87: ABA040 | B87: AB | C87: ABA040 | D87: 31 | F87: 0102010315 | G87: Dispositivi protesici impiantabili - vari | H87: =SUMIF('00 Alimenta'!$B:$B,'00 PDC SP'!$F87,'00 Alimenta'!D:D) -> 80004.3 | I87: =SUMIF('00 Alimenta'!$B:$B,'00 PDC SP'!$F87,'00 Alimenta'!E:E) -> 36165.23 | J87: =SUMIF('00 Alimenta'!$B:$B,'00 PDC SP'!$F87,'00 Alimenta'!F:F) -> 80004.3 | K87: =SUMIF('00 Alimenta'!$B:$B,'00 PDC SP'!$F87,'00 Alimenta'!G:G) -> 36165.23 | L87: =SUMIF('00 Alimenta'!$B:$B,'00 PDC SP'!$F87,'00 Alimenta'!H:H) -> 20957.82 | M87: =SUMIF('00 Alimenta'!$B:$B,'00 PDC SP'!$F87,'00 Alimenta'!I:I) -> 36165.23 | N87: 20957.82
A88: ABA040 | B88: AB | C88: ABA040 | D88: 31 | F88: 0102010316 | G88: Dispositivi per sistema artero-venoso | H88: =SUMIF('00 Alimenta'!$B:$B,'00 PDC SP'!$F88,'00 Alimenta'!D:D) -> 196661.87 | I88: =SUMIF('00 Alimenta'!$B:$B,'00 PDC SP'!$F88,'00 Alimenta'!E:E) -> 341902.99 | J88: =SUMIF('00 Alimenta'!$B:$B,'00 PDC SP'!$F88,'00 Alimenta'!F:F) -> 196661.87 | K88: =SUMIF('00 Alimenta'!$B:$B,'00 PDC SP'!$F88,'00 Alimenta'!G:G) -> 341902.99 | L88: =SUMIF('00 Alimenta'!$B:$B,'00 PDC SP'!$F88,'00 Alimenta'!H:H) -> 263899.12 | M88: =SUMIF('00 Alimenta'!$B:$B,'00 PDC SP'!$F88,'00 Alimenta'!I:I) -> 341902.99 | N88: 263899.12
A89: ABA040 | B89: AB | C89: ABA040 | D89: 31 | F89: 0102010317 | G89: Guide per apparato cardiocircolatorio | H89: =SUMIF('00 Alimenta'!$B:$B,'00 PDC SP'!$F89,'00 Alimenta'!D:D) -> 16525.53 | I89: =SUMIF('00 Alimenta'!$B:$B,'00 PDC SP'!$F89,'00 Alimenta'!E:E) -> 51496.86 | J89: =SUMIF('00 Alimenta'!$B:$B,'00 PDC SP'!$F89,'00 Alimenta'!F:F) -> 16525.53 | K89: =SUMIF('00 Alimenta'!$B:$B,'00 PDC SP'!$F89,'00 Alimenta'!G:G) -> 51496.86 | L89: =SUMIF('00 Alimenta'!$B:$B,'00 PDC SP'!$F89,'00 Alimenta'!H:H) -> 54115.43 | M89: =SUMIF('00 Alimenta'!$B:$B,'00 PDC SP'!$F89,'00 Alimenta'!I:I) -> 51496.86 | N89: 54115.43
A90: ABA040 | B90: AB | C90: ABA040 | D90: 31 | F90: 0102010318 | G90: Altri dispositivi per apparato cardiocircolatorio | H90: =SUMIF('00 Alimenta'!$B:$B,'00 PDC SP'!$F90,'00 Alimenta'!D:D) -> 123103.54 | I90: =SUMIF('00 Alimenta'!$B:$B,'00 PDC SP'!$F90,'00 Alimenta'!E:E) -> 192131.49 | J90: =SUMIF('00 Alimenta'!$B:$B,'00 PDC SP'!$F90,'00 Alimenta'!F:F) -> 123103.54 | K90: =SUMIF('00 Alimenta'!$B:$B,'00 PDC SP'!$F90,'00 Alimenta'!G:G) -> 192131.49 | L90: =SUMIF('00 Alimenta'!$B:$B,'00 PDC SP'!$F90,'00 Alimenta'!H:H) -> 209610.57 | M90: =SUMIF('00 Alimenta'!$B:$B,'00 PDC SP'!$F90,'00 Alimenta'!I:I) -> 192131.49 | N90: 209610.57
A91: ABA040 | B91: AB | C91: ABA040 | D91: 31 | F91: 0102010319 | G91: Disinfettanti, antisettici e proteolitici (D.Lgs. 46/97) | H91: =SUMIF('00 Alimenta'!$B:$B,'00 PDC SP'!$F91,'00 Alimenta'!D:D) -> 22348.48 | I91: =SUMIF('00 Alimenta'!$B:$B,'00 PDC SP'!$F91,'00 Alimenta'!E:E) -> 23214.09 | J91: =SUMIF('00 Alimenta'!$B:$B,'00 PDC SP'!$F91,'00 Alimenta'!F:F) -> 22348.48 | K91: =SUMIF('00 Alimenta'!$B:$B,'00 PDC SP'!$F91,'00 Alimenta'!G:G) -> 23214.09 | L91: =SUMIF('00 Alimenta'!$B:$B,'00 PDC SP'!$F91,'00 Alimenta'!H:H) -> 20593.43 | M91: =SUMIF('00 Alimenta'!$B:$B,'00 PDC SP'!$F91,'00 Alimenta'!I:I) -> 23214.09 | N91: 20593.43
A92: ABA040 | B92: AB | C92: ABA040 | D92: 31 | F92: 0102010320 | G92: Dispositivi per apparato gastrointestinale | H92: =SUMIF('00 Alimenta'!$B:$B,'00 PDC SP'!$F92,'00 Alimenta'!D:D) -> 83693.42 | I92: =SUMIF('00 Alimenta'!$B:$B,'00 PDC SP'!$F92,'00 Alimenta'!E:E) -> 108873.9 | J92: =SUMIF('00 Alimenta'!$B:$B,'00 PDC SP'!$F92,'00 Alimenta'!F:F) -> 83693.42 | K92: =SUMIF('00 Alimenta'!$B:$B,'00 PDC SP'!$F92,'00 Alimenta'!G:G) -> 108873.9 | L92: =SUMIF('00 Alimenta'!$B:$B,'00 PDC SP'!$F92,'00 Alimenta'!H:H) -> 108756.84 | M92: =SUMIF('00 Alimenta'!$B:$B,'00 PDC SP'!$F92,'00 Alimenta'!I:I) -> 108873.9 | N92: 108756.84
A93: ABA040 | B93: AB | C93: ABA040 | D93: 31 | F93: 0102010321 | G93: Dispositivi da sutura | H93: =SUMIF('00 Alimenta'!$B:$B,'00 PDC SP'!$F93,'00 Alimenta'!D:D) -> 349748.67 | I93: =SUMIF('00 Alimenta'!$B:$B,'00 PDC SP'!$F93,'00 Alimenta'!E:E) -> 199430.7 | J93: =SUMIF('00 Alimenta'!$B:$B,'00 PDC SP'!$F93,'00 Alimenta'!F:F) -> 349748.67 | K93: =SUMIF('00 Alimenta'!$B:$B,'00 PDC SP'!$F93,'00 Alimenta'!G:G) -> 199430.7 | L93: =SUMIF('00 Alimenta'!$B:$B,'00 PDC SP'!$F93,'00 Alimenta'!H:H) -> 159097.78 | M93: =SUMIF('00 Alimenta'!$B:$B,'00 PDC SP'!$F93,'00 Alimenta'!I:I) -> 199430.7 | N93: 159097.78
A94: ABA040 | B94: AB | C94: ABA040 | D94: 31 | F94: 0102010322 | G94: Dispositivi per sistema nervoso e midollare | H94: =SUMIF('00 Alimenta'!$B:$B,'00 PDC SP'!$F94,'00 Alimenta'!D:D) -> 28260.43 | I94: =SUMIF('00 Alimenta'!$B:$B,'00 PDC SP'!$F94,'00 Alimenta'!E:E) -> 24648.4 | J94: =SUMIF('00 Alimenta'!$B:$B,'00 PDC SP'!$F94,'00 Alimenta'!F:F) -> 28260.43 | K94: =SUMIF('00 Alimenta'!$B:$B,'00 PDC SP'!$F94,'00 Alimenta'!G:G) -> 24648.4 | L94: =SUMIF('00 Alimenta'!$B:$B,'00 PDC SP'!$F94,'00 Alimenta'!H:H) -> 14507.51 | M94: =SUMIF('00 Alimenta'!$B:$B,'00 PDC SP'!$F94,'00 Alimenta'!I:I) -> 24648.4 | N94: 14507.51
A95: ABA040 | B95: AB | C95: ABA040 | D95: 31 | F95: 0102010323 | G95: Dispositivi per odontoiatria, oftalmologoa e otorinolaringoiatria | H95: =SUMIF('00 Alimenta'!$B:$B,'00 PDC SP'!$F95,'00 Alimenta'!D:D) -> 71817.28 | I95: =SUMIF('00 Alimenta'!$B:$B,'00 PDC SP'!$F95,'00 Alimenta'!E:E) -> 77787.69 | J95: =SUMIF('00 Alimenta'!$B:$B,'00 PDC SP'!$F95,'00 Alimenta'!F:F) -> 71817.28 | K95: =SUMIF('00 Alimenta'!$B:$B,'00 PDC SP'!$F95,'00 Alimenta'!G:G) -> 77787.69 | L95: =SUMIF('00 Alimenta'!$B:$B,'00 PDC SP'!$F95,'00 Alimenta'!H:H) -> 74179.94 | M95: =SUMIF('00 Alimenta'!$B:$B,'00 PDC SP'!$F95,'00 Alimenta'!I:I) -> 77787.69 | N95: 74179.94
A96: ABA040 | B96: AB | C96: ABA040 | D96: 31 | F96: 0102010324 | G96: Dispositivi per apparato respiratorio e anestesia | H96: =SUMIF('00 Alimenta'!$B:$B,'00 PDC SP'!$F96,'00 Alimenta'!D:D) -> 182238.66 | I96: =SUMIF('00 Alimenta'!$B:$B,'00 PDC SP'!$F96,'00 Alimenta'!E:E) -> 226521.29 | J96: =SUMIF('00 Alimenta'!$B:$B,'00 PDC SP'!$F96,'00 Alimenta'!F:F) -> 182238.66 | K96: =SUMIF('00 Alimenta'!$B:$B,'00 PDC SP'!$F96,'00 Alimenta'!G:G) -> 226521.29 | L96: =SUMIF('00 Alimenta'!$B:$B,'00 PDC SP'!$F96,'00 Alimenta'!H:H) -> 204390.15 | M96: =SUMIF('00 Alimenta'!$B:$B,'00 PDC SP'!$F96,'00 Alimenta'!I:I) -> 226521.29 | N96: 204390.15
A97: ABA040 | B97: AB | C97: ABA040 | D97: 31 | F97: 0102010325 | G97: Dispositivi di protezione e ausili per incontinenza (D.Lgs. 46/97) | H97: =SUMIF('00 Alimenta'!$B:$B,'00 PDC SP'!$F97,'00 Alimenta'!D:D) -> 196921.3 | I97: =SUMIF('00 Alimenta'!$B:$B,'00 PDC SP'!$F97,'00 Alimenta'!E:E) -> 188552.61 | J97: =SUMIF('00 Alimenta'!$B:$B,'00 PDC SP'!$F97,'00 Alimenta'!F:F) -> 196921.3 | K97: =SUMIF('00 Alimenta'!$B:$B,'00 PDC SP'!$F97,'00 Alimenta'!G:G) -> 188552.61 | L97: =SUMIF('00 Alimenta'!$B:$B,'00 PDC SP'!$F97,'00 Alimenta'!H:H) -> 194247.26 | M97: =SUMIF('00 Alimenta'!$B:$B,'00 PDC SP'!$F97,'00 Alimenta'!I:I) -> 188552.61 | N97: 194247.26
A98: ABA040 | B98: AB | C98: ABA040 | D98: 31 | F98: 0102010326 | G98: Dispositivi per apparato urogenitale | H98: =SUMIF('00 Alimenta'!$B:$B,'00 PDC SP'!$F98,'00 Alimenta'!D:D) -> 51126.59 | I98: =SUMIF('00 Alimenta'!$B:$B,'00 PDC SP'!$F98,'00 Alimenta'!E:E) -> 58158.49 | J98: =SUMIF('00 Alimenta'!$B:$B,'00 PDC SP'!$F98,'00 Alimenta'!F:F) -> 51126.59 | K98: =SUMIF('00 Alimenta'!$B:$B,'00 PDC SP'!$F98,'00 Alimenta'!G:G) -> 58158.49 | L98: =SUMIF('00 Alimenta'!$B:$B,'00 PDC SP'!$F98,'00 Alimenta'!H:H) -> 87545.74 | M98: =SUMIF('00 Alimenta'!$B:$B,'00 PDC SP'!$F98,'00 Alimenta'!I:I) -> 58158.49 | N98: 87545.74
A99: ABA040 | B99: AB | C99: ABA040 | D99: 31 | F99: 0102010327 | G99: Dispositivi vari | H99: =SUMIF('00 Alimenta'!$B:$B,'00 PDC SP'!$F99,'00 Alimenta'!D:D) -> 304842.72 | I99: =SUMIF('00 Alimenta'!$B:$B,'00 PDC SP'!$F99,'00 Alimenta'!E:E) -> 302955.27 | J99: =SUMIF('00 Alimenta'!$B:$B,'00 PDC SP'!$F99,'00 Alimenta'!F:F) -> 304842.72 | K99: =SUMIF('00 Alimenta'!$B:$B,'00 PDC SP'!$F99,'00 Alimenta'!G:G) -> 302955.27 | L99: =SUMIF('00 Alimenta'!$B:$B,'00 PDC SP'!$F99,'00 Alimenta'!H:H) -> 226897.32 | M99: =SUMIF('00 Alimenta'!$B:$B,'00 PDC SP'!$F99,'00 Alimenta'!I:I) -> 302955.27 | N99: 226897.32
A100: ABA040 | B100: AB | C100: ABA040 | D100: 31 | F100: 0102010328 | G100: Dispositivi da somministrazione, prelievo e raccolta | H100: =SUMIF('00 Alimenta'!$B:$B,'00 PDC SP'!$F100,'00 Alimenta'!D:D) -> 569117.95 | I100: =SUMIF('00 Alimenta'!$B:$B,'00 PDC SP'!$F100,'00 Alimenta'!E:E) -> 632496.82 | J100: =SUMIF('00 Alimenta'!$B:$B,'00 PDC SP'!$F100,'00 Alimenta'!F:F) -> 569117.95 | K100: =SUMIF('00 Alimenta'!$B:$B,'00 PDC SP'!$F100,'00 Alimenta'!G:G) -> 632496.82 | L100: =SUMIF('00 Alimenta'!$B:$B,'00 PDC SP'!$F100,'00 Alimenta'!H:H) -> 633711.89 | M100: =SUMIF('00 Alimenta'!$B:$B,'00 PDC SP'!$F100,'00 Alimenta'!I:I) -> 632496.82 | N100: 633711.89
A101: ABA040 | B101: AB | C101: ABA040 | D101: 31 | F101: 0102010329 | G101: Dispositivi per medicazioni generali e specialistiche | H101: =SUMIF('00 Alimenta'!$B:$B,'00 PDC SP'!$F101,'00 Alimenta'!D:D) -> 357449.92 | I101: =SUMIF('00 Alimenta'!$B:$B,'00 PDC SP'!$F101,'00 Alimenta'!E:E) -> 347297.22 | J101: =SUMIF('00 Alimenta'!$B:$B,'00 PDC SP'!$F101,'00 Alimenta'!F:F) -> 357449.92 | K101: =SUMIF('00 Alimenta'!$B:$B,'00 PDC SP'!$F101,'00 Alimenta'!G:G) -> 347297.22 | L101: =SUMIF('00 Alimenta'!$B:$B,'00 PDC SP'!$F101,'00 Alimenta'!H:H) -> 345477.22 | M101: =SUMIF('00 Alimenta'!$B:$B,'00 PDC SP'!$F101,'00 Alimenta'!I:I) -> 347297.22 | N101: 345477.22
A102: ABA040 | B102: AB | C102: ABA040 | D102: 31 | F102: 0102010330 | G102: Dispositivi impiantabili attivi | H102: =SUMIF('00 Alimenta'!$B:$B,'00 PDC SP'!$F102,'00 Alimenta'!D:D) -> 30319.56 | I102: =SUMIF('00 Alimenta'!$B:$B,'00 PDC SP'!$F102,'00 Alimenta'!E:E) -> 31197.03 | J102: =SUMIF('00 Alimenta'!$B:$B,'00 PDC SP'!$F102,'00 Alimenta'!F:F) -> 30319.56 | K102: =SUMIF('00 Alimenta'!$B:$B,'00 PDC SP'!$F102,'00 Alimenta'!G:G) -> 31197.03 | L102: =SUMIF('00 Alimenta'!$B:$B,'00 PDC SP'!$F102,'00 Alimenta'!H:H) -> 34540.9 | M102: =SUMIF('00 Alimenta'!$B:$B,'00 PDC SP'!$F102,'00 Alimenta'!I:I) -> 31197.03 | N102: 34540.9
A103: ABA050 | B103: AB | C103: ABA050 | D103: 31 | F103: 0102010401 | G103: Prodotti dietetici | H103: =SUMIF('00 Alimenta'!$B:$B,'00 PDC SP'!$F103,'00 Alimenta'!D:D) -> 5615.65 | I103: =SUMIF('00 Alimenta'!$B:$B,'00 PDC SP'!$F103,'00 Alimenta'!E:E) -> 5237.29 | J103: =SUMIF('00 Alimenta'!$B:$B,'00 PDC SP'!$F103,'00 Alimenta'!F:F) -> 5615.65 | K103: =SUMIF('00 Alimenta'!$B:$B,'00 PDC SP'!$F103,'00 Alimenta'!G:G) -> 5237.29 | L103: =SUMIF('00 Alimenta'!$B:$B,'00 PDC SP'!$F103,'00 Alimenta'!H:H) -> 10440.25 | M103: =SUMIF('00 Alimenta'!$B:$B,'00 PDC SP'!$F103,'00 Alimenta'!I:I) -> 5237.29 | N103: 10440.25
A104: ABA050 | B104: AB | C104: ABA050 | D104: 31 | F104: 0102010402 | G104: Alimenti per nutrizione artificiale senza AIC | H104: =SUMIF('00 Alimenta'!$B:$B,'00 PDC SP'!$F104,'00 Alimenta'!D:D) -> 58004.47 | I104: =SUMIF('00 Alimenta'!$B:$B,'00 PDC SP'!$F104,'00 Alimenta'!E:E) -> 66412.52 | J104: =SUMIF('00 Alimenta'!$B:$B,'00 PDC SP'!$F104,'00 Alimenta'!F:F) -> 58004.47 | K104: =SUMIF('00 Alimenta'!$B:$B,'00 PDC SP'!$F104,'00 Alimenta'!G:G) -> 66412.52 | L104: =SUMIF('00 Alimenta'!$B:$B,'00 PDC SP'!$F104,'00 Alimenta'!H:H) -> 65062.74 | M104: =SUMIF('00 Alimenta'!$B:$B,'00 PDC SP'!$F104,'00 Alimenta'!I:I) -> 66412.52 | N104: 65062.74
A105: ABA060 | B105: AB | C105: ABA060 | D105: 31 | F105: 0102010501 | G105: Sieri | H105: =SUMIF('00 Alimenta'!$B:$B,'00 PDC SP'!$F105,'00 Alimenta'!D:D) -> 0 | I105: =SUMIF('00 Alimenta'!$B:$B,'00 PDC SP'!$F105,'00 Alimenta'!E:E) -> 0 | J105: =SUMIF('00 Alimenta'!$B:$B,'00 PDC SP'!$F105,'00 Alimenta'!F:F) -> 0 | K105: =SUMIF('00 Alimenta'!$B:$B,'00 PDC SP'!$F105,'00 Alimenta'!G:G) -> 0 | L105: =SUMIF('00 Alimenta'!$B:$B,'00 PDC SP'!$F105,'00 Alimenta'!H:H) -> 0 | M105: =SUMIF('00 Alimenta'!$B:$B,'00 PDC SP'!$F105,'00 Alimenta'!I:I) -> 0 | N105: 0
A106: ABA060 | B106: AB | C106: ABA060 | D106: 31 | F106: 0102010502 | G106: Vaccini obbligatori | H106: =SUMIF('00 Alimenta'!$B:$B,'00 PDC SP'!$F106,'00 Alimenta'!D:D) -> 0 | I106: =SUMIF('00 Alimenta'!$B:$B,'00 PDC SP'!$F106,'00 Alimenta'!E:E) -> 0 | J106: =SUMIF('00 Alimenta'!$B:$B,'00 PDC SP'!$F106,'00 Alimenta'!F:F) -> 0 | K106: =SUMIF('00 Alimenta'!$B:$B,'00 PDC SP'!$F106,'00 Alimenta'!G:G) -> 0 | L106: =SUMIF('00 Alimenta'!$B:$B,'00 PDC SP'!$F106,'00 Alimenta'!H:H) -> 0 | M106: =SUMIF('00 Alimenta'!$B:$B,'00 PDC SP'!$F106,'00 Alimenta'!I:I) -> 0 | N106: 0
A107: ABA060 | B107: AB | C107: ABA060 | D107: 31 | F107: 0102010503 | G107: Altri Vaccini | H107: =SUMIF('00 Alimenta'!$B:$B,'00 PDC SP'!$F107,'00 Alimenta'!D:D) -> 1112.76 | I107: =SUMIF('00 Alimenta'!$B:$B,'00 PDC SP'!$F107,'00 Alimenta'!E:E) -> 2856.7 | J107: =SUMIF('00 Alimenta'!$B:$B,'00 PDC SP'!$F107,'00 Alimenta'!F:F) -> 1112.76 | K107: =SUMIF('00 Alimenta'!$B:$B,'00 PDC SP'!$F107,'00 Alimenta'!G:G) -> 2856.7 | L107: =SUMIF('00 Alimenta'!$B:$B,'00 PDC SP'!$F107,'00 Alimenta'!H:H) -> 0 | M107: =SUMIF('00 Alimenta'!$B:$B,'00 PDC SP'!$F107,'00 Alimenta'!I:I) -> 2856.7 | N107: 0
A108: ABA060 | B108: AB | C108: ABA060 | D108: 31 | F108: 0102010504 | G108: Altri materiali per la profilassi | H108: =SUMIF('00 Alimenta'!$B:$B,'00 PDC SP'!$F108,'00 Alimenta'!D:D) -> 0 | I108: =SUMIF('00 Alimenta'!$B:$B,'00 PDC SP'!$F108,'00 Alimenta'!E:E) -> 0 | J108: =SUMIF('00 Alimenta'!$B:$B,'00 PDC SP'!$F108,'00 Alimenta'!F:F) -> 0 | K108: =SUMIF('00 Alimenta'!$B:$B,'00 PDC SP'!$F108,'00 Alimenta'!G:G) -> 0 | L108: =SUMIF('00 Alimenta'!$B:$B,'00 PDC SP'!$F108,'00 Alimenta'!H:H) -> 0 | M108: =SUMIF('00 Alimenta'!$B:$B,'00 PDC SP'!$F108,'00 Alimenta'!I:I) -> 0 | N108: 0
A109: ABA070 | B109: AB | C109: ABA070 | D109: 31 | F109: 0102010601 | G109: Prodotti chimici | H109: =SUMIF('00 Alimenta'!$B:$B,'00 PDC SP'!$F109,'00 Alimenta'!D:D) -> 0 | I109: =SUMIF('00 Alimenta'!$B:$B,'00 PDC SP'!$F109,'00 Alimenta'!E:E) -> 0 | J109: =SUMIF('00 Alimenta'!$B:$B,'00 PDC SP'!$F109,'00 Alimenta'!F:F) -> 0 | K109: =SUMIF('00 Alimenta'!$B:$B,'00 PDC SP'!$F109,'00 Alimenta'!G:G) -> 0 | L109: =SUMIF('00 Alimenta'!$B:$B,'00 PDC SP'!$F109,'00 Alimenta'!H:H) -> 0 | M109: =SUMIF('00 Alimenta'!$B:$B,'00 PDC SP'!$F109,'00 Alimenta'!I:I) -> 0 | N109: 0
A110: ABA080 | B110: AB | C110: ABA080 | D110: 31 | F110: 0102010701 | G110: Medicinali ad uso veterinario | H110: =SUMIF('00 Alimenta'!$B:$B,'00 PDC SP'!$F110,'00 Alimenta'!D:D) -> 0 | I110: =SUMIF('00 Alimenta'!$B:$B,'00 PDC SP'!$F110,'00 Alimenta'!E:E) -> 0 | J110: =SUMIF('00 Alimenta'!$B:$B,'00 PDC SP'!$F110,'00 Alimenta'!F:F) -> 0 | K110: =SUMIF('00 Alimenta'!$B:$B,'00 PDC SP'!$F110,'00 Alimenta'!G:G) -> 0 | L110: =SUMIF('00 Alimenta'!$B:$B,'00 PDC SP'!$F110,'00 Alimenta'!H:H) -> 0 | M110: =SUMIF('00 Alimenta'!$B:$B,'00 PDC SP'!$F110,'00 Alimenta'!I:I) -> 0 | N110: 0
A111: ABA080 | B111: AB | C111: ABA080 | D111: 31 | F111: 0102010702 | G111: Materiali chirurgici, sanitari e diagnostici per uso veterinario | H111: =SUMIF('00 Alimenta'!$B:$B,'00 PDC SP'!$F111,'00 Alimenta'!D:D) -> 0 | I111: =SUMIF('00 Alimenta'!$B:$B,'00 PDC SP'!$F111,'00 Alimenta'!E:E) -> 0 | J111: =SUMIF('00 Alimenta'!$B:$B,'00 PDC SP'!$F111,'00 Alimenta'!F:F) -> 0 | K111: =SUMIF('00 Alimenta'!$B:$B,'00 PDC SP'!$F111,'00 Alimenta'!G:G) -> 0 | L111: =SUMIF('00 Alimenta'!$B:$B,'00 PDC SP'!$F111,'00 Alimenta'!H:H) -> 0 | M111: =SUMIF('00 Alimenta'!$B:$B,'00 PDC SP'!$F111,'00 Alimenta'!I:I) -> 0 | N111: 0
A112: ABA080 | B112: AB | C112: ABA080 | D112: 31 | F112: 0102010703 | G112: Altri materiali e beni sanitari per uso veterinario | H112: =SUMIF('00 Alimenta'!$B:$B,'00 PDC SP'!$F112,'00 Alimenta'!D:D) -> 0 | I112: =SUMIF('00 Alimenta'!$B:$B,'00 PDC SP'!$F112,'00 Alimenta'!E:E) -> 0 | J112: =SUMIF('00 Alimenta'!$B:$B,'00 PDC SP'!$F112,'00 Alimenta'!F:F) -> 0 | K112: =SUMIF('00 Alimenta'!$B:$B,'00 PDC SP'!$F112,'00 Alimenta'!G:G) -> 0 | L112: =SUMIF('00 Alimenta'!$B:$B,'00 PDC SP'!$F112,'00 Alimenta'!H:H) -> 0 | M112: =SUMIF('00 Alimenta'!$B:$B,'00 PDC SP'!$F112,'00 Alimenta'!I:I) -> 0 | N112: 0
A113: ABA090 | B113: AB | C113: ABA090 | D113: 31 | F113: 0102010801 | G113: Vetrerie e materiale plastico per laboratorio | H113: =SUMIF('00 Alimenta'!$B:$B,'00 PDC SP'!$F113,'00 Alimenta'!D:D) -> 42717.86 | I113: =SUMIF('00 Alimenta'!$B:$B,'00 PDC SP'!$F113,'00 Alimenta'!E:E) -> 22568.66 | J113: =SUMIF('00 Alimenta'!$B:$B,'00 PDC SP'!$F113,'00 Alimenta'!F:F) -> 42717.86 | K113: =SUMIF('00 Alimenta'!$B:$B,'00 PDC SP'!$F113,'00 Alimenta'!G:G) -> 22568.66 | L113: =SUMIF('00 Alimenta'!$B:$B,'00 PDC SP'!$F113,'00 Alimenta'!H:H) -> 11204.53 | M113: =SUMIF('00 Alimenta'!$B:$B,'00 PDC SP'!$F113,'00 Alimenta'!I:I) -> 22568.66 | N113: 11204.53
A114: ABA090 | B114: AB | C114: ABA090 | D114: 31 | F114: 0102010802 | G114: Materiali di consumo non specifici per strumentazione diagnostica | H114: =SUMIF('00 Alimenta'!$B:$B,'00 PDC SP'!$F114,'00 Alimenta'!D:D) -> 125485.73 | I114: =SUMIF('00 Alimenta'!$B:$B,'00 PDC SP'!$F114,'00 Alimenta'!E:E) -> 93627.14 | J114: =SUMIF('00 Alimenta'!$B:$B,'00 PDC SP'!$F114,'00 Alimenta'!F:F) -> 125485.73 | K114: =SUMIF('00 Alimenta'!$B:$B,'00 PDC SP'!$F114,'00 Alimenta'!G:G) -> 93627.14 | L114: =SUMIF('00 Alimenta'!$B:$B,'00 PDC SP'!$F114,'00 Alimenta'!H:H) -> 68710.77 | M114: =SUMIF('00 Alimenta'!$B:$B,'00 PDC SP'!$F114,'00 Alimenta'!I:I) -> 93627.14 | N114: 68710.77
A115: ABA090 | B115: AB | C115: ABA090 | D115: 31 | F115: 0102010803 | G115: Altri beni e prodotti sanitari | H115: =SUMIF('00 Alimenta'!$B:$B,'00 PDC SP'!$F115,'00 Alimenta'!D:D) -> 127988.56 | I115: =SUMIF('00 Alimenta'!$B:$B,'00 PDC SP'!$F115,'00 Alimenta'!E:E) -> 180987.44 | J115: =SUMIF('00 Alimenta'!$B:$B,'00 PDC SP'!$F115,'00 Alimenta'!F:F) -> 127988.56 | K115: =SUMIF('00 Alimenta'!$B:$B,'00 PDC SP'!$F115,'00 Alimenta'!G:G) -> 180987.44 | L115: =SUMIF('00 Alimenta'!$B:$B,'00 PDC SP'!$F115,'00 Alimenta'!H:H) -> 248147.84 | M115: =SUMIF('00 Alimenta'!$B:$B,'00 PDC SP'!$F115,'00 Alimenta'!I:I) -> 180987.44 | N115: 248147.84
A116: ABA100 | B116: AB | C116: ABA100 | D116: 32 | F116: 0102010901 | G116: Acconti per acquisto di beni e prodotti sanitari | H116: =SUMIF('00 Alimenta'!$B:$B,'00 PDC SP'!$F116,'00 Alimenta'!D:D) -> 0 | I116: =SUMIF('00 Alimenta'!$B:$B,'00 PDC SP'!$F116,'00 Alimenta'!E:E) -> 0 | J116: =SUMIF('00 Alimenta'!$B:$B,'00 PDC SP'!$F116,'00 Alimenta'!F:F) -> 0 | K116: =SUMIF('00 Alimenta'!$B:$B,'00 PDC SP'!$F116,'00 Alimenta'!G:G) -> 0 | L116: =SUMIF('00 Alimenta'!$B:$B,'00 PDC SP'!$F116,'00 Alimenta'!H:H) -> 0 | M116: =SUMIF('00 Alimenta'!$B:$B,'00 PDC SP'!$F116,'00 Alimenta'!I:I) -> 0 | N116: 0
A117: ABA120 | B117: AB | C117: ABA120 | D117: 31 | F117: 0102011001 | G117: Prodotti alimentari | H117: =SUMIF('00 Alimenta'!$B:$B,'00 PDC SP'!$F117,'00 Alimenta'!D:D) -> 0 | I117: =SUMIF('00 Alimenta'!$B:$B,'00 PDC SP'!$F117,'00 Alimenta'!E:E) -> 0 | J117: =SUMIF('00 Alimenta'!$B:$B,'00 PDC SP'!$F117,'00 Alimenta'!F:F) -> 0 | K117: =SUMIF('00 Alimenta'!$B:$B,'00 PDC SP'!$F117,'00 Alimenta'!G:G) -> 0 | L117: =SUMIF('00 Alimenta'!$B:$B,'00 PDC SP'!$F117,'00 Alimenta'!H:H) -> 0 | M117: =SUMIF('00 Alimenta'!$B:$B,'00 PDC SP'!$F117,'00 Alimenta'!I:I) -> 0 | N117: 0
A118: ABA130 | B118: AB | C118: ABA130 | D118: 31 | F118: 0102011101 | G118: Materiali di guardaroba, di pulizia, e di convivenza in genere | H118: =SUMIF('00 Alimenta'!$B:$B,'00 PDC SP'!$F118,'00 Alimenta'!D:D) -> 29727.94 | I118: =SUMIF('00 Alimenta'!$B:$B,'00 PDC SP'!$F118,'00 Alimenta'!E:E) -> 29504.9 | J118: =SUMIF('00 Alimenta'!$B:$B,'00 PDC SP'!$F118,'00 Alimenta'!F:F) -> 29727.94 | K118: =SUMIF('00 Alimenta'!$B:$B,'00 PDC SP'!$F118,'00 Alimenta'!G:G) -> 29504.9 | L118: =SUMIF('00 Alimenta'!$B:$B,'00 PDC SP'!$F118,'00 Alimenta'!H:H) -> 30345.25 | M118: =SUMIF('00 Alimenta'!$B:$B,'00 PDC SP'!$F118,'00 Alimenta'!I:I) -> 29504.9 | N118: 30345.25
A119: ABA140 | B119: AB | C119: ABA140 | D119: 31 | F119: 0102011201 | G119: Combustibili, carburanti e lubrificanti | H119: =SUMIF('00 Alimenta'!$B:$B,'00 PDC SP'!$F119,'00 Alimenta'!D:D) -> 0 | I119: =SUMIF('00 Alimenta'!$B:$B,'00 PDC SP'!$F119,'00 Alimenta'!E:E) -> 0 | J119: =SUMIF('00 Alimenta'!$B:$B,'00 PDC SP'!$F119,'00 Alimenta'!F:F) -> 0 | K119: =SUMIF('00 Alimenta'!$B:$B,'00 PDC SP'!$F119,'00 Alimenta'!G:G) -> 0 | L119: =SUMIF('00 Alimenta'!$B:$B,'00 PDC SP'!$F119,'00 Alimenta'!H:H) -> 0 | M119: =SUMIF('00 Alimenta'!$B:$B,'00 PDC SP'!$F119,'00 Alimenta'!I:I) -> 0 | N119: 0
A120: ABA150 | B120: AB | C120: ABA150 | D120: 31 | F120: 0102011301 | G120: Supporti informatici | H120: =SUMIF('00 Alimenta'!$B:$B,'00 PDC SP'!$F120,'00 Alimenta'!D:D) -> 192555.39 | I120: =SUMIF('00 Alimenta'!$B:$B,'00 PDC SP'!$F120,'00 Alimenta'!E:E) -> 102147.29 | J120: =SUMIF('00 Alimenta'!$B:$B,'00 PDC SP'!$F120,'00 Alimenta'!F:F) -> 192555.39 | K120: =SUMIF('00 Alimenta'!$B:$B,'00 PDC SP'!$F120,'00 Alimenta'!G:G) -> 102147.29 | L120: =SUMIF('00 Alimenta'!$B:$B,'00 PDC SP'!$F120,'00 Alimenta'!H:H) -> 108077.25 | M120: =SUMIF('00 Alimenta'!$B:$B,'00 PDC SP'!$F120,'00 Alimenta'!I:I) -> 102147.29 | N120: 108077.25
A121: ABA150 | B121: AB | C121: ABA150 | D121: 31 | F121: 0102011302 | G121: Cancelleria e stampati | H121: =SUMIF('00 Alimenta'!$B:$B,'00 PDC SP'!$F121,'00 Alimenta'!D:D) -> 169734.96 | I121: =SUMIF('00 Alimenta'!$B:$B,'00 PDC SP'!$F121,'00 Alimenta'!E:E) -> 107409.14 | J121: =SUMIF('00 Alimenta'!$B:$B,'00 PDC SP'!$F121,'00 Alimenta'!F:F) -> 169734.96 | K121: =SUMIF('00 Alimenta'!$B:$B,'00 PDC SP'!$F121,'00 Alimenta'!G:G) -> 107409.14 | L121: =SUMIF('00 Alimenta'!$B:$B,'00 PDC SP'!$F121,'00 Alimenta'!H:H) -> 117179.4 | M121: =SUMIF('00 Alimenta'!$B:$B,'00 PDC SP'!$F121,'00 Alimenta'!I:I) -> 107409.14 | N121: 117179.4
A122: ABA160 | B122: AB | C122: ABA160 | D122: 31 | F122: 0102011401 | G122: Materiale per la manutenzione di immobili e loro pertinenze | H122: =SUMIF('00 Alimenta'!$B:$B,'00 PDC SP'!$F122,'00 Alimenta'!D:D) -> 85875.45 | I122: =SUMIF('00 Alimenta'!$B:$B,'00 PDC SP'!$F122,'00 Alimenta'!E:E) -> 139324.97 | J122: =SUMIF('00 Alimenta'!$B:$B,'00 PDC SP'!$F122,'00 Alimenta'!F:F) -> 85875.45 | K122: =SUMIF('00 Alimenta'!$B:$B,'00 PDC SP'!$F122,'00 Alimenta'!G:G) -> 139324.97 | L122: =SUMIF('00 Alimenta'!$B:$B,'00 PDC SP'!$F122,'00 Alimenta'!H:H) -> 6398.26 | M122: =SUMIF('00 Alimenta'!$B:$B,'00 PDC SP'!$F122,'00 Alimenta'!I:I) -> 139324.97 | N122: 6398.26
A123: ABA160 | B123: AB | C123: ABA160 | D123: 31 | F123: 0102011402 | G123: Materiale per la manutenzione di mobili e macchine | H123: =SUMIF('00 Alimenta'!$B:$B,'00 PDC SP'!$F123,'00 Alimenta'!D:D) -> 0 | I123: =SUMIF('00 Alimenta'!$B:$B,'00 PDC SP'!$F123,'00 Alimenta'!E:E) -> 0 | J123: =SUMIF('00 Alimenta'!$B:$B,'00 PDC SP'!$F123,'00 Alimenta'!F:F) -> 0 | K123: =SUMIF('00 Alimenta'!$B:$B,'00 PDC SP'!$F123,'00 Alimenta'!G:G) -> 0 | L123: =SUMIF('00 Alimenta'!$B:$B,'00 PDC SP'!$F123,'00 Alimenta'!H:H) -> 0 | M123: =SUMIF('00 Alimenta'!$B:$B,'00 PDC SP'!$F123,'00 Alimenta'!I:I) -> 0 | N123: 0
A124: ABA160 | B124: AB | C124: ABA160 | D124: 31 | F124: 0102011403 | G124: Materiale per la manutenzione di attrezzature tecnico scientifiche sanitarie | H124: =SUMIF('00 Alimenta'!$B:$B,'00 PDC SP'!$F124,'00 Alimenta'!D:D) -> 26463.29 | I124: =SUMIF('00 Alimenta'!$B:$B,'00 PDC SP'!$F124,'00 Alimenta'!E:E) -> 15166.69 | J124: =SUMIF('00 Alimenta'!$B:$B,'00 PDC SP'!$F124,'00 Alimenta'!F:F) -> 26463.29 | K124: =SUMIF('00 Alimenta'!$B:$B,'00 PDC SP'!$F124,'00 Alimenta'!G:G) -> 15166.69 | L124: =SUMIF('00 Alimenta'!$B:$B,'00 PDC SP'!$F124,'00 Alimenta'!H:H) -> 10429.76 | M124: =SUMIF('00 Alimenta'!$B:$B,'00 PDC SP'!$F124,'00 Alimenta'!I:I) -> 15166.69 | N124: 10429.76
A125: ABA160 | B125: AB | C125: ABA160 | D125: 31 | F125: 0102011404 | G125: Materiale per la manutenzione di automezzi | H125: =SUMIF('00 Alimenta'!$B:$B,'00 PDC SP'!$F125,'00 Alimenta'!D:D) -> 0 | I125: =SUMIF('00 Alimenta'!$B:$B,'00 PDC SP'!$F125,'00 Alimenta'!E:E) -> 0 | J125: =SUMIF('00 Alimenta'!$B:$B,'00 PDC SP'!$F125,'00 Alimenta'!F:F) -> 0 | K125: =SUMIF('00 Alimenta'!$B:$B,'00 PDC SP'!$F125,'00 Alimenta'!G:G) -> 0 | L125: =SUMIF('00 Alimenta'!$B:$B,'00 PDC SP'!$F125,'00 Alimenta'!H:H) -> 0 | M125: =SUMIF('00 Alimenta'!$B:$B,'00 PDC SP'!$F125,'00 Alimenta'!I:I) -> 0 | N125: 0
A126: ABA160 | B126: AB | C126: ABA160 | D126: 31 | F126: 0102011405 | G126: Materiale per la manutenzione di altro | H126: =SUMIF('00 Alimenta'!$B:$B,'00 PDC SP'!$F126,'00 Alimenta'!D:D) -> 5031.4 | I126: =SUMIF('00 Alimenta'!$B:$B,'00 PDC SP'!$F126,'00 Alimenta'!E:E) -> 4064.04 | J126: =SUMIF('00 Alimenta'!$B:$B,'00 PDC SP'!$F126,'00 Alimenta'!F:F) -> 5031.4 | K126: =SUMIF('00 Alimenta'!$B:$B,'00 PDC SP'!$F126,'00 Alimenta'!G:G) -> 4064.04 | L126: =SUMIF('00 Alimenta'!$B:$B,'00 PDC SP'!$F126,'00 Alimenta'!H:H) -> 4708.03 | M126: =SUMIF('00 Alimenta'!$B:$B,'00 PDC SP'!$F126,'00 Alimenta'!I:I) -> 4064.04 | N126: 4708.03
A127: ABA170 | B127: AB | C127: ABA170 | D127: 31 | F127: 0102011501 | G127: Altri beni e prodotti non sanitari | H127: =SUMIF('00 Alimenta'!$B:$B,'00 PDC SP'!$F127,'00 Alimenta'!D:D) -> 1229.74 | I127: =SUMIF('00 Alimenta'!$B:$B,'00 PDC SP'!$F127,'00 Alimenta'!E:E) -> 502.43 | J127: =SUMIF('00 Alimenta'!$B:$B,'00 PDC SP'!$F127,'00 Alimenta'!F:F) -> 1229.74 | K127: =SUMIF('00 Alimenta'!$B:$B,'00 PDC SP'!$F127,'00 Alimenta'!G:G) -> 502.43 | L127: =SUMIF('00 Alimenta'!$B:$B,'00 PDC SP'!$F127,'00 Alimenta'!H:H) -> 1157.96 | M127: =SUMIF('00 Alimenta'!$B:$B,'00 PDC SP'!$F127,'00 Alimenta'!I:I) -> 502.43 | N127: 1157.96
A128: ABA180 | B128: AB | C128: ABA180 | D128: 32 | F128: 0102011601 | G128: Acconti per acquisto di beni e prodotti non sanitari | H128: =SUMIF('00 Alimenta'!$B:$B,'00 PDC SP'!$F128,'00 Alimenta'!D:D) -> 0 | I128: =SUMIF('00 Alimenta'!$B:$B,'00 PDC SP'!$F128,'00 Alimenta'!E:E) -> 0 | J128: =SUMIF('00 Alimenta'!$B:$B,'00 PDC SP'!$F128,'00 Alimenta'!F:F) -> 0 | K128: =SUMIF('00 Alimenta'!$B:$B,'00 PDC SP'!$F128,'00 Alimenta'!G:G) -> 0 | L128: =SUMIF('00 Alimenta'!$B:$B,'00 PDC SP'!$F128,'00 Alimenta'!H:H) -> 0 | M128: =SUMIF('00 Alimenta'!$B:$B,'00 PDC SP'!$F128,'00 Alimenta'!I:I) -> 0 | N128: 0
A129: ABA201CR | B129: AB | C129: ABA201 | D129: 21 | E129: CR | F129: 0102020101 | G129: Crediti v/Stato per spesa corrente - FSN indistinto | H129: =SUMIF('00 Alimenta'!$B:$B,'00 PDC SP'!$F129,'00 Alimenta'!D:D) -> 0 | I129: =SUMIF('00 Alimenta'!$B:$B,'00 PDC SP'!$F129,'00 Alimenta'!E:E) -> 50822.1 | J129: =SUMIF('00 Alimenta'!$B:$B,'00 PDC SP'!$F129,'00 Alimenta'!F:F) -> 48520.58 | K129: =SUMIF('00 Alimenta'!$B:$B,'00 PDC SP'!$F129,'00 Alimenta'!G:G) -> 2301.52 | L129: =SUMIF('00 Alimenta'!$B:$B,'00 PDC SP'!$F129,'00 Alimenta'!H:H) -> 98325.05 | M129: =SUMIF('00 Alimenta'!$B:$B,'00 PDC SP'!$F129,'00 Alimenta'!I:I) -> 93639.37 | N129: 6987.2
A130: ABA220CR | B130: AB | C130: ABA220 | D130: 21 | E130: CR | F130: 0102020201 | G130: Crediti v/Stato per spesa corrente - FSN | H130: =SUMIF('00 Alimenta'!$B:$B,'00 PDC SP'!$F130,'00 Alimenta'!D:D) -> 0 | I130: =SUMIF('00 Alimenta'!$B:$B,'00 PDC SP'!$F130,'00 Alimenta'!E:E) -> 0 | J130: =SUMIF('00 Alimenta'!$B:$B,'00 PDC SP'!$F130,'00 Alimenta'!F:F) -> 0 | K130: =SUMIF('00 Alimenta'!$B:$B,'00 PDC SP'!$F130,'00 Alimenta'!G:G) -> 0 | L130: =SUMIF('00 Alimenta'!$B:$B,'00 PDC SP'!$F130,'00 Alimenta'!H:H) -> 0 | M130: =SUMIF('00 Alimenta'!$B:$B,'00 PDC SP'!$F130,'00 Alimenta'!I:I) -> 0 | N130: 0
A131: ABA230CR | B131: AB | C131: ABA230 | D131: 21 | E131: CR | F131: 0102020301 | G131: Crediti v/Stato per mobilità attiva pubblica extraregionale | H131: =SUMIF('00 Alimenta'!$B:$B,'00 PDC SP'!$F131,'00 Alimenta'!D:D) -> 0 | I131: =SUMIF('00 Alimenta'!$B:$B,'00 PDC SP'!$F131,'00 Alimenta'!E:E) -> 0 | J131: =SUMIF('00 Alimenta'!$B:$B,'00 PDC SP'!$F131,'00 Alimenta'!F:F) -> 0 | K131: =SUMIF('00 Alimenta'!$B:$B,'00 PDC SP'!$F131,'00 Alimenta'!G:G) -> 0 | L131: =SUMIF('00 Alimenta'!$B:$B,'00 PDC SP'!$F131,'00 Alimenta'!H:H) -> 0 | M131: =SUMIF('00 Alimenta'!$B:$B,'00 PDC SP'!$F131,'00 Alimenta'!I:I) -> 0 | N131: 0
A132: ABA230CR | B132: AB | C132: ABA230 | D132: 21 | E132: CR | F132: 0102020302 | G132: Crediti v/Stato per mobilità attiva privata extraregionale | H132: =SUMIF('00 Alimenta'!$B:$B,'00 PDC SP'!$F132,'00 Alimenta'!D:D) -> 0 | I132: =SUMIF('00 Alimenta'!$B:$B,'00 PDC SP'!$F132,'00 Alimenta'!E:E) -> 0 | J132: =SUMIF('00 Alimenta'!$B:$B,'00 PDC SP'!$F132,'00 Alimenta'!F:F) -> 0 | K132: =SUMIF('00 Alimenta'!$B:$B,'00 PDC SP'!$F132,'00 Alimenta'!G:G) -> 0 | L132: =SUMIF('00 Alimenta'!$B:$B,'00 PDC SP'!$F132,'00 Alimenta'!H:H) -> 0 | M132: =SUMIF('00 Alimenta'!$B:$B,'00 PDC SP'!$F132,'00 Alimenta'!I:I) -> 0 | N132: 0
A133: ABA240CR | B133: AB | C133: ABA240 | D133: 21 | E133: CR | F133: 0102020401 | G133: Crediti v/Stato per mobilità attiva internazionale | H133: =SUMIF('00 Alimenta'!$B:$B,'00 PDC SP'!$F133,'00 Alimenta'!D:D) -> 0 | I133: =SUMIF('00 Alimenta'!$B:$B,'00 PDC SP'!$F133,'00 Alimenta'!E:E) -> 0 | J133: =SUMIF('00 Alimenta'!$B:$B,'00 PDC SP'!$F133,'00 Alimenta'!F:F) -> 0 | K133: =SUMIF('00 Alimenta'!$B:$B,'00 PDC SP'!$F133,'00 Alimenta'!G:G) -> 0 | L133: =SUMIF('00 Alimenta'!$B:$B,'00 PDC SP'!$F133,'00 Alimenta'!H:H) -> 0 | M133: =SUMIF('00 Alimenta'!$B:$B,'00 PDC SP'!$F133,'00 Alimenta'!I:I) -> 0 | N133: 0
A134: ABA250CR | B134: =IF(C134="PAA220","UT",LEFT(C134,2)) -> AB | C134: ABA250 | D134: 21 | E134: CR | F134: 0102020501 | G134: Crediti v/Stato per acconto quota fabbisogno sanitario regionale standard | H134: =SUMIF('00 Alimenta'!$B:$B,'00 PDC SP'!$F134,'00 Alimenta'!D:D) -> 0 | I134: =SUMIF('00 Alimenta'!$B:$B,'00 PDC SP'!$F134,'00 Alimenta'!E:E) -> 0 | J134: =SUMIF('00 Alimenta'!$B:$B,'00 PDC SP'!$F134,'00 Alimenta'!F:F) -> 0 | K134: =SUMIF('00 Alimenta'!$B:$B,'00 PDC SP'!$F134,'00 Alimenta'!G:G) -> 0 | L134: =SUMIF('00 Alimenta'!$B:$B,'00 PDC SP'!$F134,'00 Alimenta'!H:H) -> 0 | M134: =SUMIF('00 Alimenta'!$B:$B,'00 PDC SP'!$F134,'00 Alimenta'!I:I) -> 0 | N134: 0
A135: =IF(E135="",C135,C135&E135) -> ABA260CR | B135: AB | C135: ABA260 | D135: 21 | E135: CR | F135: 0102020601 | G135: Crediti v/Stato per finanziamento sanitario aggiuntivo corrente | H135: =SUMIF('00 Alimenta'!$B:$B,'00 PDC SP'!$F135,'00 Alimenta'!D:D) -> 0 | I135: =SUMIF('00 Alimenta'!$B:$B,'00 PDC SP'!$F135,'00 Alimenta'!E:E) -> 0 | J135: =SUMIF('00 Alimenta'!$B:$B,'00 PDC SP'!$F135,'00 Alimenta'!F:F) -> 0 | K135: =SUMIF('00 Alimenta'!$B:$B,'00 PDC SP'!$F135,'00 Alimenta'!G:G) -> 0 | L135: =SUMIF('00 Alimenta'!$B:$B,'00 PDC SP'!$F135,'00 Alimenta'!H:H) -> 0 | M135: =SUMIF('00 Alimenta'!$B:$B,'00 PDC SP'!$F135,'00 Alimenta'!I:I) -> 0 | N135: =K135+L135-M135 -> 0
A136: ABA270CR | B136: AB | C136: ABA270 | D136: 21 | E136: CR | F136: 0102020701 | G136: Crediti v/Stato per spesa corrente - altro | H136: =SUMIF('00 Alimenta'!$B:$B,'00 PDC SP'!$F136,'00 Alimenta'!D:D) -> 0 | I136: =SUMIF('00 Alimenta'!$B:$B,'00 PDC SP'!$F136,'00 Alimenta'!E:E) -> 0 | J136: =SUMIF('00 Alimenta'!$B:$B,'00 PDC SP'!$F136,'00 Alimenta'!F:F) -> 0 | K136: =SUMIF('00 Alimenta'!$B:$B,'00 PDC SP'!$F136,'00 Alimenta'!G:G) -> 0 | L136: =SUMIF('00 Alimenta'!$B:$B,'00 PDC SP'!$F136,'00 Alimenta'!H:H) -> 0 | M136: =SUMIF('00 Alimenta'!$B:$B,'00 PDC SP'!$F136,'00 Alimenta'!I:I) -> 0 | N136: 0
A137: ABA271CR | B137: AB | C137: ABA271 | D137: 21 | E137: CR | F137: 0102020702 | G137: Crediti v/Stato per spesa corrente per STP (ex D.lgs. 286/98) | H137: =SUMIF('00 Alimenta'!$B:$B,'00 PDC SP'!$F137,'00 Alimenta'!D:D) -> 0 | I137: =SUMIF('00 Alimenta'!$B:$B,'00 PDC SP'!$F137,'00 Alimenta'!E:E) -> 0 | J137: =SUMIF('00 Alimenta'!$B:$B,'00 PDC SP'!$F137,'00 Alimenta'!F:F) -> 0 | K137: =SUMIF('00 Alimenta'!$B:$B,'00 PDC SP'!$F137,'00 Alimenta'!G:G) -> 0 | L137: =SUMIF('00 Alimenta'!$B:$B,'00 PDC SP'!$F137,'00 Alimenta'!H:H) -> 0 | M137: =SUMIF('00 Alimenta'!$B:$B,'00 PDC SP'!$F137,'00 Alimenta'!I:I) -> 0 | N137: 0
A138: ABA280CR | B138: AB | C138: ABA280 | D138: 48 | E138: CR | F138: 0102020801 | G138: Crediti v/Stato per finanziamenti per investimenti | H138: =SUMIF('00 Alimenta'!$B:$B,'00 PDC SP'!$F138,'00 Alimenta'!D:D) -> 0 | I138: =SUMIF('00 Alimenta'!$B:$B,'00 PDC SP'!$F138,'00 Alimenta'!E:E) -> 0 | J138: =SUMIF('00 Alimenta'!$B:$B,'00 PDC SP'!$F138,'00 Alimenta'!F:F) -> 0 | K138: =SUMIF('00 Alimenta'!$B:$B,'00 PDC SP'!$F138,'00 Alimenta'!G:G) -> 0 | L138: =SUMIF('00 Alimenta'!$B:$B,'00 PDC SP'!$F138,'00 Alimenta'!H:H) -> 0 | M138: =SUMIF('00 Alimenta'!$B:$B,'00 PDC SP'!$F138,'00 Alimenta'!I:I) -> 0 | N138: 0
A139: ABA300CR | B139: AB | C139: ABA300 | D139: 21 | E139: CR | F139: 0102020901 | G139: Crediti v/Stato per ricerca corrente - Ministero della Salute | H139: =SUMIF('00 Alimenta'!$B:$B,'00 PDC SP'!$F139,'00 Alimenta'!D:D) -> 0 | I139: =SUMIF('00 Alimenta'!$B:$B,'00 PDC SP'!$F139,'00 Alimenta'!E:E) -> 0 | J139: =SUMIF('00 Alimenta'!$B:$B,'00 PDC SP'!$F139,'00 Alimenta'!F:F) -> 0 | K139: =SUMIF('00 Alimenta'!$B:$B,'00 PDC SP'!$F139,'00 Alimenta'!G:G) -> 0 | L139: =SUMIF('00 Alimenta'!$B:$B,'00 PDC SP'!$F139,'00 Alimenta'!H:H) -> 0 | M139: =SUMIF('00 Alimenta'!$B:$B,'00 PDC SP'!$F139,'00 Alimenta'!I:I) -> 0 | N139: 0
A140: ABA310CR | B140: AB | C140: ABA310 | D140: 21 | E140: CR | F140: 0102020902 | G140: Crediti v/Stato per ricerca finalizzata - Ministero della Salute | H140: =SUMIF('00 Alimenta'!$B:$B,'00 PDC SP'!$F140,'00 Alimenta'!D:D) -> 4620 | I140: =SUMIF('00 Alimenta'!$B:$B,'00 PDC SP'!$F140,'00 Alimenta'!E:E) -> 10300 | J140: =SUMIF('00 Alimenta'!$B:$B,'00 PDC SP'!$F140,'00 Alimenta'!F:F) -> 10300 | K140: =SUMIF('00 Alimenta'!$B:$B,'00 PDC SP'!$F140,'00 Alimenta'!G:G) -> 4620 | L140: =SUMIF('00 Alimenta'!$B:$B,'00 PDC SP'!$F140,'00 Alimenta'!H:H) -> 1122 | M140: =SUMIF('00 Alimenta'!$B:$B,'00 PDC SP'!$F140,'00 Alimenta'!I:I) -> 0 | N140: 5742
A141: ABA320CR | B141: AB | C141: ABA320 | D141: 21 | E141: CR | F141: 0102020903 | G141: Crediti v/Stato per ricerca - altre Amministrazioni centrali | H141: =SUMIF('00 Alimenta'!$B:$B,'00 PDC SP'!$F141,'00 Alimenta'!D:D) -> 0 | I141: =SUMIF('00 Alimenta'!$B:$B,'00 PDC SP'!$F141,'00 Alimenta'!E:E) -> 0 | J141: =SUMIF('00 Alimenta'!$B:$B,'00 PDC SP'!$F141,'00 Alimenta'!F:F) -> 0 | K141: =SUMIF('00 Alimenta'!$B:$B,'00 PDC SP'!$F141,'00 Alimenta'!G:G) -> 0 | L141: =SUMIF('00 Alimenta'!$B:$B,'00 PDC SP'!$F141,'00 Alimenta'!H:H) -> 0 | M141: =SUMIF('00 Alimenta'!$B:$B,'00 PDC SP'!$F141,'00 Alimenta'!I:I) -> 0 | N141: 0
A142: ABA330CR | B142: AB | C142: ABA330 | D142: 21 | E142: CR | F142: 0102020904 | G142: Crediti v/Stato per ricerca - finanziamenti per investimenti | H142: =SUMIF('00 Alimenta'!$B:$B,'00 PDC SP'!$F142,'00 Alimenta'!D:D) -> 0 | I142: =SUMIF('00 Alimenta'!$B:$B,'00 PDC SP'!$F142,'00 Alimenta'!E:E) -> 0 | J142: =SUMIF('00 Alimenta'!$B:$B,'00 PDC SP'!$F142,'00 Alimenta'!F:F) -> 0 | K142: =SUMIF('00 Alimenta'!$B:$B,'00 PDC SP'!$F142,'00 Alimenta'!G:G) -> 0 | L142: =SUMIF('00 Alimenta'!$B:$B,'00 PDC SP'!$F142,'00 Alimenta'!H:H) -> 0 | M142: =SUMIF('00 Alimenta'!$B:$B,'00 PDC SP'!$F142,'00 Alimenta'!I:I) -> 0 | N142: 0
A143: ABA340CR | B143: AB | C143: ABA340 | D143: 21 | E143: CR | F143: 0102021001 | G143: Crediti v/prefetture | H143: =SUMIF('00 Alimenta'!$B:$B,'00 PDC SP'!$F143,'00 Alimenta'!D:D) -> 93462.74 | I143: =SUMIF('00 Alimenta'!$B:$B,'00 PDC SP'!$F143,'00 Alimenta'!E:E) -> 93462.74 | J143: =SUMIF('00 Alimenta'!$B:$B,'00 PDC SP'!$F143,'00 Alimenta'!F:F) -> 186925.48 | K143: =SUMIF('00 Alimenta'!$B:$B,'00 PDC SP'!$F143,'00 Alimenta'!G:G) -> 0 | L143: =SUMIF('00 Alimenta'!$B:$B,'00 PDC SP'!$F143,'00 Alimenta'!H:H) -> 0 | M143: =SUMIF('00 Alimenta'!$B:$B,'00 PDC SP'!$F143,'00 Alimenta'!I:I) -> 0 | N143: 0
A144: ABA370CR | B144: AB | C144: ABA370 | D144: 25 | E144: CR | F144: 0102021101 | G144: Crediti v/Regione o Provincia Autonoma per spesa corrente - IRAP - CONTO ELIMINATO | H144: =SUMIF('00 Alimenta'!$B:$B,'00 PDC SP'!$F144,'00 Alimenta'!D:D) -> 0 | I144: =SUMIF('00 Alimenta'!$B:$B,'00 PDC SP'!$F144,'00 Alimenta'!E:E) -> 0 | J144: =SUMIF('00 Alimenta'!$B:$B,'00 PDC SP'!$F144,'00 Alimenta'!F:F) -> 0 | K144: =SUMIF('00 Alimenta'!$B:$B,'00 PDC SP'!$F144,'00 Alimenta'!G:G) -> 0 | L144: =SUMIF('00 Alimenta'!$B:$B,'00 PDC SP'!$F144,'00 Alimenta'!H:H) -> 0 | M144: =SUMIF('00 Alimenta'!$B:$B,'00 PDC SP'!$F144,'00 Alimenta'!I:I) -> 0 | N144: 0
A145: ABA380CR | B145: AB | C145: ABA380 | D145: 25 | E145: CR | F145: 0102021102 | G145: Crediti v/Regione o Provincia Autonoma per spesa corrente - Addizionale IRPEF - CONTO ELIMINATO | H145: =SUMIF('00 Alimenta'!$B:$B,'00 PDC SP'!$F145,'00 Alimenta'!D:D) -> 0 | I145: =SUMIF('00 Alimenta'!$B:$B,'00 PDC SP'!$F145,'00 Alimenta'!E:E) -> 0 | J145: =SUMIF('00 Alimenta'!$B:$B,'00 PDC SP'!$F145,'00 Alimenta'!F:F) -> 0 | K145: =SUMIF('00 Alimenta'!$B:$B,'00 PDC SP'!$F145,'00 Alimenta'!G:G) -> 0 | L145: =SUMIF('00 Alimenta'!$B:$B,'00 PDC SP'!$F145,'00 Alimenta'!H:H) -> 0 | M145: =SUMIF('00 Alimenta'!$B:$B,'00 PDC SP'!$F145,'00 Alimenta'!I:I) -> 0 | N145: 0
A146: ABA390CR | B146: AB | C146: ABA390 | D146: 25 | E146: CR | F146: 0102021103 | G146: Crediti v/Regione o Provincia Autonoma per quota FSR | H146: =SUMIF('00 Alimenta'!$B:$B,'00 PDC SP'!$F146,'00 Alimenta'!D:D) -> 118927566.1 | I146: =SUMIF('00 Alimenta'!$B:$B,'00 PDC SP'!$F146,'00 Alimenta'!E:E) -> 699144829.1 | J146: =SUMIF('00 Alimenta'!$B:$B,'00 PDC SP'!$F146,'00 Alimenta'!F:F) -> 673828882.2 | K146: =SUMIF('00 Alimenta'!$B:$B,'00 PDC SP'!$F146,'00 Alimenta'!G:G) -> 144243512.9 | L146: =SUMIF('00 Alimenta'!$B:$B,'00 PDC SP'!$F146,'00 Alimenta'!H:H) -> 743631926.5 | M146: =SUMIF('00 Alimenta'!$B:$B,'00 PDC SP'!$F146,'00 Alimenta'!I:I) -> 761266852.4 | N146: 126608587
A147: ABA400CR | B147: AB | C147: ABA400 | D147: 25 | E147: CR | F147: 0102021104 | G147: Crediti v/Regione o Provincia Autonoma per mobilità attiva intraregionale | H147: =SUMIF('00 Alimenta'!$B:$B,'00 PDC SP'!$F147,'00 Alimenta'!D:D) -> 1256839.39 | I147: =SUMIF('00 Alimenta'!$B:$B,'00 PDC SP'!$F147,'00 Alimenta'!E:E) -> 99510381.01 | J147: =SUMIF('00 Alimenta'!$B:$B,'00 PDC SP'!$F147,'00 Alimenta'!F:F) -> 99510381 | K147: =SUMIF('00 Alimenta'!$B:$B,'00 PDC SP'!$F147,'00 Alimenta'!G:G) -> 1256839.4 | L147: =SUMIF('00 Alimenta'!$B:$B,'00 PDC SP'!$F147,'00 Alimenta'!H:H) -> 102476232.3 | M147: =SUMIF('00 Alimenta'!$B:$B,'00 PDC SP'!$F147,'00 Alimenta'!I:I) -> 102476232.3 | N147: 1256839.4
A148: ABA400FE | B148: AB | C148: ABA400 | D148: 25 | E148: FE | F148: 0102021105 | G148: Fatture da emettere v/Regione per mobilità attiva intraregionale | H148: =SUMIF('00 Alimenta'!$B:$B,'00 PDC SP'!$F148,'00 Alimenta'!D:D) -> 0 | I148: =SUMIF('00 Alimenta'!$B:$B,'00 PDC SP'!$F148,'00 Alimenta'!E:E) -> 0 | J148: =SUMIF('00 Alimenta'!$B:$B,'00 PDC SP'!$F148,'00 Alimenta'!F:F) -> 0 | K148: =SUMIF('00 Alimenta'!$B:$B,'00 PDC SP'!$F148,'00 Alimenta'!G:G) -> 0 | L148: =SUMIF('00 Alimenta'!$B:$B,'00 PDC SP'!$F148,'00 Alimenta'!H:H) -> 0 | M148: =SUMIF('00 Alimenta'!$B:$B,'00 PDC SP'!$F148,'00 Alimenta'!I:I) -> 0 | N148: 0
A149: ABA400FE | B149: AB | C149: ABA400 | D149: 25 | E149: FE | F149: 0102021106 | G149: Fatture da emettere v/Regione per mobilità attiva intraregionale da privato | H149: =SUMIF('00 Alimenta'!$B:$B,'00 PDC SP'!$F149,'00 Alimenta'!D:D) -> 0 | I149: =SUMIF('00 Alimenta'!$B:$B,'00 PDC SP'!$F149,'00 Alimenta'!E:E) -> 0 | J149: =SUMIF('00 Alimenta'!$B:$B,'00 PDC SP'!$F149,'00 Alimenta'!F:F) -> 0 | K149: =SUMIF('00 Alimenta'!$B:$B,'00 PDC SP'!$F149,'00 Alimenta'!G:G) -> 0 | L149: =SUMIF('00 Alimenta'!$B:$B,'00 PDC SP'!$F149,'00 Alimenta'!H:H) -> 0 | M149: =SUMIF('00 Alimenta'!$B:$B,'00 PDC SP'!$F149,'00 Alimenta'!I:I) -> 0 | N149: 0
A150: ABA410CR | B150: AB | C150: ABA410 | D150: 25 | E150: CR | F150: 0102021107 | G150: Crediti v/Regione o Provincia Autonoma per mobilità attiva extraregionale | H150: =SUMIF('00 Alimenta'!$B:$B,'00 PDC SP'!$F150,'00 Alimenta'!D:D) -> 19005500.29 | I150: =SUMIF('00 Alimenta'!$B:$B,'00 PDC SP'!$F150,'00 Alimenta'!E:E) -> 23288119.72 | J150: =SUMIF('00 Alimenta'!$B:$B,'00 PDC SP'!$F150,'00 Alimenta'!F:F) -> 23288119.72 | K150: =SUMIF('00 Alimenta'!$B:$B,'00 PDC SP'!$F150,'00 Alimenta'!G:G) -> 19005500.29 | L150: =SUMIF('00 Alimenta'!$B:$B,'00 PDC SP'!$F150,'00 Alimenta'!H:H) -> 26206460.13 | M150: =SUMIF('00 Alimenta'!$B:$B,'00 PDC SP'!$F150,'00 Alimenta'!I:I) -> 26206460.13 | N150: 19005500.29
A151: ABA410FE | B151: AB | C151: ABA410 | D151: 25 | E151: FE | F151: 0102021108 | G151: Fatture da emettere v/Regione per mobilità attiva extraregionale | H151: =SUMIF('00 Alimenta'!$B:$B,'00 PDC SP'!$F151,'00 Alimenta'!D:D) -> 0 | I151: =SUMIF('00 Alimenta'!$B:$B,'00 PDC SP'!$F151,'00 Alimenta'!E:E) -> 0 | J151: =SUMIF('00 Alimenta'!$B:$B,'00 PDC SP'!$F151,'00 Alimenta'!F:F) -> 0 | K151: =SUMIF('00 Alimenta'!$B:$B,'00 PDC SP'!$F151,'00 Alimenta'!G:G) -> 0 | L151: =SUMIF('00 Alimenta'!$B:$B,'00 PDC SP'!$F151,'00 Alimenta'!H:H) -> 0 | M151: =SUMIF('00 Alimenta'!$B:$B,'00 PDC SP'!$F151,'00 Alimenta'!I:I) -> 0 | N151: 0
A152: ABA420CR | B152: AB | C152: ABA420 | D152: 25 | E152: CR | F152: 0102021109 | G152: Crediti v/Regione o Provincia Autonoma per acconto quota FSR | H152: =SUMIF('00 Alimenta'!$B:$B,'00 PDC SP'!$F152,'00 Alimenta'!D:D) -> 0 | I152: =SUMIF('00 Alimenta'!$B:$B,'00 PDC SP'!$F152,'00 Alimenta'!E:E) -> 581529568.5 | J152: =SUMIF('00 Alimenta'!$B:$B,'00 PDC SP'!$F152,'00 Alimenta'!F:F) -> 581529568.5 | K152: =SUMIF('00 Alimenta'!$B:$B,'00 PDC SP'!$F152,'00 Alimenta'!G:G) -> 0 | L152: =SUMIF('00 Alimenta'!$B:$B,'00 PDC SP'!$F152,'00 Alimenta'!H:H) -> 597506235 | M152: =SUMIF('00 Alimenta'!$B:$B,'00 PDC SP'!$F152,'00 Alimenta'!I:I) -> 597506235 | N152: 0
A153: ABA420FE | B153: AB | C153: ABA420 | D153: 25 | E153: FE | F153: 0102021110 | G153: Fatture da emettere v/Regione per creditiv/Regione o Provincia Autonoma per acconto FSR | H153: =SUMIF('00 Alimenta'!$B:$B,'00 PDC SP'!$F153,'00 Alimenta'!D:D) -> 0 | I153: =SUMIF('00 Alimenta'!$B:$B,'00 PDC SP'!$F153,'00 Alimenta'!E:E) -> 0 | J153: =SUMIF('00 Alimenta'!$B:$B,'00 PDC SP'!$F153,'00 Alimenta'!F:F) -> 0 | K153: =SUMIF('00 Alimenta'!$B:$B,'00 PDC SP'!$F153,'00 Alimenta'!G:G) -> 0 | L153: =SUMIF('00 Alimenta'!$B:$B,'00 PDC SP'!$F153,'00 Alimenta'!H:H) -> 0 | M153: =SUMIF('00 Alimenta'!$B:$B,'00 PDC SP'!$F153,'00 Alimenta'!I:I) -> 0 | N153: 0
A154: ABA430CR | B154: AB | C154: ABA430 | D154: 25 | E154: CR | F154: 0102021111 | G154: Crediti v/Regione o Provincia Autonoma per finanziamento sanitario aggiuntivo corrente LEA | H154: =SUMIF('00 Alimenta'!$B:$B,'00 PDC SP'!$F154,'00 Alimenta'!D:D) -> 10384091.02 | I154: =SUMIF('00 Alimenta'!$B:$B,'00 PDC SP'!$F154,'00 Alimenta'!E:E) -> 2899011.66 | J154: =SUMIF('00 Alimenta'!$B:$B,'00 PDC SP'!$F154,'00 Alimenta'!F:F) -> 3904796.15 | K154: =SUMIF('00 Alimenta'!$B:$B,'00 PDC SP'!$F154,'00 Alimenta'!G:G) -> 9378306.53 | L154: =SUMIF('00 Alimenta'!$B:$B,'00 PDC SP'!$F154,'00 Alimenta'!H:H) -> 9459338.46 | M154: =SUMIF('00 Alimenta'!$B:$B,'00 PDC SP'!$F154,'00 Alimenta'!I:I) -> 8933757.09 | N154: 9903887.9
A155: ABA440CR | B155: AB | C155: ABA440 | D155: 25 | E155: CR | F155: 0102021112 | G155: Crediti v/Regione o Provincia Autonoma per finanziamento sanitario aggiuntivo corrente extra LEA | H155: =SUMIF('00 Alimenta'!$B:$B,'00 PDC SP'!$F155,'00 Alimenta'!D:D) -> 0 | I155: =SUMIF('00 Alimenta'!$B:$B,'00 PDC SP'!$F155,'00 Alimenta'!E:E) -> 0 | J155: =SUMIF('00 Alimenta'!$B:$B,'00 PDC SP'!$F155,'00 Alimenta'!F:F) -> 0 | K155: =SUMIF('00 Alimenta'!$B:$B,'00 PDC SP'!$F155,'00 Alimenta'!G:G) -> 0 | L155: =SUMIF('00 Alimenta'!$B:$B,'00 PDC SP'!$F155,'00 Alimenta'!H:H) -> 0 | M155: =SUMIF('00 Alimenta'!$B:$B,'00 PDC SP'!$F155,'00 Alimenta'!I:I) -> 0 | N155: 0
A156: ABA450CR | B156: AB | C156: ABA450 | D156: 25 | E156: CR | F156: 0102021113 | G156: Crediti v/Regione o Provincia Autonoma per spesa corrente - altro | H156: =SUMIF('00 Alimenta'!$B:$B,'00 PDC SP'!$F156,'00 Alimenta'!D:D) -> 0 | I156: =SUMIF('00 Alimenta'!$B:$B,'00 PDC SP'!$F156,'00 Alimenta'!E:E) -> 0 | J156: =SUMIF('00 Alimenta'!$B:$B,'00 PDC SP'!$F156,'00 Alimenta'!F:F) -> 0 | K156: =SUMIF('00 Alimenta'!$B:$B,'00 PDC SP'!$F156,'00 Alimenta'!G:G) -> 0 | L156: =SUMIF('00 Alimenta'!$B:$B,'00 PDC SP'!$F156,'00 Alimenta'!H:H) -> 0 | M156: =SUMIF('00 Alimenta'!$B:$B,'00 PDC SP'!$F156,'00 Alimenta'!I:I) -> 0 | N156: 0
A157: ABA460CR | B157: AB | C157: ABA460 | D157: 25 | E157: CR | F157: 0102021114 | G157: Crediti v/Regione o Provincia Autonoma per ricerca | H157: =SUMIF('00 Alimenta'!$B:$B,'00 PDC SP'!$F157,'00 Alimenta'!D:D) -> 0 | I157: =SUMIF('00 Alimenta'!$B:$B,'00 PDC SP'!$F157,'00 Alimenta'!E:E) -> 0 | J157: =SUMIF('00 Alimenta'!$B:$B,'00 PDC SP'!$F157,'00 Alimenta'!F:F) -> 0 | K157: =SUMIF('00 Alimenta'!$B:$B,'00 PDC SP'!$F157,'00 Alimenta'!G:G) -> 0 | L157: =SUMIF('00 Alimenta'!$B:$B,'00 PDC SP'!$F157,'00 Alimenta'!H:H) -> 0 | M157: =SUMIF('00 Alimenta'!$B:$B,'00 PDC SP'!$F157,'00 Alimenta'!I:I) -> 0 | N157: 0
A158: ABA400CR | B158: AB | C158: ABA400 | D158: 25 | E158: CR | F158: 0102021115 | G158: Netting mobilità intraregionale ante 2007 | H158: =SUMIF('00 Alimenta'!$B:$B,'00 PDC SP'!$F158,'00 Alimenta'!D:D) -> 15592903.99 | I158: =SUMIF('00 Alimenta'!$B:$B,'00 PDC SP'!$F158,'00 Alimenta'!E:E) -> 0 | J158: =SUMIF('00 Alimenta'!$B:$B,'00 PDC SP'!$F158,'00 Alimenta'!F:F) -> 0 | K158: =SUMIF('00 Alimenta'!$B:$B,'00 PDC SP'!$F158,'00 Alimenta'!G:G) -> 15592903.99 | L158: =SUMIF('00 Alimenta'!$B:$B,'00 PDC SP'!$F158,'00 Alimenta'!H:H) -> 0 | M158: =SUMIF('00 Alimenta'!$B:$B,'00 PDC SP'!$F158,'00 Alimenta'!I:I) -> 0 | N158: 15592903.99
A159: =IF(E159="",C159,C159&E159) -> ABA410CR | B159: AB | C159: ABA410 | D159: 25 | E159: CR | F159: 0102021116 | G159: Netting mobilità extraregionale ante 2007 | K159: =SUMIF('00 Alimenta'!$B:$B,'00 PDC SP'!$F159,'00 Alimenta'!G:G) -> 0 | L159: =SUMIF('00 Alimenta'!$B:$B,'00 PDC SP'!$F159,'00 Alimenta'!H:H) -> 0 | M159: =SUMIF('00 Alimenta'!$B:$B,'00 PDC SP'!$F159,'00 Alimenta'!I:I) -> 0 | N159: =K159+L159-M159 -> 0
A160: ABA420CR | B160: AB | C160: ABA420 | D160: 25 | E160: CR | F160: 0102021117 | G160: Crediti v/Regione o provincia Autonoma per acconto quota FSR per DPC | H160: =SUMIF('00 Alimenta'!$B:$B,'00 PDC SP'!$F160,'00 Alimenta'!D:D) -> 0 | I160: =SUMIF('00 Alimenta'!$B:$B,'00 PDC SP'!$F160,'00 Alimenta'!E:E) -> 21620901.28 | J160: =SUMIF('00 Alimenta'!$B:$B,'00 PDC SP'!$F160,'00 Alimenta'!F:F) -> 21620901.28 | K160: =SUMIF('00 Alimenta'!$B:$B,'00 PDC SP'!$F160,'00 Alimenta'!G:G) -> 0 | L160: =SUMIF('00 Alimenta'!$B:$B,'00 PDC SP'!$F160,'00 Alimenta'!H:H) -> 47981977.05 | M160: =SUMIF('00 Alimenta'!$B:$B,'00 PDC SP'!$F160,'00 Alimenta'!I:I) -> 47981977.05 | N160: 0
A161: ABA451CR | B161: AB | C161: ABA451 | D161: 25 | E161: CR | F161: 0102021118 | G161: Crediti v/Regione o Provincia Autonoma per spesa corrente - STP (ex D.lgs. 286/98) | H161: =SUMIF('00 Alimenta'!$B:$B,'00 PDC SP'!$F161,'00 Alimenta'!D:D) -> 0 | I161: =SUMIF('00 Alimenta'!$B:$B,'00 PDC SP'!$F161,'00 Alimenta'!E:E) -> 0 | J161: =SUMIF('00 Alimenta'!$B:$B,'00 PDC SP'!$F161,'00 Alimenta'!F:F) -> 0 | K161: =SUMIF('00 Alimenta'!$B:$B,'00 PDC SP'!$F161,'00 Alimenta'!G:G) -> 0 | L161: =SUMIF('00 Alimenta'!$B:$B,'00 PDC SP'!$F161,'00 Alimenta'!H:H) -> 216918.16 | M161: =SUMIF('00 Alimenta'!$B:$B,'00 PDC SP'!$F161,'00 Alimenta'!I:I) -> 0 | N161: 216918.16
A162: ABA461CR | B162: AB | C162: ABA461 | D162: 25 | E162: CR | F162: 0102021119 | G162: Crediti v/Regione o Provincia Autonoma per mobilità attiva internazionale | H162: =SUMIF('00 Alimenta'!$B:$B,'00 PDC SP'!$F162,'00 Alimenta'!D:D) -> 0 | I162: =SUMIF('00 Alimenta'!$B:$B,'00 PDC SP'!$F162,'00 Alimenta'!E:E) -> 0 | J162: =SUMIF('00 Alimenta'!$B:$B,'00 PDC SP'!$F162,'00 Alimenta'!F:F) -> 0 | K162: =SUMIF('00 Alimenta'!$B:$B,'00 PDC SP'!$F162,'00 Alimenta'!G:G) -> 0 | L162: =SUMIF('00 Alimenta'!$B:$B,'00 PDC SP'!$F162,'00 Alimenta'!H:H) -> 393536.14 | M162: =SUMIF('00 Alimenta'!$B:$B,'00 PDC SP'!$F162,'00 Alimenta'!I:I) -> 393536.14 | N162: 0
A163: ABA480CR | B163: AB | C163: ABA480 | D163: 49 | E163: CR | F163: 0102021201 | G163: Crediti v/Regione o Provincia Autonoma per finanziamenti per investimenti | H163: =SUMIF('00 Alimenta'!$B:$B,'00 PDC SP'!$F163,'00 Alimenta'!D:D) -> 38255 | I163: =SUMIF('00 Alimenta'!$B:$B,'00 PDC SP'!$F163,'00 Alimenta'!E:E) -> 0 | J163: =SUMIF('00 Alimenta'!$B:$B,'00 PDC SP'!$F163,'00 Alimenta'!F:F) -> 0 | K163: =SUMIF('00 Alimenta'!$B:$B,'00 PDC SP'!$F163,'00 Alimenta'!G:G) -> 38255 | L163: =SUMIF('00 Alimenta'!$B:$B,'00 PDC SP'!$F163,'00 Alimenta'!H:H) -> 682626.67 | M163: =SUMIF('00 Alimenta'!$B:$B,'00 PDC SP'!$F163,'00 Alimenta'!I:I) -> 682626.67 | N163: 38255
A164: ABA490CR | B164: AB | C164: ABA490 | D164: 50 | E164: CR | F164: 0102021202 | G164: Crediti v/Regione o Provincia Autonoma per incremento fondo dotazione | H164: =SUMIF('00 Alimenta'!$B:$B,'00 PDC SP'!$F164,'00 Alimenta'!D:D) -> 0 | I164: =SUMIF('00 Alimenta'!$B:$B,'00 PDC SP'!$F164,'00 Alimenta'!E:E) -> 0 | J164: =SUMIF('00 Alimenta'!$B:$B,'00 PDC SP'!$F164,'00 Alimenta'!F:F) -> 0 | K164: =SUMIF('00 Alimenta'!$B:$B,'00 PDC SP'!$F164,'00 Alimenta'!G:G) -> 0 | L164: =SUMIF('00 Alimenta'!$B:$B,'00 PDC SP'!$F164,'00 Alimenta'!H:H) -> 0 | M164: =SUMIF('00 Alimenta'!$B:$B,'00 PDC SP'!$F164,'00 Alimenta'!I:I) -> 0 | N164: 0
A165: ABA500CR | B165: AB | C165: ABA500 | D165: 51 | E165: CR | F165: 0102021203 | G165: Crediti v/Regione o Provincia Autonoma per ripiano perdite | H165: =SUMIF('00 Alimenta'!$B:$B,'00 PDC SP'!$F165,'00 Alimenta'!D:D) -> 14264710 | I165: =SUMIF('00 Alimenta'!$B:$B,'00 PDC SP'!$F165,'00 Alimenta'!E:E) -> 13609624 | J165: =SUMIF('00 Alimenta'!$B:$B,'00 PDC SP'!$F165,'00 Alimenta'!F:F) -> 0 | K165: =SUMIF('00 Alimenta'!$B:$B,'00 PDC SP'!$F165,'00 Alimenta'!G:G) -> 27874334 | L165: =SUMIF('00 Alimenta'!$B:$B,'00 PDC SP'!$F165,'00 Alimenta'!H:H) -> 0 | M165: =SUMIF('00 Alimenta'!$B:$B,'00 PDC SP'!$F165,'00 Alimenta'!I:I) -> 353804.19 | N165: 27520529.81
A166: ABA510CR | B166: AB | C166: ABA510 | D166: 52 | E166: CR | F166: 0102021204 | G166: Crediti v/Regione per copertura debiti al 31/12/2005 | H166: =SUMIF('00 Alimenta'!$B:$B,'00 PDC SP'!$F166,'00 Alimenta'!D:D) -> 0 | I166: =SUMIF('00 Alimenta'!$B:$B,'00 PDC SP'!$F166,'00 Alimenta'!E:E) -> 0 | J166: =SUMIF('00 Alimenta'!$B:$B,'00 PDC SP'!$F166,'00 Alimenta'!F:F) -> 0 | K166: =SUMIF('00 Alimenta'!$B:$B,'00 PDC SP'!$F166,'00 Alimenta'!G:G) -> 0 | L166: =SUMIF('00 Alimenta'!$B:$B,'00 PDC SP'!$F166,'00 Alimenta'!H:H) -> 0 | M166: =SUMIF('00 Alimenta'!$B:$B,'00 PDC SP'!$F166,'00 Alimenta'!I:I) -> 0 | N166: 0
A167: ABA520CR | B167: AB | C167: ABA520 | D167: 49 | E167: CR | F167: 0102021205 | G167: Crediti v/Regione o Provincia Autonoma per ricostituzione risorse da investimenti esercizi precedenti | H167: =SUMIF('00 Alimenta'!$B:$B,'00 PDC SP'!$F167,'00 Alimenta'!D:D) -> 0 | I167: =SUMIF('00 Alimenta'!$B:$B,'00 PDC SP'!$F167,'00 Alimenta'!E:E) -> 0 | J167: =SUMIF('00 Alimenta'!$B:$B,'00 PDC SP'!$F167,'00 Alimenta'!F:F) -> 0 | K167: =SUMIF('00 Alimenta'!$B:$B,'00 PDC SP'!$F167,'00 Alimenta'!G:G) -> 0 | L167: =SUMIF('00 Alimenta'!$B:$B,'00 PDC SP'!$F167,'00 Alimenta'!H:H) -> 0 | M167: =SUMIF('00 Alimenta'!$B:$B,'00 PDC SP'!$F167,'00 Alimenta'!I:I) -> 0 | N167: 0
A168: ABA501CR | B168: AB | C168: ABA501 | E168: CR | F168: 0102021206 | G168: Crediti v/Regione o Provincia Autonoma per anticipazione ripiano disavanzo programmato dai Piani aziendali di cui all'art. 1, comma 528, L. 208/2015 | H168: =SUMIF('00 Alimenta'!$B:$B,'00 PDC SP'!$F168,'00 Alimenta'!D:D) -> 0 | I168: =SUMIF('00 Alimenta'!$B:$B,'00 PDC SP'!$F168,'00 Alimenta'!E:E) -> 0 | J168: =SUMIF('00 Alimenta'!$B:$B,'00 PDC SP'!$F168,'00 Alimenta'!F:F) -> 0 | K168: =SUMIF('00 Alimenta'!$B:$B,'00 PDC SP'!$F168,'00 Alimenta'!G:G) -> 0 | L168: =SUMIF('00 Alimenta'!$B:$B,'00 PDC SP'!$F168,'00 Alimenta'!H:H) -> 0 | M168: =SUMIF('00 Alimenta'!$B:$B,'00 PDC SP'!$F168,'00 Alimenta'!I:I) -> 0 | N168: 0
A169: ABA521CR | B169: AB | C169: ABA521 | E169: CR | F169: 0102021207 | G169: Crediti v/Regione o Provincia Autonoma per contributi L. 210/92 | H169: =SUMIF('00 Alimenta'!$B:$B,'00 PDC SP'!$F169,'00 Alimenta'!D:D) -> 0 | I169: =SUMIF('00 Alimenta'!$B:$B,'00 PDC SP'!$F169,'00 Alimenta'!E:E) -> 0 | J169: =SUMIF('00 Alimenta'!$B:$B,'00 PDC SP'!$F169,'00 Alimenta'!F:F) -> 0 | K169: =SUMIF('00 Alimenta'!$B:$B,'00 PDC SP'!$F169,'00 Alimenta'!G:G) -> 0 | L169: =SUMIF('00 Alimenta'!$B:$B,'00 PDC SP'!$F169,'00 Alimenta'!H:H) -> 0 | M169: =SUMIF('00 Alimenta'!$B:$B,'00 PDC SP'!$F169,'00 Alimenta'!I:I) -> 0 | N169: 0
A170: ABA522CR | B170: AB | C170: ABA522 | E170: CR | F170: 0102021208 | G170: Crediti v/Regione o Provincia Autonoma per contributi L. 210/92 ¿ aziende sanitarie | H170: =SUMIF('00 Alimenta'!$B:$B,'00 PDC SP'!$F170,'00 Alimenta'!D:D) -> 0 | I170: =SUMIF('00 Alimenta'!$B:$B,'00 PDC SP'!$F170,'00 Alimenta'!E:E) -> 0 | J170: =SUMIF('00 Alimenta'!$B:$B,'00 PDC SP'!$F170,'00 Alimenta'!F:F) -> 0 | K170: =SUMIF('00 Alimenta'!$B:$B,'00 PDC SP'!$F170,'00 Alimenta'!G:G) -> 0 | L170: =SUMIF('00 Alimenta'!$B:$B,'00 PDC SP'!$F170,'00 Alimenta'!H:H) -> 0 | M170: =SUMIF('00 Alimenta'!$B:$B,'00 PDC SP'!$F170,'00 Alimenta'!I:I) -> 0 | N170: 0
A171: ABA530CR | B171: AB | C171: ABA530 | D171: 26 | E171: CR | F171: 0102021301 | G171: Crediti v/Comuni | H171: =SUMIF('00 Alimenta'!$B:$B,'00 PDC SP'!$F171,'00 Alimenta'!D:D) -> 163358.58 | I171: =SUMIF('00 Alimenta'!$B:$B,'00 PDC SP'!$F171,'00 Alimenta'!E:E) -> 111857.28 | J171: =SUMIF('00 Alimenta'!$B:$B,'00 PDC SP'!$F171,'00 Alimenta'!F:F) -> 91803.89 | K171: =SUMIF('00 Alimenta'!$B:$B,'00 PDC SP'!$F171,'00 Alimenta'!G:G) -> 183411.97 | L171: =SUMIF('00 Alimenta'!$B:$B,'00 PDC SP'!$F171,'00 Alimenta'!H:H) -> 99651.91 | M171: =SUMIF('00 Alimenta'!$B:$B,'00 PDC SP'!$F171,'00 Alimenta'!I:I) -> 89123.65 | N171: 193940.23
A172: ABA530FE | B172: AB | C172: ABA530 | D172: 26 | E172: FE | F172: 0102021302 | G172: Fatture da emettere v/Comuni | H172: =SUMIF('00 Alimenta'!$B:$B,'00 PDC SP'!$F172,'00 Alimenta'!D:D) -> 58770.9 | I172: =SUMIF('00 Alimenta'!$B:$B,'00 PDC SP'!$F172,'00 Alimenta'!E:E) -> 53342.51 | J172: =SUMIF('00 Alimenta'!$B:$B,'00 PDC SP'!$F172,'00 Alimenta'!F:F) -> 58770.9 | K172: =SUMIF('00 Alimenta'!$B:$B,'00 PDC SP'!$F172,'00 Alimenta'!G:G) -> 53342.51 | L172: =SUMIF('00 Alimenta'!$B:$B,'00 PDC SP'!$F172,'00 Alimenta'!H:H) -> 20214.71 | M172: =SUMIF('00 Alimenta'!$B:$B,'00 PDC SP'!$F172,'00 Alimenta'!I:I) -> 53342.51 | N172: 20214.71
A173: ABA560CR | B173: AB | C173: ABA560 | D173: 27 | E173: CR | F173: 0102021401 | G173: Crediti v/ASL della Regione | H173: =SUMIF('00 Alimenta'!$B:$B,'00 PDC SP'!$F173,'00 Alimenta'!D:D) -> 0 | I173: =SUMIF('00 Alimenta'!$B:$B,'00 PDC SP'!$F173,'00 Alimenta'!E:E) -> 0 | J173: =SUMIF('00 Alimenta'!$B:$B,'00 PDC SP'!$F173,'00 Alimenta'!F:F) -> 0 | K173: =SUMIF('00 Alimenta'!$B:$B,'00 PDC SP'!$F173,'00 Alimenta'!G:G) -> 0 | L173: =SUMIF('00 Alimenta'!$B:$B,'00 PDC SP'!$F173,'00 Alimenta'!H:H) -> 0 | M173: =SUMIF('00 Alimenta'!$B:$B,'00 PDC SP'!$F173,'00 Alimenta'!I:I) -> 0 | N173: 0
A174: ABA560CR | B174: AB | C174: ABA560 | D174: 27 | E174: CR | F174: 0102021402 | G174: Crediti v/ASL Avezzano Sulmona L'Aquila per mobilità in compensazione | H174: =SUMIF('00 Alimenta'!$B:$B,'00 PDC SP'!$F174,'00 Alimenta'!D:D) -> 0 | I174: =SUMIF('00 Alimenta'!$B:$B,'00 PDC SP'!$F174,'00 Alimenta'!E:E) -> 0 | J174: =SUMIF('00 Alimenta'!$B:$B,'00 PDC SP'!$F174,'00 Alimenta'!F:F) -> 0 | K174: =SUMIF('00 Alimenta'!$B:$B,'00 PDC SP'!$F174,'00 Alimenta'!G:G) -> 0 | L174: =SUMIF('00 Alimenta'!$B:$B,'00 PDC SP'!$F174,'00 Alimenta'!H:H) -> 0 | M174: =SUMIF('00 Alimenta'!$B:$B,'00 PDC SP'!$F174,'00 Alimenta'!I:I) -> 0 | N174: 0
A175: ABA560FE | B175: AB | C175: ABA560 | D175: 27 | E175: FE | F175: 0102021403 | G175: Fatture da emettere v/ASL Avezzano Sulmona L'Aquila per mobilità in compensazione | H175: =SUMIF('00 Alimenta'!$B:$B,'00 PDC SP'!$F175,'00 Alimenta'!D:D) -> 0 | I175: =SUMIF('00 Alimenta'!$B:$B,'00 PDC SP'!$F175,'00 Alimenta'!E:E) -> 0 | J175: =SUMIF('00 Alimenta'!$B:$B,'00 PDC SP'!$F175,'00 Alimenta'!F:F) -> 0 | K175: =SUMIF('00 Alimenta'!$B:$B,'00 PDC SP'!$F175,'00 Alimenta'!G:G) -> 0 | L175: =SUMIF('00 Alimenta'!$B:$B,'00 PDC SP'!$F175,'00 Alimenta'!H:H) -> 0 | M175: =SUMIF('00 Alimenta'!$B:$B,'00 PDC SP'!$F175,'00 Alimenta'!I:I) -> 0 | N175: 0
A176: ABA560CR | B176: AB | C176: ABA560 | D176: 27 | E176: CR | F176: 0102021404 | G176: Crediti v/ASL Lanciano Vasto Chieti per mobilità in compensazione | H176: =SUMIF('00 Alimenta'!$B:$B,'00 PDC SP'!$F176,'00 Alimenta'!D:D) -> 0 | I176: =SUMIF('00 Alimenta'!$B:$B,'00 PDC SP'!$F176,'00 Alimenta'!E:E) -> 0 | J176: =SUMIF('00 Alimenta'!$B:$B,'00 PDC SP'!$F176,'00 Alimenta'!F:F) -> 0 | K176: =SUMIF('00 Alimenta'!$B:$B,'00 PDC SP'!$F176,'00 Alimenta'!G:G) -> 0 | L176: =SUMIF('00 Alimenta'!$B:$B,'00 PDC SP'!$F176,'00 Alimenta'!H:H) -> 0 | M176: =SUMIF('00 Alimenta'!$B:$B,'00 PDC SP'!$F176,'00 Alimenta'!I:I) -> 0 | N176: 0
A177: ABA560FE | B177: AB | C177: ABA560 | D177: 27 | E177: FE | F177: 0102021405 | G177: Fatture da emettere v/ASL Lanciano Vasto Chieti per mobilità in compensazione | H177: =SUMIF('00 Alimenta'!$B:$B,'00 PDC SP'!$F177,'00 Alimenta'!D:D) -> 0 | I177: =SUMIF('00 Alimenta'!$B:$B,'00 PDC SP'!$F177,'00 Alimenta'!E:E) -> 0 | J177: =SUMIF('00 Alimenta'!$B:$B,'00 PDC SP'!$F177,'00 Alimenta'!F:F) -> 0 | K177: =SUMIF('00 Alimenta'!$B:$B,'00 PDC SP'!$F177,'00 Alimenta'!G:G) -> 0 | L177: =SUMIF('00 Alimenta'!$B:$B,'00 PDC SP'!$F177,'00 Alimenta'!H:H) -> 0 | M177: =SUMIF('00 Alimenta'!$B:$B,'00 PDC SP'!$F177,'00 Alimenta'!I:I) -> 0 | N177: 0
A178: ABA560CR | B178: AB | C178: ABA560 | D178: 27 | E178: CR | F178: 0102021406 | G178: Crediti v/ASL Pescara per mobilità in compensazione | H178: =SUMIF('00 Alimenta'!$B:$B,'00 PDC SP'!$F178,'00 Alimenta'!D:D) -> 0 | I178: =SUMIF('00 Alimenta'!$B:$B,'00 PDC SP'!$F178,'00 Alimenta'!E:E) -> 0 | J178: =SUMIF('00 Alimenta'!$B:$B,'00 PDC SP'!$F178,'00 Alimenta'!F:F) -> 0 | K178: =SUMIF('00 Alimenta'!$B:$B,'00 PDC SP'!$F178,'00 Alimenta'!G:G) -> 0 | L178: =SUMIF('00 Alimenta'!$B:$B,'00 PDC SP'!$F178,'00 Alimenta'!H:H) -> 0 | M178: =SUMIF('00 Alimenta'!$B:$B,'00 PDC SP'!$F178,'00 Alimenta'!I:I) -> 0 | N178: 0
A179: ABA560FE | B179: AB | C179: ABA560 | D179: 27 | E179: FE | F179: 0102021407 | G179: Fatture da emettere v/ASL Pescara per mobilità in compensazione | H179: =SUMIF('00 Alimenta'!$B:$B,'00 PDC SP'!$F179,'00 Alimenta'!D:D) -> 0 | I179: =SUMIF('00 Alimenta'!$B:$B,'00 PDC SP'!$F179,'00 Alimenta'!E:E) -> 0 | J179: =SUMIF('00 Alimenta'!$B:$B,'00 PDC SP'!$F179,'00 Alimenta'!F:F) -> 0 | K179: =SUMIF('00 Alimenta'!$B:$B,'00 PDC SP'!$F179,'00 Alimenta'!G:G) -> 0 | L179: =SUMIF('00 Alimenta'!$B:$B,'00 PDC SP'!$F179,'00 Alimenta'!H:H) -> 0 | M179: =SUMIF('00 Alimenta'!$B:$B,'00 PDC SP'!$F179,'00 Alimenta'!I:I) -> 0 | N179: 0
A180: ABA560CR | B180: AB | C180: ABA560 | D180: 27 | E180: CR | F180: 0102021408 | G180: Crediti v/ASL Teramo per mobilità in compensazione | H180: =SUMIF('00 Alimenta'!$B:$B,'00 PDC SP'!$F180,'00 Alimenta'!D:D) -> 0 | I180: =SUMIF('00 Alimenta'!$B:$B,'00 PDC SP'!$F180,'00 Alimenta'!E:E) -> 0 | J180: =SUMIF('00 Alimenta'!$B:$B,'00 PDC SP'!$F180,'00 Alimenta'!F:F) -> 0 | K180: =SUMIF('00 Alimenta'!$B:$B,'00 PDC SP'!$F180,'00 Alimenta'!G:G) -> 0 | L180: =SUMIF('00 Alimenta'!$B:$B,'00 PDC SP'!$F180,'00 Alimenta'!H:H) -> 0 | M180: =SUMIF('00 Alimenta'!$B:$B,'00 PDC SP'!$F180,'00 Alimenta'!I:I) -> 0 | N180: 0
A181: ABA560FE | B181: AB | C181: ABA560 | D181: 27 | E181: FE | F181: 0102021409 | G181: Fatture da emettere v/ASL Teramo per mobilità in compensazione | H181: =SUMIF('00 Alimenta'!$B:$B,'00 PDC SP'!$F181,'00 Alimenta'!D:D) -> 0 | I181: =SUMIF('00 Alimenta'!$B:$B,'00 PDC SP'!$F181,'00 Alimenta'!E:E) -> 0 | J181: =SUMIF('00 Alimenta'!$B:$B,'00 PDC SP'!$F181,'00 Alimenta'!F:F) -> 0 | K181: =SUMIF('00 Alimenta'!$B:$B,'00 PDC SP'!$F181,'00 Alimenta'!G:G) -> 0 | L181: =SUMIF('00 Alimenta'!$B:$B,'00 PDC SP'!$F181,'00 Alimenta'!H:H) -> 0 | M181: =SUMIF('00 Alimenta'!$B:$B,'00 PDC SP'!$F181,'00 Alimenta'!I:I) -> 0 | N181: 0
A182: ABA570CR | B182: AB | C182: ABA570 | D182: 27 | E182: CR | F182: 0102021410 | G182: Crediti v/asl Avezzano Sulmona L'Aquila per mobilità non in compensazione | H182: =SUMIF('00 Alimenta'!$B:$B,'00 PDC SP'!$F182,'00 Alimenta'!D:D) -> 0 | I182: =SUMIF('00 Alimenta'!$B:$B,'00 PDC SP'!$F182,'00 Alimenta'!E:E) -> 0 | J182: =SUMIF('00 Alimenta'!$B:$B,'00 PDC SP'!$F182,'00 Alimenta'!F:F) -> 0 | K182: =SUMIF('00 Alimenta'!$B:$B,'00 PDC SP'!$F182,'00 Alimenta'!G:G) -> 0 | L182: =SUMIF('00 Alimenta'!$B:$B,'00 PDC SP'!$F182,'00 Alimenta'!H:H) -> 0 | M182: =SUMIF('00 Alimenta'!$B:$B,'00 PDC SP'!$F182,'00 Alimenta'!I:I) -> 0 | N182: 0
A183: ABA570FE | B183: AB | C183: ABA570 | D183: 27 | E183: FE | F183: 0102021411 | G183: Fatture da emettere v/ASL Avezzano Sulmona L'Aquila per mobilità non in compensazione | H183: =SUMIF('00 Alimenta'!$B:$B,'00 PDC SP'!$F183,'00 Alimenta'!D:D) -> 0 | I183: =SUMIF('00 Alimenta'!$B:$B,'00 PDC SP'!$F183,'00 Alimenta'!E:E) -> 0 | J183: =SUMIF('00 Alimenta'!$B:$B,'00 PDC SP'!$F183,'00 Alimenta'!F:F) -> 0 | K183: =SUMIF('00 Alimenta'!$B:$B,'00 PDC SP'!$F183,'00 Alimenta'!G:G) -> 0 | L183: =SUMIF('00 Alimenta'!$B:$B,'00 PDC SP'!$F183,'00 Alimenta'!H:H) -> 0 | M183: =SUMIF('00 Alimenta'!$B:$B,'00 PDC SP'!$F183,'00 Alimenta'!I:I) -> 0 | N183: 0
A184: ABA570CR | B184: AB | C184: ABA570 | D184: 27 | E184: CR | F184: 0102021412 | G184: Crediti v/ASL Lanciano Vasto Chieti per mobilità non in compensazione | H184: =SUMIF('00 Alimenta'!$B:$B,'00 PDC SP'!$F184,'00 Alimenta'!D:D) -> 0 | I184: =SUMIF('00 Alimenta'!$B:$B,'00 PDC SP'!$F184,'00 Alimenta'!E:E) -> 0 | J184: =SUMIF('00 Alimenta'!$B:$B,'00 PDC SP'!$F184,'00 Alimenta'!F:F) -> 0 | K184: =SUMIF('00 Alimenta'!$B:$B,'00 PDC SP'!$F184,'00 Alimenta'!G:G) -> 0 | L184: =SUMIF('00 Alimenta'!$B:$B,'00 PDC SP'!$F184,'00 Alimenta'!H:H) -> 0 | M184: =SUMIF('00 Alimenta'!$B:$B,'00 PDC SP'!$F184,'00 Alimenta'!I:I) -> 0 | N184: 0
A185: ABA570FE | B185: AB | C185: ABA570 | D185: 27 | E185: FE | F185: 0102021413 | G185: Fatture da emettere v/ASL Lanciano Vasto Chieti per mobilità non in compensazione | H185: =SUMIF('00 Alimenta'!$B:$B,'00 PDC SP'!$F185,'00 Alimenta'!D:D) -> 0 | I185: =SUMIF('00 Alimenta'!$B:$B,'00 PDC SP'!$F185,'00 Alimenta'!E:E) -> 0 | J185: =SUMIF('00 Alimenta'!$B:$B,'00 PDC SP'!$F185,'00 Alimenta'!F:F) -> 0 | K185: =SUMIF('00 Alimenta'!$B:$B,'00 PDC SP'!$F185,'00 Alimenta'!G:G) -> 0 | L185: =SUMIF('00 Alimenta'!$B:$B,'00 PDC SP'!$F185,'00 Alimenta'!H:H) -> 0 | M185: =SUMIF('00 Alimenta'!$B:$B,'00 PDC SP'!$F185,'00 Alimenta'!I:I) -> 0 | N185: 0
A186: ABA570CR | B186: AB | C186: ABA570 | D186: 27 | E186: CR | F186: 0102021414 | G186: Crediti v/ASL Pescara per mobilità non in compensazione | H186: =SUMIF('00 Alimenta'!$B:$B,'00 PDC SP'!$F186,'00 Alimenta'!D:D) -> 0 | I186: =SUMIF('00 Alimenta'!$B:$B,'00 PDC SP'!$F186,'00 Alimenta'!E:E) -> 0 | J186: =SUMIF('00 Alimenta'!$B:$B,'00 PDC SP'!$F186,'00 Alimenta'!F:F) -> 0 | K186: =SUMIF('00 Alimenta'!$B:$B,'00 PDC SP'!$F186,'00 Alimenta'!G:G) -> 0 | L186: =SUMIF('00 Alimenta'!$B:$B,'00 PDC SP'!$F186,'00 Alimenta'!H:H) -> 0 | M186: =SUMIF('00 Alimenta'!$B:$B,'00 PDC SP'!$F186,'00 Alimenta'!I:I) -> 0 | N186: 0
A187: ABA570FE | B187: AB | C187: ABA570 | D187: 27 | E187: FE | F187: 0102021415 | G187: Fatture da emettere v/ASL Pescara per mobilità non in compensazione | H187: =SUMIF('00 Alimenta'!$B:$B,'00 PDC SP'!$F187,'00 Alimenta'!D:D) -> 0 | I187: =SUMIF('00 Alimenta'!$B:$B,'00 PDC SP'!$F187,'00 Alimenta'!E:E) -> 0 | J187: =SUMIF('00 Alimenta'!$B:$B,'00 PDC SP'!$F187,'00 Alimenta'!F:F) -> 0 | K187: =SUMIF('00 Alimenta'!$B:$B,'00 PDC SP'!$F187,'00 Alimenta'!G:G) -> 0 | L187: =SUMIF('00 Alimenta'!$B:$B,'00 PDC SP'!$F187,'00 Alimenta'!H:H) -> 0 | M187: =SUMIF('00 Alimenta'!$B:$B,'00 PDC SP'!$F187,'00 Alimenta'!I:I) -> 0 | N187: 0
A188: ABA570CR | B188: AB | C188: ABA570 | D188: 27 | E188: CR | F188: 0102021416 | G188: Crediti v/ASL Teramo per mobilità non in compensazione | H188: =SUMIF('00 Alimenta'!$B:$B,'00 PDC SP'!$F188,'00 Alimenta'!D:D) -> 0 | I188: =SUMIF('00 Alimenta'!$B:$B,'00 PDC SP'!$F188,'00 Alimenta'!E:E) -> 0 | J188: =SUMIF('00 Alimenta'!$B:$B,'00 PDC SP'!$F188,'00 Alimenta'!F:F) -> 0 | K188: =SUMIF('00 Alimenta'!$B:$B,'00 PDC SP'!$F188,'00 Alimenta'!G:G) -> 0 | L188: =SUMIF('00 Alimenta'!$B:$B,'00 PDC SP'!$F188,'00 Alimenta'!H:H) -> 0 | M188: =SUMIF('00 Alimenta'!$B:$B,'00 PDC SP'!$F188,'00 Alimenta'!I:I) -> 0 | N188: 0
A189: ABA570FE | B189: AB | C189: ABA570 | D189: 27 | E189: FE | F189: 0102021417 | G189: Fatture da emettere v/ASL Teramo per mobilità non in compensazione | H189: =SUMIF('00 Alimenta'!$B:$B,'00 PDC SP'!$F189,'00 Alimenta'!D:D) -> 0 | I189: =SUMIF('00 Alimenta'!$B:$B,'00 PDC SP'!$F189,'00 Alimenta'!E:E) -> 0 | J189: =SUMIF('00 Alimenta'!$B:$B,'00 PDC SP'!$F189,'00 Alimenta'!F:F) -> 0 | K189: =SUMIF('00 Alimenta'!$B:$B,'00 PDC SP'!$F189,'00 Alimenta'!G:G) -> 0 | L189: =SUMIF('00 Alimenta'!$B:$B,'00 PDC SP'!$F189,'00 Alimenta'!H:H) -> 0 | M189: =SUMIF('00 Alimenta'!$B:$B,'00 PDC SP'!$F189,'00 Alimenta'!I:I) -> 0 | N189: 0
A190: ABA580CR | B190: AB | C190: ABA580 | D190: 27 | E190: CR | F190: 0102021418 | G190: Crediti v/ASL Avezzano Sulmona L'Aquila per altre prestazioni | H190: =SUMIF('00 Alimenta'!$B:$B,'00 PDC SP'!$F190,'00 Alimenta'!D:D) -> 486039.96 | I190: =SUMIF('00 Alimenta'!$B:$B,'00 PDC SP'!$F190,'00 Alimenta'!E:E) -> 214056.28 | J190: =SUMIF('00 Alimenta'!$B:$B,'00 PDC SP'!$F190,'00 Alimenta'!F:F) -> 210042.87 | K190: =SUMIF('00 Alimenta'!$B:$B,'00 PDC SP'!$F190,'00 Alimenta'!G:G) -> 490053.37 | L190: =SUMIF('00 Alimenta'!$B:$B,'00 PDC SP'!$F190,'00 Alimenta'!H:H) -> 91354.52 | M190: =SUMIF('00 Alimenta'!$B:$B,'00 PDC SP'!$F190,'00 Alimenta'!I:I) -> 34529.48 | N190: 546878.41
A191: ABA580FE | B191: AB | C191: ABA580 | D191: 27 | E191: FE | F191: 0102021419 | G191: Fatture da emettere v/ASL Avezzano Sulmona L'Aquila per altre prestazioni | H191: =SUMIF('00 Alimenta'!$B:$B,'00 PDC SP'!$F191,'00 Alimenta'!D:D) -> 8143.77 | I191: =SUMIF('00 Alimenta'!$B:$B,'00 PDC SP'!$F191,'00 Alimenta'!E:E) -> 37721.2 | J191: =SUMIF('00 Alimenta'!$B:$B,'00 PDC SP'!$F191,'00 Alimenta'!F:F) -> 8143.77 | K191: =SUMIF('00 Alimenta'!$B:$B,'00 PDC SP'!$F191,'00 Alimenta'!G:G) -> 37721.2 | L191: =SUMIF('00 Alimenta'!$B:$B,'00 PDC SP'!$F191,'00 Alimenta'!H:H) -> 2141.44 | M191: =SUMIF('00 Alimenta'!$B:$B,'00 PDC SP'!$F191,'00 Alimenta'!I:I) -> 37721.2 | N191: 2141.44
A192: ABA580CR | B192: AB | C192: ABA580 | D192: 27 | E192: CR | F192: 0102021420 | G192: Crediti v/ASL Lanciano Vasto Chieti per altre prestazioni | H192: =SUMIF('00 Alimenta'!$B:$B,'00 PDC SP'!$F192,'00 Alimenta'!D:D) -> 233845.47 | I192: =SUMIF('00 Alimenta'!$B:$B,'00 PDC SP'!$F192,'00 Alimenta'!E:E) -> 110654.79 | J192: =SUMIF('00 Alimenta'!$B:$B,'00 PDC SP'!$F192,'00 Alimenta'!F:F) -> 99868.92 | K192: =SUMIF('00 Alimenta'!$B:$B,'00 PDC SP'!$F192,'00 Alimenta'!G:G) -> 244631.34 | L192: =SUMIF('00 Alimenta'!$B:$B,'00 PDC SP'!$F192,'00 Alimenta'!H:H) -> 150854.48 | M192: =SUMIF('00 Alimenta'!$B:$B,'00 PDC SP'!$F192,'00 Alimenta'!I:I) -> 107562.38 | N192: 287923.44
A193: ABA580FE | B193: AB | C193: ABA580 | D193: 27 | E193: FE | F193: 0102021421 | G193: Fatture da emettere v/ASL Lanciano Vasto Chieti per altre prestazioni | H193: =SUMIF('00 Alimenta'!$B:$B,'00 PDC SP'!$F193,'00 Alimenta'!D:D) -> 1282.71 | I193: =SUMIF('00 Alimenta'!$B:$B,'00 PDC SP'!$F193,'00 Alimenta'!E:E) -> 25919.58 | J193: =SUMIF('00 Alimenta'!$B:$B,'00 PDC SP'!$F193,'00 Alimenta'!F:F) -> 1282.71 | K193: =SUMIF('00 Alimenta'!$B:$B,'00 PDC SP'!$F193,'00 Alimenta'!G:G) -> 25919.58 | L193: =SUMIF('00 Alimenta'!$B:$B,'00 PDC SP'!$F193,'00 Alimenta'!H:H) -> 21559.36 | M193: =SUMIF('00 Alimenta'!$B:$B,'00 PDC SP'!$F193,'00 Alimenta'!I:I) -> 25919.58 | N193: 21559.36
A194: ABA580CR | B194: AB | C194: ABA580 | D194: 27 | E194: CR | F194: 0102021422 | G194: Crediti v/ASL Pescara per altre prestazioni | H194: =SUMIF('00 Alimenta'!$B:$B,'00 PDC SP'!$F194,'00 Alimenta'!D:D) -> 0 | I194: =SUMIF('00 Alimenta'!$B:$B,'00 PDC SP'!$F194,'00 Alimenta'!E:E) -> 0 | J194: =SUMIF('00 Alimenta'!$B:$B,'00 PDC SP'!$F194,'00 Alimenta'!F:F) -> 0 | K194: =SUMIF('00 Alimenta'!$B:$B,'00 PDC SP'!$F194,'00 Alimenta'!G:G) -> 0 | L194: =SUMIF('00 Alimenta'!$B:$B,'00 PDC SP'!$F194,'00 Alimenta'!H:H) -> 0 | M194: =SUMIF('00 Alimenta'!$B:$B,'00 PDC SP'!$F194,'00 Alimenta'!I:I) -> 0 | N194: 0
A195: ABA580FE | B195: AB | C195: ABA580 | D195: 27 | E195: FE | F195: 0102021423 | G195: Fatture da emettere v/ASL Pescara per altre prestazioni | H195: =SUMIF('00 Alimenta'!$B:$B,'00 PDC SP'!$F195,'00 Alimenta'!D:D) -> 0 | I195: =SUMIF('00 Alimenta'!$B:$B,'00 PDC SP'!$F195,'00 Alimenta'!E:E) -> 0 | J195: =SUMIF('00 Alimenta'!$B:$B,'00 PDC SP'!$F195,'00 Alimenta'!F:F) -> 0 | K195: =SUMIF('00 Alimenta'!$B:$B,'00 PDC SP'!$F195,'00 Alimenta'!G:G) -> 0 | L195: =SUMIF('00 Alimenta'!$B:$B,'00 PDC SP'!$F195,'00 Alimenta'!H:H) -> 0 | M195: =SUMIF('00 Alimenta'!$B:$B,'00 PDC SP'!$F195,'00 Alimenta'!I:I) -> 0 | N195: 0
A196: ABA580CR | B196: AB | C196: ABA580 | D196: 27 | E196: CR | F196: 0102021424 | G196: Crediti v/ASL Teramo per altre prestazioni | H196: =SUMIF('00 Alimenta'!$B:$B,'00 PDC SP'!$F196,'00 Alimenta'!D:D) -> 3855447.31 | I196: =SUMIF('00 Alimenta'!$B:$B,'00 PDC SP'!$F196,'00 Alimenta'!E:E) -> 11975.84 | J196: =SUMIF('00 Alimenta'!$B:$B,'00 PDC SP'!$F196,'00 Alimenta'!F:F) -> 29003.38 | K196: =SUMIF('00 Alimenta'!$B:$B,'00 PDC SP'!$F196,'00 Alimenta'!G:G) -> 3838419.77 | L196: =SUMIF('00 Alimenta'!$B:$B,'00 PDC SP'!$F196,'00 Alimenta'!H:H) -> 284732.87 | M196: =SUMIF('00 Alimenta'!$B:$B,'00 PDC SP'!$F196,'00 Alimenta'!I:I) -> 281616.85 | N196: 3841535.79
A197: ABA580FE | B197: AB | C197: ABA580 | D197: 27 | E197: FE | F197: 0102021425 | G197: Fatture da emettere v/ASL Teramo per altre prestazioni | H197: =SUMIF('00 Alimenta'!$B:$B,'00 PDC SP'!$F197,'00 Alimenta'!D:D) -> 5559.81 | I197: =SUMIF('00 Alimenta'!$B:$B,'00 PDC SP'!$F197,'00 Alimenta'!E:E) -> 4159.83 | J197: =SUMIF('00 Alimenta'!$B:$B,'00 PDC SP'!$F197,'00 Alimenta'!F:F) -> 5559.81 | K197: =SUMIF('00 Alimenta'!$B:$B,'00 PDC SP'!$F197,'00 Alimenta'!G:G) -> 4159.83 | L197: =SUMIF('00 Alimenta'!$B:$B,'00 PDC SP'!$F197,'00 Alimenta'!H:H) -> 4464.7 | M197: =SUMIF('00 Alimenta'!$B:$B,'00 PDC SP'!$F197,'00 Alimenta'!I:I) -> 4159.83 | N197: 4464.7
A198: ABA601CR | B198: =IF(C198="PAA220","UT",LEFT(C198,2)) -> AB | C198: ABA601 | D198: 27 | E198: CR | F198: 0102021426 | G198: Crediti v/Asl Avezzano Sulmona L'Aquila sanitarie pubbliche della Regione - per Contributi da Aziende sanitarie pubbliche della Regione o Prov. Aut. (extra fondo) | H198: =SUMIF('00 Alimenta'!$B:$B,'00 PDC SP'!$F198,'00 Alimenta'!D:D) -> 0 | I198: =SUMIF('00 Alimenta'!$B:$B,'00 PDC SP'!$F198,'00 Alimenta'!E:E) -> 0 | J198: =SUMIF('00 Alimenta'!$B:$B,'00 PDC SP'!$F198,'00 Alimenta'!F:F) -> 0 | K198: =SUMIF('00 Alimenta'!$B:$B,'00 PDC SP'!$F198,'00 Alimenta'!G:G) -> 0 | L198: =SUMIF('00 Alimenta'!$B:$B,'00 PDC SP'!$F198,'00 Alimenta'!H:H) -> 0 | M198: =SUMIF('00 Alimenta'!$B:$B,'00 PDC SP'!$F198,'00 Alimenta'!I:I) -> 0 | N198: 0
A199: ABA601CR | B199: AB | C199: ABA601 | D199: 27 | E199: CR | F199: 0102021427 | G199: Crediti v/Asl Lanciano Vasto Chieti sanitarie pubbliche della Regione - per Contributi da Aziende sanitarie pubbliche della Regione o Prov. Aut. (extra fondo) | H199: =SUMIF('00 Alimenta'!$B:$B,'00 PDC SP'!$F199,'00 Alimenta'!D:D) -> 0 | I199: =SUMIF('00 Alimenta'!$B:$B,'00 PDC SP'!$F199,'00 Alimenta'!E:E) -> 0 | J199: =SUMIF('00 Alimenta'!$B:$B,'00 PDC SP'!$F199,'00 Alimenta'!F:F) -> 0 | K199: =SUMIF('00 Alimenta'!$B:$B,'00 PDC SP'!$F199,'00 Alimenta'!G:G) -> 0 | L199: =SUMIF('00 Alimenta'!$B:$B,'00 PDC SP'!$F199,'00 Alimenta'!H:H) -> 0 | M199: =SUMIF('00 Alimenta'!$B:$B,'00 PDC SP'!$F199,'00 Alimenta'!I:I) -> 0 | N199: 0
A200: =IF(E200="",C200,C200&E200) -> ABA601CR | B200: AB | C200: ABA601 | D200: 27 | E200: CR | F200: 0102021428 | G200: Crediti v/Asl Pescara sanitarie pubbliche della Regione - per Contributi da Aziende sanitarie pubbliche della Regione o Prov. Aut. (extra fondo) | H200: =SUMIF('00 Alimenta'!$B:$B,'00 PDC SP'!$F200,'00 Alimenta'!D:D) -> 0 | I200: =SUMIF('00 Alimenta'!$B:$B,'00 PDC SP'!$F200,'00 Alimenta'!E:E) -> 0 | J200: =SUMIF('00 Alimenta'!$B:$B,'00 PDC SP'!$F200,'00 Alimenta'!F:F) -> 0 | K200: =SUMIF('00 Alimenta'!$B:$B,'00 PDC SP'!$F200,'00 Alimenta'!G:G) -> 0 | L200: =SUMIF('00 Alimenta'!$B:$B,'00 PDC SP'!$F200,'00 Alimenta'!H:H) -> 0 | M200: =SUMIF('00 Alimenta'!$B:$B,'00 PDC SP'!$F200,'00 Alimenta'!I:I) -> 0 | N200: =K200+L200-M200 -> 0
A201: ABA601CR | B201: AB | C201: ABA601 | D201: 27 | E201: CR | F201: 0102021429 | G201: Crediti v/Asl Teramo sanitarie pubbliche della Regione - per Contributi da Aziende sanitarie pubbliche della Regione o Prov. Aut. (extra fondo) | H201: =SUMIF('00 Alimenta'!$B:$B,'00 PDC SP'!$F201,'00 Alimenta'!D:D) -> 0 | I201: =SUMIF('00 Alimenta'!$B:$B,'00 PDC SP'!$F201,'00 Alimenta'!E:E) -> 0 | J201: =SUMIF('00 Alimenta'!$B:$B,'00 PDC SP'!$F201,'00 Alimenta'!F:F) -> 0 | K201: =SUMIF('00 Alimenta'!$B:$B,'00 PDC SP'!$F201,'00 Alimenta'!G:G) -> 0 | L201: =SUMIF('00 Alimenta'!$B:$B,'00 PDC SP'!$F201,'00 Alimenta'!H:H) -> 0 | M201: =SUMIF('00 Alimenta'!$B:$B,'00 PDC SP'!$F201,'00 Alimenta'!I:I) -> 0 | N201: 0
A202: ABA590CR | B202: AB | C202: ABA590 | D202: 27 | E202: CR | F202: 0102021501 | G202: Acconto quota FSR da distribuire | H202: =SUMIF('00 Alimenta'!$B:$B,'00 PDC SP'!$F202,'00 Alimenta'!D:D) -> 0 | I202: =SUMIF('00 Alimenta'!$B:$B,'00 PDC SP'!$F202,'00 Alimenta'!E:E) -> 0 | J202: =SUMIF('00 Alimenta'!$B:$B,'00 PDC SP'!$F202,'00 Alimenta'!F:F) -> 0 | K202: =SUMIF('00 Alimenta'!$B:$B,'00 PDC SP'!$F202,'00 Alimenta'!G:G) -> 0 | L202: =SUMIF('00 Alimenta'!$B:$B,'00 PDC SP'!$F202,'00 Alimenta'!H:H) -> 0 | M202: =SUMIF('00 Alimenta'!$B:$B,'00 PDC SP'!$F202,'00 Alimenta'!I:I) -> 0 | N202: 0
... 582 more rows

Sheet 00 SP
A2: CODICE | B2: DESCRIZIONE | D2: CODICE | E2: RF | F2: ='00 PDC SP'!H4 -> Esercizio 2017 | G2: ='00 PDC SP'!I4 -> Incrementi 2018 | H2: ='00 PDC SP'!J4 -> Decrementi 2018 | I2: ='00 PDC SP'!K4 -> Esercizio 2018 | J2: ='00 PDC SP'!L4 -> Incrementi 2019 | K2: ='00 PDC SP'!M4 -> Decrementi 2019 | L2: ='00 PDC SP'!N4 -> Esercizio 2019
A3: AAZ999 | B3: A) IMMOBILIZZAZIONI | C3: S | D3: AAZ999 | F3: =F4+F31 -> 108295423.3 | G3: =G4+G31 -> -1490066.47 | H3: 3978813.77 | I3: 102826543.1 | J3: -5136402.65 | K3: 247484.55 | L3: 97442655.86
A4: AAA000 | B4: A.I) IMMOBILIZZAZIONI IMMATERIALI | C4: S | D4: AAA000 | F4: =F5+F8+F11+F16+F17+F26 -> 492967.04 | G4: =G5+G8+G11+G16+G17+G26 -> -29741.25 | H4: 0 | I4: 463225.79 | J4: -89809.73 | K4: 0 | L4: 373416.06
A5: AAA010 | B5: A.I.1) Costi di impianto e di ampliamento | C5: S | D5: AAA010 | F5: =SUM(F6:F7) -> 0 | G5: =SUM(G6:G7) -> 0 | H5: 0 | I5: 0 | J5: 0 | K5: 0 | L5: 0
A6: AAA020 | B6: A.I.1.a) Costi di impianto e di ampliamento | D6: AAA020 | F6: =SUMIF('00 PDC SP'!$C:$C,$D6,'00 PDC SP'!H:H) -> 0 | G6: =SUMIF('00 PDC SP'!$C:$C,$D6,'00 PDC SP'!I:I) -> 0 | H6: =SUMIF('00 PDC SP'!$C:$C,$D6,'00 PDC SP'!J:J) -> 0 | I6: =SUMIF('00 PDC SP'!$C:$C,$D6,'00 PDC SP'!K:K) -> 0 | J6: =SUMIF('00 PDC SP'!$C:$C,$D6,'00 PDC SP'!L:L) -> 0 | K6: =SUMIF('00 PDC SP'!$C:$C,$D6,'00 PDC SP'!M:M) -> 0 | L6: =SUMIF('00 PDC SP'!$C:$C,$D6,'00 PDC SP'!N:N) -> 0
A7: AAA030 | B7: A.I.1.b) F.do Amm.to costi di impianto e di ampliamento | D7: AAA030 | F7: =SUMIF('00 PDC SP'!$C:$C,$D7,'00 PDC SP'!H:H) -> 0 | G7: =SUMIF('00 PDC SP'!$C:$C,$D7,'00 PDC SP'!I:I) -> 0 | H7: =SUMIF('00 PDC SP'!$C:$C,$D7,'00 PDC SP'!J:J) -> 0 | I7: =SUMIF('00 PDC SP'!$C:$C,$D7,'00 PDC SP'!K:K) -> 0 | J7: =SUMIF('00 PDC SP'!$C:$C,$D7,'00 PDC SP'!L:L) -> 0 | K7: =SUMIF('00 PDC SP'!$C:$C,$D7,'00 PDC SP'!M:M) -> 0 | L7: =SUMIF('00 PDC SP'!$C:$C,$D7,'00 PDC SP'!N:N) -> 0
A8: AAA040 | B8: A.I.2) Costi di ricerca e sviluppo | C8: S | D8: AAA040 | F8: =SUM(F9:F10) -> 0 | G8: =SUM(G9:G10) -> 0 | H8: 0 | I8: 0 | J8: 0 | K8: 0 | L8: 0
A9: AAA050 | B9: A.I.2.a) Costi di ricerca e sviluppo | D9: AAA050 | F9: =SUMIF('00 PDC SP'!$C:$C,$D9,'00 PDC SP'!H:H) -> 0 | G9: =SUMIF('00 PDC SP'!$C:$C,$D9,'00 PDC SP'!I:I) -> 0 | H9: =SUMIF('00 PDC SP'!$C:$C,$D9,'00 PDC SP'!J:J) -> 0 | I9: =SUMIF('00 PDC SP'!$C:$C,$D9,'00 PDC SP'!K:K) -> 0 | J9: =SUMIF('00 PDC SP'!$C:$C,$D9,'00 PDC SP'!L:L) -> 0 | K9: =SUMIF('00 PDC SP'!$C:$C,$D9,'00 PDC SP'!M:M) -> 0 | L9: =SUMIF('00 PDC SP'!$C:$C,$D9,'00 PDC SP'!N:N) -> 0
A10: AAA060 | B10: A.I.2.b) F.do Amm.to costi di ricerca e sviluppo | D10: AAA060 | F10: =SUMIF('00 PDC SP'!$C:$C,$D10,'00 PDC SP'!H:H) -> 0 | G10: =SUMIF('00 PDC SP'!$C:$C,$D10,'00 PDC SP'!I:I) -> 0 | H10: =SUMIF('00 PDC SP'!$C:$C,$D10,'00 PDC SP'!J:J) -> 0 | I10: =SUMIF('00 PDC SP'!$C:$C,$D10,'00 PDC SP'!K:K) -> 0 | J10: =SUMIF('00 PDC SP'!$C:$C,$D10,'00 PDC SP'!L:L) -> 0 | K10: =SUMIF('00 PDC SP'!$C:$C,$D10,'00 PDC SP'!M:M) -> 0 | L10: =SUMIF('00 PDC SP'!$C:$C,$D10,'00 PDC SP'!N:N) -> 0
A11: AAA070 | B11: A.I.3) Diritti di brevetto e diritti di utilizzazione delle opere d'ingegno | C11: S | D11: AAA070 | F11: =SUM(F12:F15) -> 0 | G11: =SUM(G12:G15) -> 0 | H11: 0 | I11: 0 | J11: 0 | K11: 0 | L11: 0
A12: AAA080 | B12: A.I.3.a) Diritti di brevetto e diritti di utilizzazione delle opere d'ingegno - derivanti dall'attività di ricerca | D12: AAA080 | F12: =SUMIF('00 PDC SP'!$C:$C,$D12,'00 PDC SP'!H:H) -> 0 | G12: =SUMIF('00 PDC SP'!$C:$C,$D12,'00 PDC SP'!I:I) -> 0 | H12: =SUMIF('00 PDC SP'!$C:$C,$D12,'00 PDC SP'!J:J) -> 0 | I12: =SUMIF('00 PDC SP'!$C:$C,$D12,'00 PDC SP'!K:K) -> 0 | J12: =SUMIF('00 PDC SP'!$C:$C,$D12,'00 PDC SP'!L:L) -> 0 | K12: =SUMIF('00 PDC SP'!$C:$C,$D12,'00 PDC SP'!M:M) -> 0 | L12: =SUMIF('00 PDC SP'!$C:$C,$D12,'00 PDC SP'!N:N) -> 0
A13: AAA090 | B13: A.I.3.b) F.do Amm.to diritti di brevetto e diritti di utilizzazione delle opere d'ingegno - derivanti dall'attività di ricerca | D13: AAA090 | F13: =SUMIF('00 PDC SP'!$C:$C,$D13,'00 PDC SP'!H:H) -> 0 | G13: =SUMIF('00 PDC SP'!$C:$C,$D13,'00 PDC SP'!I:I) -> 0 | H13: =SUMIF('00 PDC SP'!$C:$C,$D13,'00 PDC SP'!J:J) -> 0 | I13: =SUMIF('00 PDC SP'!$C:$C,$D13,'00 PDC SP'!K:K) -> 0 | J13: =SUMIF('00 PDC SP'!$C:$C,$D13,'00 PDC SP'!L:L) -> 0 | K13: =SUMIF('00 PDC SP'!$C:$C,$D13,'00 PDC SP'!M:M) -> 0 | L13: =SUMIF('00 PDC SP'!$C:$C,$D13,'00 PDC SP'!N:N) -> 0
A14: AAA100 | B14: A.I.3.c) Diritti di brevetto e diritti di utilizzazione delle opere d'ingegno - altri | D14: AAA100 | F14: =SUMIF('00 PDC SP'!$C:$C,$D14,'00 PDC SP'!H:H) -> 0 | G14: =SUMIF('00 PDC SP'!$C:$C,$D14,'00 PDC SP'!I:I) -> 0 | H14: =SUMIF('00 PDC SP'!$C:$C,$D14,'00 PDC SP'!J:J) -> 0 | I14: =SUMIF('00 PDC SP'!$C:$C,$D14,'00 PDC SP'!K:K) -> 0 | J14: =SUMIF('00 PDC SP'!$C:$C,$D14,'00 PDC SP'!L:L) -> 0 | K14: =SUMIF('00 PDC SP'!$C:$C,$D14,'00 PDC SP'!M:M) -> 0 | L14: =SUMIF('00 PDC SP'!$C:$C,$D14,'00 PDC SP'!N:N) -> 0
A15: AAA110 | B15: A.I.3.d) F.do Amm.to diritti di brevetto e diritti di utilizzazione delle opere d'ingegno - altri | D15: AAA110 | F15: =SUMIF('00 PDC SP'!$C:$C,$D15,'00 PDC SP'!H:H) -> 0 | G15: =SUMIF('00 PDC SP'!$C:$C,$D15,'00 PDC SP'!I:I) -> 0 | H15: =SUMIF('00 PDC SP'!$C:$C,$D15,'00 PDC SP'!J:J) -> 0 | I15: =SUMIF('00 PDC SP'!$C:$C,$D15,'00 PDC SP'!K:K) -> 0 | J15: =SUMIF('00 PDC SP'!$C:$C,$D15,'00 PDC SP'!L:L) -> 0 | K15: =SUMIF('00 PDC SP'!$C:$C,$D15,'00 PDC SP'!M:M) -> 0 | L15: =SUMIF('00 PDC SP'!$C:$C,$D15,'00 PDC SP'!N:N) -> 0
A16: AAA120 | B16: A.I.4) Immobilizzazioni immateriali in corso e acconti | D16: AAA120 | F16: =SUMIF('00 PDC SP'!$C:$C,$D16,'00 PDC SP'!H:H) -> 0 | G16: =SUMIF('00 PDC SP'!$C:$C,$D16,'00 PDC SP'!I:I) -> 0 | H16: =SUMIF('00 PDC SP'!$C:$C,$D16,'00 PDC SP'!J:J) -> 0 | I16: =SUMIF('00 PDC SP'!$C:$C,$D16,'00 PDC SP'!K:K) -> 0 | J16: =SUMIF('00 PDC SP'!$C:$C,$D16,'00 PDC SP'!L:L) -> 0 | K16: =SUMIF('00 PDC SP'!$C:$C,$D16,'00 PDC SP'!M:M) -> 0 | L16: =SUMIF('00 PDC SP'!$C:$C,$D16,'00 PDC SP'!N:N) -> 0
A17: AAA130 | B17: A.I.5) Altre immobilizzazioni immateriali | C17: S | D17: AAA130 | F17: =SUM(F18:F25) -> 492967.04 | G17: =SUM(G18:G25) -> -29741.25 | H17: 0 | I17: 463225.79 | J17: -89809.73 | K17: 0 | L17: 373416.06
A18: AAA140 | B18: A.I.5.a) Concessioni, licenze, marchi e diritti simili | D18: AAA140 | F18: =SUMIF('00 PDC SP'!$C:$C,$D18,'00 PDC SP'!H:H) -> 2188144.58 | G18: =SUMIF('00 PDC SP'!$C:$C,$D18,'00 PDC SP'!I:I) -> 131197.56 | H18: =SUMIF('00 PDC SP'!$C:$C,$D18,'00 PDC SP'!J:J) -> 11461.65 | I18: =SUMIF('00 PDC SP'!$C:$C,$D18,'00 PDC SP'!K:K) -> 2307880.49 | J18: =SUMIF('00 PDC SP'!$C:$C,$D18,'00 PDC SP'!L:L) -> 65627.89 | K18: =SUMIF('00 PDC SP'!$C:$C,$D18,'00 PDC SP'!M:M) -> 0 | L18: =SUMIF('00 PDC SP'!$C:$C,$D18,'00 PDC SP'!N:N) -> 2373508.38
A19: AAA150 | B19: A.I.5.b) F.do Amm.to concessioni, licenze, marchi e diritti simili | D19: AAA150 | F19: =SUMIF('00 PDC SP'!$C:$C,$D19,'00 PDC SP'!H:H) -> -1695177.54 | G19: =SUMIF('00 PDC SP'!$C:$C,$D19,'00 PDC SP'!I:I) -> -160938.81 | H19: =SUMIF('00 PDC SP'!$C:$C,$D19,'00 PDC SP'!J:J) -> -11461.65 | I19: =SUMIF('00 PDC SP'!$C:$C,$D19,'00 PDC SP'!K:K) -> -1844654.7 | J19: =SUMIF('00 PDC SP'!$C:$C,$D19,'00 PDC SP'!L:L) -> -155437.62 | K19: =SUMIF('00 PDC SP'!$C:$C,$D19,'00 PDC SP'!M:M) -> 0 | L19: =SUMIF('00 PDC SP'!$C:$C,$D19,'00 PDC SP'!N:N) -> -2000092.32
A20: AAA160 | B20: A.I.5.c) Migliorie su beni di terzi | D20: AAA160 | F20: =SUMIF('00 PDC SP'!$C:$C,$D20,'00 PDC SP'!H:H) -> 0 | G20: =SUMIF('00 PDC SP'!$C:$C,$D20,'00 PDC SP'!I:I) -> 0 | H20: =SUMIF('00 PDC SP'!$C:$C,$D20,'00 PDC SP'!J:J) -> 0 | I20: =SUMIF('00 PDC SP'!$C:$C,$D20,'00 PDC SP'!K:K) -> 0 | J20: =SUMIF('00 PDC SP'!$C:$C,$D20,'00 PDC SP'!L:L) -> 0 | K20: =SUMIF('00 PDC SP'!$C:$C,$D20,'00 PDC SP'!M:M) -> 0 | L20: =SUMIF('00 PDC SP'!$C:$C,$D20,'00 PDC SP'!N:N) -> 0
A21: AAA170 | B21: A.I.5.d) F.do Amm.to migliorie su beni di terzi | D21: AAA170 | F21: =SUMIF('00 PDC SP'!$C:$C,$D21,'00 PDC SP'!H:H) -> 0 | G21: =SUMIF('00 PDC SP'!$C:$C,$D21,'00 PDC SP'!I:I) -> 0 | H21: =SUMIF('00 PDC SP'!$C:$C,$D21,'00 PDC SP'!J:J) -> 0 | I21: =SUMIF('00 PDC SP'!$C:$C,$D21,'00 PDC SP'!K:K) -> 0 | J21: =SUMIF('00 PDC SP'!$C:$C,$D21,'00 PDC SP'!L:L) -> 0 | K21: =SUMIF('00 PDC SP'!$C:$C,$D21,'00 PDC SP'!M:M) -> 0 | L21: =SUMIF('00 PDC SP'!$C:$C,$D21,'00 PDC SP'!N:N) -> 0
A22: AAA180 | B22: A.I.5.e) Pubblicità | D22: AAA180 | F22: =SUMIF('00 PDC SP'!$C:$C,$D22,'00 PDC SP'!H:H) -> 0 | G22: =SUMIF('00 PDC SP'!$C:$C,$D22,'00 PDC SP'!I:I) -> 0 | H22: =SUMIF('00 PDC SP'!$C:$C,$D22,'00 PDC SP'!J:J) -> 0 | I22: =SUMIF('00 PDC SP'!$C:$C,$D22,'00 PDC SP'!K:K) -> 0 | J22: =SUMIF('00 PDC SP'!$C:$C,$D22,'00 PDC SP'!L:L) -> 0 | K22: =SUMIF('00 PDC SP'!$C:$C,$D22,'00 PDC SP'!M:M) -> 0 | L22: =SUMIF('00 PDC SP'!$C:$C,$D22,'00 PDC SP'!N:N) -> 0
A23: AAA190 | B23: A.I.5.f) F.do Amm.to pubblicità | D23: AAA190 | F23: =SUMIF('00 PDC SP'!$C:$C,$D23,'00 PDC SP'!H:H) -> 0 | G23: =SUMIF('00 PDC SP'!$C:$C,$D23,'00 PDC SP'!I:I) -> 0 | H23: =SUMIF('00 PDC SP'!$C:$C,$D23,'00 PDC SP'!J:J) -> 0 | I23: =SUMIF('00 PDC SP'!$C:$C,$D23,'00 PDC SP'!K:K) -> 0 | J23: =SUMIF('00 PDC SP'!$C:$C,$D23,'00 PDC SP'!L:L) -> 0 | K23: =SUMIF('00 PDC SP'!$C:$C,$D23,'00 PDC SP'!M:M) -> 0 | L23: =SUMIF('00 PDC SP'!$C:$C,$D23,'00 PDC SP'!N:N) -> 0
A24: AAA200 | B24: A.I.5.g) Altre immobilizzazioni immateriali | D24: AAA200 | F24: =SUMIF('00 PDC SP'!$C:$C,$D24,'00 PDC SP'!H:H) -> 0 | G24: =SUMIF('00 PDC SP'!$C:$C,$D24,'00 PDC SP'!I:I) -> 0 | H24: =SUMIF('00 PDC SP'!$C:$C,$D24,'00 PDC SP'!J:J) -> 0 | I24: =SUMIF('00 PDC SP'!$C:$C,$D24,'00 PDC SP'!K:K) -> 0 | J24: =SUMIF('00 PDC SP'!$C:$C,$D24,'00 PDC SP'!L:L) -> 0 | K24: =SUMIF('00 PDC SP'!$C:$C,$D24,'00 PDC SP'!M:M) -> 0 | L24: =SUMIF('00 PDC SP'!$C:$C,$D24,'00 PDC SP'!N:N) -> 0
A25: AAA210 | B25: A.I.5.h) F.do Amm.to altre immobilizzazioni immateriali | D25: AAA210 | F25: =SUMIF('00 PDC SP'!$C:$C,$D25,'00 PDC SP'!H:H) -> 0 | G25: =SUMIF('00 PDC SP'!$C:$C,$D25,'00 PDC SP'!I:I) -> 0 | H25: =SUMIF('00 PDC SP'!$C:$C,$D25,'00 PDC SP'!J:J) -> 0 | I25: =SUMIF('00 PDC SP'!$C:$C,$D25,'00 PDC SP'!K:K) -> 0 | J25: =SUMIF('00 PDC SP'!$C:$C,$D25,'00 PDC SP'!L:L) -> 0 | K25: =SUMIF('00 PDC SP'!$C:$C,$D25,'00 PDC SP'!M:M) -> 0 | L25: =SUMIF('00 PDC SP'!$C:$C,$D25,'00 PDC SP'!N:N) -> 0
A26: AAA220 | B26: A.I.6) Fondo Svalutazione immobilizzazioni immateriali | C26: S | D26: AAA220 | F26: =SUM(F27:F30) -> 0 | G26: =SUM(G27:G30) -> 0 | H26: 0 | I26: 0 | J26: 0 | K26: 0 | L26: 0
A27: AAA230 | B27: A.I.6.a) F.do Svalut. Costi di impianto e di ampliamento | D27: AAA230 | F27: =SUMIF('00 PDC SP'!$C:$C,$D27,'00 PDC SP'!H:H) -> 0 | G27: =SUMIF('00 PDC SP'!$C:$C,$D27,'00 PDC SP'!I:I) -> 0 | H27: =SUMIF('00 PDC SP'!$C:$C,$D27,'00 PDC SP'!J:J) -> 0 | I27: =SUMIF('00 PDC SP'!$C:$C,$D27,'00 PDC SP'!K:K) -> 0 | J27: =SUMIF('00 PDC SP'!$C:$C,$D27,'00 PDC SP'!L:L) -> 0 | K27: =SUMIF('00 PDC SP'!$C:$C,$D27,'00 PDC SP'!M:M) -> 0 | L27: =SUMIF('00 PDC SP'!$C:$C,$D27,'00 PDC SP'!N:N) -> 0
A28: AAA240 | B28: A.I.6.b) F.do Svalut. Costi di ricerca e sviluppo | D28: AAA240 | F28: =SUMIF('00 PDC SP'!$C:$C,$D28,'00 PDC SP'!H:H) -> 0 | G28: =SUMIF('00 PDC SP'!$C:$C,$D28,'00 PDC SP'!I:I) -> 0 | H28: =SUMIF('00 PDC SP'!$C:$C,$D28,'00 PDC SP'!J:J) -> 0 | I28: =SUMIF('00 PDC SP'!$C:$C,$D28,'00 PDC SP'!K:K) -> 0 | J28: =SUMIF('00 PDC SP'!$C:$C,$D28,'00 PDC SP'!L:L) -> 0 | K28: =SUMIF('00 PDC SP'!$C:$C,$D28,'00 PDC SP'!M:M) -> 0 | L28: =SUMIF('00 PDC SP'!$C:$C,$D28,'00 PDC SP'!N:N) -> 0
A29: AAA250 | B29: A.I.6.c) F.do Svalut. Diritti di brevetto e diritti di utilizzazione delle opere d'ingegno | D29: AAA250 | F29: =SUMIF('00 PDC SP'!$C:$C,$D29,'00 PDC SP'!H:H) -> 0 | G29: =SUMIF('00 PDC SP'!$C:$C,$D29,'00 PDC SP'!I:I) -> 0 | H29: =SUMIF('00 PDC SP'!$C:$C,$D29,'00 PDC SP'!J:J) -> 0 | I29: =SUMIF('00 PDC SP'!$C:$C,$D29,'00 PDC SP'!K:K) -> 0 | J29: =SUMIF('00 PDC SP'!$C:$C,$D29,'00 PDC SP'!L:L) -> 0 | K29: =SUMIF('00 PDC SP'!$C:$C,$D29,'00 PDC SP'!M:M) -> 0 | L29: =SUMIF('00 PDC SP'!$C:$C,$D29,'00 PDC SP'!N:N) -> 0
A30: AAA260 | B30: A.I.6.d) F.do Svalut. Altre immobilizzazioni immateriali | D30: AAA260 | F30: =SUMIF('00 PDC SP'!$C:$C,$D30,'00 PDC SP'!H:H) -> 0 | G30: =SUMIF('00 PDC SP'!$C:$C,$D30,'00 PDC SP'!I:I) -> 0 | H30: =SUMIF('00 PDC SP'!$C:$C,$D30,'00 PDC SP'!J:J) -> 0 | I30: =SUMIF('00 PDC SP'!$C:$C,$D30,'00 PDC SP'!K:K) -> 0 | J30: =SUMIF('00 PDC SP'!$C:$C,$D30,'00 PDC SP'!L:L) -> 0 | K30: =SUMIF('00 PDC SP'!$C:$C,$D30,'00 PDC SP'!M:M) -> 0 | L30: =SUMIF('00 PDC SP'!$C:$C,$D30,'00 PDC SP'!N:N) -> 0
A31: AAA270 | B31: A.II) IMMOBILIZZAZIONI MATERIALI | C31: S | D31: AAA270 | F31: =F32+F35+F42+F45+F48+F51+F54+F55+F58+F59 -> 107802456.3 | G31: =G32+G35+G42+G45+G48+G51+G54+G55+G58+G59 -> -1460325.22 | H31: 3978813.77 | I31: 102363317.3 | J31: -5046592.92 | K31: 247484.55 | L31: 97069239.8
A32: AAA280 | B32: A.II.1) Terreni | C32: S | D32: AAA280 | F32: =SUM(F33:F34) -> 942655.12 | G32: =SUM(G33:G34) -> 0 | H32: 0 | I32: 942655.12 | J32: 0 | K32: 0 | L32: 942655.12
A33: AAA290 | B33: A.II.1.a) Terreni disponibili | D33: AAA290 | F33: =SUMIF('00 PDC SP'!$C:$C,$D33,'00 PDC SP'!H:H) -> 0 | G33: =SUMIF('00 PDC SP'!$C:$C,$D33,'00 PDC SP'!I:I) -> 0 | H33: =SUMIF('00 PDC SP'!$C:$C,$D33,'00 PDC SP'!J:J) -> 0 | I33: =SUMIF('00 PDC SP'!$C:$C,$D33,'00 PDC SP'!K:K) -> 0 | J33: =SUMIF('00 PDC SP'!$C:$C,$D33,'00 PDC SP'!L:L) -> 0 | K33: =SUMIF('00 PDC SP'!$C:$C,$D33,'00 PDC SP'!M:M) -> 0 | L33: =SUMIF('00 PDC SP'!$C:$C,$D33,'00 PDC SP'!N:N) -> 0
A34: AAA300 | B34: A.II.1.b) Terreni indisponibili | D34: AAA300 | F34: =SUMIF('00 PDC SP'!$C:$C,$D34,'00 PDC SP'!H:H) -> 942655.12 | G34: =SUMIF('00 PDC SP'!$C:$C,$D34,'00 PDC SP'!I:I) -> 0 | H34: =SUMIF('00 PDC SP'!$C:$C,$D34,'00 PDC SP'!J:J) -> 0 | I34: =SUMIF('00 PDC SP'!$C:$C,$D34,'00 PDC SP'!K:K) -> 942655.12 | J34: =SUMIF('00 PDC SP'!$C:$C,$D34,'00 PDC SP'!L:L) -> 0 | K34: =SUMIF('00 PDC SP'!$C:$C,$D34,'00 PDC SP'!M:M) -> 0 | L34: =SUMIF('00 PDC SP'!$C:$C,$D34,'00 PDC SP'!N:N) -> 942655.12
A35: AAA310 | B35: A.II.2) Fabbricati | C35: S | D35: AAA310 | F35: =F36+F39 -> 78214784.89 | G35: =G36+G39 -> -2883228.61 | H35: 0 | I35: 75331556.28 | J35: -5032903.95 | K35: 0 | L35: 70298652.33
A36: AAA320 | B36: A.II.2.a) Fabbricati non strumentali (disponibili) | C36: S | D36: AAA320 | F36: =SUM(F37:F38) -> 0 | G36: =SUM(G37:G38) -> 0 | H36: 0 | I36: 0 | J36: 0 | K36: 0 | L36: 0
A37: AAA330 | B37: A.II.2.a.1) Fabbricati non strumentali (disponibili) | D37: AAA330 | F37: =SUMIF('00 PDC SP'!$C:$C,$D37,'00 PDC SP'!H:H) -> 0 | G37: =SUMIF('00 PDC SP'!$C:$C,$D37,'00 PDC SP'!I:I) -> 0 | H37: =SUMIF('00 PDC SP'!$C:$C,$D37,'00 PDC SP'!J:J) -> 0 | I37: =SUMIF('00 PDC SP'!$C:$C,$D37,'00 PDC SP'!K:K) -> 0 | J37: =SUMIF('00 PDC SP'!$C:$C,$D37,'00 PDC SP'!L:L) -> 0 | K37: =SUMIF('00 PDC SP'!$C:$C,$D37,'00 PDC SP'!M:M) -> 0 | L37: =SUMIF('00 PDC SP'!$C:$C,$D37,'00 PDC SP'!N:N) -> 0
A38: AAA340 | B38: A.II.2.a.2) F.do Amm.to Fabbricati non strumentali (disponibili) | D38: AAA340 | F38: =SUMIF('00 PDC SP'!$C:$C,$D38,'00 PDC SP'!H:H) -> 0 | G38: =SUMIF('00 PDC SP'!$C:$C,$D38,'00 PDC SP'!I:I) -> 0 | H38: =SUMIF('00 PDC SP'!$C:$C,$D38,'00 PDC SP'!J:J) -> 0 | I38: =SUMIF('00 PDC SP'!$C:$C,$D38,'00 PDC SP'!K:K) -> 0 | J38: =SUMIF('00 PDC SP'!$C:$C,$D38,'00 PDC SP'!L:L) -> 0 | K38: =SUMIF('00 PDC SP'!$C:$C,$D38,'00 PDC SP'!M:M) -> 0 | L38: =SUMIF('00 PDC SP'!$C:$C,$D38,'00 PDC SP'!N:N) -> 0
A39: AAA350 | B39: A.II.2.b) Fabbricati strumentali (indisponibili) | C39: S | D39: AAA350 | F39: =SUM(F40:F41) -> 78214784.89 | G39: =SUM(G40:G41) -> -2883228.61 | H39: 0 | I39: 75331556.28 | J39: -5032903.95 | K39: 0 | L39: 70298652.33
A40: AAA360 | B40: A.II.2.b.1) Fabbricati strumentali (indisponibili) | D40: AAA360 | F40: =SUMIF('00 PDC SP'!$C:$C,$D40,'00 PDC SP'!H:H) -> 169096559.2 | G40: =SUMIF('00 PDC SP'!$C:$C,$D40,'00 PDC SP'!I:I) -> 2087230 | H40: =SUMIF('00 PDC SP'!$C:$C,$D40,'00 PDC SP'!J:J) -> 0 | I40: =SUMIF('00 PDC SP'!$C:$C,$D40,'00 PDC SP'!K:K) -> 171183789.2 | J40: =SUMIF('00 PDC SP'!$C:$C,$D40,'00 PDC SP'!L:L) -> 0 | K40: =SUMIF('00 PDC SP'!$C:$C,$D40,'00 PDC SP'!M:M) -> 0 | L40: =SUMIF('00 PDC SP'!$C:$C,$D40,'00 PDC SP'!N:N) -> 171183789.2
A41: AAA370 | B41: A.II.2.b.2) F.do Amm.to Fabbricati strumentali (indisponibili) | D41: AAA370 | F41: =SUMIF('00 PDC SP'!$C:$C,$D41,'00 PDC SP'!H:H) -> -90881774.34 | G41: =SUMIF('00 PDC SP'!$C:$C,$D41,'00 PDC SP'!I:I) -> -4970458.61 | H41: =SUMIF('00 PDC SP'!$C:$C,$D41,'00 PDC SP'!J:J) -> 0 | I41: =SUMIF('00 PDC SP'!$C:$C,$D41,'00 PDC SP'!K:K) -> -95852232.95 | J41: =SUMIF('00 PDC SP'!$C:$C,$D41,'00 PDC SP'!L:L) -> -5032903.95 | K41: =SUMIF('00 PDC SP'!$C:$C,$D41,'00 PDC SP'!M:M) -> 0 | L41: =SUMIF('00 PDC SP'!$C:$C,$D41,'00 PDC SP'!N:N) -> -100885136.9
A42: AAA380 | B42: A.II.3) Impianti e macchinari | C42: S | D42: AAA380 | F42: =SUM(F43:F44) -> 1015680.95 | G42: =SUM(G43:G44) -> 410185.98 | H42: 17402.93 | I42: 1408464 | J42: 137008.49 | K42: 24400 | L42: 1521072.49
A43: AAA390 | B43: A.II.3.a) Impianti e macchinari | D43: AAA390 | F43: =SUMIF('00 PDC SP'!$C:$C,$D43,'00 PDC SP'!H:H) -> 6166777.53 | G43: =SUMIF('00 PDC SP'!$C:$C,$D43,'00 PDC SP'!I:I) -> 653192.51 | H43: =SUMIF('00 PDC SP'!$C:$C,$D43,'00 PDC SP'!J:J) -> 17647.73 | I43: =SUMIF('00 PDC SP'!$C:$C,$D43,'00 PDC SP'!K:K) -> 6802322.31 | J43: =SUMIF('00 PDC SP'!$C:$C,$D43,'00 PDC SP'!L:L) -> 456581.73 | K43: =SUMIF('00 PDC SP'!$C:$C,$D43,'00 PDC SP'!M:M) -> 56990.8 | L43: =SUMIF('00 PDC SP'!$C:$C,$D43,'00 PDC SP'!N:N) -> 7201913.24
A44: AAA400 | B44: A.II.3.b) F.do Amm.to Impianti e macchinari | D44: AAA400 | F44: =SUMIF('00 PDC SP'!$C:$C,$D44,'00 PDC SP'!H:H) -> -5151096.58 | G44: =SUMIF('00 PDC SP'!$C:$C,$D44,'00 PDC SP'!I:I) -> -243006.53 | H44: =SUMIF('00 PDC SP'!$C:$C,$D44,'00 PDC SP'!J:J) -> -244.8 | I44: =SUMIF('00 PDC SP'!$C:$C,$D44,'00 PDC SP'!K:K) -> -5393858.31 | J44: =SUMIF('00 PDC SP'!$C:$C,$D44,'00 PDC SP'!L:L) -> -319573.24 | K44: =SUMIF('00 PDC SP'!$C:$C,$D44,'00 PDC SP'!M:M) -> -32590.8 | L44: =SUMIF('00 PDC SP'!$C:$C,$D44,'00 PDC SP'!N:N) -> -5680840.75
A45: AAA410 | B45: A.II.4) Attrezzature sanitarie e scientifiche | C45: S | D45: AAA410 | F45: =SUM(F46:F47) -> 14220450.18 | G45: =SUM(G46:G47) -> -503898.62 | H45: 16889.68 | I45: 13699661.88 | J45: -2589029.62 | K45: 116343.79 | L45: 10994288.47
A46: AAA420 | B46: A.II.4.a) Attrezzature sanitarie e scientifiche | D46: AAA420 | F46: =SUMIF('00 PDC SP'!$C:$C,$D46,'00 PDC SP'!H:H) -> 84717848.54 | G46: =SUMIF('00 PDC SP'!$C:$C,$D46,'00 PDC SP'!I:I) -> 4303427.61 | H46: =SUMIF('00 PDC SP'!$C:$C,$D46,'00 PDC SP'!J:J) -> 5885338.17 | I46: =SUMIF('00 PDC SP'!$C:$C,$D46,'00 PDC SP'!K:K) -> 83135937.98 | J46: =SUMIF('00 PDC SP'!$C:$C,$D46,'00 PDC SP'!L:L) -> 2217999.93 | K46: =SUMIF('00 PDC SP'!$C:$C,$D46,'00 PDC SP'!M:M) -> 996227.99 | L46: =SUMIF('00 PDC SP'!$C:$C,$D46,'00 PDC SP'!N:N) -> 84357709.92
A47: AAA430 | B47: A.II.4.b) F.do Amm.to Attrezzature sanitarie e scientifiche | D47: AAA430 | F47: =SUMIF('00 PDC SP'!$C:$C,$D47,'00 PDC SP'!H:H) -> -70497398.36 | G47: =SUMIF('00 PDC SP'!$C:$C,$D47,'00 PDC SP'!I:I) -> -4807326.23 | H47: =SUMIF('00 PDC SP'!$C:$C,$D47,'00 PDC SP'!J:J) -> -5868448.49 | I47: =SUMIF('00 PDC SP'!$C:$C,$D47,'00 PDC SP'!K:K) -> -69436276.1 | J47: =SUMIF('00 PDC SP'!$C:$C,$D47,'00 PDC SP'!L:L) -> -4807029.55 | K47: =SUMIF('00 PDC SP'!$C:$C,$D47,'00 PDC SP'!M:M) -> -879884.2 | L47: =SUMIF('00 PDC SP'!$C:$C,$D47,'00 PDC SP'!N:N) -> -73363421.45
A48: AAA440 | B48: A.II.5) Mobili e arredi | C48: S | D48: AAA440 | F48: =SUM(F49:F50) -> 1514191.69 | G48: =SUM(G49:G50) -> -15102.34 | H48: 2417.2 | I48: 1496672.15 | J48: -127527.8 | K48: 8598.83 | L48: 1360545.52
A49: AAA450 | B49: A.II.5.a) Mobili e arredi | D49: AAA450 | F49: =SUMIF('00 PDC SP'!$C:$C,$D49,'00 PDC SP'!H:H) -> 10597975.65 | G49: =SUMIF('00 PDC SP'!$C:$C,$D49,'00 PDC SP'!I:I) -> 339281.25 | H49: =SUMIF('00 PDC SP'!$C:$C,$D49,'00 PDC SP'!J:J) -> 91861.65 | I49: =SUMIF('00 PDC SP'!$C:$C,$D49,'00 PDC SP'!K:K) -> 10845395.25 | J49: =SUMIF('00 PDC SP'!$C:$C,$D49,'00 PDC SP'!L:L) -> 233981.82 | K49: =SUMIF('00 PDC SP'!$C:$C,$D49,'00 PDC SP'!M:M) -> 30493.53 | L49: =SUMIF('00 PDC SP'!$C:$C,$D49,'00 PDC SP'!N:N) -> 11048883.54
A50: AAA460 | B50: A.II.5.b) F.do Amm.to Mobili e arredi | D50: AAA460 | F50: =SUMIF('00 PDC SP'!$C:$C,$D50,'00 PDC SP'!H:H) -> -9083783.96 | G50: =SUMIF('00 PDC SP'!$C:$C,$D50,'00 PDC SP'!I:I) -> -354383.59 | H50: =SUMIF('00 PDC SP'!$C:$C,$D50,'00 PDC SP'!J:J) -> -89444.45 | I50: =SUMIF('00 PDC SP'!$C:$C,$D50,'00 PDC SP'!K:K) -> -9348723.1 | J50: =SUMIF('00 PDC SP'!$C:$C,$D50,'00 PDC SP'!L:L) -> -361509.62 | K50: =SUMIF('00 PDC SP'!$C:$C,$D50,'00 PDC SP'!M:M) -> -21894.7 | L50: =SUMIF('00 PDC SP'!$C:$C,$D50,'00 PDC SP'!N:N) -> -9688338.02
A51: AAA470 | B51: A.II.6) Automezzi | C51: S | D51: AAA470 | F51: =SUM(F52:F53) -> 234438.8 | G51: =SUM(G52:G53) -> -342.13 | H51: 0 | I51: 234096.67 | J51: 359024.24 | K51: 0 | L51: 593120.91
A52: AAA480 | B52: A.II.6.a) Automezzi | D52: AAA480 | F52: =SUMIF('00 PDC SP'!$C:$C,$D52,'00 PDC SP'!H:H) -> 1962988.77 | G52: =SUMIF('00 PDC SP'!$C:$C,$D52,'00 PDC SP'!I:I) -> 93196.97 | H52: =SUMIF('00 PDC SP'!$C:$C,$D52,'00 PDC SP'!J:J) -> 149825.11 | I52: =SUMIF('00 PDC SP'!$C:$C,$D52,'00 PDC SP'!K:K) -> 1906360.63 | J52: =SUMIF('00 PDC SP'!$C:$C,$D52,'00 PDC SP'!L:L) -> 492735.99 | K52: =SUMIF('00 PDC SP'!$C:$C,$D52,'00 PDC SP'!M:M) -> 0 | L52: =SUMIF('00 PDC SP'!$C:$C,$D52,'00 PDC SP'!N:N) -> 2399096.62
A53: AAA490 | B53: A.II.6.b) F.do Amm.to Automezzi | D53: AAA490 | F53: =SUMIF('00 PDC SP'!$C:$C,$D53,'00 PDC SP'!H:H) -> -1728549.97 | G53: =SUMIF('00 PDC SP'!$C:$C,$D53,'00 PDC SP'!I:I) -> -93539.1 | H53: =SUMIF('00 PDC SP'!$C:$C,$D53,'00 PDC SP'!J:J) -> -149825.11 | I53: =SUMIF('00 PDC SP'!$C:$C,$D53,'00 PDC SP'!K:K) -> -1672263.96 | J53: =SUMIF('00 PDC SP'!$C:$C,$D53,'00 PDC SP'!L:L) -> -133711.75 | K53: =SUMIF('00 PDC SP'!$C:$C,$D53,'00 PDC SP'!M:M) -> 0 | L53: =SUMIF('00 PDC SP'!$C:$C,$D53,'00 PDC SP'!N:N) -> -1805975.71
A54: AAA500 | B54: A.II.7) Oggetti d'arte | D54: AAA500 | F54: =SUMIF('00 PDC SP'!$C:$C,$D54,'00 PDC SP'!H:H) -> 0 | G54: =SUMIF('00 PDC SP'!$C:$C,$D54,'00 PDC SP'!I:I) -> 0 | H54: =SUMIF('00 PDC SP'!$C:$C,$D54,'00 PDC SP'!J:J) -> 0 | I54: =SUMIF('00 PDC SP'!$C:$C,$D54,'00 PDC SP'!K:K) -> 0 | J54: =SUMIF('00 PDC SP'!$C:$C,$D54,'00 PDC SP'!L:L) -> 0 | K54: =SUMIF('00 PDC SP'!$C:$C,$D54,'00 PDC SP'!M:M) -> 0 | L54: =SUMIF('00 PDC SP'!$C:$C,$D54,'00 PDC SP'!N:N) -> 0
A55: AAA510 | B55: A.II.8) Altre immobilizzazioni materiali | C55: S | D55: AAA510 | F55: =SUM(F56:F57) -> 662302.06 | G55: =SUM(G56:G57) -> 16012.8 | H55: 18304.45 | I55: 660010.41 | J55: 102273.05 | K55: 0 | L55: 762283.46
A56: AAA520 | B56: A.II.8.a) Altre immobilizzazioni materiali | D56: AAA520 | F56: =SUMIF('00 PDC SP'!$C:$C,$D56,'00 PDC SP'!H:H) -> 5917994.98 | G56: =SUMIF('00 PDC SP'!$C:$C,$D56,'00 PDC SP'!I:I) -> 267797.77 | H56: =SUMIF('00 PDC SP'!$C:$C,$D56,'00 PDC SP'!J:J) -> 330490.18 | I56: =SUMIF('00 PDC SP'!$C:$C,$D56,'00 PDC SP'!K:K) -> 5855302.57 | J56: =SUMIF('00 PDC SP'!$C:$C,$D56,'00 PDC SP'!L:L) -> 364296.66 | K56: =SUMIF('00 PDC SP'!$C:$C,$D56,'00 PDC SP'!M:M) -> 1267.61 | L56: =SUMIF('00 PDC SP'!$C:$C,$D56,'00 PDC SP'!N:N) -> 6218331.62
A57: AAA530 | B57: A.II.8.b) F.do Amm.to Altre immobilizzazioni materiali | D57: AAA530 | F57: =SUMIF('00 PDC SP'!$C:$C,$D57,'00 PDC SP'!H:H) -> -5255692.92 | G57: =SUMIF('00 PDC SP'!$C:$C,$D57,'00 PDC SP'!I:I) -> -251784.97 | H57: =SUMIF('00 PDC SP'!$C:$C,$D57,'00 PDC SP'!J:J) -> -312185.73 | I57: =SUMIF('00 PDC SP'!$C:$C,$D57,'00 PDC SP'!K:K) -> -5195292.16 | J57: =SUMIF('00 PDC SP'!$C:$C,$D57,'00 PDC SP'!L:L) -> -262023.61 | K57: =SUMIF('00 PDC SP'!$C:$C,$D57,'00 PDC SP'!M:M) -> -1267.61 | L57: =SUMIF('00 PDC SP'!$C:$C,$D57,'00 PDC SP'!N:N) -> -5456048.16
A58: AAA540 | B58: A.II.9) Immobilizzazioni materiali in corso e acconti | D58: AAA540 | F58: =SUMIF('00 PDC SP'!$C:$C,$D58,'00 PDC SP'!H:H) -> 10997952.57 | G58: =SUMIF('00 PDC SP'!$C:$C,$D58,'00 PDC SP'!I:I) -> 1516047.7 | H58: =SUMIF('00 PDC SP'!$C:$C,$D58,'00 PDC SP'!J:J) -> 3923799.51 | I58: =SUMIF('00 PDC SP'!$C:$C,$D58,'00 PDC SP'!K:K) -> 8590200.76 | J58: =SUMIF('00 PDC SP'!$C:$C,$D58,'00 PDC SP'!L:L) -> 2104562.67 | K58: =SUMIF('00 PDC SP'!$C:$C,$D58,'00 PDC SP'!M:M) -> 98141.93 | L58: =SUMIF('00 PDC SP'!$C:$C,$D58,'00 PDC SP'!N:N) -> 10596621.5
A59: AAA550 | B59: A.II.10) Fondo Svalutazione immobilizzazioni materiali | C59: S | D59: AAA550 | F59: =SUM(F60:F67) -> 0 | G59: =SUM(G60:G67) -> 0 | H59: 0 | I59: 0 | J59: 0 | K59: 0 | L59: 0
A60: AAA560 | B60: A.II.10.a) F.do Svalut. Terreni | D60: AAA560 | F60: =SUMIF('00 PDC SP'!$C:$C,$D60,'00 PDC SP'!H:H) -> 0 | G60: =SUMIF('00 PDC SP'!$C:$C,$D60,'00 PDC SP'!I:I) -> 0 | H60: =SUMIF('00 PDC SP'!$C:$C,$D60,'00 PDC SP'!J:J) -> 0 | I60: =SUMIF('00 PDC SP'!$C:$C,$D60,'00 PDC SP'!K:K) -> 0 | J60: =SUMIF('00 PDC SP'!$C:$C,$D60,'00 PDC SP'!L:L) -> 0 | K60: =SUMIF('00 PDC SP'!$C:$C,$D60,'00 PDC SP'!M:M) -> 0 | L60: =SUMIF('00 PDC SP'!$C:$C,$D60,'00 PDC SP'!N:N) -> 0
A61: AAA570 | B61: A.II.10.b) F.do Svalut. Fabbricati | D61: AAA570 | F61: =SUMIF('00 PDC SP'!$C:$C,$D61,'00 PDC SP'!H:H) -> 0 | G61: =SUMIF('00 PDC SP'!$C:$C,$D61,'00 PDC SP'!I:I) -> 0 | H61: =SUMIF('00 PDC SP'!$C:$C,$D61,'00 PDC SP'!J:J) -> 0 | I61: =SUMIF('00 PDC SP'!$C:$C,$D61,'00 PDC SP'!K:K) -> 0 | J61: =SUMIF('00 PDC SP'!$C:$C,$D61,'00 PDC SP'!L:L) -> 0 | K61: =SUMIF('00 PDC SP'!$C:$C,$D61,'00 PDC SP'!M:M) -> 0 | L61: =SUMIF('00 PDC SP'!$C:$C,$D61,'00 PDC SP'!N:N) -> 0
A62: AAA580 | B62: A.II.10.c) F.do Svalut. Impianti e macchinari | D62: AAA580 | F62: =SUMIF('00 PDC SP'!$C:$C,$D62,'00 PDC SP'!H:H) -> 0 | G62: =SUMIF('00 PDC SP'!$C:$C,$D62,'00 PDC SP'!I:I) -> 0 | H62: =SUMIF('00 PDC SP'!$C:$C,$D62,'00 PDC SP'!J:J) -> 0 | I62: =SUMIF('00 PDC SP'!$C:$C,$D62,'00 PDC SP'!K:K) -> 0 | J62: =SUMIF('00 PDC SP'!$C:$C,$D62,'00 PDC SP'!L:L) -> 0 | K62: =SUMIF('00 PDC SP'!$C:$C,$D62,'00 PDC SP'!M:M) -> 0 | L62: =SUMIF('00 PDC SP'!$C:$C,$D62,'00 PDC SP'!N:N) -> 0
A63: AAA590 | B63: A.II.10.d) F.do Svalut. Attrezzature sanitarie e scientifiche | D63: AAA590 | F63: =SUMIF('00 PDC SP'!$C:$C,$D63,'00 PDC SP'!H:H) -> 0 | G63: =SUMIF('00 PDC SP'!$C:$C,$D63,'00 PDC SP'!I:I) -> 0 | H63: =SUMIF('00 PDC SP'!$C:$C,$D63,'00 PDC SP'!J:J) -> 0 | I63: =SUMIF('00 PDC SP'!$C:$C,$D63,'00 PDC SP'!K:K) -> 0 | J63: =SUMIF('00 PDC SP'!$C:$C,$D63,'00 PDC SP'!L:L) -> 0 | K63: =SUMIF('00 PDC SP'!$C:$C,$D63,'00 PDC SP'!M:M) -> 0 | L63: =SUMIF('00 PDC SP'!$C:$C,$D63,'00 PDC SP'!N:N) -> 0
A64: AAA600 | B64: A.II.10.e) F.do Svalut. Mobili e arredi | D64: AAA600 | F64: =SUMIF('00 PDC SP'!$C:$C,$D64,'00 PDC SP'!H:H) -> 0 | G64: =SUMIF('00 PDC SP'!$C:$C,$D64,'00 PDC SP'!I:I) -> 0 | H64: =SUMIF('00 PDC SP'!$C:$C,$D64,'00 PDC SP'!J:J) -> 0 | I64: =SUMIF('00 PDC SP'!$C:$C,$D64,'00 PDC SP'!K:K) -> 0 | J64: =SUMIF('00 PDC SP'!$C:$C,$D64,'00 PDC SP'!L:L) -> 0 | K64: =SUMIF('00 PDC SP'!$C:$C,$D64,'00 PDC SP'!M:M) -> 0 | L64: =SUMIF('00 PDC SP'!$C:$C,$D64,'00 PDC SP'!N:N) -> 0
A65: AAA610 | B65: A.II.10.f) F.do Svalut. Automezzi | D65: AAA610 | F65: =SUMIF('00 PDC SP'!$C:$C,$D65,'00 PDC SP'!H:H) -> 0 | G65: =SUMIF('00 PDC SP'!$C:$C,$D65,'00 PDC SP'!I:I) -> 0 | H65: =SUMIF('00 PDC SP'!$C:$C,$D65,'00 PDC SP'!J:J) -> 0 | I65: =SUMIF('00 PDC SP'!$C:$C,$D65,'00 PDC SP'!K:K) -> 0 | J65: =SUMIF('00 PDC SP'!$C:$C,$D65,'00 PDC SP'!L:L) -> 0 | K65: =SUMIF('00 PDC SP'!$C:$C,$D65,'00 PDC SP'!M:M) -> 0 | L65: =SUMIF('00 PDC SP'!$C:$C,$D65,'00 PDC SP'!N:N) -> 0
A66: AAA620 | B66: A.II.10.g) F.do Svalut. Oggetti d'arte | D66: AAA620 | F66: =SUMIF('00 PDC SP'!$C:$C,$D66,'00 PDC SP'!H:H) -> 0 | G66: =SUMIF('00 PDC SP'!$C:$C,$D66,'00 PDC SP'!I:I) -> 0 | H66: =SUMIF('00 PDC SP'!$C:$C,$D66,'00 PDC SP'!J:J) -> 0 | I66: =SUMIF('00 PDC SP'!$C:$C,$D66,'00 PDC SP'!K:K) -> 0 | J66: =SUMIF('00 PDC SP'!$C:$C,$D66,'00 PDC SP'!L:L) -> 0 | K66: =SUMIF('00 PDC SP'!$C:$C,$D66,'00 PDC SP'!M:M) -> 0 | L66: =SUMIF('00 PDC SP'!$C:$C,$D66,'00 PDC SP'!N:N) -> 0
A67: AAA630 | B67: A.II.10.h) F.do Svalut. Altre immobilizzazioni materiali | D67: AAA630 | F67: =SUMIF('00 PDC SP'!$C:$C,$D67,'00 PDC SP'!H:H) -> 0 | G67: =SUMIF('00 PDC SP'!$C:$C,$D67,'00 PDC SP'!I:I) -> 0 | H67: =SUMIF('00 PDC SP'!$C:$C,$D67,'00 PDC SP'!J:J) -> 0 | I67: =SUMIF('00 PDC SP'!$C:$C,$D67,'00 PDC SP'!K:K) -> 0 | J67: =SUMIF('00 PDC SP'!$C:$C,$D67,'00 PDC SP'!L:L) -> 0 | K67: =SUMIF('00 PDC SP'!$C:$C,$D67,'00 PDC SP'!M:M) -> 0 | L67: =SUMIF('00 PDC SP'!$C:$C,$D67,'00 PDC SP'!N:N) -> 0
A68: AAA640 | B68: A.III) IMMOBILIZZAZIONI FINANZIARIE | C68: S | D68: AAA640 | F68: =F69+F74+F76 -> 14036.45 | G68: =G69+G74+G76 -> 0 | H68: 0 | I68: 14036.45 | J68: 0 | K68: 0 | L68: 14036.45
A69: AAA650 | B69: A.III.1) Crediti finanziari | C69: S | D69: AAA650 | F69: =SUM(F70:F73) -> 14036.45 | G69: =SUM(G70:G73) -> 0 | H69: 0 | I69: 14036.45 | J69: 0 | K69: 0 | L69: 14036.45
A70: AAA660 | B70: A.III.1.a) Crediti finanziari v/Stato | D70: AAA660 | F70: =SUMIF('00 PDC SP'!$C:$C,$D70,'00 PDC SP'!H:H) -> 0 | G70: =SUMIF('00 PDC SP'!$C:$C,$D70,'00 PDC SP'!I:I) -> 0 | H70: =SUMIF('00 PDC SP'!$C:$C,$D70,'00 PDC SP'!J:J) -> 0 | I70: =SUMIF('00 PDC SP'!$C:$C,$D70,'00 PDC SP'!K:K) -> 0 | J70: =SUMIF('00 PDC SP'!$C:$C,$D70,'00 PDC SP'!L:L) -> 0 | K70: =SUMIF('00 PDC SP'!$C:$C,$D70,'00 PDC SP'!M:M) -> 0 | L70: =SUMIF('00 PDC SP'!$C:$C,$D70,'00 PDC SP'!N:N) -> 0
A71: AAA670 | B71: A.III.1.b) Crediti finanziari v/Regione | D71: AAA670 | F71: =SUMIF('00 PDC SP'!$C:$C,$D71,'00 PDC SP'!H:H) -> 0 | G71: =SUMIF('00 PDC SP'!$C:$C,$D71,'00 PDC SP'!I:I) -> 0 | H71: =SUMIF('00 PDC SP'!$C:$C,$D71,'00 PDC SP'!J:J) -> 0 | I71: =SUMIF('00 PDC SP'!$C:$C,$D71,'00 PDC SP'!K:K) -> 0 | J71: =SUMIF('00 PDC SP'!$C:$C,$D71,'00 PDC SP'!L:L) -> 0 | K71: =SUMIF('00 PDC SP'!$C:$C,$D71,'00 PDC SP'!M:M) -> 0 | L71: =SUMIF('00 PDC SP'!$C:$C,$D71,'00 PDC SP'!N:N) -> 0
A72: AAA680 | B72: A.III.1.c) Crediti finanziari v/partecipate | D72: AAA680 | F72: =SUMIF('00 PDC SP'!$C:$C,$D72,'00 PDC SP'!H:H) -> 0 | G72: =SUMIF('00 PDC SP'!$C:$C,$D72,'00 PDC SP'!I:I) -> 0 | H72: =SUMIF('00 PDC SP'!$C:$C,$D72,'00 PDC SP'!J:J) -> 0 | I72: =SUMIF('00 PDC SP'!$C:$C,$D72,'00 PDC SP'!K:K) -> 0 | J72: =SUMIF('00 PDC SP'!$C:$C,$D72,'00 PDC SP'!L:L) -> 0 | K72: =SUMIF('00 PDC SP'!$C:$C,$D72,'00 PDC SP'!M:M) -> 0 | L72: =SUMIF('00 PDC SP'!$C:$C,$D72,'00 PDC SP'!N:N) -> 0
A73: AAA690 | B73: A.III.1.d) Crediti finanziari v/altri | D73: AAA690 | F73: =SUMIF('00 PDC SP'!$C:$C,$D73,'00 PDC SP'!H:H) -> 14036.45 | G73: =SUMIF('00 PDC SP'!$C:$C,$D73,'00 PDC SP'!I:I) -> 0 | H73: =SUMIF('00 PDC SP'!$C:$C,$D73,'00 PDC SP'!J:J) -> 0 | I73: =SUMIF('00 PDC SP'!$C:$C,$D73,'00 PDC SP'!K:K) -> 14036.45 | J73: =SUMIF('00 PDC SP'!$C:$C,$D73,'00 PDC SP'!L:L) -> 0 | K73: =SUMIF('00 PDC SP'!$C:$C,$D73,'00 PDC SP'!M:M) -> 0 | L73: =SUMIF('00 PDC SP'!$C:$C,$D73,'00 PDC SP'!N:N) -> 14036.45
A74: AAA700 | B74: A.III.2) Titoli | C74: S | D74: AAA700 | F74: =F75+F76 -> 0 | G74: =G75+G76 -> 0 | H74: 0 | I74: 0 | J74: 0 | K74: 0 | L74: 0
A75: AAA710 | B75: A.III.2.a) Partecipazioni | D75: AAA710 | F75: =SUMIF('00 PDC SP'!$C:$C,$D75,'00 PDC SP'!H:H) -> 0 | G75: =SUMIF('00 PDC SP'!$C:$C,$D75,'00 PDC SP'!I:I) -> 0 | H75: =SUMIF('00 PDC SP'!$C:$C,$D75,'00 PDC SP'!J:J) -> 0 | I75: =SUMIF('00 PDC SP'!$C:$C,$D75,'00 PDC SP'!K:K) -> 0 | J75: =SUMIF('00 PDC SP'!$C:$C,$D75,'00 PDC SP'!L:L) -> 0 | K75: =SUMIF('00 PDC SP'!$C:$C,$D75,'00 PDC SP'!M:M) -> 0 | L75: =SUMIF('00 PDC SP'!$C:$C,$D75,'00 PDC SP'!N:N) -> 0
A76: AAA720 | B76: A.III.2.b) Altri titoli | C76: S | D76: AAA720 | F76: =SUM(F77:F80) -> 0 | G76: =SUM(G77:G80) -> 0 | H76: 0 | I76: 0 | J76: 0 | K76: 0 | L76: 0
A77: AAA730 | B77: A.III.2.b.1) Titoli di Stato | D77: AAA730 | F77: =SUMIF('00 PDC SP'!$C:$C,$D77,'00 PDC SP'!H:H) -> 0 | G77: =SUMIF('00 PDC SP'!$C:$C,$D77,'00 PDC SP'!I:I) -> 0 | H77: =SUMIF('00 PDC SP'!$C:$C,$D77,'00 PDC SP'!J:J) -> 0 | I77: =SUMIF('00 PDC SP'!$C:$C,$D77,'00 PDC SP'!K:K) -> 0 | J77: =SUMIF('00 PDC SP'!$C:$C,$D77,'00 PDC SP'!L:L) -> 0 | K77: =SUMIF('00 PDC SP'!$C:$C,$D77,'00 PDC SP'!M:M) -> 0 | L77: =SUMIF('00 PDC SP'!$C:$C,$D77,'00 PDC SP'!N:N) -> 0
A78: AAA740 | B78: A.III.2.b.2) Altre Obbligazioni | D78: AAA740 | F78: =SUMIF('00 PDC SP'!$C:$C,$D78,'00 PDC SP'!H:H) -> 0 | G78: =SUMIF('00 PDC SP'!$C:$C,$D78,'00 PDC SP'!I:I) -> 0 | H78: =SUMIF('00 PDC SP'!$C:$C,$D78,'00 PDC SP'!J:J) -> 0 | I78: =SUMIF('00 PDC SP'!$C:$C,$D78,'00 PDC SP'!K:K) -> 0 | J78: =SUMIF('00 PDC SP'!$C:$C,$D78,'00 PDC SP'!L:L) -> 0 | K78: =SUMIF('00 PDC SP'!$C:$C,$D78,'00 PDC SP'!M:M) -> 0 | L78: =SUMIF('00 PDC SP'!$C:$C,$D78,'00 PDC SP'!N:N) -> 0
A79: AAA750 | B79: A.III.2.b.3) Titoli azionari quotati in Borsa | D79: AAA750 | F79: =SUMIF('00 PDC SP'!$C:$C,$D79,'00 PDC SP'!H:H) -> 0 | G79: =SUMIF('00 PDC SP'!$C:$C,$D79,'00 PDC SP'!I:I) -> 0 | H79: =SUMIF('00 PDC SP'!$C:$C,$D79,'00 PDC SP'!J:J) -> 0 | I79: =SUMIF('00 PDC SP'!$C:$C,$D79,'00 PDC SP'!K:K) -> 0 | J79: =SUMIF('00 PDC SP'!$C:$C,$D79,'00 PDC SP'!L:L) -> 0 | K79: =SUMIF('00 PDC SP'!$C:$C,$D79,'00 PDC SP'!M:M) -> 0 | L79: =SUMIF('00 PDC SP'!$C:$C,$D79,'00 PDC SP'!N:N) -> 0
A80: AAA760 | B80: A.III.2.b.4) Titoli diversi | D80: AAA760 | F80: =SUMIF('00 PDC SP'!$C:$C,$D80,'00 PDC SP'!H:H) -> 0 | G80: =SUMIF('00 PDC SP'!$C:$C,$D80,'00 PDC SP'!I:I) -> 0 | H80: =SUMIF('00 PDC SP'!$C:$C,$D80,'00 PDC SP'!J:J) -> 0 | I80: =SUMIF('00 PDC SP'!$C:$C,$D80,'00 PDC SP'!K:K) -> 0 | J80: =SUMIF('00 PDC SP'!$C:$C,$D80,'00 PDC SP'!L:L) -> 0 | K80: =SUMIF('00 PDC SP'!$C:$C,$D80,'00 PDC SP'!M:M) -> 0 | L80: =SUMIF('00 PDC SP'!$C:$C,$D80,'00 PDC SP'!N:N) -> 0
A81: ABZ999 | B81: B) ATTIVO CIRCOLANTE | C81: S | D81: ABZ999 | F81: =F82+F101+F165+F168 -> 266253631.1 | G81: =G82+G101+G165+G168 -> 2107441962 | H81: 2090110564 | I81: 283585028.4 | J81: 2269705695 | K81: 2257944701 | L81: 295346022.3
A82: ABA000 | B82: B.I) RIMANENZE | C82: S | D82: ABA000 | F82: =F83+F93 -> 11844723.25 | G82: =G83+G93 -> 16855724.81 | H82: 11844723.25 | I82: 16855724.81 | J82: 16371327.68 | K82: 16855724.81 | L82: 16371327.68
A83: ABA010 | B83: B.I.1) Rimanenze beni sanitari | C83: S | D83: ABA010 | F83: =SUM(F84:F92) -> 11334105.08 | G83: =SUM(G84:G92) -> 16457605.35 | H83: 11334105.08 | I83: 16457605.35 | J83: 16093031.77 | K83: 16457605.35 | L83: 16093031.77
A84: ABA020 | B84: B.I.1.a) Prodotti farmaceutici ed emoderivati | D84: ABA020 | F84: =SUMIF('00 PDC SP'!$C:$C,$D84,'00 PDC SP'!H:H) -> 5834132.12 | G84: =SUMIF('00 PDC SP'!$C:$C,$D84,'00 PDC SP'!I:I) -> 10541532.87 | H84: =SUMIF('00 PDC SP'!$C:$C,$D84,'00 PDC SP'!J:J) -> 5834132.12 | I84: =SUMIF('00 PDC SP'!$C:$C,$D84,'00 PDC SP'!K:K) -> 10541532.87 | J84: =SUMIF('00 PDC SP'!$C:$C,$D84,'00 PDC SP'!L:L) -> 10200393.28 | K84: =SUMIF('00 PDC SP'!$C:$C,$D84,'00 PDC SP'!M:M) -> 10541532.87 | L84: =SUMIF('00 PDC SP'!$C:$C,$D84,'00 PDC SP'!N:N) -> 10200393.28
A85: ABA030 | B85: B.I.1.b) Sangue ed emocomponenti | D85: ABA030 | F85: =SUMIF('00 PDC SP'!$C:$C,$D85,'00 PDC SP'!H:H) -> 0 | G85: =SUMIF('00 PDC SP'!$C:$C,$D85,'00 PDC SP'!I:I) -> 0 | H85: =SUMIF('00 PDC SP'!$C:$C,$D85,'00 PDC SP'!J:J) -> 0 | I85: =SUMIF('00 PDC SP'!$C:$C,$D85,'00 PDC SP'!K:K) -> 0 | J85: =SUMIF('00 PDC SP'!$C:$C,$D85,'00 PDC SP'!L:L) -> 0 | K85: =SUMIF('00 PDC SP'!$C:$C,$D85,'00 PDC SP'!M:M) -> 0 | L85: =SUMIF('00 PDC SP'!$C:$C,$D85,'00 PDC SP'!N:N) -> 0
A86: ABA040 | B86: B.I.1.c) Dispositivi medici | D86: ABA040 | F86: =SUMIF('00 PDC SP'!$C:$C,$D86,'00 PDC SP'!H:H) -> 5139047.93 | G86: =SUMIF('00 PDC SP'!$C:$C,$D86,'00 PDC SP'!I:I) -> 5544382.73 | H86: =SUMIF('00 PDC SP'!$C:$C,$D86,'00 PDC SP'!J:J) -> 5139047.93 | I86: =SUMIF('00 PDC SP'!$C:$C,$D86,'00 PDC SP'!K:K) -> 5544382.73 | J86: =SUMIF('00 PDC SP'!$C:$C,$D86,'00 PDC SP'!L:L) -> 5489072.36 | K86: =SUMIF('00 PDC SP'!$C:$C,$D86,'00 PDC SP'!M:M) -> 5544382.73 | L86: =SUMIF('00 PDC SP'!$C:$C,$D86,'00 PDC SP'!N:N) -> 5489072.36
A87: ABA050 | B87: B.I.1.d) Prodotti dietetici | D87: ABA050 | F87: =SUMIF('00 PDC SP'!$C:$C,$D87,'00 PDC SP'!H:H) -> 63620.12 | G87: =SUMIF('00 PDC SP'!$C:$C,$D87,'00 PDC SP'!I:I) -> 71649.81 | H87: =SUMIF('00 PDC SP'!$C:$C,$D87,'00 PDC SP'!J:J) -> 63620.12 | I87: =SUMIF('00 PDC SP'!$C:$C,$D87,'00 PDC SP'!K:K) -> 71649.81 | J87: =SUMIF('00 PDC SP'!$C:$C,$D87,'00 PDC SP'!L:L) -> 75502.99 | K87: =SUMIF('00 PDC SP'!$C:$C,$D87,'00 PDC SP'!M:M) -> 71649.81 | L87: =SUMIF('00 PDC SP'!$C:$C,$D87,'00 PDC SP'!N:N) -> 75502.99
A88: ABA060 | B88: B.I.1.e) Materiali per la profilassi (vaccini) | D88: ABA060 | F88: =SUMIF('00 PDC SP'!$C:$C,$D88,'00 PDC SP'!H:H) -> 1112.76 | G88: =SUMIF('00 PDC SP'!$C:$C,$D88,'00 PDC SP'!I:I) -> 2856.7 | H88: =SUMIF('00 PDC SP'!$C:$C,$D88,'00 PDC SP'!J:J) -> 1112.76 | I88: =SUMIF('00 PDC SP'!$C:$C,$D88,'00 PDC SP'!K:K) -> 2856.7 | J88: =SUMIF('00 PDC SP'!$C:$C,$D88,'00 PDC SP'!L:L) -> 0 | K88: =SUMIF('00 PDC SP'!$C:$C,$D88,'00 PDC SP'!M:M) -> 2856.7 | L88: =SUMIF('00 PDC SP'!$C:$C,$D88,'00 PDC SP'!N:N) -> 0
A89: ABA070 | B89: B.I.1.f) Prodotti chimici | D89: ABA070 | F89: =SUMIF('00 PDC SP'!$C:$C,$D89,'00 PDC SP'!H:H) -> 0 | G89: =SUMIF('00 PDC SP'!$C:$C,$D89,'00 PDC SP'!I:I) -> 0 | H89: =SUMIF('00 PDC SP'!$C:$C,$D89,'00 PDC SP'!J:J) -> 0 | I89: =SUMIF('00 PDC SP'!$C:$C,$D89,'00 PDC SP'!K:K) -> 0 | J89: =SUMIF('00 PDC SP'!$C:$C,$D89,'00 PDC SP'!L:L) -> 0 | K89: =SUMIF('00 PDC SP'!$C:$C,$D89,'00 PDC SP'!M:M) -> 0 | L89: =SUMIF('00 PDC SP'!$C:$C,$D89,'00 PDC SP'!N:N) -> 0
A90: ABA080 | B90: B.I.1.g) Materiali e prodotti per uso veterinario | D90: ABA080 | F90: =SUMIF('00 PDC SP'!$C:$C,$D90,'00 PDC SP'!H:H) -> 0 | G90: =SUMIF('00 PDC SP'!$C:$C,$D90,'00 PDC SP'!I:I) -> 0 | H90: =SUMIF('00 PDC SP'!$C:$C,$D90,'00 PDC SP'!J:J) -> 0 | I90: =SUMIF('00 PDC SP'!$C:$C,$D90,'00 PDC SP'!K:K) -> 0 | J90: =SUMIF('00 PDC SP'!$C:$C,$D90,'00 PDC SP'!L:L) -> 0 | K90: =SUMIF('00 PDC SP'!$C:$C,$D90,'00 PDC SP'!M:M) -> 0 | L90: =SUMIF('00 PDC SP'!$C:$C,$D90,'00 PDC SP'!N:N) -> 0
A91: ABA090 | B91: B.I.1.h) Altri beni e prodotti sanitari | D91: ABA090 | F91: =SUMIF('00 PDC SP'!$C:$C,$D91,'00 PDC SP'!H:H) -> 296192.15 | G91: =SUMIF('00 PDC SP'!$C:$C,$D91,'00 PDC SP'!I:I) -> 297183.24 | H91: =SUMIF('00 PDC SP'!$C:$C,$D91,'00 PDC SP'!J:J) -> 296192.15 | I91: =SUMIF('00 PDC SP'!$C:$C,$D91,'00 PDC SP'!K:K) -> 297183.24 | J91: =SUMIF('00 PDC SP'!$C:$C,$D91,'00 PDC SP'!L:L) -> 328063.14 | K91: =SUMIF('00 PDC SP'!$C:$C,$D91,'00 PDC SP'!M:M) -> 297183.24 | L91: =SUMIF('00 PDC SP'!$C:$C,$D91,'00 PDC SP'!N:N) -> 328063.14
A92: ABA100 | B92: B.I.1.i) Acconti per acquisto di beni e prodotti sanitari | D92: ABA100 | F92: =SUMIF('00 PDC SP'!$C:$C,$D92,'00 PDC SP'!H:H) -> 0 | G92: =SUMIF('00 PDC SP'!$C:$C,$D92,'00 PDC SP'!I:I) -> 0 | H92: =SUMIF('00 PDC SP'!$C:$C,$D92,'00 PDC SP'!J:J) -> 0 | I92: =SUMIF('00 PDC SP'!$C:$C,$D92,'00 PDC SP'!K:K) -> 0 | J92: =SUMIF('00 PDC SP'!$C:$C,$D92,'00 PDC SP'!L:L) -> 0 | K92: =SUMIF('00 PDC SP'!$C:$C,$D92,'00 PDC SP'!M:M) -> 0 | L92: =SUMIF('00 PDC SP'!$C:$C,$D92,'00 PDC SP'!N:N) -> 0
A93: ABA110 | B93: B.I.2) Rimanenze beni non sanitari | C93: S | D93: ABA110 | F93: =SUM(F94:F100) -> 510618.17 | G93: =SUM(G94:G100) -> 398119.46 | H93: 510618.17 | I93: 398119.46 | J93: 278295.91 | K93: 398119.46 | L93: 278295.91
A94: ABA120 | B94: B.I.2.a) Prodotti alimentari | D94: ABA120 | F94: =SUMIF('00 PDC SP'!$C:$C,$D94,'00 PDC SP'!H:H) -> 0 | G94: =SUMIF('00 PDC SP'!$C:$C,$D94,'00 PDC SP'!I:I) -> 0 | H94: =SUMIF('00 PDC SP'!$C:$C,$D94,'00 PDC SP'!J:J) -> 0 | I94: =SUMIF('00 PDC SP'!$C:$C,$D94,'00 PDC SP'!K:K) -> 0 | J94: =SUMIF('00 PDC SP'!$C:$C,$D94,'00 PDC SP'!L:L) -> 0 | K94: =SUMIF('00 PDC SP'!$C:$C,$D94,'00 PDC SP'!M:M) -> 0 | L94: =SUMIF('00 PDC SP'!$C:$C,$D94,'00 PDC SP'!N:N) -> 0
A95: ABA130 | B95: B.I.2.b) Materiali di guardaroba, di pulizia, e di convivenza in genere | D95: ABA130 | F95: =SUMIF('00 PDC SP'!$C:$C,$D95,'00 PDC SP'!H:H) -> 29727.94 | G95: =SUMIF('00 PDC SP'!$C:$C,$D95,'00 PDC SP'!I:I) -> 29504.9 | H95: =SUMIF('00 PDC SP'!$C:$C,$D95,'00 PDC SP'!J:J) -> 29727.94 | I95: =SUMIF('00 PDC SP'!$C:$C,$D95,'00 PDC SP'!K:K) -> 29504.9 | J95: =SUMIF('00 PDC SP'!$C:$C,$D95,'00 PDC SP'!L:L) -> 30345.25 | K95: =SUMIF('00 PDC SP'!$C:$C,$D95,'00 PDC SP'!M:M) -> 29504.9 | L95: =SUMIF('00 PDC SP'!$C:$C,$D95,'00 PDC SP'!N:N) -> 30345.25
A96: ABA140 | B96: B.I.2.c) Combustibili, carburanti e lubrificanti | D96: ABA140 | F96: =SUMIF('00 PDC SP'!$C:$C,$D96,'00 PDC SP'!H:H) -> 0 | G96: =SUMIF('00 PDC SP'!$C:$C,$D96,'00 PDC SP'!I:I) -> 0 | H96: =SUMIF('00 PDC SP'!$C:$C,$D96,'00 PDC SP'!J:J) -> 0 | I96: =SUMIF('00 PDC SP'!$C:$C,$D96,'00 PDC SP'!K:K) -> 0 | J96: =SUMIF('00 PDC SP'!$C:$C,$D96,'00 PDC SP'!L:L) -> 0 | K96: =SUMIF('00 PDC SP'!$C:$C,$D96,'00 PDC SP'!M:M) -> 0 | L96: =SUMIF('00 PDC SP'!$C:$C,$D96,'00 PDC SP'!N:N) -> 0
A97: ABA150 | B97: B.I.2.d) Supporti informatici e cancelleria | D97: ABA150 | F97: =SUMIF('00 PDC SP'!$C:$C,$D97,'00 PDC SP'!H:H) -> 362290.35 | G97: =SUMIF('00 PDC SP'!$C:$C,$D97,'00 PDC SP'!I:I) -> 209556.43 | H97: =SUMIF('00 PDC SP'!$C:$C,$D97,'00 PDC SP'!J:J) -> 362290.35 | I97: =SUMIF('00 PDC SP'!$C:$C,$D97,'00 PDC SP'!K:K) -> 209556.43 | J97: =SUMIF('00 PDC SP'!$C:$C,$D97,'00 PDC SP'!L:L) -> 225256.65 | K97: =SUMIF('00 PDC SP'!$C:$C,$D97,'00 PDC SP'!M:M) -> 209556.43 | L97: =SUMIF('00 PDC SP'!$C:$C,$D97,'00 PDC SP'!N:N) -> 225256.65
A98: ABA160 | B98: B.I.2.e) Materiale per la manutenzione | D98: ABA160 | F98: =SUMIF('00 PDC SP'!$C:$C,$D98,'00 PDC SP'!H:H) -> 117370.14 | G98: =SUMIF('00 PDC SP'!$C:$C,$D98,'00 PDC SP'!I:I) -> 158555.7 | H98: =SUMIF('00 PDC SP'!$C:$C,$D98,'00 PDC SP'!J:J) -> 117370.14 | I98: =SUMIF('00 PDC SP'!$C:$C,$D98,'00 PDC SP'!K:K) -> 158555.7 | J98: =SUMIF('00 PDC SP'!$C:$C,$D98,'00 PDC SP'!L:L) -> 21536.05 | K98: =SUMIF('00 PDC SP'!$C:$C,$D98,'00 PDC SP'!M:M) -> 158555.7 | L98: =SUMIF('00 PDC SP'!$C:$C,$D98,'00 PDC SP'!N:N) -> 21536.05
A99: ABA170 | B99: B.I.2.f) Altri beni e prodotti non sanitari | D99: ABA170 | F99: =SUMIF('00 PDC SP'!$C:$C,$D99,'00 PDC SP'!H:H) -> 1229.74 | G99: =SUMIF('00 PDC SP'!$C:$C,$D99,'00 PDC SP'!I:I) -> 502.43 | H99: =SUMIF('00 PDC SP'!$C:$C,$D99,'00 PDC SP'!J:J) -> 1229.74 | I99: =SUMIF('00 PDC SP'!$C:$C,$D99,'00 PDC SP'!K:K) -> 502.43 | J99: =SUMIF('00 PDC SP'!$C:$C,$D99,'00 PDC SP'!L:L) -> 1157.96 | K99: =SUMIF('00 PDC SP'!$C:$C,$D99,'00 PDC SP'!M:M) -> 502.43 | L99: =SUMIF('00 PDC SP'!$C:$C,$D99,'00 PDC SP'!N:N) -> 1157.96
A100: ABA180 | B100: B.I.2.g) Acconti per acquisto di beni e prodotti non sanitari | D100: ABA180 | F100: =SUMIF('00 PDC SP'!$C:$C,$D100,'00 PDC SP'!H:H) -> 0 | G100: =SUMIF('00 PDC SP'!$C:$C,$D100,'00 PDC SP'!I:I) -> 0 | H100: =SUMIF('00 PDC SP'!$C:$C,$D100,'00 PDC SP'!J:J) -> 0 | I100: =SUMIF('00 PDC SP'!$C:$C,$D100,'00 PDC SP'!K:K) -> 0 | J100: =SUMIF('00 PDC SP'!$C:$C,$D100,'00 PDC SP'!L:L) -> 0 | K100: =SUMIF('00 PDC SP'!$C:$C,$D100,'00 PDC SP'!M:M) -> 0 | L100: =SUMIF('00 PDC SP'!$C:$C,$D100,'00 PDC SP'!N:N) -> 0
A101: ABA190 | B101: B.II) CREDITI | C101: S | D101: ABA190 | F101: =F102+F118+F139+F140+F149+F153+F154 -> 181602325.3 | G101: =G102+G118+G139+G140+G149+G153+G154 -> 1463465368 | H101: 1425846498 | I101: 219221194.8 | J101: 1561523995 | K101: 1577095277 | L101: 203649912.8
A102: ABA200 | B102: B.II.1) Crediti v/Stato | C102: S | D102: ABA200 | F102: =F103+F104+F105+F106+F107+F108+F109+F110+F112+F117 -> 98082.74 | G102: =G103+G104+G105+G106+G107+G108+G109+G110+G112+G117 -> 154584.84 | H102: 245746.06 | I102: 6921.52 | J102: 99447.05 | K102: 93639.37 | L102: 12729.2
A103: ABA201 | B103: B.II.1.a) Crediti v/Stato per spesa corrente - FSN indistinto | D103: ABA201 | F103: =SUMIF('00 PDC SP'!$C:$C,$D103,'00 PDC SP'!H:H) -> 0 | G103: =SUMIF('00 PDC SP'!$C:$C,$D103,'00 PDC SP'!I:I) -> 50822.1 | H103: =SUMIF('00 PDC SP'!$C:$C,$D103,'00 PDC SP'!J:J) -> 48520.58 | I103: =SUMIF('00 PDC SP'!$C:$C,$D103,'00 PDC SP'!K:K) -> 2301.52 | J103: =SUMIF('00 PDC SP'!$C:$C,$D103,'00 PDC SP'!L:L) -> 98325.05 | K103: =SUMIF('00 PDC SP'!$C:$C,$D103,'00 PDC SP'!M:M) -> 93639.37 | L103: =SUMIF('00 PDC SP'!$C:$C,$D103,'00 PDC SP'!N:N) -> 6987.2
A104: ABA220 | B104: B.II.1.b) Crediti v/Stato per spesa corrente - FSN vincolato | D104: ABA220 | F104: =SUMIF('00 PDC SP'!$C:$C,$D104,'00 PDC SP'!H:H) -> 0 | G104: =SUMIF('00 PDC SP'!$C:$C,$D104,'00 PDC SP'!I:I) -> 0 | H104: =SUMIF('00 PDC SP'!$C:$C,$D104,'00 PDC SP'!J:J) -> 0 | I104: =SUMIF('00 PDC SP'!$C:$C,$D104,'00 PDC SP'!K:K) -> 0 | J104: =SUMIF('00 PDC SP'!$C:$C,$D104,'00 PDC SP'!L:L) -> 0 | K104: =SUMIF('00 PDC SP'!$C:$C,$D104,'00 PDC SP'!M:M) -> 0 | L104: =SUMIF('00 PDC SP'!$C:$C,$D104,'00 PDC SP'!N:N) -> 0
A105: ABA230 | B105: B.II.1.c) Crediti v/Stato per mobilità attiva extraregionale | D105: ABA230 | F105: =SUMIF('00 PDC SP'!$C:$C,$D105,'00 PDC SP'!H:H) -> 0 | G105: =SUMIF('00 PDC SP'!$C:$C,$D105,'00 PDC SP'!I:I) -> 0 | H105: =SUMIF('00 PDC SP'!$C:$C,$D105,'00 PDC SP'!J:J) -> 0 | I105: =SUMIF('00 PDC SP'!$C:$C,$D105,'00 PDC SP'!K:K) -> 0 | J105: =SUMIF('00 PDC SP'!$C:$C,$D105,'00 PDC SP'!L:L) -> 0 | K105: =SUMIF('00 PDC SP'!$C:$C,$D105,'00 PDC SP'!M:M) -> 0 | L105: =SUMIF('00 PDC SP'!$C:$C,$D105,'00 PDC SP'!N:N) -> 0
A106: ABA240 | B106: B.II.1.d) Crediti v/Stato per mobilità attiva internazionale | D106: ABA240 | F106: =SUMIF('00 PDC SP'!$C:$C,$D106,'00 PDC SP'!H:H) -> 0 | G106: =SUMIF('00 PDC SP'!$C:$C,$D106,'00 PDC SP'!I:I) -> 0 | H106: =SUMIF('00 PDC SP'!$C:$C,$D106,'00 PDC SP'!J:J) -> 0 | I106: =SUMIF('00 PDC SP'!$C:$C,$D106,'00 PDC SP'!K:K) -> 0 | J106: =SUMIF('00 PDC SP'!$C:$C,$D106,'00 PDC SP'!L:L) -> 0 | K106: =SUMIF('00 PDC SP'!$C:$C,$D106,'00 PDC SP'!M:M) -> 0 | L106: =SUMIF('00 PDC SP'!$C:$C,$D106,'00 PDC SP'!N:N) -> 0
A107: ABA250 | B107: B.II.1.e) Crediti v/Stato per acconto quota fabbisogno sanitario regionale standard | D107: ABA250 | F107: =SUMIF('00 PDC SP'!$C:$C,$D107,'00 PDC SP'!H:H) -> 0 | G107: =SUMIF('00 PDC SP'!$C:$C,$D107,'00 PDC SP'!I:I) -> 0 | H107: =SUMIF('00 PDC SP'!$C:$C,$D107,'00 PDC SP'!J:J) -> 0 | I107: =SUMIF('00 PDC SP'!$C:$C,$D107,'00 PDC SP'!K:K) -> 0 | J107: =SUMIF('00 PDC SP'!$C:$C,$D107,'00 PDC SP'!L:L) -> 0 | K107: =SUMIF('00 PDC SP'!$C:$C,$D107,'00 PDC SP'!M:M) -> 0 | L107: =SUMIF('00 PDC SP'!$C:$C,$D107,'00 PDC SP'!N:N) -> 0
A108: ABA260 | B108: B.II.1.f) Crediti v/Stato per finanziamento sanitario aggiuntivo corrente | D108: ABA260 | F108: =SUMIF('00 PDC SP'!$C:$C,$D108,'00 PDC SP'!H:H) -> 0 | G108: =SUMIF('00 PDC SP'!$C:$C,$D108,'00 PDC SP'!I:I) -> 0 | H108: =SUMIF('00 PDC SP'!$C:$C,$D108,'00 PDC SP'!J:J) -> 0 | I108: =SUMIF('00 PDC SP'!$C:$C,$D108,'00 PDC SP'!K:K) -> 0 | J108: =SUMIF('00 PDC SP'!$C:$C,$D108,'00 PDC SP'!L:L) -> 0 | K108: =SUMIF('00 PDC SP'!$C:$C,$D108,'00 PDC SP'!M:M) -> 0 | L108: =SUMIF('00 PDC SP'!$C:$C,$D108,'00 PDC SP'!N:N) -> 0
A109: ABA270 | B109: B.II.1.g) Crediti v/Stato per spesa corrente - altro | D109: ABA270 | F109: =SUMIF('00 PDC SP'!$C:$C,$D109,'00 PDC SP'!H:H) -> 0 | G109: =SUMIF('00 PDC SP'!$C:$C,$D109,'00 PDC SP'!I:I) -> 0 | H109: =SUMIF('00 PDC SP'!$C:$C,$D109,'00 PDC SP'!J:J) -> 0 | I109: =SUMIF('00 PDC SP'!$C:$C,$D109,'00 PDC SP'!K:K) -> 0 | J109: =SUMIF('00 PDC SP'!$C:$C,$D109,'00 PDC SP'!L:L) -> 0 | K109: =SUMIF('00 PDC SP'!$C:$C,$D109,'00 PDC SP'!M:M) -> 0 | L109: =SUMIF('00 PDC SP'!$C:$C,$D109,'00 PDC SP'!N:N) -> 0
A110: ABA271 | B110: B.II.1.h) Crediti v/Stato per spesa corrente per STP (ex D.lgs. 286/98) | D110: ABA271 | F110: =SUMIF('00 PDC SP'!$C:$C,$D110,'00 PDC SP'!H:H) -> 0 | G110: =SUMIF('00 PDC SP'!$C:$C,$D110,'00 PDC SP'!I:I) -> 0 | H110: =SUMIF('00 PDC SP'!$C:$C,$D110,'00 PDC SP'!J:J) -> 0 | I110: =SUMIF('00 PDC SP'!$C:$C,$D110,'00 PDC SP'!K:K) -> 0 | J110: =SUMIF('00 PDC SP'!$C:$C,$D110,'00 PDC SP'!L:L) -> 0 | K110: =SUMIF('00 PDC SP'!$C:$C,$D110,'00 PDC SP'!M:M) -> 0 | L110: =SUMIF('00 PDC SP'!$C:$C,$D110,'00 PDC SP'!N:N) -> 0
A111: ABA280 | B111: B.II.1.i) Crediti v/Stato per finanziamenti per investimenti | D111: ABA280 | F111: =SUMIF('00 PDC SP'!$C:$C,$D111,'00 PDC SP'!H:H) -> 0 | G111: =SUMIF('00 PDC SP'!$C:$C,$D111,'00 PDC SP'!I:I) -> 0 | H111: =SUMIF('00 PDC SP'!$C:$C,$D111,'00 PDC SP'!J:J) -> 0 | I111: =SUMIF('00 PDC SP'!$C:$C,$D111,'00 PDC SP'!K:K) -> 0 | J111: =SUMIF('00 PDC SP'!$C:$C,$D111,'00 PDC SP'!L:L) -> 0 | K111: =SUMIF('00 PDC SP'!$C:$C,$D111,'00 PDC SP'!M:M) -> 0 | L111: =SUMIF('00 PDC SP'!$C:$C,$D111,'00 PDC SP'!N:N) -> 0
A112: ABA290 | B112: B.II.1.j) Crediti v/Stato per ricerca | C112: S | D112: ABA290 | F112: =F113+F114+F115+F116 -> 4620 | G112: =G113+G114+G115+G116 -> 10300 | H112: 10300 | I112: 4620 | J112: 1122 | K112: 0 | L112: 5742
A113: ABA300 | B113: B.II.1.j.1) Crediti v/Stato per ricerca corrente - Ministero della Salute | D113: ABA300 | F113: =SUMIF('00 PDC SP'!$C:$C,$D113,'00 PDC SP'!H:H) -> 0 | G113: =SUMIF('00 PDC SP'!$C:$C,$D113,'00 PDC SP'!I:I) -> 0 | H113: =SUMIF('00 PDC SP'!$C:$C,$D113,'00 PDC SP'!J:J) -> 0 | I113: =SUMIF('00 PDC SP'!$C:$C,$D113,'00 PDC SP'!K:K) -> 0 | J113: =SUMIF('00 PDC SP'!$C:$C,$D113,'00 PDC SP'!L:L) -> 0 | K113: =SUMIF('00 PDC SP'!$C:$C,$D113,'00 PDC SP'!M:M) -> 0 | L113: =SUMIF('00 PDC SP'!$C:$C,$D113,'00 PDC SP'!N:N) -> 0
A114: ABA310 | B114: B.II.1.j.2) Crediti v/Stato per ricerca finalizzata - Ministero della Salute | D114: ABA310 | F114: =SUMIF('00 PDC SP'!$C:$C,$D114,'00 PDC SP'!H:H) -> 4620 | G114: =SUMIF('00 PDC SP'!$C:$C,$D114,'00 PDC SP'!I:I) -> 10300 | H114: =SUMIF('00 PDC SP'!$C:$C,$D114,'00 PDC SP'!J:J) -> 10300 | I114: =SUMIF('00 PDC SP'!$C:$C,$D114,'00 PDC SP'!K:K) -> 4620 | J114: =SUMIF('00 PDC SP'!$C:$C,$D114,'00 PDC SP'!L:L) -> 1122 | K114: =SUMIF('00 PDC SP'!$C:$C,$D114,'00 PDC SP'!M:M) -> 0 | L114: =SUMIF('00 PDC SP'!$C:$C,$D114,'00 PDC SP'!N:N) -> 5742
A115: ABA320 | B115: B.II.1.j.3) Crediti v/Stato per ricerca - altre Amministrazioni centrali | D115: ABA320 | F115: =SUMIF('00 PDC SP'!$C:$C,$D115,'00 PDC SP'!H:H) -> 0 | G115: =SUMIF('00 PDC SP'!$C:$C,$D115,'00 PDC SP'!I:I) -> 0 | H115: =SUMIF('00 PDC SP'!$C:$C,$D115,'00 PDC SP'!J:J) -> 0 | I115: =SUMIF('00 PDC SP'!$C:$C,$D115,'00 PDC SP'!K:K) -> 0 | J115: =SUMIF('00 PDC SP'!$C:$C,$D115,'00 PDC SP'!L:L) -> 0 | K115: =SUMIF('00 PDC SP'!$C:$C,$D115,'00 PDC SP'!M:M) -> 0 | L115: =SUMIF('00 PDC SP'!$C:$C,$D115,'00 PDC SP'!N:N) -> 0
A116: ABA330 | B116: B.II.1.j.4) Crediti v/Stato per ricerca - finanziamenti per investimenti | D116: ABA330 | F116: =SUMIF('00 PDC SP'!$C:$C,$D116,'00 PDC SP'!H:H) -> 0 | G116: =SUMIF('00 PDC SP'!$C:$C,$D116,'00 PDC SP'!I:I) -> 0 | H116: =SUMIF('00 PDC SP'!$C:$C,$D116,'00 PDC SP'!J:J) -> 0 | I116: =SUMIF('00 PDC SP'!$C:$C,$D116,'00 PDC SP'!K:K) -> 0 | J116: =SUMIF('00 PDC SP'!$C:$C,$D116,'00 PDC SP'!L:L) -> 0 | K116: =SUMIF('00 PDC SP'!$C:$C,$D116,'00 PDC SP'!M:M) -> 0 | L116: =SUMIF('00 PDC SP'!$C:$C,$D116,'00 PDC SP'!N:N) -> 0
A117: ABA340 | B117: B.II.1.k) Crediti v/prefetture | D117: ABA340 | F117: =SUMIF('00 PDC SP'!$C:$C,$D117,'00 PDC SP'!H:H) -> 93462.74 | G117: =SUMIF('00 PDC SP'!$C:$C,$D117,'00 PDC SP'!I:I) -> 93462.74 | H117: =SUMIF('00 PDC SP'!$C:$C,$D117,'00 PDC SP'!J:J) -> 186925.48 | I117: =SUMIF('00 PDC SP'!$C:$C,$D117,'00 PDC SP'!K:K) -> 0 | J117: =SUMIF('00 PDC SP'!$C:$C,$D117,'00 PDC SP'!L:L) -> 0 | K117: =SUMIF('00 PDC SP'!$C:$C,$D117,'00 PDC SP'!M:M) -> 0 | L117: =SUMIF('00 PDC SP'!$C:$C,$D117,'00 PDC SP'!N:N) -> 0
A118: ABA350 | B118: B.II.2) Crediti v/Regione o Provincia Autonoma | C118: S | D118: ABA350 | F118: =F119+F130 -> 176422344.8 | G118: =G119+G130 -> 1441602435 | H118: 1403682649 | I118: 214342131.2 | J118: 1528555250 | K118: 1545801481 | L118: 197095900.6
A119: ABA360 | B119: B.II.2.a) Crediti v/Regione o Provincia Autonoma per spesa corrente | C119: S | D119: ABA360 | F119: =F120+F121+F122+F123+F124+F125+F126+F127+F128+F129 -> 162119379.8 | G119: =G120+G121+G122+G123+G124+G125+G126+G127+G128+G129 -> 1427992811 | H119: 1403682649 | I119: 186429542.2 | J119: 1527872624 | K119: 1544765050 | L119: 169537115.8
A120: ABA390 | B120: B.II.2.a.1) Crediti v/Regione o Provincia Autonoma per quota FSR | D120: ABA390 | F120: =SUMIF('00 PDC SP'!$C:$C,$D120,'00 PDC SP'!H:H) -> 115880045.1 | G120: =SUMIF('00 PDC SP'!$C:$C,$D120,'00 PDC SP'!I:I) -> 699144829.1 | H120: =SUMIF('00 PDC SP'!$C:$C,$D120,'00 PDC SP'!J:J) -> 673828882.2 | I120: =SUMIF('00 PDC SP'!$C:$C,$D120,'00 PDC SP'!K:K) -> 141195992 | J120: =SUMIF('00 PDC SP'!$C:$C,$D120,'00 PDC SP'!L:L) -> 743631926.5 | K120: =SUMIF('00 PDC SP'!$C:$C,$D120,'00 PDC SP'!M:M) -> 761266852.4 | L120: =SUMIF('00 PDC SP'!$C:$C,$D120,'00 PDC SP'!N:N) -> 123561066
A121: ABA400 | B121: B.II.2.a.2) Crediti v/Regione o Provincia Autonoma per mobilità attiva intraregionale | D121: ABA400 | F121: =SUMIF('00 PDC SP'!$C:$C,$D121,'00 PDC SP'!H:H) -> 16849743.38 | G121: =SUMIF('00 PDC SP'!$C:$C,$D121,'00 PDC SP'!I:I) -> 99510381.01 | H121: =SUMIF('00 PDC SP'!$C:$C,$D121,'00 PDC SP'!J:J) -> 99510381 | I121: =SUMIF('00 PDC SP'!$C:$C,$D121,'00 PDC SP'!K:K) -> 16849743.39 | J121: =SUMIF('00 PDC SP'!$C:$C,$D121,'00 PDC SP'!L:L) -> 102476232.3 | K121: =SUMIF('00 PDC SP'!$C:$C,$D121,'00 PDC SP'!M:M) -> 102476232.3 | L121: =SUMIF('00 PDC SP'!$C:$C,$D121,'00 PDC SP'!N:N) -> 16849743.39
A122: ABA410 | B122: B.II.2.a.3) Crediti v/Regione o Provincia Autonoma per mobilità attiva extraregionale | D122: ABA410 | F122: =SUMIF('00 PDC SP'!$C:$C,$D122,'00 PDC SP'!H:H) -> 19005500.29 | G122: =SUMIF('00 PDC SP'!$C:$C,$D122,'00 PDC SP'!I:I) -> 23288119.72 | H122: =SUMIF('00 PDC SP'!$C:$C,$D122,'00 PDC SP'!J:J) -> 23288119.72 | I122: =SUMIF('00 PDC SP'!$C:$C,$D122,'00 PDC SP'!K:K) -> 19005500.29 | J122: =SUMIF('00 PDC SP'!$C:$C,$D122,'00 PDC SP'!L:L) -> 26206460.13 | K122: =SUMIF('00 PDC SP'!$C:$C,$D122,'00 PDC SP'!M:M) -> 26206460.13 | L122: =SUMIF('00 PDC SP'!$C:$C,$D122,'00 PDC SP'!N:N) -> 19005500.29
A123: ABA420 | B123: B.II.2.a.4) Crediti v/Regione o Provincia Autonoma per acconto quota FSR | D123: ABA420 | F123: =SUMIF('00 PDC SP'!$C:$C,$D123,'00 PDC SP'!H:H) -> 0 | G123: =SUMIF('00 PDC SP'!$C:$C,$D123,'00 PDC SP'!I:I) -> 603150469.8 | H123: =SUMIF('00 PDC SP'!$C:$C,$D123,'00 PDC SP'!J:J) -> 603150469.8 | I123: =SUMIF('00 PDC SP'!$C:$C,$D123,'00 PDC SP'!K:K) -> 0 | J123: =SUMIF('00 PDC SP'!$C:$C,$D123,'00 PDC SP'!L:L) -> 645488212 | K123: =SUMIF('00 PDC SP'!$C:$C,$D123,'00 PDC SP'!M:M) -> 645488212 | L123: =SUMIF('00 PDC SP'!$C:$C,$D123,'00 PDC SP'!N:N) -> 0
A124: ABA430 | B124: B.II.2.a.5) Crediti v/Regione o Provincia Autonoma per finanziamento sanitario aggiuntivo corrente LEA | D124: ABA430 | F124: =SUMIF('00 PDC SP'!$C:$C,$D124,'00 PDC SP'!H:H) -> 10384091.02 | G124: =SUMIF('00 PDC SP'!$C:$C,$D124,'00 PDC SP'!I:I) -> 2899011.66 | H124: =SUMIF('00 PDC SP'!$C:$C,$D124,'00 PDC SP'!J:J) -> 3904796.15 | I124: =SUMIF('00 PDC SP'!$C:$C,$D124,'00 PDC SP'!K:K) -> 9378306.53 | J124: =SUMIF('00 PDC SP'!$C:$C,$D124,'00 PDC SP'!L:L) -> 9459338.46 | K124: =SUMIF('00 PDC SP'!$C:$C,$D124,'00 PDC SP'!M:M) -> 8933757.09 | L124: =SUMIF('00 PDC SP'!$C:$C,$D124,'00 PDC SP'!N:N) -> 9903887.9
A125: ABA440 | B125: B.II.2.a.6) Crediti v/Regione o Provincia Autonoma per finanziamento sanitario aggiuntivo corrente extra LEA | D125: ABA440 | F125: =SUMIF('00 PDC SP'!$C:$C,$D125,'00 PDC SP'!H:H) -> 0 | G125: =SUMIF('00 PDC SP'!$C:$C,$D125,'00 PDC SP'!I:I) -> 0 | H125: =SUMIF('00 PDC SP'!$C:$C,$D125,'00 PDC SP'!J:J) -> 0 | I125: =SUMIF('00 PDC SP'!$C:$C,$D125,'00 PDC SP'!K:K) -> 0 | J125: =SUMIF('00 PDC SP'!$C:$C,$D125,'00 PDC SP'!L:L) -> 0 | K125: =SUMIF('00 PDC SP'!$C:$C,$D125,'00 PDC SP'!M:M) -> 0 | L125: =SUMIF('00 PDC SP'!$C:$C,$D125,'00 PDC SP'!N:N) -> 0
A126: ABA450 | B126: B.II.2.a.7) Crediti v/Regione o Provincia Autonoma per spesa corrente - altro | D126: ABA450 | F126: =SUMIF('00 PDC SP'!$C:$C,$D126,'00 PDC SP'!H:H) -> 0 | G126: =SUMIF('00 PDC SP'!$C:$C,$D126,'00 PDC SP'!I:I) -> 0 | H126: =SUMIF('00 PDC SP'!$C:$C,$D126,'00 PDC SP'!J:J) -> 0 | I126: =SUMIF('00 PDC SP'!$C:$C,$D126,'00 PDC SP'!K:K) -> 0 | J126: =SUMIF('00 PDC SP'!$C:$C,$D126,'00 PDC SP'!L:L) -> 0 | K126: =SUMIF('00 PDC SP'!$C:$C,$D126,'00 PDC SP'!M:M) -> 0 | L126: =SUMIF('00 PDC SP'!$C:$C,$D126,'00 PDC SP'!N:N) -> 0
A127: ABA451 | B127: B.II.2.a.8) Crediti v/Regione o Provincia Autonoma per spesa corrente - STP (ex D.lgs. 286/98) | D127: ABA451 | F127: =SUMIF('00 PDC SP'!$C:$C,$D127,'00 PDC SP'!H:H) -> 0 | G127: =SUMIF('00 PDC SP'!$C:$C,$D127,'00 PDC SP'!I:I) -> 0 | H127: =SUMIF('00 PDC SP'!$C:$C,$D127,'00 PDC SP'!J:J) -> 0 | I127: =SUMIF('00 PDC SP'!$C:$C,$D127,'00 PDC SP'!K:K) -> 0 | J127: =SUMIF('00 PDC SP'!$C:$C,$D127,'00 PDC SP'!L:L) -> 216918.16 | K127: =SUMIF('00 PDC SP'!$C:$C,$D127,'00 PDC SP'!M:M) -> 0 | L127: =SUMIF('00 PDC SP'!$C:$C,$D127,'00 PDC SP'!N:N) -> 216918.16
A128: ABA460 | B128: B.II.2.a.9) Crediti v/Regione o Provincia Autonoma per ricerca | D128: ABA460 | F128: =SUMIF('00 PDC SP'!$C:$C,$D128,'00 PDC SP'!H:H) -> 0 | G128: =SUMIF('00 PDC SP'!$C:$C,$D128,'00 PDC SP'!I:I) -> 0 | H128: =SUMIF('00 PDC SP'!$C:$C,$D128,'00 PDC SP'!J:J) -> 0 | I128: =SUMIF('00 PDC SP'!$C:$C,$D128,'00 PDC SP'!K:K) -> 0 | J128: =SUMIF('00 PDC SP'!$C:$C,$D128,'00 PDC SP'!L:L) -> 0 | K128: =SUMIF('00 PDC SP'!$C:$C,$D128,'00 PDC SP'!M:M) -> 0 | L128: =SUMIF('00 PDC SP'!$C:$C,$D128,'00 PDC SP'!N:N) -> 0
A129: ABA461 | B129: B.II.2.a.10) Crediti v/Regione o Provincia Autonoma per mobilità attiva internazionale | D129: ABA461 | F129: =SUMIF('00 PDC SP'!$C:$C,$D129,'00 PDC SP'!H:H) -> 0 | G129: =SUMIF('00 PDC SP'!$C:$C,$D129,'00 PDC SP'!I:I) -> 0 | H129: =SUMIF('00 PDC SP'!$C:$C,$D129,'00 PDC SP'!J:J) -> 0 | I129: =SUMIF('00 PDC SP'!$C:$C,$D129,'00 PDC SP'!K:K) -> 0 | J129: =SUMIF('00 PDC SP'!$C:$C,$D129,'00 PDC SP'!L:L) -> 393536.14 | K129: =SUMIF('00 PDC SP'!$C:$C,$D129,'00 PDC SP'!M:M) -> 393536.14 | L129: =SUMIF('00 PDC SP'!$C:$C,$D129,'00 PDC SP'!N:N) -> 0
A130: ABA470 | B130: B.II.2.b) Crediti v/Regione o Provincia Autonoma per versamenti a patrimonio netto | C130: S | D130: ABA470 | F130: =F131+F132+F133+F134+F135+F136 -> 14302965 | G130: =G131+G132+G133+G134+G135+G136 -> 13609624 | H130: 0 | I130: 27912589 | J130: 682626.67 | K130: 1036430.86 | L130: 27558784.81
A131: ABA480 | B131: B.II.2.b.1) Crediti v/Regione o Provincia Autonoma per finanziamenti per investimenti | D131: ABA480 | F131: =SUMIF('00 PDC SP'!$C:$C,$D131,'00 PDC SP'!H:H) -> 38255 | G131: =SUMIF('00 PDC SP'!$C:$C,$D131,'00 PDC SP'!I:I) -> 0 | H131: =SUMIF('00 PDC SP'!$C:$C,$D131,'00 PDC SP'!J:J) -> 0 | I131: =SUMIF('00 PDC SP'!$C:$C,$D131,'00 PDC SP'!K:K) -> 38255 | J131: =SUMIF('00 PDC SP'!$C:$C,$D131,'00 PDC SP'!L:L) -> 682626.67 | K131: =SUMIF('00 PDC SP'!$C:$C,$D131,'00 PDC SP'!M:M) -> 682626.67 | L131: =SUMIF('00 PDC SP'!$C:$C,$D131,'00 PDC SP'!N:N) -> 38255
A132: ABA490 | B132: B.II.2.b.2) Crediti v/Regione o Provincia Autonoma per incremento fondo dotazione | D132: ABA490 | F132: =SUMIF('00 PDC SP'!$C:$C,$D132,'00 PDC SP'!H:H) -> 0 | G132: =SUMIF('00 PDC SP'!$C:$C,$D132,'00 PDC SP'!I:I) -> 0 | H132: =SUMIF('00 PDC SP'!$C:$C,$D132,'00 PDC SP'!J:J) -> 0 | I132: =SUMIF('00 PDC SP'!$C:$C,$D132,'00 PDC SP'!K:K) -> 0 | J132: =SUMIF('00 PDC SP'!$C:$C,$D132,'00 PDC SP'!L:L) -> 0 | K132: =SUMIF('00 PDC SP'!$C:$C,$D132,'00 PDC SP'!M:M) -> 0 | L132: =SUMIF('00 PDC SP'!$C:$C,$D132,'00 PDC SP'!N:N) -> 0
A133: ABA500 | B133: B.II.2.b.3) Crediti v/Regione o Provincia Autonoma per ripiano perdite | D133: ABA500 | F133: =SUMIF('00 PDC SP'!$C:$C,$D133,'00 PDC SP'!H:H) -> 14264710 | G133: =SUMIF('00 PDC SP'!$C:$C,$D133,'00 PDC SP'!I:I) -> 13609624 | H133: =SUMIF('00 PDC SP'!$C:$C,$D133,'00 PDC SP'!J:J) -> 0 | I133: =SUMIF('00 PDC SP'!$C:$C,$D133,'00 PDC SP'!K:K) -> 27874334 | J133: =SUMIF('00 PDC SP'!$C:$C,$D133,'00 PDC SP'!L:L) -> 0 | K133: =SUMIF('00 PDC SP'!$C:$C,$D133,'00 PDC SP'!M:M) -> 353804.19 | L133: =SUMIF('00 PDC SP'!$C:$C,$D133,'00 PDC SP'!N:N) -> 27520529.81
A134: ABA501 | B134: B.II.2.b.4) Crediti v/Regione o Provincia Autonoma per anticipazione ripiano disavanzo programmato dai Piani aziendali di cui all'art. 1, comma 528, L. 208/2015 | D134: ABA501 | F134: =SUMIF('00 PDC SP'!$C:$C,$D134,'00 PDC SP'!H:H) -> 0 | G134: =SUMIF('00 PDC SP'!$C:$C,$D134,'00 PDC SP'!I:I) -> 0 | H134: =SUMIF('00 PDC SP'!$C:$C,$D134,'00 PDC SP'!J:J) -> 0 | I134: =SUMIF('00 PDC SP'!$C:$C,$D134,'00 PDC SP'!K:K) -> 0 | J134: =SUMIF('00 PDC SP'!$C:$C,$D134,'00 PDC SP'!L:L) -> 0 | K134: =SUMIF('00 PDC SP'!$C:$C,$D134,'00 PDC SP'!M:M) -> 0 | L134: =SUMIF('00 PDC SP'!$C:$C,$D134,'00 PDC SP'!N:N) -> 0
A135: ABA510 | B135: B.II.2.b.5) Crediti v/Regione per copertura debiti al 31/12/2005 | D135: ABA510 | F135: =SUMIF('00 PDC SP'!$C:$C,$D135,'00 PDC SP'!H:H) -> 0 | G135: =SUMIF('00 PDC SP'!$C:$C,$D135,'00 PDC SP'!I:I) -> 0 | H135: =SUMIF('00 PDC SP'!$C:$C,$D135,'00 PDC SP'!J:J) -> 0 | I135: =SUMIF('00 PDC SP'!$C:$C,$D135,'00 PDC SP'!K:K) -> 0 | J135: =SUMIF('00 PDC SP'!$C:$C,$D135,'00 PDC SP'!L:L) -> 0 | K135: =SUMIF('00 PDC SP'!$C:$C,$D135,'00 PDC SP'!M:M) -> 0 | L135: =SUMIF('00 PDC SP'!$C:$C,$D135,'00 PDC SP'!N:N) -> 0
A136: ABA520 | B136: B.II.2.b.6) Crediti v/Regione o Provincia Autonoma per ricostituzione risorse da investimenti esercizi precedenti | D136: ABA520 | F136: =SUMIF('00 PDC SP'!$C:$C,$D136,'00 PDC SP'!H:H) -> 0 | G136: =SUMIF('00 PDC SP'!$C:$C,$D136,'00 PDC SP'!I:I) -> 0 | H136: =SUMIF('00 PDC SP'!$C:$C,$D136,'00 PDC SP'!J:J) -> 0 | I136: =SUMIF('00 PDC SP'!$C:$C,$D136,'00 PDC SP'!K:K) -> 0 | J136: =SUMIF('00 PDC SP'!$C:$C,$D136,'00 PDC SP'!L:L) -> 0 | K136: =SUMIF('00 PDC SP'!$C:$C,$D136,'00 PDC SP'!M:M) -> 0 | L136: =SUMIF('00 PDC SP'!$C:$C,$D136,'00 PDC SP'!N:N) -> 0
A137: ABA521 | B137: B.II.2.c) Crediti v/Regione o Provincia Autonoma per contributi L. 210/92 | D137: ABA521 | F137: =SUMIF('00 PDC SP'!$C:$C,$D137,'00 PDC SP'!H:H) -> 0 | G137: =SUMIF('00 PDC SP'!$C:$C,$D137,'00 PDC SP'!I:I) -> 0 | H137: =SUMIF('00 PDC SP'!$C:$C,$D137,'00 PDC SP'!J:J) -> 0 | I137: =SUMIF('00 PDC SP'!$C:$C,$D137,'00 PDC SP'!K:K) -> 0 | J137: =SUMIF('00 PDC SP'!$C:$C,$D137,'00 PDC SP'!L:L) -> 0 | K137: =SUMIF('00 PDC SP'!$C:$C,$D137,'00 PDC SP'!M:M) -> 0 | L137: =SUMIF('00 PDC SP'!$C:$C,$D137,'00 PDC SP'!N:N) -> 0
A138: ABA522 | B138: B.II.2.d) Crediti v/Regione o Provincia Autonoma per contributi L. 210/92 – aziende sanitarie | D138: ABA522 | F138: =SUMIF('00 PDC SP'!$C:$C,$D138,'00 PDC SP'!H:H) -> 0 | G138: =SUMIF('00 PDC SP'!$C:$C,$D138,'00 PDC SP'!I:I) -> 0 | H138: =SUMIF('00 PDC SP'!$C:$C,$D138,'00 PDC SP'!J:J) -> 0 | I138: =SUMIF('00 PDC SP'!$C:$C,$D138,'00 PDC SP'!K:K) -> 0 | J138: =SUMIF('00 PDC SP'!$C:$C,$D138,'00 PDC SP'!L:L) -> 0 | K138: =SUMIF('00 PDC SP'!$C:$C,$D138,'00 PDC SP'!M:M) -> 0 | L138: =SUMIF('00 PDC SP'!$C:$C,$D138,'00 PDC SP'!N:N) -> 0
A139: ABA530 | B139: B.II.3) Crediti v/Comuni | D139: ABA530 | F139: =SUMIF('00 PDC SP'!$C:$C,$D139,'00 PDC SP'!H:H) -> 220328.35 | G139: =SUMIF('00 PDC SP'!$C:$C,$D139,'00 PDC SP'!I:I) -> 165199.79 | H139: =SUMIF('00 PDC SP'!$C:$C,$D139,'00 PDC SP'!J:J) -> 148773.66 | I139: =SUMIF('00 PDC SP'!$C:$C,$D139,'00 PDC SP'!K:K) -> 236754.48 | J139: =SUMIF('00 PDC SP'!$C:$C,$D139,'00 PDC SP'!L:L) -> 119866.62 | K139: =SUMIF('00 PDC SP'!$C:$C,$D139,'00 PDC SP'!M:M) -> 142466.16 | L139: =SUMIF('00 PDC SP'!$C:$C,$D139,'00 PDC SP'!N:N) -> 214154.94
A140: ABA540 | B140: B.II.4) Crediti v/Aziende sanitarie pubbliche | C140: S | D140: ABA540 | F140: =F141+F145+F146+F147+F148 -> 1544627.87 | G140: =G141+G145+G146+G147+G148 -> 682163.99 | H140: 649711.75 | I140: 1577080.11 | J140: 682954.39 | K140: 658029.34 | L140: 1602005.16
A141: ABA550 | B141: B.II.4.a) Crediti v/Aziende sanitarie pubbliche della Regione | C141: S | D141: ABA550 | F141: =F142+F143+F144 -> 1330392.33 | G141: =G142+G143+G144 -> 404487.52 | H141: 353901.46 | I141: 1380978.39 | J141: 555107.37 | K141: 491509.32 | L141: 1444576.44
A142: ABA560 | B142: B.II.4.a.1) Crediti v/Aziende sanitarie pubbliche della Regione - per mobilità in compensazione | D142: ABA560 | F142: =SUMIF('00 PDC SP'!$C:$C,$D142,'00 PDC SP'!H:H) -> 0 | G142: =SUMIF('00 PDC SP'!$C:$C,$D142,'00 PDC SP'!I:I) -> 0 | H142: =SUMIF('00 PDC SP'!$C:$C,$D142,'00 PDC SP'!J:J) -> 0 | I142: =SUMIF('00 PDC SP'!$C:$C,$D142,'00 PDC SP'!K:K) -> 0 | J142: =SUMIF('00 PDC SP'!$C:$C,$D142,'00 PDC SP'!L:L) -> 0 | K142: =SUMIF('00 PDC SP'!$C:$C,$D142,'00 PDC SP'!M:M) -> 0 | L142: =SUMIF('00 PDC SP'!$C:$C,$D142,'00 PDC SP'!N:N) -> 0
A143: ABA570 | B143: B.II.4.a.2) Crediti v/Aziende sanitarie pubbliche della Regione - per mobilità non in compensazione | D143: ABA570 | F143: =SUMIF('00 PDC SP'!$C:$C,$D143,'00 PDC SP'!H:H) -> 0 | G143: =SUMIF('00 PDC SP'!$C:$C,$D143,'00 PDC SP'!I:I) -> 0 | H143: =SUMIF('00 PDC SP'!$C:$C,$D143,'00 PDC SP'!J:J) -> 0 | I143: =SUMIF('00 PDC SP'!$C:$C,$D143,'00 PDC SP'!K:K) -> 0 | J143: =SUMIF('00 PDC SP'!$C:$C,$D143,'00 PDC SP'!L:L) -> 0 | K143: =SUMIF('00 PDC SP'!$C:$C,$D143,'00 PDC SP'!M:M) -> 0 | L143: =SUMIF('00 PDC SP'!$C:$C,$D143,'00 PDC SP'!N:N) -> 0
A144: ABA580 | B144: B.II.4.a.3) Crediti v/Aziende sanitarie pubbliche della Regione - per altre prestazioni | D144: ABA580 | F144: =SUMIF('00 PDC SP'!$C:$C,$D144,'00 PDC SP'!H:H) -> 1330392.33 | G144: =SUMIF('00 PDC SP'!$C:$C,$D144,'00 PDC SP'!I:I) -> 404487.52 | H144: =SUMIF('00 PDC SP'!$C:$C,$D144,'00 PDC SP'!J:J) -> 353901.46 | I144: =SUMIF('00 PDC SP'!$C:$C,$D144,'00 PDC SP'!K:K) -> 1380978.39 | J144: =SUMIF('00 PDC SP'!$C:$C,$D144,'00 PDC SP'!L:L) -> 555107.37 | K144: =SUMIF('00 PDC SP'!$C:$C,$D144,'00 PDC SP'!M:M) -> 491509.32 | L144: =SUMIF('00 PDC SP'!$C:$C,$D144,'00 PDC SP'!N:N) -> 1444576.44
A145: ABA590 | B145: B.II.4.b) Acconto quota FSR da distribuire | D145: ABA590 | F145: =SUMIF('00 PDC SP'!$C:$C,$D145,'00 PDC SP'!H:H) -> 0 | G145: =SUMIF('00 PDC SP'!$C:$C,$D145,'00 PDC SP'!I:I) -> 0 | H145: =SUMIF('00 PDC SP'!$C:$C,$D145,'00 PDC SP'!J:J) -> 0 | I145: =SUMIF('00 PDC SP'!$C:$C,$D145,'00 PDC SP'!K:K) -> 0 | J145: =SUMIF('00 PDC SP'!$C:$C,$D145,'00 PDC SP'!L:L) -> 0 | K145: =SUMIF('00 PDC SP'!$C:$C,$D145,'00 PDC SP'!M:M) -> 0 | L145: =SUMIF('00 PDC SP'!$C:$C,$D145,'00 PDC SP'!N:N) -> 0
A146: ABA591 | B146: B.II.4.c) Crediti v/Aziende sanitarie pubbliche della Regione per anticipazione ripiano disavanzo programmato dai Piani aziendali di cui all'art. 1, comma 528, L. 208/2015 | D146: ABA591 | F146: =SUMIF('00 PDC SP'!$C:$C,$D146,'00 PDC SP'!H:H) -> 0 | G146: =SUMIF('00 PDC SP'!$C:$C,$D146,'00 PDC SP'!I:I) -> 0 | H146: =SUMIF('00 PDC SP'!$C:$C,$D146,'00 PDC SP'!J:J) -> 0 | I146: =SUMIF('00 PDC SP'!$C:$C,$D146,'00 PDC SP'!K:K) -> 0 | J146: =SUMIF('00 PDC SP'!$C:$C,$D146,'00 PDC SP'!L:L) -> 0 | K146: =SUMIF('00 PDC SP'!$C:$C,$D146,'00 PDC SP'!M:M) -> 0 | L146: =SUMIF('00 PDC SP'!$C:$C,$D146,'00 PDC SP'!N:N) -> 0
A147: ABA600 | B147: B.II.4.d) Crediti v/Aziende sanitarie pubbliche Extraregione | D147: ABA600 | F147: =SUMIF('00 PDC SP'!$C:$C,$D147,'00 PDC SP'!H:H) -> 214235.54 | G147: =SUMIF('00 PDC SP'!$C:$C,$D147,'00 PDC SP'!I:I) -> 277676.47 | H147: =SUMIF('00 PDC SP'!$C:$C,$D147,'00 PDC SP'!J:J) -> 295810.29 | I147: =SUMIF('00 PDC SP'!$C:$C,$D147,'00 PDC SP'!K:K) -> 196101.72 | J147: =SUMIF('00 PDC SP'!$C:$C,$D147,'00 PDC SP'!L:L) -> 127847.02 | K147: =SUMIF('00 PDC SP'!$C:$C,$D147,'00 PDC SP'!M:M) -> 166520.02 | L147: =SUMIF('00 PDC SP'!$C:$C,$D147,'00 PDC SP'!N:N) -> 157428.72
A148: ABA601 | B148: B.II.4.e) Crediti v/Aziende sanitarie pubbliche della Regione - per Contributi da Aziende sanitarie pubbliche della Regione o Prov. Aut. (extra fondo) | D148: ABA601 | F148: =SUMIF('00 PDC SP'!$C:$C,$D148,'00 PDC SP'!H:H) -> 0 | G148: =SUMIF('00 PDC SP'!$C:$C,$D148,'00 PDC SP'!I:I) -> 0 | H148: =SUMIF('00 PDC SP'!$C:$C,$D148,'00 PDC SP'!J:J) -> 0 | I148: =SUMIF('00 PDC SP'!$C:$C,$D148,'00 PDC SP'!K:K) -> 0 | J148: =SUMIF('00 PDC SP'!$C:$C,$D148,'00 PDC SP'!L:L) -> 0 | K148: =SUMIF('00 PDC SP'!$C:$C,$D148,'00 PDC SP'!M:M) -> 0 | L148: =SUMIF('00 PDC SP'!$C:$C,$D148,'00 PDC SP'!N:N) -> 0
A149: ABA610 | B149: B.II.5) Crediti v/società partecipate e/o enti dipendenti della Regione | C149: S | D149: ABA610 | F149: =F150+F151+F152 -> 5931.31 | G149: =G150+G151+G152 -> 0 | H149: 0 | I149: 5931.31 | J149: 0 | K149: 0 | L149: 5931.31
A150: ABA620 | B150: B.II.5.a) Crediti v/enti regionali | D150: ABA620 | F150: =SUMIF('00 PDC SP'!$C:$C,$D150,'00 PDC SP'!H:H) -> 5931.31 | G150: =SUMIF('00 PDC SP'!$C:$C,$D150,'00 PDC SP'!I:I) -> 0 | H150: =SUMIF('00 PDC SP'!$C:$C,$D150,'00 PDC SP'!J:J) -> 0 | I150: =SUMIF('00 PDC SP'!$C:$C,$D150,'00 PDC SP'!K:K) -> 5931.31 | J150: =SUMIF('00 PDC SP'!$C:$C,$D150,'00 PDC SP'!L:L) -> 0 | K150: =SUMIF('00 PDC SP'!$C:$C,$D150,'00 PDC SP'!M:M) -> 0 | L150: =SUMIF('00 PDC SP'!$C:$C,$D150,'00 PDC SP'!N:N) -> 5931.31
A151: ABA630 | B151: B.II.5.b) Crediti v/sperimentazioni gestionali | D151: ABA630 | F151: =SUMIF('00 PDC SP'!$C:$C,$D151,'00 PDC SP'!H:H) -> 0 | G151: =SUMIF('00 PDC SP'!$C:$C,$D151,'00 PDC SP'!I:I) -> 0 | H151: =SUMIF('00 PDC SP'!$C:$C,$D151,'00 PDC SP'!J:J) -> 0 | I151: =SUMIF('00 PDC SP'!$C:$C,$D151,'00 PDC SP'!K:K) -> 0 | J151: =SUMIF('00 PDC SP'!$C:$C,$D151,'00 PDC SP'!L:L) -> 0 | K151: =SUMIF('00 PDC SP'!$C:$C,$D151,'00 PDC SP'!M:M) -> 0 | L151: =SUMIF('00 PDC SP'!$C:$C,$D151,'00 PDC SP'!N:N) -> 0
A152: ABA640 | B152: B.II.5.c) Crediti v/altre partecipate | D152: ABA640 | F152: =SUMIF('00 PDC SP'!$C:$C,$D152,'00 PDC SP'!H:H) -> 0 | G152: =SUMIF('00 PDC SP'!$C:$C,$D152,'00 PDC SP'!I:I) -> 0 | H152: =SUMIF('00 PDC SP'!$C:$C,$D152,'00 PDC SP'!J:J) -> 0 | I152: =SUMIF('00 PDC SP'!$C:$C,$D152,'00 PDC SP'!K:K) -> 0 | J152: =SUMIF('00 PDC SP'!$C:$C,$D152,'00 PDC SP'!L:L) -> 0 | K152: =SUMIF('00 PDC SP'!$C:$C,$D152,'00 PDC SP'!M:M) -> 0 | L152: =SUMIF('00 PDC SP'!$C:$C,$D152,'00 PDC SP'!N:N) -> 0
A153: ABA650 | B153: B.II.6) Crediti v/Erario | D153: ABA650 | F153: =SUMIF('00 PDC SP'!$C:$C,$D153,'00 PDC SP'!H:H) -> 8209.04 | G153: =SUMIF('00 PDC SP'!$C:$C,$D153,'00 PDC SP'!I:I) -> 505567.5 | H153: =SUMIF('00 PDC SP'!$C:$C,$D153,'00 PDC SP'!J:J) -> 496872 | I153: =SUMIF('00 PDC SP'!$C:$C,$D153,'00 PDC SP'!K:K) -> 16904.54 | J153: =SUMIF('00 PDC SP'!$C:$C,$D153,'00 PDC SP'!L:L) -> 422897.97 | K153: =SUMIF('00 PDC SP'!$C:$C,$D153,'00 PDC SP'!M:M) -> 424409 | L153: =SUMIF('00 PDC SP'!$C:$C,$D153,'00 PDC SP'!N:N) -> 15393.51
A154: ABA660 | B154: B.II.7) Crediti v/altri | C154: S | D154: ABA660 | F154: =F155+F156+F157+F158+F159+F162 -> 3302801.21 | G154: =G155+G156+G157+G158+G159+G162 -> 20355416.4 | H154: 20622745.92 | I154: 3035471.69 | J154: 31643578.95 | K154: 29975252.58 | L154: 4703798.06
A155: ABA670 | B155: B.II.7.a) Crediti v/clienti privati | D155: ABA670 | F155: =SUMIF('00 PDC SP'!$C:$C,$D155,'00 PDC SP'!H:H) -> 2022410.26 | G155: =SUMIF('00 PDC SP'!$C:$C,$D155,'00 PDC SP'!I:I) -> 19327870 | H155: =SUMIF('00 PDC SP'!$C:$C,$D155,'00 PDC SP'!J:J) -> 19097757.98 | I155: =SUMIF('00 PDC SP'!$C:$C,$D155,'00 PDC SP'!K:K) -> 2252522.28 | J155: =SUMIF('00 PDC SP'!$C:$C,$D155,'00 PDC SP'!L:L) -> 30477769.65 | K155: =SUMIF('00 PDC SP'!$C:$C,$D155,'00 PDC SP'!M:M) -> 29825654.66 | L155: =SUMIF('00 PDC SP'!$C:$C,$D155,'00 PDC SP'!N:N) -> 2904637.27
A156: ABA680 | B156: B.II.7.b) Crediti v/gestioni liquidatorie | D156: ABA680 | F156: =SUMIF('00 PDC SP'!$C:$C,$D156,'00 PDC SP'!H:H) -> 0 | G156: =SUMIF('00 PDC SP'!$C:$C,$D156,'00 PDC SP'!I:I) -> 0 | H156: =SUMIF('00 PDC SP'!$C:$C,$D156,'00 PDC SP'!J:J) -> 0 | I156: =SUMIF('00 PDC SP'!$C:$C,$D156,'00 PDC SP'!K:K) -> 0 | J156: =SUMIF('00 PDC SP'!$C:$C,$D156,'00 PDC SP'!L:L) -> 0 | K156: =SUMIF('00 PDC SP'!$C:$C,$D156,'00 PDC SP'!M:M) -> 0 | L156: =SUMIF('00 PDC SP'!$C:$C,$D156,'00 PDC SP'!N:N) -> 0
A157: ABA690 | B157: B.II.7.c) Crediti v/altri soggetti pubblici | D157: ABA690 | F157: =SUMIF('00 PDC SP'!$C:$C,$D157,'00 PDC SP'!H:H) -> 394535.99 | G157: =SUMIF('00 PDC SP'!$C:$C,$D157,'00 PDC SP'!I:I) -> 288535.49 | H157: =SUMIF('00 PDC SP'!$C:$C,$D157,'00 PDC SP'!J:J) -> 465524.77 | I157: =SUMIF('00 PDC SP'!$C:$C,$D157,'00 PDC SP'!K:K) -> 217546.71 | J157: =SUMIF('00 PDC SP'!$C:$C,$D157,'00 PDC SP'!L:L) -> 155400.41 | K157: =SUMIF('00 PDC SP'!$C:$C,$D157,'00 PDC SP'!M:M) -> 137662.29 | L157: =SUMIF('00 PDC SP'!$C:$C,$D157,'00 PDC SP'!N:N) -> 235284.83
A158: ABA700 | B158: B.II.7.d) Crediti v/altri soggetti pubblici per ricerca | D158: ABA700 | F158: =SUMIF('00 PDC SP'!$C:$C,$D158,'00 PDC SP'!H:H) -> 0 | G158: =SUMIF('00 PDC SP'!$C:$C,$D158,'00 PDC SP'!I:I) -> 0 | H158: =SUMIF('00 PDC SP'!$C:$C,$D158,'00 PDC SP'!J:J) -> 0 | I158: =SUMIF('00 PDC SP'!$C:$C,$D158,'00 PDC SP'!K:K) -> 0 | J158: =SUMIF('00 PDC SP'!$C:$C,$D158,'00 PDC SP'!L:L) -> 0 | K158: =SUMIF('00 PDC SP'!$C:$C,$D158,'00 PDC SP'!M:M) -> 0 | L158: =SUMIF('00 PDC SP'!$C:$C,$D158,'00 PDC SP'!N:N) -> 0
A159: ABA710 | B159: B.II.7.e) Altri crediti diversi | C159: S | D159: ABA710 | F159: =F160+F161 -> 885854.96 | G159: =G160+G161 -> 739010.91 | H159: 1059463.17 | I159: 565402.7 | J159: 1010408.89 | K159: 11935.63 | L159: 1563875.96
A160: ABA711 | B160: B.II.7.e.1) Altri Crediti diversi | D160: ABA711 | F160: =SUMIF('00 PDC SP'!$C:$C,$D160,'00 PDC SP'!H:H) -> 885854.96 | G160: =SUMIF('00 PDC SP'!$C:$C,$D160,'00 PDC SP'!I:I) -> 739010.91 | H160: =SUMIF('00 PDC SP'!$C:$C,$D160,'00 PDC SP'!J:J) -> 1059463.17 | I160: =SUMIF('00 PDC SP'!$C:$C,$D160,'00 PDC SP'!K:K) -> 565402.7 | J160: =SUMIF('00 PDC SP'!$C:$C,$D160,'00 PDC SP'!L:L) -> 1010408.89 | K160: =SUMIF('00 PDC SP'!$C:$C,$D160,'00 PDC SP'!M:M) -> 11935.63 | L160: =SUMIF('00 PDC SP'!$C:$C,$D160,'00 PDC SP'!N:N) -> 1563875.96
A161: ABA712 | B161: B.II.7.e.2) Note di credito da emettere (diverse) | D161: ABA712 | F161: =SUMIF('00 PDC SP'!$C:$C,$D161,'00 PDC SP'!H:H) -> 0 | G161: =SUMIF('00 PDC SP'!$C:$C,$D161,'00 PDC SP'!I:I) -> 0 | H161: =SUMIF('00 PDC SP'!$C:$C,$D161,'00 PDC SP'!J:J) -> 0 | I161: =SUMIF('00 PDC SP'!$C:$C,$D161,'00 PDC SP'!K:K) -> 0 | J161: =SUMIF('00 PDC SP'!$C:$C,$D161,'00 PDC SP'!L:L) -> 0 | K161: =SUMIF('00 PDC SP'!$C:$C,$D161,'00 PDC SP'!M:M) -> 0 | L161: =SUMIF('00 PDC SP'!$C:$C,$D161,'00 PDC SP'!N:N) -> 0
A162: ABA713 | B162: B.II.7.f) Altri Crediti verso erogatori (privati accreditati e convenzionati) di prestazioni sanitarie | C162: S | D162: ABA713 | F162: =F163+F164 -> 0 | G162: =G163+G164 -> 0 | H162: 0 | I162: 0 | J162: 0 | K162: 0 | L162: 0
A163: ABA714 | B163: B.II.7.f.1) Altri Crediti verso erogatori (privati accreditati e convenzionati) di prestazioni sanitarie | D163: ABA714 | F163: =SUMIF('00 PDC SP'!$C:$C,$D163,'00 PDC SP'!H:H) -> 0 | G163: =SUMIF('00 PDC SP'!$C:$C,$D163,'00 PDC SP'!I:I) -> 0 | H163: =SUMIF('00 PDC SP'!$C:$C,$D163,'00 PDC SP'!J:J) -> 0 | I163: =SUMIF('00 PDC SP'!$C:$C,$D163,'00 PDC SP'!K:K) -> 0 | J163: =SUMIF('00 PDC SP'!$C:$C,$D163,'00 PDC SP'!L:L) -> 0 | K163: =SUMIF('00 PDC SP'!$C:$C,$D163,'00 PDC SP'!M:M) -> 0 | L163: =SUMIF('00 PDC SP'!$C:$C,$D163,'00 PDC SP'!N:N) -> 0
A164: ABA715 | B164: B.II.7.f.2) Note di credito da emettere (privati accreditati e convenzionati) | D164: ABA715 | F164: =SUMIF('00 PDC SP'!$C:$C,$D164,'00 PDC SP'!H:H) -> 0 | G164: =SUMIF('00 PDC SP'!$C:$C,$D164,'00 PDC SP'!I:I) -> 0 | H164: =SUMIF('00 PDC SP'!$C:$C,$D164,'00 PDC SP'!J:J) -> 0 | I164: =SUMIF('00 PDC SP'!$C:$C,$D164,'00 PDC SP'!K:K) -> 0 | J164: =SUMIF('00 PDC SP'!$C:$C,$D164,'00 PDC SP'!L:L) -> 0 | K164: =SUMIF('00 PDC SP'!$C:$C,$D164,'00 PDC SP'!M:M) -> 0 | L164: =SUMIF('00 PDC SP'!$C:$C,$D164,'00 PDC SP'!N:N) -> 0
A165: ABA720 | B165: B.III) ATTIVITA' FINANZIARIE CHE NON COSTITUISCONO IMMOBILIZZAZIONI | C165: S | D165: ABA720 | F165: =F166+F167 -> 0 | G165: =G166+G167 -> 0 | H165: 0 | I165: 0 | J165: 0 | K165: 0 | L165: 0
A166: ABA730 | B166: B.III.1) Partecipazioni che non costituiscono immobilizzazioni | D166: ABA730 | F166: =SUMIF('00 PDC SP'!$C:$C,$D166,'00 PDC SP'!H:H) -> 0 | G166: =SUMIF('00 PDC SP'!$C:$C,$D166,'00 PDC SP'!I:I) -> 0 | H166: =SUMIF('00 PDC SP'!$C:$C,$D166,'00 PDC SP'!J:J) -> 0 | I166: =SUMIF('00 PDC SP'!$C:$C,$D166,'00 PDC SP'!K:K) -> 0 | J166: =SUMIF('00 PDC SP'!$C:$C,$D166,'00 PDC SP'!L:L) -> 0 | K166: =SUMIF('00 PDC SP'!$C:$C,$D166,'00 PDC SP'!M:M) -> 0 | L166: =SUMIF('00 PDC SP'!$C:$C,$D166,'00 PDC SP'!N:N) -> 0
A167: ABA740 | B167: B.III.2) Altri titoli che non costituiscono immobilizzazioni | D167: ABA740 | F167: =SUMIF('00 PDC SP'!$C:$C,$D167,'00 PDC SP'!H:H) -> 0 | G167: =SUMIF('00 PDC SP'!$C:$C,$D167,'00 PDC SP'!I:I) -> 0 | H167: =SUMIF('00 PDC SP'!$C:$C,$D167,'00 PDC SP'!J:J) -> 0 | I167: =SUMIF('00 PDC SP'!$C:$C,$D167,'00 PDC SP'!K:K) -> 0 | J167: =SUMIF('00 PDC SP'!$C:$C,$D167,'00 PDC SP'!L:L) -> 0 | K167: =SUMIF('00 PDC SP'!$C:$C,$D167,'00 PDC SP'!M:M) -> 0 | L167: =SUMIF('00 PDC SP'!$C:$C,$D167,'00 PDC SP'!N:N) -> 0
A168: ABA750 | B168: B.IV) DISPONIBILITA' LIQUIDE | C168: S | D168: ABA750 | F168: =F169+F170+F171+F172 -> 72806582.52 | G168: =G169+G170+G171+G172 -> 627120869.2 | H168: 652419343 | I168: 47508108.73 | J168: 691810372 | K168: 663993698.9 | L168: 75324781.85
A169: ABA760 | B169: B.IV.1) Cassa | D169: ABA760 | F169: =SUMIF('00 PDC SP'!$C:$C,$D169,'00 PDC SP'!H:H) -> 20000 | G169: =SUMIF('00 PDC SP'!$C:$C,$D169,'00 PDC SP'!I:I) -> 52671.15 | H169: =SUMIF('00 PDC SP'!$C:$C,$D169,'00 PDC SP'!J:J) -> 52671.15 | I169: =SUMIF('00 PDC SP'!$C:$C,$D169,'00 PDC SP'!K:K) -> 20000 | J169: =SUMIF('00 PDC SP'!$C:$C,$D169,'00 PDC SP'!L:L) -> 49747.05 | K169: =SUMIF('00 PDC SP'!$C:$C,$D169,'00 PDC SP'!M:M) -> 49747.05 | L169: =SUMIF('00 PDC SP'!$C:$C,$D169,'00 PDC SP'!N:N) -> 20000
A170: ABA770 | B170: B.IV.2) Istituto Tesoriere | D170: ABA770 | F170: =SUMIF('00 PDC SP'!$C:$C,$D170,'00 PDC SP'!H:H) -> 69558966.35 | G170: =SUMIF('00 PDC SP'!$C:$C,$D170,'00 PDC SP'!I:I) -> 625609944.8 | H170: =SUMIF('00 PDC SP'!$C:$C,$D170,'00 PDC SP'!J:J) -> 648972836.8 | I170: =SUMIF('00 PDC SP'!$C:$C,$D170,'00 PDC SP'!K:K) -> 46196074.32 | J170: =SUMIF('00 PDC SP'!$C:$C,$D170,'00 PDC SP'!L:L) -> 690539043.5 | K170: =SUMIF('00 PDC SP'!$C:$C,$D170,'00 PDC SP'!M:M) -> 662428963.2 | L170: =SUMIF('00 PDC SP'!$C:$C,$D170,'00 PDC SP'!N:N) -> 74306154.64
A171: ABA780 | B171: B.IV.3) Tesoreria Unica | D171: ABA780 | F171: =SUMIF('00 PDC SP'!$C:$C,$D171,'00 PDC SP'!H:H) -> 0 | G171: =SUMIF('00 PDC SP'!$C:$C,$D171,'00 PDC SP'!I:I) -> 0 | H171: =SUMIF('00 PDC SP'!$C:$C,$D171,'00 PDC SP'!J:J) -> 0 | I171: =SUMIF('00 PDC SP'!$C:$C,$D171,'00 PDC SP'!K:K) -> 0 | J171: =SUMIF('00 PDC SP'!$C:$C,$D171,'00 PDC SP'!L:L) -> 0 | K171: =SUMIF('00 PDC SP'!$C:$C,$D171,'00 PDC SP'!M:M) -> 0 | L171: =SUMIF('00 PDC SP'!$C:$C,$D171,'00 PDC SP'!N:N) -> 0
A172: ABA790 | B172: B.IV.4) Conto corrente postale | D172: ABA790 | F172: =SUMIF('00 PDC SP'!$C:$C,$D172,'00 PDC SP'!H:H) -> 3227616.17 | G172: =SUMIF('00 PDC SP'!$C:$C,$D172,'00 PDC SP'!I:I) -> 1458253.24 | H172: =SUMIF('00 PDC SP'!$C:$C,$D172,'00 PDC SP'!J:J) -> 3393835 | I172: =SUMIF('00 PDC SP'!$C:$C,$D172,'00 PDC SP'!K:K) -> 1292034.41 | J172: =SUMIF('00 PDC SP'!$C:$C,$D172,'00 PDC SP'!L:L) -> 1221581.4 | K172: =SUMIF('00 PDC SP'!$C:$C,$D172,'00 PDC SP'!M:M) -> 1514988.6 | L172: =SUMIF('00 PDC SP'!$C:$C,$D172,'00 PDC SP'!N:N) -> 998627.21
A173: ACZ999 | B173: C) RATEI E RISCONTI ATTIVI | C173: S | D173: ACZ999 | F173: =F174+F177 -> 8698.51 | G173: =G174+G177 -> 10533.97 | H173: 8698.51 | I173: 10533.97 | J173: 8697.97 | K173: 10533.97 | L173: 8697.97
A174: ACA000 | B174: C.I) RATEI ATTIVI | C174: S | D174: ACA000 | F174: =F175+F176 -> 0 | G174: =G175+G176 -> 0 | H174: 0 | I174: 0 | J174: 0 | K174: 0 | L174: 0
A175: ACA010 | B175: C.I.1) Ratei attivi | D175: ACA010 | F175: =SUMIF('00 PDC SP'!$C:$C,$D175,'00 PDC SP'!H:H) -> 0 | G175: =SUMIF('00 PDC SP'!$C:$C,$D175,'00 PDC SP'!I:I) -> 0 | H175: =SUMIF('00 PDC SP'!$C:$C,$D175,'00 PDC SP'!J:J) -> 0 | I175: =SUMIF('00 PDC SP'!$C:$C,$D175,'00 PDC SP'!K:K) -> 0 | J175: =SUMIF('00 PDC SP'!$C:$C,$D175,'00 PDC SP'!L:L) -> 0 | K175: =SUMIF('00 PDC SP'!$C:$C,$D175,'00 PDC SP'!M:M) -> 0 | L175: =SUMIF('00 PDC SP'!$C:$C,$D175,'00 PDC SP'!N:N) -> 0
A176: ACA020 | B176: C.I.2) Ratei attivi v/Aziende sanitarie pubbliche della Regione | D176: ACA020 | F176: =SUMIF('00 PDC SP'!$C:$C,$D176,'00 PDC SP'!H:H) -> 0 | G176: =SUMIF('00 PDC SP'!$C:$C,$D176,'00 PDC SP'!I:I) -> 0 | H176: =SUMIF('00 PDC SP'!$C:$C,$D176,'00 PDC SP'!J:J) -> 0 | I176: =SUMIF('00 PDC SP'!$C:$C,$D176,'00 PDC SP'!K:K) -> 0 | J176: =SUMIF('00 PDC SP'!$C:$C,$D176,'00 PDC SP'!L:L) -> 0 | K176: =SUMIF('00 PDC SP'!$C:$C,$D176,'00 PDC SP'!M:M) -> 0 | L176: =SUMIF('00 PDC SP'!$C:$C,$D176,'00 PDC SP'!N:N) -> 0
A177: ACA030 | B177: C.II) RISCONTI ATTIVI | C177: S | D177: ACA030 | F177: =F178+F179 -> 8698.51 | G177: =G178+G179 -> 10533.97 | H177: 8698.51 | I177: 10533.97 | J177: 8697.97 | K177: 10533.97 | L177: 8697.97
A178: ACA040 | B178: C.II.1) Risconti attivi | D178: ACA040 | F178: =SUMIF('00 PDC SP'!$C:$C,$D178,'00 PDC SP'!H:H) -> 8698.51 | G178: =SUMIF('00 PDC SP'!$C:$C,$D178,'00 PDC SP'!I:I) -> 10533.97 | H178: =SUMIF('00 PDC SP'!$C:$C,$D178,'00 PDC SP'!J:J) -> 8698.51 | I178: =SUMIF('00 PDC SP'!$C:$C,$D178,'00 PDC SP'!K:K) -> 10533.97 | J178: =SUMIF('00 PDC SP'!$C:$C,$D178,'00 PDC SP'!L:L) -> 8697.97 | K178: =SUMIF('00 PDC SP'!$C:$C,$D178,'00 PDC SP'!M:M) -> 10533.97 | L178: =SUMIF('00 PDC SP'!$C:$C,$D178,'00 PDC SP'!N:N) -> 8697.97
A179: ACA050 | B179: C.II.2) Risconti attivi v/Aziende sanitarie pubbliche della Regione | D179: ACA050 | F179: =SUMIF('00 PDC SP'!$C:$C,$D179,'00 PDC SP'!H:H) -> 0 | G179: =SUMIF('00 PDC SP'!$C:$C,$D179,'00 PDC SP'!I:I) -> 0 | H179: =SUMIF('00 PDC SP'!$C:$C,$D179,'00 PDC SP'!J:J) -> 0 | I179: =SUMIF('00 PDC SP'!$C:$C,$D179,'00 PDC SP'!K:K) -> 0 | J179: =SUMIF('00 PDC SP'!$C:$C,$D179,'00 PDC SP'!L:L) -> 0 | K179: =SUMIF('00 PDC SP'!$C:$C,$D179,'00 PDC SP'!M:M) -> 0 | L179: =SUMIF('00 PDC SP'!$C:$C,$D179,'00 PDC SP'!N:N) -> 0
A180: AZZ999 | B180: D) TOTALE ATTIVO | C180: S | D180: AZZ999 | F180: =F3+F81+F173 -> 374557752.9 | G180: =G3+G81+G173 -> 2105962429 | H180: 2094098077 | I180: 386422105.4 | J180: 2264577990 | K180: 2258202720 | L180: 392797376.1
A181: ADZ999 | B181: E) CONTI D'ORDINE | C181: S | D181: ADZ999 | F181: =F182+F183+F184+F185+F186 -> 0 | G181: =G182+G183+G184+G185+G186 -> 0 | H181: 0 | I181: 0 | J181: 0 | K181: 0 | L181: 0
A182: ADA000 | B182: E.I) CANONI DI LEASING ANCORA DA PAGARE | D182: ADA000 | F182: =SUMIF('00 PDC SP'!$C:$C,$D182,'00 PDC SP'!H:H) -> 0 | G182: =SUMIF('00 PDC SP'!$C:$C,$D182,'00 PDC SP'!I:I) -> 0 | H182: =SUMIF('00 PDC SP'!$C:$C,$D182,'00 PDC SP'!J:J) -> 0 | I182: =SUMIF('00 PDC SP'!$C:$C,$D182,'00 PDC SP'!K:K) -> 0 | J182: =SUMIF('00 PDC SP'!$C:$C,$D182,'00 PDC SP'!L:L) -> 0 | K182: =SUMIF('00 PDC SP'!$C:$C,$D182,'00 PDC SP'!M:M) -> 0 | L182: =SUMIF('00 PDC SP'!$C:$C,$D182,'00 PDC SP'!N:N) -> 0
A183: ADA010 | B183: E.II) DEPOSITI CAUZIONALI | D183: ADA010 | F183: =SUMIF('00 PDC SP'!$C:$C,$D183,'00 PDC SP'!H:H) -> 0 | G183: =SUMIF('00 PDC SP'!$C:$C,$D183,'00 PDC SP'!I:I) -> 0 | H183: =SUMIF('00 PDC SP'!$C:$C,$D183,'00 PDC SP'!J:J) -> 0 | I183: =SUMIF('00 PDC SP'!$C:$C,$D183,'00 PDC SP'!K:K) -> 0 | J183: =SUMIF('00 PDC SP'!$C:$C,$D183,'00 PDC SP'!L:L) -> 0 | K183: =SUMIF('00 PDC SP'!$C:$C,$D183,'00 PDC SP'!M:M) -> 0 | L183: =SUMIF('00 PDC SP'!$C:$C,$D183,'00 PDC SP'!N:N) -> 0
A184: ADA020 | B184: E.III) BENI IN COMODATO | D184: ADA020 | F184: =SUMIF('00 PDC SP'!$C:$C,$D184,'00 PDC SP'!H:H) -> 0 | G184: =SUMIF('00 PDC SP'!$C:$C,$D184,'00 PDC SP'!I:I) -> 0 | H184: =SUMIF('00 PDC SP'!$C:$C,$D184,'00 PDC SP'!J:J) -> 0 | I184: =SUMIF('00 PDC SP'!$C:$C,$D184,'00 PDC SP'!K:K) -> 0 | J184: =SUMIF('00 PDC SP'!$C:$C,$D184,'00 PDC SP'!L:L) -> 0 | K184: =SUMIF('00 PDC SP'!$C:$C,$D184,'00 PDC SP'!M:M) -> 0 | L184: =SUMIF('00 PDC SP'!$C:$C,$D184,'00 PDC SP'!N:N) -> 0
A185: ADA021 | B185: E.IV) CANONI DI PROJECT FINANCING ANCORA DA PAGARE | D185: ADA021 | F185: =SUMIF('00 PDC SP'!$C:$C,$D185,'00 PDC SP'!H:H) -> 0 | G185: =SUMIF('00 PDC SP'!$C:$C,$D185,'00 PDC SP'!I:I) -> 0 | H185: =SUMIF('00 PDC SP'!$C:$C,$D185,'00 PDC SP'!J:J) -> 0 | I185: =SUMIF('00 PDC SP'!$C:$C,$D185,'00 PDC SP'!K:K) -> 0 | J185: =SUMIF('00 PDC SP'!$C:$C,$D185,'00 PDC SP'!L:L) -> 0 | K185: =SUMIF('00 PDC SP'!$C:$C,$D185,'00 PDC SP'!M:M) -> 0 | L185: =SUMIF('00 PDC SP'!$C:$C,$D185,'00 PDC SP'!N:N) -> 0
A186: ADA030 | B186: E.V) ALTRI CONTI D'ORDINE | D186: ADA030 | F186: =SUMIF('00 PDC SP'!$C:$C,$D186,'00 PDC SP'!H:H) -> 0 | G186: =SUMIF('00 PDC SP'!$C:$C,$D186,'00 PDC SP'!I:I) -> 0 | H186: =SUMIF('00 PDC SP'!$C:$C,$D186,'00 PDC SP'!J:J) -> 0 | I186: =SUMIF('00 PDC SP'!$C:$C,$D186,'00 PDC SP'!K:K) -> 0 | J186: =SUMIF('00 PDC SP'!$C:$C,$D186,'00 PDC SP'!L:L) -> 0 | K186: =SUMIF('00 PDC SP'!$C:$C,$D186,'00 PDC SP'!M:M) -> 0 | L186: =SUMIF('00 PDC SP'!$C:$C,$D186,'00 PDC SP'!N:N) -> 0
A187: PAZ999 | B187: A) PATRIMONIO NETTO | C187: S | D187: PAZ999 | F187: =F188+F189+F198+F199+F205+F209+F210 -> 108484341.5 | G187: =G188+G189+G198+G199+G205+G209+G210 -> 33821651.93 | H187: 24101299.18 | I187: 118204694.2 | J187: 17189710.74 | K187: 34468971.99 | L187: 100925433
A188: PAA000 | B188: A.I) FONDO DI DOTAZIONE | D188: PAA000 | F188: =SUMIF('00 PDC SP'!$C:$C,$D188,'00 PDC SP'!H:H) -> 0 | G188: =SUMIF('00 PDC SP'!$C:$C,$D188,'00 PDC SP'!I:I) -> 0 | H188: =SUMIF('00 PDC SP'!$C:$C,$D188,'00 PDC SP'!J:J) -> 0 | I188: =SUMIF('00 PDC SP'!$C:$C,$D188,'00 PDC SP'!K:K) -> 0 | J188: =SUMIF('00 PDC SP'!$C:$C,$D188,'00 PDC SP'!L:L) -> 0 | K188: =SUMIF('00 PDC SP'!$C:$C,$D188,'00 PDC SP'!M:M) -> 0 | L188: =SUMIF('00 PDC SP'!$C:$C,$D188,'00 PDC SP'!N:N) -> 0
A189: PAA010 | B189: A.II) FINANZIAMENTI PER INVESTIMENTI | C189: S | D189: PAA010 | F189: =F190+F191+F195+F196+F197 -> 119162770.1 | G189: =G190+G191+G195+G196+G197 -> 6486693.45 | H189: 10436920.89 | I189: 115212542.6 | J189: 16879206.28 | K189: 24143477.52 | L189: 107948271.4
A190: PAA020 | B190: A.II.1) Finanziamenti per beni di prima dotazione | D190: PAA020 | F190: =SUMIF('00 PDC SP'!$C:$C,$D190,'00 PDC SP'!H:H) -> 63708881.74 | G190: =SUMIF('00 PDC SP'!$C:$C,$D190,'00 PDC SP'!I:I) -> 0 | H190: =SUMIF('00 PDC SP'!$C:$C,$D190,'00 PDC SP'!J:J) -> 3577467.93 | I190: =SUMIF('00 PDC SP'!$C:$C,$D190,'00 PDC SP'!K:K) -> 60131413.81 | J190: =SUMIF('00 PDC SP'!$C:$C,$D190,'00 PDC SP'!L:L) -> 0 | K190: =SUMIF('00 PDC SP'!$C:$C,$D190,'00 PDC SP'!M:M) -> 3577467.93 | L190: =SUMIF('00 PDC SP'!$C:$C,$D190,'00 PDC SP'!N:N) -> 56553945.88
A191: PAA030 | B191: A.II.2) Finanziamenti da Stato per investimenti | C191: S | D191: PAA030 | F191: =F192+F193+F194 -> 0 | G191: =G192+G193+G194 -> 0 | H191: 0 | I191: 0 | J191: 0 | K191: 0 | L191: 0
A192: PAA040 | B192: A.II.2.a) Finanziamenti da Stato per investimenti - ex art. 20 legge 67/88 | D192: PAA040 | F192: =SUMIF('00 PDC SP'!$C:$C,$D192,'00 PDC SP'!H:H) -> 0 | G192: =SUMIF('00 PDC SP'!$C:$C,$D192,'00 PDC SP'!I:I) -> 0 | H192: =SUMIF('00 PDC SP'!$C:$C,$D192,'00 PDC SP'!J:J) -> 0 | I192: =SUMIF('00 PDC SP'!$C:$C,$D192,'00 PDC SP'!K:K) -> 0 | J192: =SUMIF('00 PDC SP'!$C:$C,$D192,'00 PDC SP'!L:L) -> 0 | K192: =SUMIF('00 PDC SP'!$C:$C,$D192,'00 PDC SP'!M:M) -> 0 | L192: =SUMIF('00 PDC SP'!$C:$C,$D192,'00 PDC SP'!N:N) -> 0
A193: PAA050 | B193: A.II.2.b) Finanziamenti da Stato per investimenti - ricerca | D193: PAA050 | F193: =SUMIF('00 PDC SP'!$C:$C,$D193,'00 PDC SP'!H:H) -> 0 | G193: =SUMIF('00 PDC SP'!$C:$C,$D193,'00 PDC SP'!I:I) -> 0 | H193: =SUMIF('00 PDC SP'!$C:$C,$D193,'00 PDC SP'!J:J) -> 0 | I193: =SUMIF('00 PDC SP'!$C:$C,$D193,'00 PDC SP'!K:K) -> 0 | J193: =SUMIF('00 PDC SP'!$C:$C,$D193,'00 PDC SP'!L:L) -> 0 | K193: =SUMIF('00 PDC SP'!$C:$C,$D193,'00 PDC SP'!M:M) -> 0 | L193: =SUMIF('00 PDC SP'!$C:$C,$D193,'00 PDC SP'!N:N) -> 0
A194: PAA060 | B194: A.II.2.c) Finanziamenti da Stato per investimenti - altro | D194: PAA060 | F194: =SUMIF('00 PDC SP'!$C:$C,$D194,'00 PDC SP'!H:H) -> 0 | G194: =SUMIF('00 PDC SP'!$C:$C,$D194,'00 PDC SP'!I:I) -> 0 | H194: =SUMIF('00 PDC SP'!$C:$C,$D194,'00 PDC SP'!J:J) -> 0 | I194: =SUMIF('00 PDC SP'!$C:$C,$D194,'00 PDC SP'!K:K) -> 0 | J194: =SUMIF('00 PDC SP'!$C:$C,$D194,'00 PDC SP'!L:L) -> 0 | K194: =SUMIF('00 PDC SP'!$C:$C,$D194,'00 PDC SP'!M:M) -> 0 | L194: =SUMIF('00 PDC SP'!$C:$C,$D194,'00 PDC SP'!N:N) -> 0
A195: PAA070 | B195: A.II.3) Finanziamenti da Regione per investimenti | D195: PAA070 | F195: =SUMIF('00 PDC SP'!$C:$C,$D195,'00 PDC SP'!H:H) -> 37556665.46 | G195: =SUMIF('00 PDC SP'!$C:$C,$D195,'00 PDC SP'!I:I) -> 2138846.64 | H195: =SUMIF('00 PDC SP'!$C:$C,$D195,'00 PDC SP'!J:J) -> 1674245.68 | I195: =SUMIF('00 PDC SP'!$C:$C,$D195,'00 PDC SP'!K:K) -> 38021266.42 | J195: =SUMIF('00 PDC SP'!$C:$C,$D195,'00 PDC SP'!L:L) -> 13499505.02 | K195: =SUMIF('00 PDC SP'!$C:$C,$D195,'00 PDC SP'!M:M) -> 15486369.17 | L195: =SUMIF('00 PDC SP'!$C:$C,$D195,'00 PDC SP'!N:N) -> 36034402.27
A196: PAA080 | B196: A.II.4) Finanziamenti da altri soggetti pubblici per investimenti | D196: PAA080 | F196: =SUMIF('00 PDC SP'!$C:$C,$D196,'00 PDC SP'!H:H) -> 0 | G196: =SUMIF('00 PDC SP'!$C:$C,$D196,'00 PDC SP'!I:I) -> 0 | H196: =SUMIF('00 PDC SP'!$C:$C,$D196,'00 PDC SP'!J:J) -> 0 | I196: =SUMIF('00 PDC SP'!$C:$C,$D196,'00 PDC SP'!K:K) -> 0 | J196: =SUMIF('00 PDC SP'!$C:$C,$D196,'00 PDC SP'!L:L) -> 0 | K196: =SUMIF('00 PDC SP'!$C:$C,$D196,'00 PDC SP'!M:M) -> 0 | L196: =SUMIF('00 PDC SP'!$C:$C,$D196,'00 PDC SP'!N:N) -> 0
A197: PAA090 | B197: A.II.5) Finanziamenti per investimenti da rettifica contributi in conto esercizio | D197: PAA090 | F197: =SUMIF('00 PDC SP'!$C:$C,$D197,'00 PDC SP'!H:H) -> 17897222.85 | G197: =SUMIF('00 PDC SP'!$C:$C,$D197,'00 PDC SP'!I:I) -> 4347846.81 | H197: =SUMIF('00 PDC SP'!$C:$C,$D197,'00 PDC SP'!J:J) -> 5185207.28 | I197: =SUMIF('00 PDC SP'!$C:$C,$D197,'00 PDC SP'!K:K) -> 17059862.38 | J197: =SUMIF('00 PDC SP'!$C:$C,$D197,'00 PDC SP'!L:L) -> 3379701.26 | K197: =SUMIF('00 PDC SP'!$C:$C,$D197,'00 PDC SP'!M:M) -> 5079640.42 | L197: =SUMIF('00 PDC SP'!$C:$C,$D197,'00 PDC SP'!N:N) -> 15359923.22
A198: PAA100 | B198: A.III) RISERVE DA DONAZIONI E LASCITI VINCOLATI AD INVESTIMENTI | D198: PAA100 | F198: =SUMIF('00 PDC SP'!$C:$C,$D198,'00 PDC SP'!H:H) -> 201195.25 | G198: =SUMIF('00 PDC SP'!$C:$C,$D198,'00 PDC SP'!I:I) -> 114032.88 | H198: =SUMIF('00 PDC SP'!$C:$C,$D198,'00 PDC SP'!J:J) -> 54754.03 | I198: =SUMIF('00 PDC SP'!$C:$C,$D198,'00 PDC SP'!K:K) -> 260474.1 | J198: =SUMIF('00 PDC SP'!$C:$C,$D198,'00 PDC SP'!L:L) -> 308827.12 | K198: =SUMIF('00 PDC SP'!$C:$C,$D198,'00 PDC SP'!M:M) -> 86964.13 | L198: =SUMIF('00 PDC SP'!$C:$C,$D198,'00 PDC SP'!N:N) -> 482337.09
A199: PAA110 | B199: A.IV) ALTRE RISERVE | C199: S | D199: PAA110 | F199: =F200+F201+F202+F203+F204 -> 2730000 | G199: =G200+G201+G202+G203+G204 -> 0 | H199: 0 | I199: 2730000 | J199: 0 | K199: 0 | L199: 2730000
A200: PAA120 | B200: A.IV.1) Riserve da rivalutazioni | D200: PAA120 | F200: =SUMIF('00 PDC SP'!$C:$C,$D200,'00 PDC SP'!H:H) -> 0 | G200: =SUMIF('00 PDC SP'!$C:$C,$D200,'00 PDC SP'!I:I) -> 0 | H200: =SUMIF('00 PDC SP'!$C:$C,$D200,'00 PDC SP'!J:J) -> 0 | I200: =SUMIF('00 PDC SP'!$C:$C,$D200,'00 PDC SP'!K:K) -> 0 | J200: =SUMIF('00 PDC SP'!$C:$C,$D200,'00 PDC SP'!L:L) -> 0 | K200: =SUMIF('00 PDC SP'!$C:$C,$D200,'00 PDC SP'!M:M) -> 0 | L200: =SUMIF('00 PDC SP'!$C:$C,$D200,'00 PDC SP'!N:N) -> 0
A201: PAA130 | B201: A.IV.2) Riserve da plusvalenze da reinvestire | D201: PAA130 | F201: =SUMIF('00 PDC SP'!$C:$C,$D201,'00 PDC SP'!H:H) -> 0 | G201: =SUMIF('00 PDC SP'!$C:$C,$D201,'00 PDC SP'!I:I) -> 0 | H201: =SUMIF('00 PDC SP'!$C:$C,$D201,'00 PDC SP'!J:J) -> 0 | I201: =SUMIF('00 PDC SP'!$C:$C,$D201,'00 PDC SP'!K:K) -> 0 | J201: =SUMIF('00 PDC SP'!$C:$C,$D201,'00 PDC SP'!L:L) -> 0 | K201: =SUMIF('00 PDC SP'!$C:$C,$D201,'00 PDC SP'!M:M) -> 0 | L201: =SUMIF('00 PDC SP'!$C:$C,$D201,'00 PDC SP'!N:N) -> 0
... 123 more rows

Sheet 01 Rendiconto Finanziario
D2: Rendiconto Finanziario | F2: ='00 SP'!L2 -> Esercizio 2019 | G2: ='00 SP'!I2 -> Esercizio 2018 | I2: NOTE
D4: OPERAZIONI DI GESTIONE REDDITUALE
A5: 1 | B5: SP | C5: 1 | D5: (+) | E5: risultato di esercizio | F5: =SUMIF('00 PDC SP'!$D:$D,'01 Rendiconto Finanziario'!$A5,'00 PDC SP'!N:N)*'01 Rendiconto Finanziario'!$C5 -> -10236853 | G5: =SUMIF('00 PDC SP'!$D:$D,'01 Rendiconto Finanziario'!$A5,'00 PDC SP'!K:K)*'01 Rendiconto Finanziario'!$C5 -> 1677.34
D6: Voci che non hanno effetto sulla liquidità: costi e ricavi non monetari
A7: 2 | B7: VP | C7: -1 | D7: (+) | E7: ammortamenti fabbricati | F7: =(SUMIF('00 PDC SP'!$D:$D,'01 Rendiconto Finanziario'!$A7,'00 PDC SP'!L:L)-SUMIF('00 PDC SP'!$D:$D,'01 Rendiconto Finanziario'!$A7,'00 PDC SP'!M:M))*'01 Rendiconto Finanziario'!$C7 -> 5032903.95 | G7: =(SUMIF('00 PDC SP'!$D:$D,'01 Rendiconto Finanziario'!$A7,'00 PDC SP'!I:I)-SUMIF('00 PDC SP'!$D:$D,'01 Rendiconto Finanziario'!$A7,'00 PDC SP'!J:J))*'01 Rendiconto Finanziario'!$C7 -> 4970458.61
A8: 3 | B8: VP | C8: -1 | D8: (+) | E8: ammortamenti altre immobilizzazioni materiali | F8: =(SUMIF('00 PDC SP'!$D:$D,'01 Rendiconto Finanziario'!$A8,'00 PDC SP'!L:L)-SUMIF('00 PDC SP'!$D:$D,'01 Rendiconto Finanziario'!$A8,'00 PDC SP'!M:M))*'01 Rendiconto Finanziario'!$C8 -> 4948210.46 | G8: =(SUMIF('00 PDC SP'!$D:$D,'01 Rendiconto Finanziario'!$A8,'00 PDC SP'!I:I)-SUMIF('00 PDC SP'!$D:$D,'01 Rendiconto Finanziario'!$A8,'00 PDC SP'!J:J))*'01 Rendiconto Finanziario'!C8 -> -670108.16
A9: 4 | B9: VP | C9: -1 | D9: (+) | E9: ammortamenti immobilizzazioni immateriali | F9: =(SUMIF('00 PDC SP'!$D:$D,'01 Rendiconto Finanziario'!$A9,'00 PDC SP'!L:L)-SUMIF('00 PDC SP'!$D:$D,'01 Rendiconto Finanziario'!$A9,'00 PDC SP'!M:M))*'01 Rendiconto Finanziario'!$C9 -> 155437.62 | G9: =(SUMIF('00 PDC SP'!$D:$D,'01 Rendiconto Finanziario'!$A9,'00 PDC SP'!I:I)-SUMIF('00 PDC SP'!$D:$D,'01 Rendiconto Finanziario'!$A9,'00 PDC SP'!J:J))*'01 Rendiconto Finanziario'!C9 -> 149477.16
D10: Ammortamenti | F10: =SUM(F7:F9) -> 10136552.03 | G10: =SUM(G7:G9) -> 4449827.61
A11: 5 | B11: DP | C11: -1 | D11: (-) | E11: Utilizzo finanziamenti per investimenti | F11: =(SUMIF('00 PDC SP'!$D:$D,'01 Rendiconto Finanziario'!$A11,'00 PDC SP'!M:M))*'01 Rendiconto Finanziario'!$C11 -> -24143477.52 | G11: =(SUMIF('00 PDC SP'!$D:$D,'01 Rendiconto Finanziario'!$A11,'00 PDC SP'!J:J))*'01 Rendiconto Finanziario'!C11 -> -10436920.89
A12: 6 | B12: DP | C12: -1 | D12: (-) | E12: Utilizzo fondi riserva: investimenti, incentivi al personale, successioni e donaz., plusvalenze da reinvestire | F12: 0 | G12: =(SUMIF('00 PDC SP'!$D:$D,'01 Rendiconto Finanziario'!$A12,'00 PDC SP'!J:J))*'01 Rendiconto Finanziario'!C12 -> 0
D13: Utilizzo contributi in c/capitale e fondi riserva | F13: =SUM(F11:F12) -> -24143477.52 | G13: =SUM(G11:G12) -> -10436920.89
A14: 7 | B14: IP | C14: -1 | D14: (+) | E14: accantonamenti SUMAI | F14: =(SUMIF('00 PDC SP'!$D:$D,'01 Rendiconto Finanziario'!$A14,'00 PDC SP'!L:L))*'01 Rendiconto Finanziario'!$C14 -> 277851.92 | G14: =(SUMIF('00 PDC SP'!$D:$D,'01 Rendiconto Finanziario'!$A14,'00 PDC SP'!I:I))*'01 Rendiconto Finanziario'!C14 -> 264664.11
A15: 7 | B15: DP | C15: 1 | D15: (-) | E15: pagamenti SUMAI | F15: =(SUMIF('00 PDC SP'!$D:$D,'01 Rendiconto Finanziario'!$A15,'00 PDC SP'!M:M))*'01 Rendiconto Finanziario'!$C15 -> -441070.23 | G15: =(SUMIF('00 PDC SP'!$D:$D,'01 Rendiconto Finanziario'!$A15,'00 PDC SP'!J:J))*'01 Rendiconto Finanziario'!C15 -> -197944.41
A16: 8 | B16: IP | C16: -1 | D16: (+) | E16: accantonamenti TFR | F16: =(SUMIF('00 PDC SP'!$D:$D,'01 Rendiconto Finanziario'!$A16,'00 PDC SP'!L:L))*'01 Rendiconto Finanziario'!$C16 -> 0 | G16: =(SUMIF('00 PDC SP'!$D:$D,'01 Rendiconto Finanziario'!$A16,'00 PDC SP'!J:J))*'01 Rendiconto Finanziario'!C16 -> 0
A17: 8 | B17: DP | C17: 1 | D17: (-) | E17: pagamenti TFR | F17: =(SUMIF('00 PDC SP'!$D:$D,'01 Rendiconto Finanziario'!$A17,'00 PDC SP'!M:M))*'01 Rendiconto Finanziario'!$C17 -> 0 | G17: =(SUMIF('00 PDC SP'!$D:$D,'01 Rendiconto Finanziario'!$A17,'00 PDC SP'!J:J))*'01 Rendiconto Finanziario'!C17 -> 0
D18: - Premio operosità medici SUMAI + TFR | F18: =SUM(F14:F17) -> -163218.31 | G18: =SUM(G14:G17) -> 66719.7
A19: 9 | B19: VA | C19: 1 | D19: (+/-) | E19: Rivalutazioni/svalutazioni di attività finanziarie | F19: =(SUMIF('00 PDC SP'!$D:$D,'01 Rendiconto Finanziario'!$A19,'00 PDC SP'!L:L)-SUMIF('00 PDC SP'!$D:$D,'01 Rendiconto Finanziario'!$A19,'00 PDC SP'!M:M))*'01 Rendiconto Finanziario'!$C19 -> 0 | G19: =(SUMIF('00 PDC SP'!$D:$D,'01 Rendiconto Finanziario'!$A19,'00 PDC SP'!I:I)-SUMIF('00 PDC SP'!$D:$D,'01 Rendiconto Finanziario'!$A19,'00 PDC SP'!J:J))*'01 Rendiconto Finanziario'!C19 -> 0
A20: 10 | B20: IP | C20: -1 | D20: (+) | E20: accantonamenti a fondi svalutazioni | F20: =(SUMIF('00 PDC SP'!$D:$D,'01 Rendiconto Finanziario'!$A20,'00 PDC SP'!L:L))*'01 Rendiconto Finanziario'!$C20 -> 0 | G20: =(SUMIF('00 PDC SP'!$D:$D,'01 Rendiconto Finanziario'!$A20,'00 PDC SP'!I:I))*'01 Rendiconto Finanziario'!C20 -> 0
A21: 10 | B21: DP | C21: 1 | D21: (-) | E21: utilizzo fondi svalutazioni (*) | F21: =(SUMIF('00 PDC SP'!$D:$D,'01 Rendiconto Finanziario'!$A21,'00 PDC SP'!M:M))*'01 Rendiconto Finanziario'!$C21 -> 0 | G21: =(SUMIF('00 PDC SP'!$D:$D,'01 Rendiconto Finanziario'!$A21,'00 PDC SP'!J:J))*'01 Rendiconto Finanziario'!C21 -> 0
D22: - Fondi svalutazione di attività | F22: =SUM(F19:F21) -> 0 | G22: =SUM(G19:G21) -> 0
A23: 11 | B23: IP | C23: -1 | D23: (+) | E23: accantonamenti a fondi per rischi e oneri | F23: =(SUMIF('00 PDC SP'!$D:$D,'01 Rendiconto Finanziario'!$A23,'00 PDC SP'!L:L))*'01 Rendiconto Finanziario'!$C23 -> 40460848.11 | G23: =(SUMIF('00 PDC SP'!$D:$D,'01 Rendiconto Finanziario'!$A23,'00 PDC SP'!I:I))*'01 Rendiconto Finanziario'!C23 -> 18073168.95
A24: 11 | B24: DP | C24: 1 | D24: (-) | E24: utilizzo fondi per rischi e oneri | F24: =(SUMIF('00 PDC SP'!$D:$D,'01 Rendiconto Finanziario'!$A24,'00 PDC SP'!M:M))*'01 Rendiconto Finanziario'!$C24 -> -43617806.4 | G24: =(SUMIF('00 PDC SP'!$D:$D,'01 Rendiconto Finanziario'!$A24,'00 PDC SP'!J:J))*'01 Rendiconto Finanziario'!C24 -> -20991484.87
D25: - Fondo per rischi ed oneri futuri | F25: =SUM(F23:F24) -> -3156958.29 | G25: =SUM(G23:G24) -> -2918315.92
D26: TOTALE Flusso di CCN della gestione corrente | F26: =F5+F10+F13+F18+F22+F25 -> -27563955.09 | G26: =G5+G10+G13+G18+G22+G25 -> -8837012.16
A27: 12 | B27: VP | C27: -1 | D27: (+)/(-) | E27: aumento/diminuzione debiti verso regione e provincia autonoma, esclusa la variazione relativa a debiti per acquisto di beni strumentali | F27: =((SUMIF('00 PDC SP'!$D:$D,'01 Rendiconto Finanziario'!$A27,'00 PDC SP'!L:L)-SUMIF('00 PDC SP'!$D:$D,'01 Rendiconto Finanziario'!$A27,'00 PDC SP'!M:M))*'01 Rendiconto Finanziario'!C27) -> 5596298.94 | G27: =((SUMIF('00 PDC SP'!$D:$D,'01 Rendiconto Finanziario'!$A27,'00 PDC SP'!I:I)-SUMIF('00 PDC SP'!$D:$D,'01 Rendiconto Finanziario'!$A27,'00 PDC SP'!J:J))*'01 Rendiconto Finanziario'!C27) -> 0
A28: 13 | B28: VP | C28: -1 | D28: (+)/(-) | E28: aumento/diminuzione debiti verso comune | F28: =((SUMIF('00 PDC SP'!$D:$D,'01 Rendiconto Finanziario'!$A28,'00 PDC SP'!L:L)-SUMIF('00 PDC SP'!$D:$D,'01 Rendiconto Finanziario'!$A28,'00 PDC SP'!M:M))*'01 Rendiconto Finanziario'!C28) -> 0 | G28: =(SUMIF('00 PDC SP'!$D:$D,'01 Rendiconto Finanziario'!$A28,'00 PDC SP'!I:I)-SUMIF('00 PDC SP'!$D:$D,'01 Rendiconto Finanziario'!$A28,'00 PDC SP'!J:J))*'01 Rendiconto Finanziario'!C28 -> 0
A29: 14 | B29: VP | C29: -1 | D29: (+)/(-) | E29: aumento/diminuzione debiti verso aziende sanitarie pubbliche | F29: =((SUMIF('00 PDC SP'!$D:$D,'01 Rendiconto Finanziario'!$A29,'00 PDC SP'!L:L)-SUMIF('00 PDC SP'!$D:$D,'01 Rendiconto Finanziario'!$A29,'00 PDC SP'!M:M))*'01 Rendiconto Finanziario'!C29) -> 133916.13 | G29: =(SUMIF('00 PDC SP'!$D:$D,'01 Rendiconto Finanziario'!$A29,'00 PDC SP'!I:I)-SUMIF('00 PDC SP'!$D:$D,'01 Rendiconto Finanziario'!$A29,'00 PDC SP'!J:J))*'01 Rendiconto Finanziario'!C29 -> 273946.56
A30: 15 | B30: VP | C30: -1 | D30: (+)/(-) | E30: aumento/diminuzione debiti verso arpa | F30: =((SUMIF('00 PDC SP'!$D:$D,'01 Rendiconto Finanziario'!$A30,'00 PDC SP'!L:L)-SUMIF('00 PDC SP'!$D:$D,'01 Rendiconto Finanziario'!$A30,'00 PDC SP'!M:M))*'01 Rendiconto Finanziario'!C30) -> 0 | G30: =(SUMIF('00 PDC SP'!$D:$D,'01 Rendiconto Finanziario'!$A30,'00 PDC SP'!I:I)-SUMIF('00 PDC SP'!$D:$D,'01 Rendiconto Finanziario'!$A30,'00 PDC SP'!J:J))*'01 Rendiconto Finanziario'!C30 -> 0
A31: 16 | B31: VP | C31: -1 | D31: (+)/(-) | E31: aumento/diminuzione debiti verso fornitori | F31: =((SUMIF('00 PDC SP'!$D:$D,'01 Rendiconto Finanziario'!$A31,'00 PDC SP'!L:L)-SUMIF('00 PDC SP'!$D:$D,'01 Rendiconto Finanziario'!$A31,'00 PDC SP'!M:M))*'01 Rendiconto Finanziario'!C31)-F91 -> 258375.91 | G31: =((SUMIF('00 PDC SP'!$D:$D,'01 Rendiconto Finanziario'!$A31,'00 PDC SP'!I:I)-SUMIF('00 PDC SP'!$D:$D,'01 Rendiconto Finanziario'!$A31,'00 PDC SP'!J:J))*'01 Rendiconto Finanziario'!C31)-G91 -> 690526.99 | I31: IMPOSTATA FORMULA DI SOTTRAZIONE VS CODICE DI AGGREGAZIONE 58 | J31: =F31-G31 -> -432151.08
A32: 17 | B32: VP | C32: -1 | D32: (+)/(-) | E32: aumento/diminuzione debiti tributari | F32: =((SUMIF('00 PDC SP'!$D:$D,'01 Rendiconto Finanziario'!$A32,'00 PDC SP'!L:L)-SUMIF('00 PDC SP'!$D:$D,'01 Rendiconto Finanziario'!$A32,'00 PDC SP'!M:M))*'01 Rendiconto Finanziario'!C32) -> 7673848.86 | G32: =(SUMIF('00 PDC SP'!$D:$D,'01 Rendiconto Finanziario'!$A32,'00 PDC SP'!I:I)-SUMIF('00 PDC SP'!$D:$D,'01 Rendiconto Finanziario'!$A32,'00 PDC SP'!J:J))*'01 Rendiconto Finanziario'!C32 -> 1060979.63
A33: 18 | B33: VP | C33: -1 | D33: (+)/(-) | E33: aumento/diminuzione debiti verso istituti di previdenza | F33: =((SUMIF('00 PDC SP'!$D:$D,'01 Rendiconto Finanziario'!$A33,'00 PDC SP'!L:L)-SUMIF('00 PDC SP'!$D:$D,'01 Rendiconto Finanziario'!$A33,'00 PDC SP'!M:M))*'01 Rendiconto Finanziario'!C33) -> 7499240.5 | G33: =(SUMIF('00 PDC SP'!$D:$D,'01 Rendiconto Finanziario'!$A33,'00 PDC SP'!I:I)-SUMIF('00 PDC SP'!$D:$D,'01 Rendiconto Finanziario'!$A33,'00 PDC SP'!J:J))*'01 Rendiconto Finanziario'!C33 -> 1924.43
A34: 19 | B34: VP | C34: -1 | D34: (+)/(-) | E34: aumento/diminuzione altri debiti | F34: =((SUMIF('00 PDC SP'!$D:$D,'01 Rendiconto Finanziario'!$A34,'00 PDC SP'!L:L)-SUMIF('00 PDC SP'!$D:$D,'01 Rendiconto Finanziario'!$A34,'00 PDC SP'!M:M))*'01 Rendiconto Finanziario'!C34) -> 4861608.23 | G34: =(SUMIF('00 PDC SP'!$D:$D,'01 Rendiconto Finanziario'!$A34,'00 PDC SP'!I:I)-SUMIF('00 PDC SP'!$D:$D,'01 Rendiconto Finanziario'!$A34,'00 PDC SP'!J:J))*'01 Rendiconto Finanziario'!C34 -> 1916513.36
D35: (+)/(-) | E35: aumento/diminuzione debiti (escl. forn. di immob. e C/C bancari e istituto tesoriere) | F35: =SUM(F27:F34) -> 26023288.57 | G35: =SUM(G27:G34) -> 3943890.97
A36: 20 | B36: VP | C36: -1 | D36: (+)/(-) | E36: aumento/diminuzione ratei e risconti passivi | F36: =((SUMIF('00 PDC SP'!$D:$D,'01 Rendiconto Finanziario'!$A36,'00 PDC SP'!L:L)-SUMIF('00 PDC SP'!$D:$D,'01 Rendiconto Finanziario'!$A36,'00 PDC SP'!M:M))*'01 Rendiconto Finanziario'!C36) -> 0 | G36: =(SUMIF('00 PDC SP'!$D:$D,'01 Rendiconto Finanziario'!$A36,'00 PDC SP'!I:I)-SUMIF('00 PDC SP'!$D:$D,'01 Rendiconto Finanziario'!$A36,'00 PDC SP'!J:J))*'01 Rendiconto Finanziario'!C36 -> 0
A37: 21 | B37: VA | C37: -1 | D37: (+)/(-) | E37: diminuzione/aumento crediti parte corrente v/Stato quote indistinte | F37: =((SUMIF('00 PDC SP'!$D:$D,'01 Rendiconto Finanziario'!$A37,'00 PDC SP'!L:L)-SUMIF('00 PDC SP'!$D:$D,'01 Rendiconto Finanziario'!$A37,'00 PDC SP'!M:M))*'01 Rendiconto Finanziario'!C37)-F38 -> -5807.68 | G37: =((SUMIF('00 PDC SP'!$D:$D,'01 Rendiconto Finanziario'!$A37,'00 PDC SP'!I:I)-SUMIF('00 PDC SP'!$D:$D,'01 Rendiconto Finanziario'!$A37,'00 PDC SP'!J:J))*'01 Rendiconto Finanziario'!C37)-G38 -> 91161.22 | I37: IMPOSTATA FORMULA DI SOTTRAZIONE VS CODICE DI AGGREGAZIONE 22
A38: 22 | B38: VA | C38: -1 | D38: (+)/(-) | E38: diminuzione/aumento crediti parte corrente v/Stato quote vincolate | F38: =((SUMIF('00 PDC SP'!$D:$D,'01 Rendiconto Finanziario'!$A38,'00 PDC SP'!L:L)-SUMIF('00 PDC SP'!$D:$D,'01 Rendiconto Finanziario'!$A38,'00 PDC SP'!M:M))*'01 Rendiconto Finanziario'!C38) -> 0 | G38: =(SUMIF('00 PDC SP'!$D:$D,'01 Rendiconto Finanziario'!$A38,'00 PDC SP'!I:I)-SUMIF('00 PDC SP'!$D:$D,'01 Rendiconto Finanziario'!$A38,'00 PDC SP'!J:J))*'01 Rendiconto Finanziario'!C38 -> 0 | I38: CODICE 22 - DA INSERIRE MANUALMENTE
A39: 23 | B39: VA | C39: -1 | D39: (+)/(-) | E39: diminuzione/aumento crediti parte corrente v/Regione per gettito addizionali Irpef e Irap | F39: =((SUMIF('00 PDC SP'!$D:$D,'01 Rendiconto Finanziario'!$A39,'00 PDC SP'!L:L)-SUMIF('00 PDC SP'!$D:$D,'01 Rendiconto Finanziario'!$A39,'00 PDC SP'!M:M))*'01 Rendiconto Finanziario'!C39) -> 0 | G39: =(SUMIF('00 PDC SP'!$D:$D,'01 Rendiconto Finanziario'!$A39,'00 PDC SP'!I:I)-SUMIF('00 PDC SP'!$D:$D,'01 Rendiconto Finanziario'!$A39,'00 PDC SP'!J:J))*'01 Rendiconto Finanziario'!C39 -> 0 | I39: CODICE 23 - DA INSERIRE MANUALMENTE
A40: 23 | B40: VA | C40: -1 | D40: (+)/(-) | E40: diminuzione/aumento crediti parte corrente v/Regione per partecipazioni regioni a Statuto speciale | F40: =((SUMIF('00 PDC SP'!$D:$D,'01 Rendiconto Finanziario'!$A40,'00 PDC SP'!L:L)-SUMIF('00 PDC SP'!$D:$D,'01 Rendiconto Finanziario'!$A40,'00 PDC SP'!M:M))*'01 Rendiconto Finanziario'!C40) -> 0 | G40: =(SUMIF('00 PDC SP'!$D:$D,'01 Rendiconto Finanziario'!$A40,'00 PDC SP'!I:I)-SUMIF('00 PDC SP'!$D:$D,'01 Rendiconto Finanziario'!$A40,'00 PDC SP'!J:J))*'01 Rendiconto Finanziario'!C40 -> 0 | I40: CODICE 23 - DA INSERIRE MANUALMENTE
A41: 23 | B41: VA | C41: -1 | D41: (+)/(-) | E41: diminuzione/aumento crediti parte corrente v/Regione - vincolate per partecipazioni regioni a Statuto speciale | F41: =((SUMIF('00 PDC SP'!$D:$D,'01 Rendiconto Finanziario'!$A41,'00 PDC SP'!L:L)-SUMIF('00 PDC SP'!$D:$D,'01 Rendiconto Finanziario'!$A41,'00 PDC SP'!M:M))*'01 Rendiconto Finanziario'!C41) -> 0 | G41: =(SUMIF('00 PDC SP'!$D:$D,'01 Rendiconto Finanziario'!$A41,'00 PDC SP'!I:I)-SUMIF('00 PDC SP'!$D:$D,'01 Rendiconto Finanziario'!$A41,'00 PDC SP'!J:J))*'01 Rendiconto Finanziario'!C41 -> 0 | I41: CODICE 23 - DA INSERIRE MANUALMENTE
A42: 23 | B42: VA | C42: -1 | D42: (+)/(-) | E42: diminuzione/aumento crediti parte corrente v/Regione - gettito fiscalità regionale | F42: =((SUMIF('00 PDC SP'!$D:$D,'01 Rendiconto Finanziario'!$A42,'00 PDC SP'!L:L)-SUMIF('00 PDC SP'!$D:$D,'01 Rendiconto Finanziario'!$A42,'00 PDC SP'!M:M))*'01 Rendiconto Finanziario'!C42) -> 0 | G42: =(SUMIF('00 PDC SP'!$D:$D,'01 Rendiconto Finanziario'!$A42,'00 PDC SP'!I:I)-SUMIF('00 PDC SP'!$D:$D,'01 Rendiconto Finanziario'!$A42,'00 PDC SP'!J:J))*'01 Rendiconto Finanziario'!C42 -> 0 | I42: CODICE 23 - DA INSERIRE MANUALMENTE
A43: 23 | B43: VA | C43: -1 | D43: (+)/(-) | E43: diminuzione/aumento crediti parte corrente v/Regione - altri contributi extrafondo | F43: =((SUMIF('00 PDC SP'!$D:$D,'01 Rendiconto Finanziario'!$A43,'00 PDC SP'!L:L)-SUMIF('00 PDC SP'!$D:$D,'01 Rendiconto Finanziario'!$A43,'00 PDC SP'!M:M))*'01 Rendiconto Finanziario'!C43) -> 0 | G43: =(SUMIF('00 PDC SP'!$D:$D,'01 Rendiconto Finanziario'!$A43,'00 PDC SP'!I:I)-SUMIF('00 PDC SP'!$D:$D,'01 Rendiconto Finanziario'!$A43,'00 PDC SP'!J:J))*'01 Rendiconto Finanziario'!C43 -> 0 | I43: CODICE 23 - DA INSERIRE MANUALMENTE
A44: 25 | B44: VA | C44: -1 | D44: (+)/(-) | E44: diminuzione/aumento crediti parte corrente v/Regione | F44: =((SUMIF('00 PDC SP'!$D:$D,'01 Rendiconto Finanziario'!$A44,'00 PDC SP'!L:L)-SUMIF('00 PDC SP'!$D:$D,'01 Rendiconto Finanziario'!$A44,'00 PDC SP'!M:M))*'01 Rendiconto Finanziario'!C44)-(F39+F40+F41+F42+F43) -> 16892426.41 | G44: =((SUMIF('00 PDC SP'!$D:$D,'01 Rendiconto Finanziario'!$A44,'00 PDC SP'!I:I)-SUMIF('00 PDC SP'!$D:$D,'01 Rendiconto Finanziario'!$A44,'00 PDC SP'!J:J))*'01 Rendiconto Finanziario'!C44)-(G39+G40+G41+G42+G43) -> -24310162.38 | I44: IMPOSTATA FORMULA DI SOTTRAZIONE VS CODICE DI AGGREGAZIONE 23
A45: 26 | B45: VA | C45: -1 | D45: (+)/(-) | E45: diminuzione/aumento crediti parte corrente v/Comune | F45: =((SUMIF('00 PDC SP'!$D:$D,'01 Rendiconto Finanziario'!$A45,'00 PDC SP'!L:L)-SUMIF('00 PDC SP'!$D:$D,'01 Rendiconto Finanziario'!$A45,'00 PDC SP'!M:M))*'01 Rendiconto Finanziario'!C45) -> 22599.54 | G45: =(SUMIF('00 PDC SP'!$D:$D,'01 Rendiconto Finanziario'!$A45,'00 PDC SP'!I:I)-SUMIF('00 PDC SP'!$D:$D,'01 Rendiconto Finanziario'!$A45,'00 PDC SP'!J:J))*'01 Rendiconto Finanziario'!C45 -> -16426.13
A46: 27 | B46: VA | C46: -1 | D46: (+)/(-) | E46: diminuzione/aumento crediti parte corrente v/Asl-Ao | F46: =((SUMIF('00 PDC SP'!$D:$D,'01 Rendiconto Finanziario'!$A46,'00 PDC SP'!L:L)-SUMIF('00 PDC SP'!$D:$D,'01 Rendiconto Finanziario'!$A46,'00 PDC SP'!M:M))*'01 Rendiconto Finanziario'!C46) -> -24925.05 | G46: =(SUMIF('00 PDC SP'!$D:$D,'01 Rendiconto Finanziario'!$A46,'00 PDC SP'!I:I)-SUMIF('00 PDC SP'!$D:$D,'01 Rendiconto Finanziario'!$A46,'00 PDC SP'!J:J))*'01 Rendiconto Finanziario'!C46 -> -32452.24
A47: 28 | B47: VA | C47: -1 | D47: (+)/(-) | E47: diminuzione/aumento crediti parte corrente v/ARPA | F47: =((SUMIF('00 PDC SP'!$D:$D,'01 Rendiconto Finanziario'!$A47,'00 PDC SP'!L:L)-SUMIF('00 PDC SP'!$D:$D,'01 Rendiconto Finanziario'!$A47,'00 PDC SP'!M:M))*'01 Rendiconto Finanziario'!C47) -> 0 | G47: =(SUMIF('00 PDC SP'!$D:$D,'01 Rendiconto Finanziario'!$A47,'00 PDC SP'!I:I)-SUMIF('00 PDC SP'!$D:$D,'01 Rendiconto Finanziario'!$A47,'00 PDC SP'!J:J))*'01 Rendiconto Finanziario'!C47 -> 0
A48: 29 | B48: VA | C48: -1 | D48: (+)/(-) | E48: diminuzione/aumento crediti parte corrente v/Erario | F48: =((SUMIF('00 PDC SP'!$D:$D,'01 Rendiconto Finanziario'!$A48,'00 PDC SP'!L:L)-SUMIF('00 PDC SP'!$D:$D,'01 Rendiconto Finanziario'!$A48,'00 PDC SP'!M:M))*'01 Rendiconto Finanziario'!C48) -> 1511.03 | G48: =(SUMIF('00 PDC SP'!$D:$D,'01 Rendiconto Finanziario'!$A48,'00 PDC SP'!I:I)-SUMIF('00 PDC SP'!$D:$D,'01 Rendiconto Finanziario'!$A48,'00 PDC SP'!J:J))*'01 Rendiconto Finanziario'!C48 -> -8695.5
A49: 30 | B49: VA | C49: -1 | D49: (+)/(-) | E49: diminuzione/aumento crediti parte corrente v/Altri | F49: =((SUMIF('00 PDC SP'!$D:$D,'01 Rendiconto Finanziario'!$A49,'00 PDC SP'!L:L)-SUMIF('00 PDC SP'!$D:$D,'01 Rendiconto Finanziario'!$A49,'00 PDC SP'!M:M))*'01 Rendiconto Finanziario'!C49) -> -1668326.37 | G49: =(SUMIF('00 PDC SP'!$D:$D,'01 Rendiconto Finanziario'!$A49,'00 PDC SP'!I:I)-SUMIF('00 PDC SP'!$D:$D,'01 Rendiconto Finanziario'!$A49,'00 PDC SP'!J:J))*'01 Rendiconto Finanziario'!C49 -> 267329.52
D50: (+)/(-) | E50: diminuzione/aumento di crediti | F50: =SUM(F37:F49) -> 15217477.88 | G50: =SUM(G37:G49) -> -24009245.51
A51: 31 | B51: VA | C51: -1 | D51: (+)/(-) | E51: diminuzione/aumento del magazzino | F51: =((SUMIF('00 PDC SP'!$D:$D,'01 Rendiconto Finanziario'!$A51,'00 PDC SP'!L:L)-SUMIF('00 PDC SP'!$D:$D,'01 Rendiconto Finanziario'!$A51,'00 PDC SP'!M:M))*'01 Rendiconto Finanziario'!C51) -> 484397.13 | G51: =(SUMIF('00 PDC SP'!$D:$D,'01 Rendiconto Finanziario'!$A51,'00 PDC SP'!I:I)-SUMIF('00 PDC SP'!$D:$D,'01 Rendiconto Finanziario'!$A51,'00 PDC SP'!J:J))*'01 Rendiconto Finanziario'!C51 -> -5011001.56
A52: 32 | B52: VA | C52: -1 | D52: (+)/(-) | E52: diminuzione/aumento di acconti a fornitori per magazzino | F52: =((SUMIF('00 PDC SP'!$D:$D,'01 Rendiconto Finanziario'!$A52,'00 PDC SP'!L:L)-SUMIF('00 PDC SP'!$D:$D,'01 Rendiconto Finanziario'!$A52,'00 PDC SP'!M:M))*'01 Rendiconto Finanziario'!C52) -> 0 | G52: =(SUMIF('00 PDC SP'!$D:$D,'01 Rendiconto Finanziario'!$A52,'00 PDC SP'!I:I)-SUMIF('00 PDC SP'!$D:$D,'01 Rendiconto Finanziario'!$A52,'00 PDC SP'!J:J))*'01 Rendiconto Finanziario'!C52 -> 0
D53: (+)/(-) | E53: diminuzione/aumento rimanenze | F53: =SUM(F51:F52) -> 484397.13 | G53: =SUM(G51:G52) -> -5011001.56
A54: 33 | B54: VA | C54: -1 | D54: (+)/(-) | E54: diminuzione/aumento ratei e risconti attivi | F54: =((SUMIF('00 PDC SP'!$D:$D,'01 Rendiconto Finanziario'!$A54,'00 PDC SP'!L:L)-SUMIF('00 PDC SP'!$D:$D,'01 Rendiconto Finanziario'!$A54,'00 PDC SP'!M:M))*'01 Rendiconto Finanziario'!C54) -> 1836 | G54: =(SUMIF('00 PDC SP'!$D:$D,'01 Rendiconto Finanziario'!$A54,'00 PDC SP'!I:I)-SUMIF('00 PDC SP'!$D:$D,'01 Rendiconto Finanziario'!$A54,'00 PDC SP'!J:J))*'01 Rendiconto Finanziario'!C54 -> -1835.46
D55: A - Totale operazioni di gestione reddituale | F55: =F26+F35+F36+F50+F53+F54 -> 14163044.49 | G55: =G26+G35+G36+G50+G53+G54 -> -33915203.72
D56: ATTIVITA' DI INVESTIMENTO
A57: 34 | B57: IA | C57: -1 | D57: (-) | E57: Acquisto costi di impianto e di ampliamento | F57: =((SUMIF('00 PDC SP'!$D:$D,'01 Rendiconto Finanziario'!$A57,'00 PDC SP'!L:L)))*'01 Rendiconto Finanziario'!C57 -> 0 | G57: =(SUMIF('00 PDC SP'!$D:$D,'01 Rendiconto Finanziario'!$A57,'00 PDC SP'!I:I))*'01 Rendiconto Finanziario'!C57 -> 0
A58: 35 | B58: IA | C58: -1 | D58: (-) | E58: Acquisto costi di ricerca e sviluppo | F58: =((SUMIF('00 PDC SP'!$D:$D,'01 Rendiconto Finanziario'!$A58,'00 PDC SP'!L:L)))*'01 Rendiconto Finanziario'!C58 -> 0 | G58: =(SUMIF('00 PDC SP'!$D:$D,'01 Rendiconto Finanziario'!$A58,'00 PDC SP'!I:I))*'01 Rendiconto Finanziario'!C58 -> 0
A59: 36 | B59: IA | C59: -1 | D59: (-) | E59: Acquisto Diritti di brevetto e diritti di utilizzazione delle opere d'ingegno | F59: =((SUMIF('00 PDC SP'!$D:$D,'01 Rendiconto Finanziario'!$A59,'00 PDC SP'!L:L)))*'01 Rendiconto Finanziario'!C59 -> 0 | G59: =(SUMIF('00 PDC SP'!$D:$D,'01 Rendiconto Finanziario'!$A59,'00 PDC SP'!I:I))*'01 Rendiconto Finanziario'!C59 -> 0
A60: 37 | B60: IA | C60: -1 | D60: (-) | E60: Acquisto immobilizzazioni immateriali in corso | F60: =((SUMIF('00 PDC SP'!$D:$D,'01 Rendiconto Finanziario'!$A60,'00 PDC SP'!L:L)))*'01 Rendiconto Finanziario'!C60 -> 0 | G60: =(SUMIF('00 PDC SP'!$D:$D,'01 Rendiconto Finanziario'!$A60,'00 PDC SP'!I:I))*'01 Rendiconto Finanziario'!C60 -> 0
A61: 38 | B61: IA | C61: -1 | D61: (-) | E61: Acquisto altre immobilizzazioni immateriali | F61: =((SUMIF('00 PDC SP'!$D:$D,'01 Rendiconto Finanziario'!$A61,'00 PDC SP'!L:L)))*'01 Rendiconto Finanziario'!C61 -> -65627.89 | G61: =(SUMIF('00 PDC SP'!$D:$D,'01 Rendiconto Finanziario'!$A61,'00 PDC SP'!I:I))*'01 Rendiconto Finanziario'!C61 -> -131197.56
D62: (-) | E62: Acquisto immobilizzazioni immateriali | F62: =SUM(F57:F61) -> -65627.89 | G62: =SUM(G57:G61) -> -131197.56
A63: 34 | B63: DA | C63: 1 | D63: (+) | E63: Valore netto contabile costi di impianto e di ampliamento dismessi | F63: =((SUMIF('00 PDC SP'!$D:$D,'01 Rendiconto Finanziario'!$A63,'00 PDC SP'!M:M)))*'01 Rendiconto Finanziario'!C63 -> 0 | G63: =(SUMIF('00 PDC SP'!$D:$D,'01 Rendiconto Finanziario'!$A63,'00 PDC SP'!J:J))*'01 Rendiconto Finanziario'!C63 -> 0
A64: 35 | B64: DA | C64: 1 | D64: (+) | E64: Valore netto contabile costi di ricerca e sviluppo dismessi | F64: =((SUMIF('00 PDC SP'!$D:$D,'01 Rendiconto Finanziario'!$A64,'00 PDC SP'!M:M)))*'01 Rendiconto Finanziario'!C64 -> 0 | G64: =(SUMIF('00 PDC SP'!$D:$D,'01 Rendiconto Finanziario'!$A64,'00 PDC SP'!J:J))*'01 Rendiconto Finanziario'!C64 -> 0
A65: 36 | B65: DA | C65: 1 | D65: (+) | E65: Valore netto contabile Diritti di brevetto e diritti di utilizzazione delle opere d'ingegno dismessi | F65: =((SUMIF('00 PDC SP'!$D:$D,'01 Rendiconto Finanziario'!$A65,'00 PDC SP'!M:M)))*'01 Rendiconto Finanziario'!C65 -> 0 | G65: =(SUMIF('00 PDC SP'!$D:$D,'01 Rendiconto Finanziario'!$A65,'00 PDC SP'!J:J))*'01 Rendiconto Finanziario'!C65 -> 0
A66: 37 | B66: DA | C66: 1 | D66: (+) | E66: Valore netto contabile immobilizzazioni immateriali in corso dismesse | F66: =((SUMIF('00 PDC SP'!$D:$D,'01 Rendiconto Finanziario'!$A66,'00 PDC SP'!M:M)))*'01 Rendiconto Finanziario'!C66 -> 0 | G66: =(SUMIF('00 PDC SP'!$D:$D,'01 Rendiconto Finanziario'!$A66,'00 PDC SP'!J:J))*'01 Rendiconto Finanziario'!C66 -> 0
A67: 38 | B67: DA | C67: 1 | D67: (+) | E67: Valore netto contabile altre immobilizzazioni immateriali dismesse | F67: =((SUMIF('00 PDC SP'!$D:$D,'01 Rendiconto Finanziario'!$A67,'00 PDC SP'!M:M)))*'01 Rendiconto Finanziario'!C67 -> 0 | G67: =(SUMIF('00 PDC SP'!$D:$D,'01 Rendiconto Finanziario'!$A67,'00 PDC SP'!J:J))*'01 Rendiconto Finanziario'!C67 -> 11461.65
D68: (+) | E68: Valore netto contabile Immobilizzazioni Immateriali dismesse | F68: =SUM(F63:F67) -> 0 | G68: =SUM(G63:G67) -> 11461.65
A69: 39 | B69: IA | C69: -1 | D69: (-) | E69: Acquisto terreni | F69: =((SUMIF('00 PDC SP'!$D:$D,'01 Rendiconto Finanziario'!$A69,'00 PDC SP'!L:L)))*'01 Rendiconto Finanziario'!C69 -> 0 | G69: =(SUMIF('00 PDC SP'!$D:$D,'01 Rendiconto Finanziario'!$A69,'00 PDC SP'!I:I))*'01 Rendiconto Finanziario'!C69 -> 0
A70: 40 | B70: IA | C70: -1 | D70: (-) | E70: Acquisto fabbricati | F70: =((SUMIF('00 PDC SP'!$D:$D,'01 Rendiconto Finanziario'!$A70,'00 PDC SP'!L:L)))*'01 Rendiconto Finanziario'!C70 -> 0 | G70: =(SUMIF('00 PDC SP'!$D:$D,'01 Rendiconto Finanziario'!$A70,'00 PDC SP'!I:I))*'01 Rendiconto Finanziario'!C70 -> -2087230
A71: 41 | B71: IA | C71: -1 | D71: (-) | E71: Acquisto impianti e macchinari | F71: =((SUMIF('00 PDC SP'!$D:$D,'01 Rendiconto Finanziario'!$A71,'00 PDC SP'!L:L)))*'01 Rendiconto Finanziario'!C71 -> -456581.73 | G71: =(SUMIF('00 PDC SP'!$D:$D,'01 Rendiconto Finanziario'!$A71,'00 PDC SP'!I:I))*'01 Rendiconto Finanziario'!C71 -> -653192.51
A72: 42 | B72: IA | C72: -1 | D72: (-) | E72: Acquisto attrezzature sanitarie e scientifiche | F72: =((SUMIF('00 PDC SP'!$D:$D,'01 Rendiconto Finanziario'!$A72,'00 PDC SP'!L:L)))*'01 Rendiconto Finanziario'!C72 -> -2217999.93 | G72: =(SUMIF('00 PDC SP'!$D:$D,'01 Rendiconto Finanziario'!$A72,'00 PDC SP'!I:I))*'01 Rendiconto Finanziario'!C72 -> -4303427.61
A73: 43 | B73: IA | C73: -1 | D73: (-) | E73: Acquisto mobili e arredi | F73: =((SUMIF('00 PDC SP'!$D:$D,'01 Rendiconto Finanziario'!$A73,'00 PDC SP'!L:L)))*'01 Rendiconto Finanziario'!C73 -> -233981.82 | G73: =(SUMIF('00 PDC SP'!$D:$D,'01 Rendiconto Finanziario'!$A73,'00 PDC SP'!I:I))*'01 Rendiconto Finanziario'!C73 -> -339281.25
A74: 44 | B74: IA | C74: -1 | D74: (-) | E74: Acquisto automezzi | F74: =((SUMIF('00 PDC SP'!$D:$D,'01 Rendiconto Finanziario'!$A74,'00 PDC SP'!L:L)))*'01 Rendiconto Finanziario'!C74 -> -492735.99 | G74: =(SUMIF('00 PDC SP'!$D:$D,'01 Rendiconto Finanziario'!$A74,'00 PDC SP'!I:I))*'01 Rendiconto Finanziario'!C74 -> -93196.97
A75: 45 | B75: IA | C75: -1 | D75: (-) | E75: Acquisto altri beni materiali | F75: =((SUMIF('00 PDC SP'!$D:$D,'01 Rendiconto Finanziario'!$A75,'00 PDC SP'!L:L)))*'01 Rendiconto Finanziario'!C75 -> -2468859.33 | G75: =(SUMIF('00 PDC SP'!$D:$D,'01 Rendiconto Finanziario'!$A75,'00 PDC SP'!I:I))*'01 Rendiconto Finanziario'!C75 -> -1783845.47
D76: (-) | E76: Acquisto Immobilizzazioni Materiali | F76: =SUM(F69:F75) -> -5870158.8 | G76: =SUM(G69:G75) -> -9260173.81
A77: 39 | B77: DA | C77: 1 | D77: (+) | E77: Valore netto contabile terreni dismessi | F77: =((SUMIF('00 PDC SP'!$D:$D,'01 Rendiconto Finanziario'!$A77,'00 PDC SP'!M:M)))*'01 Rendiconto Finanziario'!C77 -> 0 | G77: =(SUMIF('00 PDC SP'!$D:$D,'01 Rendiconto Finanziario'!$A77,'00 PDC SP'!J:J))*'01 Rendiconto Finanziario'!C77 -> 0
A78: 40 | B78: DA | C78: 1 | D78: (+) | E78: Valore netto contabile fabbricati dismessi | F78: =((SUMIF('00 PDC SP'!$D:$D,'01 Rendiconto Finanziario'!$A78,'00 PDC SP'!M:M)))*'01 Rendiconto Finanziario'!C78 -> 0 | G78: =(SUMIF('00 PDC SP'!$D:$D,'01 Rendiconto Finanziario'!$A78,'00 PDC SP'!J:J))*'01 Rendiconto Finanziario'!C78 -> 0
A79: 41 | B79: DA | C79: 1 | D79: (+) | E79: Valore netto contabile impianti e macchinari dismessi | F79: =((SUMIF('00 PDC SP'!$D:$D,'01 Rendiconto Finanziario'!$A79,'00 PDC SP'!M:M)))*'01 Rendiconto Finanziario'!C79 -> 56990.8 | G79: =(SUMIF('00 PDC SP'!$D:$D,'01 Rendiconto Finanziario'!$A79,'00 PDC SP'!J:J))*'01 Rendiconto Finanziario'!C79 -> 17647.73
A80: 42 | B80: DA | C80: 1 | D80: (+) | E80: Valore netto contabile attrezzature sanitarie e scientifiche dismesse | F80: =((SUMIF('00 PDC SP'!$D:$D,'01 Rendiconto Finanziario'!$A80,'00 PDC SP'!M:M)))*'01 Rendiconto Finanziario'!C80 -> 996227.99 | G80: =(SUMIF('00 PDC SP'!$D:$D,'01 Rendiconto Finanziario'!$A80,'00 PDC SP'!J:J))*'01 Rendiconto Finanziario'!C80 -> 5885338.17
A81: 43 | B81: DA | C81: 1 | D81: (+) | E81: Valore netto contabile mobili e arredi dismessi | F81: =((SUMIF('00 PDC SP'!$D:$D,'01 Rendiconto Finanziario'!$A81,'00 PDC SP'!M:M)))*'01 Rendiconto Finanziario'!C81 -> 30493.53 | G81: =(SUMIF('00 PDC SP'!$D:$D,'01 Rendiconto Finanziario'!$A81,'00 PDC SP'!J:J))*'01 Rendiconto Finanziario'!C81 -> 91861.65
A82: 44 | B82: DA | C82: 1 | D82: (+) | E82: Valore netto contabile automezzi dismessi | F82: =((SUMIF('00 PDC SP'!$D:$D,'01 Rendiconto Finanziario'!$A82,'00 PDC SP'!M:M)))*'01 Rendiconto Finanziario'!C82 -> 0 | G82: =(SUMIF('00 PDC SP'!$D:$D,'01 Rendiconto Finanziario'!$A82,'00 PDC SP'!J:J))*'01 Rendiconto Finanziario'!C82 -> 149825.11
A83: 45 | B83: DA | C83: 1 | D83: (+) | E83: Valore netto contabile altri beni materiali dismessi | F83: =((SUMIF('00 PDC SP'!$D:$D,'01 Rendiconto Finanziario'!$A83,'00 PDC SP'!M:M)))*'01 Rendiconto Finanziario'!C83 -> 99409.54 | G83: =(SUMIF('00 PDC SP'!$D:$D,'01 Rendiconto Finanziario'!$A83,'00 PDC SP'!J:J))*'01 Rendiconto Finanziario'!C83 -> 4254289.69
D84: (+) | E84: Valore netto contabile Immobilizzazioni Materiali dismesse | F84: =SUM(F77:F83) -> 1183121.86 | G84: =SUM(G77:G83) -> 10398962.35
A85: 46 | B85: IA | C85: -1 | D85: (-) | E85: Acquisto crediti finanziari | F85: =((SUMIF('00 PDC SP'!$D:$D,'01 Rendiconto Finanziario'!$A85,'00 PDC SP'!L:L)))*'01 Rendiconto Finanziario'!C85 -> 0 | G85: =(SUMIF('00 PDC SP'!$D:$D,'01 Rendiconto Finanziario'!$A85,'00 PDC SP'!I:I))*'01 Rendiconto Finanziario'!C85 -> 0
A86: 47 | B86: IA | C86: -1 | D86: (-) | E86: Acquisto titoli | F86: =((SUMIF('00 PDC SP'!$D:$D,'01 Rendiconto Finanziario'!$A86,'00 PDC SP'!L:L)))*'01 Rendiconto Finanziario'!C86 -> 0 | G86: =(SUMIF('00 PDC SP'!$D:$D,'01 Rendiconto Finanziario'!$A86,'00 PDC SP'!I:I))*'01 Rendiconto Finanziario'!C86 -> 0
D87: (-) | E87: Acquisto Immobilizzazioni Finanziarie | F87: =SUM(F85:F86) -> 0 | G87: =SUM(G85:G86) -> 0
A88: 46 | B88: DA | C88: 1 | D88: (+) | E88: Valore netto contabile crediti finanziari dismessi | F88: =((SUMIF('00 PDC SP'!$D:$D,'01 Rendiconto Finanziario'!$A88,'00 PDC SP'!M:M)))*'01 Rendiconto Finanziario'!C88 -> 0 | G88: =(SUMIF('00 PDC SP'!$D:$D,'01 Rendiconto Finanziario'!$A88,'00 PDC SP'!J:J))*'01 Rendiconto Finanziario'!C88 -> 0
A89: 47 | B89: DA | C89: 1 | D89: (+) | E89: Valore netto contabile titoli dismessi | F89: =((SUMIF('00 PDC SP'!$D:$D,'01 Rendiconto Finanziario'!$A89,'00 PDC SP'!M:M)))*'01 Rendiconto Finanziario'!C89 -> 0 | G89: =(SUMIF('00 PDC SP'!$D:$D,'01 Rendiconto Finanziario'!$A89,'00 PDC SP'!J:J))*'01 Rendiconto Finanziario'!C89 -> 0
D90: (+) | E90: Valore netto contabile Immobilizzazioni Finanziarie dismesse | F90: =SUM(F88:F89) -> 0 | G90: =SUM(G88:G89) -> 0
A91: 58 | B91: VP | C91: -1 | D91: (+/-) | E91: Aumento/Diminuzione debiti v/fornitori di immobilizzazioni | F91: 951420 | G91: 1051705 | I91: CODICE 58 - DA INSERIRE MANUALMENTE
D92: B - Totale attività di investimento | F92: =F62+F68+F76+F84+F87+F90+F91+0.0000001416 -> -3801244.83 | G92: =G62+G68+G76+G84+G87+G90+G91 -> 2070757.63
D93: ATTIVITA' DI FINANZIAMENTO
A94: 48 | B94: VA | C94: -1 | D94: (+)/(-) | E94: diminuzione/aumento crediti vs Stato (finanziamenti per investimenti) | F94: =((SUMIF('00 PDC SP'!$D:$D,'01 Rendiconto Finanziario'!$A94,'00 PDC SP'!L:L)-SUMIF('00 PDC SP'!$D:$D,'01 Rendiconto Finanziario'!$A94,'00 PDC SP'!M:M))*'01 Rendiconto Finanziario'!C94) -> 0 | G94: =(SUMIF('00 PDC SP'!$D:$D,'01 Rendiconto Finanziario'!$A94,'00 PDC SP'!I:I)-SUMIF('00 PDC SP'!$D:$D,'01 Rendiconto Finanziario'!$A94,'00 PDC SP'!J:J))*'01 Rendiconto Finanziario'!C94 -> 0
A95: 49 | B95: VA | C95: -1 | D95: (+)/(-) | E95: diminuzione/aumento crediti vs Regione (finanziamenti per investimenti) | F95: =((SUMIF('00 PDC SP'!$D:$D,'01 Rendiconto Finanziario'!$A95,'00 PDC SP'!L:L)-SUMIF('00 PDC SP'!$D:$D,'01 Rendiconto Finanziario'!$A95,'00 PDC SP'!M:M))*'01 Rendiconto Finanziario'!C95) -> 0 | G95: =(SUMIF('00 PDC SP'!$D:$D,'01 Rendiconto Finanziario'!$A95,'00 PDC SP'!I:I)-SUMIF('00 PDC SP'!$D:$D,'01 Rendiconto Finanziario'!$A95,'00 PDC SP'!J:J))*'01 Rendiconto Finanziario'!C95 -> 0
A96: 50 | B96: VA | C96: -1 | D96: (+)/(-) | E96: diminuzione/aumento crediti vs Regione (aumento fondo di dotazione) | F96: =((SUMIF('00 PDC SP'!$D:$D,'01 Rendiconto Finanziario'!$A96,'00 PDC SP'!L:L)-SUMIF('00 PDC SP'!$D:$D,'01 Rendiconto Finanziario'!$A96,'00 PDC SP'!M:M))*'01 Rendiconto Finanziario'!C96) -> 0 | G96: =(SUMIF('00 PDC SP'!$D:$D,'01 Rendiconto Finanziario'!$A96,'00 PDC SP'!I:I)-SUMIF('00 PDC SP'!$D:$D,'01 Rendiconto Finanziario'!$A96,'00 PDC SP'!J:J))*'01 Rendiconto Finanziario'!C96 -> 0
A97: 51 | B97: VA | C97: -1 | D97: (+)/(-) | E97: diminuzione/aumento crediti vs Regione (ripiano perdite) | F97: =((SUMIF('00 PDC SP'!$D:$D,'01 Rendiconto Finanziario'!$A97,'00 PDC SP'!L:L)-SUMIF('00 PDC SP'!$D:$D,'01 Rendiconto Finanziario'!$A97,'00 PDC SP'!M:M))*'01 Rendiconto Finanziario'!C97) -> 353804.19 | G97: =(SUMIF('00 PDC SP'!$D:$D,'01 Rendiconto Finanziario'!$A97,'00 PDC SP'!I:I)-SUMIF('00 PDC SP'!$D:$D,'01 Rendiconto Finanziario'!$A97,'00 PDC SP'!J:J))*'01 Rendiconto Finanziario'!C97 -> -13609624
A98: 52 | B98: VA | C98: -1 | D98: (+)/(-) | E98: diminuzione/aumento crediti vs Regione (copertura debiti al 31.12.2005) | F98: =((SUMIF('00 PDC SP'!$D:$D,'01 Rendiconto Finanziario'!$A98,'00 PDC SP'!L:L)-SUMIF('00 PDC SP'!$D:$D,'01 Rendiconto Finanziario'!$A98,'00 PDC SP'!M:M))*'01 Rendiconto Finanziario'!C98) -> 0 | G98: =(SUMIF('00 PDC SP'!$D:$D,'01 Rendiconto Finanziario'!$A98,'00 PDC SP'!I:I)-SUMIF('00 PDC SP'!$D:$D,'01 Rendiconto Finanziario'!$A98,'00 PDC SP'!J:J))*'01 Rendiconto Finanziario'!C98 -> 0
D99: (+) | E99: aumento fondo di dotazione | F99: =SUM(F94:F98) -> 353804.19 | G99: =SUM(G94:G98) -> -13609624
A100: 5 | B100: IP | C100: 1 | D100: (+) | E100: aumento contributi in c/capitale da regione e da altri | F100: =(SUMIF('00 PDC SP'!$D:$D,'01 Rendiconto Finanziario'!$A100,'00 PDC SP'!L:L))*'01 Rendiconto Finanziario'!C100 -> 16879206.28 | G100: =(SUMIF('00 PDC SP'!$D:$D,'01 Rendiconto Finanziario'!$A100,'00 PDC SP'!I:I))*'01 Rendiconto Finanziario'!C100 -> 6486693.45
A101: 6 | B101: IP | C101: 1 | D101: (+) | E101: aumento fondi riserva: investimenti, incentivi al personale, successioni e donaz., plusvalenze da reinvestire | F101: 0 | G101: =(SUMIF('00 PDC SP'!$D:$D,'01 Rendiconto Finanziario'!$A101,'00 PDC SP'!I:I))*'01 Rendiconto Finanziario'!C101 -> 0
A102: 53 | B102: VP | C102: 1 | D102: (+)/(-) | E102: altri aumenti/diminuzioni al patrimonio netto (*) | F102: =((SUMIF('00 PDC SP'!$D:$D,'01 Rendiconto Finanziario'!$A102,'00 PDC SP'!L:L)-SUMIF('00 PDC SP'!$D:$D,'01 Rendiconto Finanziario'!$A102,'00 PDC SP'!M:M))*'01 Rendiconto Finanziario'!C102)-F5 -> 221862.99 | G102: =((SUMIF('00 PDC SP'!$D:$D,'01 Rendiconto Finanziario'!$A102,'00 PDC SP'!I:I)-SUMIF('00 PDC SP'!$D:$D,'01 Rendiconto Finanziario'!$A102,'00 PDC SP'!J:J))*'01 Rendiconto Finanziario'!C102)-G5 -> 13668902.85
D103: (+)/(-) | E103: aumenti/diminuzioni nette contabili al patrimonio netto | F103: =SUM(F100:F102) -> 17101069.27 | G103: =SUM(G100:G102) -> 20155596.3
A104: 54 | B104: VA | C104: -1 | D104: (+)/(-) | E104: aumenti/diminuzione debiti C/C bancari e istituto tesoriere (*) | F104: =((SUMIF('00 PDC SP'!$D:$D,'01 Rendiconto Finanziario'!$A104,'00 PDC SP'!L:L)-SUMIF('00 PDC SP'!$D:$D,'01 Rendiconto Finanziario'!$A104,'00 PDC SP'!M:M))*'01 Rendiconto Finanziario'!C104) -> 0 | G104: =(SUMIF('00 PDC SP'!$D:$D,'01 Rendiconto Finanziario'!$A104,'00 PDC SP'!I:I)-SUMIF('00 PDC SP'!$D:$D,'01 Rendiconto Finanziario'!$A104,'00 PDC SP'!J:J))*'01 Rendiconto Finanziario'!C104 -> 0
A105: 55 | B105: IP | C105: 1 | D105: (+) | E105: assunzione nuovi mutui (*) | F105: =((SUMIF('00 PDC SP'!$D:$D,'01 Rendiconto Finanziario'!$A105,'00 PDC SP'!L:L))*'01 Rendiconto Finanziario'!C105) -> 0 | G105: =(SUMIF('00 PDC SP'!$D:$D,'01 Rendiconto Finanziario'!$A105,'00 PDC SP'!I:I))*'01 Rendiconto Finanziario'!C105 -> 0
A106: 56 | B106: DP | C106: -1 | D106: (-) | E106: mutui quota capitale rimborsata | F106: =((SUMIF('00 PDC SP'!$D:$D,'01 Rendiconto Finanziario'!$A106,'00 PDC SP'!M:M))*'01 Rendiconto Finanziario'!C106) -> 0 | G106: =(SUMIF('00 PDC SP'!$D:$D,'01 Rendiconto Finanziario'!$A106,'00 PDC SP'!J:J))*'01 Rendiconto Finanziario'!C106 -> 0
D107: C - Totale attività di finanziamento | F107: =F99+F103+F104+F105+F106 -> 17454873.46 | G107: =G99+G103+G104+G105+G106 -> 6545972.3
D108: FLUSSO DI CASSA COMPLESSIVO (A+B+C+) | F108: =F55+F92+F107 -> 27816673.12 | G108: =G55+G92+G107 -> -25298473.79
A109: 57 | B109: VA | C109: 1 | D109: Delta liquidità tra inizio e fine esercizio (al netto dei conti bancari passivi) | F109: =((SUMIF('00 PDC SP'!$D:$D,'01 Rendiconto Finanziario'!$A109,'00 PDC SP'!L:L)-SUMIF('00 PDC SP'!$D:$D,'01 Rendiconto Finanziario'!$A109,'00 PDC SP'!M:M))*'01 Rendiconto Finanziario'!C109) -> 27816673.12 | G109: =(SUMIF('00 PDC SP'!$D:$D,'01 Rendiconto Finanziario'!$A109,'00 PDC SP'!I:I)-SUMIF('00 PDC SP'!$D:$D,'01 Rendiconto Finanziario'!$A109,'00 PDC SP'!J:J))*'01 Rendiconto Finanziario'!C109 -> -25298473.79
D110: Squadratura tra il valore delle disponibilità liquide nello SP e il valore del flusso di cassa complessivo | F110: =F108-F109 -> 0 | G110: =G108-G109 -> -7.450580597e-08
E112: LEGENDA
D113: SP | E113: Saldo Stato Patrimoniale
D114: IP | E114: Passività - Incrementi
D115: DP | E115: Passività - Decrementi
D116: VA | E116: Attività - Variazione Saldo
D117: VP | E117: Passività - Variazione Saldo
D118: IA | E118: Attività - Incrementi
D119: DA | E119: Attività - Decrementi

Sheet Personale
A1: Dati sull'occupazione al 31.12 XX
A3: PERSONALE DIPENDENTE (Conto Annuale)
B4: T1A | C4: T1C | D4: T1A | E4: T1C
A5: Tipologia di personale | B5: Personale in comando al 31/12/X-1 ad altri enti | C5: Personale in comando al 31/12/X-1 da altri enti | D5: Personale in comando al 31/12/X ad altri enti | E5: Personale in comando al 31/12/X da altri enti
A6: RUOLO SANITARIO
A7: Dirigenza
A8: - Medico veterinaria | B8: 1 | C8: 1 | E8: 1
A9: - Sanitaria
A10: Comparto
A11: - Categoria Ds
A12: - Categoria D | B12: 3 | C12: 7 | D12: 1 | E12: 10
A13: - Categoria C
A14: - Categoria Bs
A15: RUOLO PROFESSIONALE
A16: Dirigenza
A17: Livello dirigenziale
A18: Comparto
A19: - Categoria D
A20: RUOLO TECNICO
A21: Dirigenza
A22: Livello dirigenziale
A23: Comparto
A24: - Categoria Ds
A25: - Categoria D
A26: - Categoria C
A27: - Categoria Bs | E27: 1
A28: - Categoria B
A29: - Categoria A
A30: RUOLO AMMINISTRATIVO
A31: Dirigenza
A32: Livello dirigenziale
A33: Comparto
A34: - Categoria Ds | C34: 1
A35: - Categoria D | B35: 1
A36: - Categoria C
A37: - Categoria Bs
A38: - Categoria B
A39: - Categoria A

Sheet Universitario (hidden)
A2: PERSONALE UNIVERSITARIO (Conto Annuale T1B)
A3: Tipologia di personale | B3: Personale al 31/12/X-1 | C3: di cui Personale a tempo parziale al 31/12/X-1 | D3: Personale al 31/12/X | E3: di cui Personale a tempo parziale al 31/12/X
A4: RUOLO SANITARIO
A5: Dirigenza
A6: Comparto
A7: RUOLO PROFESSIONALE
A8: Dirigenza
A9: Comparto
A10: RUOLO TECNICO
A11: Dirigenza
A12: Comparto
A13: RUOLO AMMINISTRATIVO
A14: Dirigenza
A15: Comparto

Sheet Altro contratto (hidden)
A2: PERSONALE CON ALTRO CONTRATTO - FORMAZIONE LAVORO (Conto Annuale T2)
A3: Tipologia di personale | B3: Uomini-anno anno X -1 | C3: Uomini-anno anno X
A4: RUOLO SANITARIO
A5: Dirigenza
A6: - Medico - Veterinari
A7: - Sanitaria non medica
A8: Comparto
A9: RUOLO PROFESSIONALE
A10: Dirigenza
A11: Comparto
A12: RUOLO TECNICO
A13: Dirigenza
A14: Comparto
A15: RUOLO AMMINISTRATIVO
A16: Dirigenza
A17: Comparto
A19: PERSONALE CON ALTRO CONTRATTO - CONTRATTO DI SOMMINISTRAZIONE (Conto Annuale T2)
A20: Tipologia di personale | B20: Uomini-anno anno X -1 | C20: Uomini-anno anno X
A21: RUOLO SANITARIO
A22: Dirigenza
A23: - Medico - Veterinari
A24: - Sanitaria non medica
A25: Comparto
A26: RUOLO PROFESSIONALE
A27: Dirigenza
A28: Comparto
A29: RUOLO TECNICO
A30: Dirigenza
A31: Comparto
A32: RUOLO AMMINISTRATIVO
A33: Dirigenza
A34: Comparto
A36: PERSONALE CON ALTRO CONTRATTO - LSU (Conto Annuale T2)
A37: Tipologia di personale | B37: Uomini-anno anno X -1 | C37: Uomini-anno anno X
A38: RUOLO SANITARIO
A39: Dirigenza
A40: - Medico - Veterinari
A41: - Sanitaria non medica
A42: Comparto
A43: RUOLO PROFESSIONALE
A44: Dirigenza
A45: Comparto
A46: RUOLO TECNICO
A47: Dirigenza
A48: Comparto
A49: RUOLO AMMINISTRATIVO
A50: Dirigenza
A51: Comparto
A53: PERSONALE IN CONVENZIONE (FLS 12 quadro E per MMG e PLS)
A54: Tipologia di personale | B54: Personale al 31/12/ X-1 | C54: Personale al 31/12/ X
A55: MEDICINA DI BASE
A56: MMG
A57: PLS
A58: Continuità assistenziale
A59: Altro

Sheet Tab 1-2-3-4
D1: 4.4 Immobilizzazioni materiali e immateriali
D3: Tab. 1 – Dettagli e movimentazioni delle immobilizzazioni immateriali
D4: CODICE MOD. SP | E4: IMMOBILIZZAZIONI IMMATERIALI | G4: Costo storico | H4: ESERCIZI PRECEDENTI | L4: MOVIMENTI DELL'ESERCIZIO | T4: Valore Netto Contabile
A5: Costo Storico | B5: F.do Amm.to | C5: F.do Svalutaz | H5: Rivalutaz. (+) | I5: Svalutaz. (-) | J5: Fondo Amm.to (-) | K5: Valore netto iniz. | L5: Giroconti e Riclass. (+/-) | M5: Rivalutaz. (+) | N5: Svalutaz. (-) | O5: Acquisizioni e costruzioni in economia | P5: Manuten. increment. | Q5: Interessi capital. | R5: Dismiss. (valore netto) (-) | S5: Ammort. (-) | V5: Valore SP | W5: Diff | X5: Ctrl
A6: AAA020 | B6: AAA030 | C6: AAA230 | D6: AAA010 | E6: Costi d'impianto e di ampliamento | G6: =SUMIF('00 SP'!$A:$A,'Tab 1-2-3-4'!A6,'00 SP'!I:I) -> 0 | H6: =SUMIF('00 SP'!A:A,'Tab 1-2-3-4'!C6,'00 SP'!H:H)*-1 -> 0 | I6: =SUMIF('00 SP'!A:A,'Tab 1-2-3-4'!C6,'00 SP'!G:G) -> 0 | J6: =SUMIF('00 SP'!A:A,'Tab 1-2-3-4'!B6,'00 SP'!I:I) -> 0 | K6: =G6+H6+I6+J6 -> 0 | L6: 0 | M6: =SUMIF('00 SP'!A:A,'Tab 1-2-3-4'!C6,'00 SP'!K:K)*-1 -> 0 | N6: =SUMIF('00 SP'!A:A,'Tab 1-2-3-4'!C6,'00 SP'!J:J) -> 0 | O6: =SUMIF('00 SP'!A:A,A6,'00 SP'!J:J)-SUMIF('00 SP'!A:A,A6,'00 SP'!K:K)-(P6+Q6+L6) -> 0 | P6: 0 | Q6: 0 | R6: 0 | S6: =(SUMIF('00 SP'!A:A,'Tab 1-2-3-4'!B6,'00 SP'!J:J)-SUMIF('00 SP'!A:A,B6,'00 SP'!K:K)-R6) -> 0 | T6: =K6+L6+M6+N6+O6+P6+Q6+R6+S6 -> 0 | V6: =SUMIF('00 SP'!A:A,'Tab 1-2-3-4'!D6,'00 SP'!L:L) -> 0 | W6: =T6-V6 -> 0 | X6: =IF(W6=0,"OK","CTRL") -> OK
E7: di cui soggetti a sterilizzazione | K7: 0 | T7: 0
A8: AAA050 | B8: AAA060 | C8: AAA240 | D8: AAA040 | E8: Costi di ricerca e sviluppo | G8: =SUMIF('00 SP'!$A:$A,'Tab 1-2-3-4'!A8,'00 SP'!I:I) -> 0 | H8: =SUMIF('00 SP'!A:A,'Tab 1-2-3-4'!C8,'00 SP'!H:H)*-1 -> 0 | I8: =SUMIF('00 SP'!A:A,'Tab 1-2-3-4'!C8,'00 SP'!G:G) -> 0 | J8: =SUMIF('00 SP'!A:A,'Tab 1-2-3-4'!B8,'00 SP'!I:I) -> 0 | K8: 0 | L8: 0 | M8: =SUMIF('00 SP'!A:A,'Tab 1-2-3-4'!C8,'00 SP'!K:K)*-1 -> 0 | N8: =SUMIF('00 SP'!A:A,'Tab 1-2-3-4'!C8,'00 SP'!J:J) -> 0 | O8: =SUMIF('00 SP'!A:A,A8,'00 SP'!J:J)-SUMIF('00 SP'!A:A,A8,'00 SP'!K:K)-(P8+Q8+L8) -> 0 | P8: 0 | Q8: 0 | R8: 0 | S8: =(SUMIF('00 SP'!A:A,'Tab 1-2-3-4'!B8,'00 SP'!J:J)-SUMIF('00 SP'!A:A,B8,'00 SP'!K:K)-R8) -> 0 | T8: 0 | V8: =SUMIF('00 SP'!A:A,'Tab 1-2-3-4'!D8,'00 SP'!L:L) -> 0 | W8: =T8-V8 -> 0 | X8: =IF(W8=0,"OK","CTRL") -> OK
E9: di cui soggetti a sterilizzazione | K9: 0 | T9: 0
A10: AAA080 | B10: AAA090 | C10: AAA250 | D10: AAA070 | E10: Diritti di brevetto e utilizzazione opere d'ingegno | G10: =SUMIF('00 SP'!$A:$A,'Tab 1-2-3-4'!A10,'00 SP'!I:I) -> 0 | H10: =SUMIF('00 SP'!A:A,'Tab 1-2-3-4'!C10,'00 SP'!H:H)*-1 -> 0 | I10: =SUMIF('00 SP'!A:A,'Tab 1-2-3-4'!C10,'00 SP'!G:G) -> 0 | J10: =SUMIF('00 SP'!A:A,'Tab 1-2-3-4'!B10,'00 SP'!I:I) -> 0 | K10: 0 | L10: 0 | M10: =SUMIF('00 SP'!A:A,'Tab 1-2-3-4'!C10,'00 SP'!K:K)*-1 -> 0 | N10: =SUMIF('00 SP'!A:A,'Tab 1-2-3-4'!C10,'00 SP'!J:J) -> 0 | O10: =SUMIF('00 SP'!A:A,A10,'00 SP'!J:J)-SUMIF('00 SP'!A:A,A10,'00 SP'!K:K)-(P10+Q10+L10) -> 0 | P10: 0 | Q10: 0 | R10: 0 | S10: =(SUMIF('00 SP'!A:A,'Tab 1-2-3-4'!B10,'00 SP'!J:J)-SUMIF('00 SP'!A:A,B10,'00 SP'!K:K)-R10) -> 0 | T10: 0 | V10: =SUMIF('00 SP'!A:A,'Tab 1-2-3-4'!D10,'00 SP'!L:L) -> 0 | W10: =T10-V10 -> 0 | X10: =IF(W10=0,"OK","CTRL") -> OK
E11: di cui soggetti a sterilizzazione | K11: 0 | T11: 0
A12: AAA120 | D12: AAA120 | E12: Immobilizzazioni immateriali in corso e acconti | G12: =SUMIF('00 SP'!$A:$A,'Tab 1-2-3-4'!A12,'00 SP'!I:I) -> 0 | H12: =SUMIF('00 SP'!A:A,'Tab 1-2-3-4'!C12,'00 SP'!H:H)*-1 -> 0 | I12: =SUMIF('00 SP'!A:A,'Tab 1-2-3-4'!C12,'00 SP'!G:G) -> 0 | J12: =SUMIF('00 SP'!A:A,'Tab 1-2-3-4'!B12,'00 SP'!I:I) -> 0 | K12: 0 | L12: 0 | M12: =SUMIF('00 SP'!A:A,'Tab 1-2-3-4'!C12,'00 SP'!K:K)*-1 -> 0 | N12: =SUMIF('00 SP'!A:A,'Tab 1-2-3-4'!C12,'00 SP'!J:J) -> 0 | O12: =SUMIF('00 SP'!A:A,A12,'00 SP'!J:J)-SUMIF('00 SP'!A:A,A12,'00 SP'!K:K)-(P12+Q12+L12) -> 0 | P12: 0 | Q12: 0 | R12: 0 | S12: =(SUMIF('00 SP'!A:A,'Tab 1-2-3-4'!B12,'00 SP'!J:J)-SUMIF('00 SP'!A:A,B12,'00 SP'!K:K)-R12) -> 0 | T12: 0 | V12: =SUMIF('00 SP'!A:A,'Tab 1-2-3-4'!D12,'00 SP'!L:L) -> 0 | W12: =T12-V12 -> 0 | X12: =IF(W12=0,"OK","CTRL") -> OK
A13: AAA200 | B13: AAA210 | D13: AAA130 | E13: Altre immobilizzazioni immateriali | G13: =G15+G17+G19+G21 -> 2307880.49 | H13: =H15+H17+H19+H21 -> 0 | I13: 0 | J13: -1844654.7 | K13: =K15+K17+K19+K21 -> 463225.79 | L13: 0 | M13: 0 | N13: 0 | O13: =O15+O17+O19+O21 -> 65627.89 | P13: 0 | Q13: 0 | R13: 0 | S13: -155437.62 | T13: =T15+T17+T19+T21 -> 373416.06 | V13: =SUMIF('00 SP'!A:A,'Tab 1-2-3-4'!D13,'00 SP'!L:L) -> 373416.06 | W13: =T13-V13 -> 0 | X13: =IF(W13=0,"OK","CTRL") -> OK
E14: di cui soggette a sterilizzazione | G14: =G16+G18+G20+G22 -> 1135003.66 | H14: =H16+H18+H20+H22 -> 0 | I14: 0 | J14: -671777.87 | K14: 463225.79 | L14: 0 | M14: 0 | N14: 0 | O14: 65628 | P14: 0 | Q14: 0 | R14: 0 | S14: =S16+S18+S20+S22 -> -155438 | T14: 373415.79
A15: AAA140 | B15: AAA150 | C15: AAA260 | D15: AAA140 | E15: Concessioni, licenze, marchi e diritti simili | G15: =SUMIF('00 SP'!$A:$A,'Tab 1-2-3-4'!A15,'00 SP'!I:I) -> 2307880.49 | H15: =SUMIF('00 SP'!A:A,'Tab 1-2-3-4'!C15,'00 SP'!H:H)*-1 -> 0 | I15: =SUMIF('00 SP'!A:A,'Tab 1-2-3-4'!C15,'00 SP'!G:G) -> 0 | J15: =SUMIF('00 SP'!A:A,'Tab 1-2-3-4'!B15,'00 SP'!I:I) -> -1844654.7 | K15: =G15+H15+I15+J15 -> 463225.79 | L15: 0 | M15: =SUMIF('00 SP'!A:A,'Tab 1-2-3-4'!C15,'00 SP'!K:K)*-1 -> 0 | N15: =SUMIF('00 SP'!A:A,'Tab 1-2-3-4'!C15,'00 SP'!J:J) -> 0 | O15: =SUMIF('00 SP'!A:A,A15,'00 SP'!J:J)-SUMIF('00 SP'!A:A,A15,'00 SP'!K:K)-(P15+Q15+L15) -> 65627.89 | P15: 0 | Q15: 0 | R15: 0 | S15: =(SUMIF('00 SP'!A:A,'Tab 1-2-3-4'!B15,'00 SP'!J:J)-SUMIF('00 SP'!A:A,B15,'00 SP'!K:K)-R15) -> -155437.62 | T15: =K15+L15+M15+N15+O15+P15+Q15+R15+S15 -> 373416.06
E16: di cui soggette a sterilizzazione | G16: =G15-1172876.83 -> 1135003.66 | J16: =J15+1172876.83 -> -671777.87 | K16: =G16+H16+I16+J16 -> 463225.79 | O16: 65628 | S16: -155438 | T16: =K16+L16+M16+N16+O16+P16+Q16+R16+S16 -> 373415.79
A17: AAA160 | B17: AAA170 | D17: AAA160 | E17: Migliorie su beni di terzi | G17: =SUMIF('00 SP'!$A:$A,'Tab 1-2-3-4'!A17,'00 SP'!I:I) -> 0 | H17: =SUMIF('00 SP'!A:A,'Tab 1-2-3-4'!C17,'00 SP'!H:H)*-1 -> 0 | I17: =SUMIF('00 SP'!A:A,'Tab 1-2-3-4'!C17,'00 SP'!G:G) -> 0 | J17: =SUMIF('00 SP'!A:A,'Tab 1-2-3-4'!B17,'00 SP'!I:I) -> 0 | K17: 0 | L17: 0 | M17: =SUMIF('00 SP'!A:A,'Tab 1-2-3-4'!C17,'00 SP'!K:K)*-1 -> 0 | N17: =SUMIF('00 SP'!A:A,'Tab 1-2-3-4'!C17,'00 SP'!J:J) -> 0 | O17: =SUMIF('00 SP'!A:A,A17,'00 SP'!J:J)-SUMIF('00 SP'!A:A,A17,'00 SP'!K:K)-(P17+Q17+L17) -> 0 | P17: 0 | Q17: 0 | R17: 0 | S17: =(SUMIF('00 SP'!A:A,'Tab 1-2-3-4'!B17,'00 SP'!J:J)-SUMIF('00 SP'!A:A,B17,'00 SP'!K:K)-R17) -> 0 | T17: 0
E18: di cui soggette a sterilizzazione | K18: 0 | T18: 0
A19: AAA180 | B19: AAA190 | D19: AAA180 | E19: Pubblicità | G19: =SUMIF('00 SP'!$A:$A,'Tab 1-2-3-4'!A19,'00 SP'!I:I) -> 0 | H19: =SUMIF('00 SP'!A:A,'Tab 1-2-3-4'!C19,'00 SP'!H:H)*-1 -> 0 | I19: =SUMIF('00 SP'!A:A,'Tab 1-2-3-4'!C19,'00 SP'!G:G) -> 0 | J19: =SUMIF('00 SP'!A:A,'Tab 1-2-3-4'!B19,'00 SP'!I:I) -> 0 | K19: 0 | L19: 0 | M19: =SUMIF('00 SP'!A:A,'Tab 1-2-3-4'!C19,'00 SP'!K:K)*-1 -> 0 | N19: =SUMIF('00 SP'!A:A,'Tab 1-2-3-4'!C19,'00 SP'!J:J) -> 0 | O19: =SUMIF('00 SP'!A:A,A19,'00 SP'!J:J)-SUMIF('00 SP'!A:A,A19,'00 SP'!K:K)-(P19+Q19+L19) -> 0 | P19: 0 | Q19: 0 | R19: 0 | S19: =(SUMIF('00 SP'!A:A,'Tab 1-2-3-4'!B19,'00 SP'!J:J)-SUMIF('00 SP'!A:A,B19,'00 SP'!K:K)-R19) -> 0 | T19: 0
E20: di cui soggette a sterilizzazione | K20: 0 | T20: 0
A21: AAA200 | B21: AAA210 | D21: AAA200 | E21: Altre immobilizzazioni immateriali | G21: =SUMIF('00 SP'!$A:$A,'Tab 1-2-3-4'!A21,'00 SP'!I:I) -> 0 | H21: =SUMIF('00 SP'!A:A,'Tab 1-2-3-4'!C21,'00 SP'!H:H)*-1 -> 0 | I21: =SUMIF('00 SP'!A:A,'Tab 1-2-3-4'!C21,'00 SP'!G:G) -> 0 | J21: =SUMIF('00 SP'!A:A,'Tab 1-2-3-4'!B21,'00 SP'!I:I) -> 0 | K21: 0 | L21: 0 | M21: =SUMIF('00 SP'!A:A,'Tab 1-2-3-4'!C21,'00 SP'!K:K)*-1 -> 0 | N21: =SUMIF('00 SP'!A:A,'Tab 1-2-3-4'!C21,'00 SP'!J:J) -> 0 | O21: =SUMIF('00 SP'!A:A,A21,'00 SP'!J:J)-SUMIF('00 SP'!A:A,A21,'00 SP'!K:K)-(P21+Q21+L21) -> 0 | P21: 0 | Q21: 0 | R21: 0 | S21: =(SUMIF('00 SP'!A:A,'Tab 1-2-3-4'!B21,'00 SP'!J:J)-SUMIF('00 SP'!A:A,B21,'00 SP'!K:K)-R21) -> 0 | T21: 0 | V21: =SUMIF('00 SP'!A:A,'Tab 1-2-3-4'!D21,'00 SP'!L:L) -> 0 | W21: =T21-V21 -> 0 | X21: =IF(W21=0,"OK","CTRL") -> OK
E22: di cui soggette a sterilizzazione | K22: 0 | T22: 0
E23: TOTALE IMMOBILIZZAZIONI IMMATERIALI | G23: =G6+G8+G10+G12+G13 -> 2307880.49 | H23: =H6+H8+H10+H12+H13 -> 0 | I23: 0 | J23: =J6+J8+J10+J12+J13 -> -1844654.7 | K23: 463225.79 | L23: 0 | M23: 0 | N23: 0 | O23: 65627.89 | P23: 0 | Q23: 0 | R23: 0 | S23: -155437.62 | T23: 373416.06
E25: di cui soggette a sterilizzazione | G25: =G7+G9+G11+G14 -> 1135003.66 | H25: =H7+H9+H11+H14 -> 0 | I25: 0 | J25: -671777.87 | K25: 463225.79 | L25: 0 | M25: 0 | N25: 0 | O25: 65628 | P25: 0 | Q25: 0 | R25: 0 | S25: -155438 | T25: =T7+T9+T11+T14 -> 373415.79
E28: Tab. 2 – Dettaglio costi di impianto e di ampliamento
E29: DETTAGLIO COSTI D'IMPIANTO E DI AMPLIAMENTO | G29: MOVIMENTI DELL'ESERCIZIO | J29: ALTRE INFORMAZIONI
G30: Valore iniziale | H30: Incrementi | I30: Valore finale | J30: Ragioni iscrizione | K30: Estremi del verbale del Collegio Sindacale
E31: Descrizione composizione
E32: ….
E33: ….
E35: Tab. 3 – Dettaglio costi di ricerca e sviluppo
E36: DETTAGLIO COSTI DI RICERCA E SVILUPPO | G36: MOVIMENTI DELL'ESERCIZIO | J36: ALTRE INFORMAZIONI
G37: Valore iniziale | H37: Incrementi | I37: Valore finale | J37: Ragioni iscrizione | K37: Estremi del verbale del Collegio Sindacale
E38: Descrizione composizione
E39: ….
E40: …
E42: Tab. 4 – Dettaglio costi di pubblicità
E43: DETTAGLIO PUBBLICITA' | G43: MOVIMENTI DELL'ESERCIZIO | J43: ALTRE INFORMAZIONI
G44: Valore iniziale | H44: Incrementi | I44: Valore finale | J44: Ragioni iscrizione | K44: Estremi del verbale del Collegio Sindacale
E45: Descrizione composizione
E46: ….
E47: …

Sheet Tab 5-6
E2: Tab. 5 – Dettagli e movimentazioni delle immobilizzazioni materiali
D3: CODICE MOD. SP | E3: IMMOBILIZZAZIONI MATERIALI | G3: Costo storico | H3: ESERCIZI PRECEDENTI | L3: MOVIMENTI DELL'ESERCIZIO | T3: Valore Netto Contabile
A4: Costo Storico | B4: F.do Amm.to | C4: F.do Svalutaz | H4: Rivalutaz. | I4: Svalutaz. | J4: Fondo amm. | K4: Valore netto iniziale | L4: Giroconti e Riclassifiche | M4: Rivalutaz. | N4: Svalutaz. | O4: Acquisizioni e costruzioni in economia | P4: Manutenz. increm. | Q4: Interessi capitalizz. | R4: Dismissioni (valore netto) | S4: Ammort. 2019 | V4: Valore SP | W4: Diff | X4: Ctrl
